Workbook

Sheet DISTRITAL
A4: POBLACION ESTIMADA POR EDADES SIMPLES Y GRUPOS DE EDAD, SEGÚN DEPARTAMENTO, PROVINCIA Y DISTRITO. 2022
A5: * Actualizado con datos INEI y Padrón Nominal de niños de 0-5 años
A6: POBLACION 2022 | J6: POBLACION TOTAL, POR EDADS SIMPLES | AD6: POBLACIÓN TOTAL, POR GRUPOS QUINQUEN ALES DE EDAD | AR6: EDADES ESPECIALES | AU6: NACIMIENTOS VIVOS | AV6: POBLACION FEMENINA TOTAL | AW6: POBLACION FEMENINA | AZ6: GESTANTES ESPERADAS
A7: UBIGEO | B7: DIRESA | C7: DEPARTAMENTO | D7: PROVINCIA | E7: DISTRITO | I7: Total | J7: 0 | K7: 1 | L7: 2 | M7: 3 | N7: 4 | O7: 5 | P7: 6 | Q7: 7 | R7: 8 | S7: 9 | T7: 10 | U7: 11 | V7: 12 | W7: 13 | X7: 14 | Y7: 15 | Z7: 16 | AA7: 17 | AB7: 18 | AC7: 19 | AD7: 20-24 | AE7: 25-29 | AF7: 30-34 | AG7: 35-39 | AH7: 40-44 | AI7: 45-49 | AJ7: 50-54 | AK7: 55-59 | AL7: 60-64 | AM7: 65-69 | AN7: 70-74 | AO7: 75-79 | AP7: 80-84 | AQ7: 85-+ | AR7: 28 DIAS | AS7: 0-5 MESES | AT7: 6-11 MESES | AW7: 10 - 14 | AX7: 15- 19 | AY7: 20- 49 | BB7: TOTAL | BC7: NIÑO | BD7: Adolescente | BE7: Joven | BF7: Adulto | BG7: Adulto Mayor
A8: 000000 | B8: PERU | C8: PERU | D8: PERU | E8: PERU | I8: 1,539,996 | J8: 17,846 | K8: 20,821 | L8: 22,275 | M8: 23,017 | N8: 23,851 | O8: 24,530 | P8: 22,959 | Q8: 22,777 | R8: 22,680 | S8: 22,583 | T8: 22,506 | U8: 22,411 | V8: 22,389 | W8: 22,305 | X8: 22,196 | Y8: 22,141 | Z8: 22,076 | AA8: 22,159 | AB8: 22,565 | AC8: 22,970 | AD8: 121,549 | AE8: 129,092 | AF8: 120,709 | AG8: 115,493 | AH8: 110,822 | AI8: 99,738 | AJ8: 90,936 | AK8: 80,028 | AL8: 65,235 | AM8: 53,278 | AN8: 41,077 | AO8: 28,000 | AP8: 18,440 | AQ8: 18,542 | AR8: 1,344 | AS8: 9,422 | AT8: 8,424 | AU8: 20,954 | AV8: 786,580 | AW8: 56,300 | AX8: 57,506 | AY8: 355,237 | AZ8: 26,411 | BB8: 1,539,996 | BC8: 268,256 | BD8: 133,266 | BE8: 296,176 | BF8: 617,726 | BG8: 206,030
A9: 040101 | B9: AREQUIPA | C9: AREQUIPA | D9: AREQUIPA | E9: AREQUIPA | I9: 55,462 | J9: 519 | K9: 645 | L9: 745 | M9: 824 | N9: 866 | O9: 948 | P9: 568 | Q9: 596 | R9: 615 | S9: 594 | T9: 624 | U9: 627 | V9: 645 | W9: 654 | X9: 633 | Y9: 631 | Z9: 629 | AA9: 634 | AB9: 644 | AC9: 722 | AD9: 3,813 | AE9: 3,918 | AF9: 3,824 | AG9: 3,543 | AH9: 3,496 | AI9: 3,683 | AJ9: 3,641 | AK9: 3,538 | AL9: 3,172 | AM9: 2,754 | AN9: 2,323 | AO9: 1,730 | AP9: 1,271 | AQ9: 1,393 | AR9: 58 | AS9: 317 | AT9: 202 | AU9: 614 | AV9: 25,175 | AW9: 1,539 | AX9: 1,659 | AY9: 10,515 | AZ9: 751 | BB9: 55,462 | BC9: 8,171 | BD9: 3,826 | BE9: 9,097 | BF9: 21,725 | BG9: 11,250
A10: 040102 | B10: AREQUIPA | C10: AREQUIPA | D10: AREQUIPA | E10: ALTO SELVA ALEGRE | I10: 91,507 | J10: 1,083 | K10: 1,304 | L10: 1,350 | M10: 1,429 | N10: 1,454 | O10: 1,558 | P10: 1,311 | Q10: 1,415 | R10: 1,356 | S10: 1,361 | T10: 1,378 | U10: 1,364 | V10: 1,278 | W10: 1,328 | X10: 1,327 | Y10: 1,255 | Z10: 1,318 | AA10: 1,271 | AB10: 1,323 | AC10: 1,374 | AD10: 7,078 | AE10: 7,710 | AF10: 7,389 | AG10: 6,537 | AH10: 6,602 | AI10: 5,886 | AJ10: 5,566 | AK10: 4,945 | AL10: 3,958 | AM10: 3,027 | AN10: 2,233 | AO10: 1,549 | AP10: 1,043 | AQ10: 1,147 | AR10: 75 | AS10: 603 | AT10: 480 | AU10: 1,110 | AV10: 46,858 | AW10: 3,313 | AX10: 3,398 | AY10: 20,399 | AZ10: 1,395 | BB10: 91,507 | BC10: 16,363 | BD10: 7,777 | BE10: 17,485 | BF10: 36,925 | BG10: 11,810
A11: 040103 | B11: AREQUIPA | C11: AREQUIPA | D11: AREQUIPA | E11: CAYMA | I11: 107,806 | J11: 1,207 | K11: 1,396 | L11: 1,599 | M11: 1,618 | N11: 1,770 | O11: 1,882 | P11: 1,618 | Q11: 1,574 | R11: 1,628 | S11: 1,664 | T11: 1,691 | U11: 1,666 | V11: 1,717 | W11: 1,622 | X11: 1,589 | Y11: 1,626 | Z11: 1,478 | AA11: 1,602 | AB11: 1,641 | AC11: 1,593 | AD11: 8,769 | AE11: 9,156 | AF11: 8,687 | AG11: 8,071 | AH11: 7,403 | AI11: 6,824 | AJ11: 6,214 | AK11: 5,625 | AL11: 4,605 | AM11: 3,545 | AN11: 2,637 | AO11: 1,796 | AP11: 1,115 | AQ11: 1,178 | AR11: 81 | AS11: 618 | AT11: 589 | AU11: 1,328 | AV11: 55,326 | AW11: 4,240 | AX11: 4,117 | AY11: 24,203 | AZ11: 1,669 | BB11: 107,806 | BC11: 19,313 | BD11: 9,634 | BE11: 21,159 | BF11: 42,824 | BG11: 13,698
A12: 040104 | B12: AREQUIPA | C12: AREQUIPA | D12: AREQUIPA | E12: CERRO COLORADO | I12: 236,098 | J12: 2,660 | K12: 3,109 | L12: 3,405 | M12: 3,318 | N12: 3,445 | O12: 3,514 | P12: 4,056 | Q12: 4,029 | R12: 3,921 | S12: 3,902 | T12: 3,811 | U12: 3,974 | V12: 3,907 | W12: 3,897 | X12: 3,734 | Y12: 3,744 | Z12: 3,593 | AA12: 3,631 | AB12: 3,609 | AC12: 3,709 | AD12: 19,810 | AE12: 19,784 | AF12: 19,031 | AG12: 18,273 | AH12: 17,575 | AI12: 15,086 | AJ12: 13,565 | AK12: 11,426 | AL12: 8,823 | AM12: 7,128 | AN12: 5,375 | AO12: 3,243 | AP12: 2,082 | AQ12: 1,929 | AR12: 199 | AS12: 1,417 | AT12: 1,243 | AU12: 3,163 | AV12: 125,453 | AW12: 10,105 | AX12: 9,523 | AY12: 56,941 | AZ12: 3,972 | BB12: 236,098 | BC12: 43,144 | BD12: 22,506 | BE12: 46,912 | BF12: 94,956 | BG12: 26,651
A13: 040105 | B13: AREQUIPA | C13: AREQUIPA | D13: AREQUIPA | E13: CHARACATO | I13: 16,995 | J13: 167 | K13: 195 | L13: 217 | M13: 204 | N13: 169 | O13: 179 | P13: 304 | Q13: 300 | R13: 257 | S13: 241 | T13: 223 | U13: 294 | V13: 273 | W13: 270 | X13: 225 | Y13: 239 | Z13: 252 | AA13: 246 | AB13: 248 | AC13: 288 | AD13: 1,436 | AE13: 1,270 | AF13: 1,208 | AG13: 1,317 | AH13: 1,438 | AI13: 1,148 | AJ13: 994 | AK13: 857 | AL13: 712 | AM13: 633 | AN13: 497 | AO13: 317 | AP13: 202 | AQ13: 175 | AR13: 14 | AS13: 87 | AT13: 80 | AU13: 194 | AV13: 8,764 | AW13: 643 | AX13: 651 | AY13: 3,972 | AZ13: 248 | BB13: 16,995 | BC13: 2,750 | BD13: 1,505 | BE13: 3,242 | BF13: 6,962 | BG13: 2,361
A14: 040106 | B14: AREQUIPA | C14: AREQUIPA | D14: AREQUIPA | E14: CHIGUATA | I14: 3,266 | J14: 54 | K14: 68 | L14: 61 | M14: 47 | N14: 67 | O14: 46 | P14: 47 | Q14: 56 | R14: 37 | S14: 44 | T14: 38 | U14: 45 | V14: 44 | W14: 42 | X14: 44 | Y14: 43 | Z14: 39 | AA14: 36 | AB14: 35 | AC14: 51 | AD14: 246 | AE14: 211 | AF14: 247 | AG14: 253 | AH14: 185 | AI14: 205 | AJ14: 201 | AK14: 189 | AL14: 143 | AM14: 144 | AN14: 116 | AO14: 74 | AP14: 52 | AQ14: 56 | AR14: 4 | AS14: 25 | AT14: 29 | AU14: 72 | AV14: 1,519 | AW14: 102 | AX14: 100 | AY14: 606 | AZ14: 91 | BB14: 3,266 | BC14: 610 | BD14: 248 | BE14: 543 | BF14: 1,280 | BG14: 529
A15: 040107 | B15: AREQUIPA | C15: AREQUIPA | D15: AREQUIPA | E15: JACOBO HUNTER | I15: 53,356 | J15: 598 | K15: 715 | L15: 755 | M15: 781 | N15: 853 | O15: 874 | P15: 779 | Q15: 765 | R15: 727 | S15: 770 | T15: 750 | U15: 788 | V15: 815 | W15: 814 | X15: 790 | Y15: 743 | Z15: 770 | AA15: 775 | AB15: 794 | AC15: 721 | AD15: 4,319 | AE15: 4,584 | AF15: 4,254 | AG15: 3,993 | AH15: 3,861 | AI15: 3,510 | AJ15: 3,140 | AK15: 2,671 | AL15: 2,193 | AM15: 1,854 | AN15: 1,399 | AO15: 977 | AP15: 610 | AQ15: 614 | AR15: 43 | AS15: 337 | AT15: 261 | AU15: 600 | AV15: 27,269 | AW15: 2,026 | AX15: 2,001 | AY15: 12,362 | AZ15: 753 | BB15: 53,356 | BC15: 9,155 | BD15: 4,707 | BE15: 10,418 | BF15: 21,429 | BG15: 7,033
A16: 040108 | B16: AREQUIPA | C16: AREQUIPA | D16: AREQUIPA | E16: LA JOYA | I16: 40,059 | J16: 588 | K16: 615 | L16: 596 | M16: 634 | N16: 614 | O16: 631 | P16: 729 | Q16: 604 | R16: 663 | S16: 664 | T16: 639 | U16: 573 | V16: 538 | W16: 606 | X16: 622 | Y16: 624 | Z16: 617 | AA16: 658 | AB16: 641 | AC16: 653 | AD16: 3,323 | AE16: 3,666 | AF16: 3,113 | AG16: 3,186 | AH16: 3,006 | AI16: 2,513 | AJ16: 2,190 | AK16: 1,806 | AL16: 1,480 | AM16: 1,152 | AN16: 866 | AO16: 540 | AP16: 355 | AQ16: 354 | AR16: 43 | AS16: 299 | AT16: 289 | AU16: 686 | AV16: 21,431 | AW16: 1,495 | AX16: 1,627 | AY16: 10,302 | AZ16: 862 | BB16: 40,059 | BC16: 7,550 | BD16: 3,665 | BE16: 8,283 | BF16: 15,814 | BG16: 4,393
A17: 040109 | B17: AREQUIPA | C17: AREQUIPA | D17: AREQUIPA | E17: MARIANO MELGAR | I17: 66,795 | J17: 738 | K17: 833 | L17: 902 | M17: 937 | N17: 1,092 | O17: 1,158 | P17: 952 | Q17: 878 | R17: 915 | S17: 961 | T17: 963 | U17: 928 | V17: 900 | W17: 946 | X17: 1,001 | Y17: 929 | Z17: 930 | AA17: 906 | AB17: 971 | AC17: 1,039 | AD17: 5,401 | AE17: 5,650 | AF17: 5,268 | AG17: 4,818 | AH17: 4,727 | AI17: 4,351 | AJ17: 4,060 | AK17: 3,604 | AL17: 2,882 | AM17: 2,344 | AN17: 1,853 | AO17: 1,252 | AP17: 840 | AQ17: 866 | AR17: 50 | AS17: 410 | AT17: 328 | AU17: 881 | AV17: 33,972 | AW17: 2,392 | AX17: 2,470 | AY17: 15,340 | AZ17: 1,108 | BB17: 66,795 | BC17: 11,257 | BD17: 5,612 | BE17: 13,061 | BF17: 26,828 | BG17: 9,171
A18: 040110 | B18: AREQUIPA | C18: AREQUIPA | D18: AREQUIPA | E18: MIRAFLORES | I18: 66,286 | J18: 660 | K18: 781 | L18: 907 | M18: 1,030 | N18: 1,029 | O18: 1,116 | P18: 919 | Q18: 881 | R18: 983 | S18: 938 | T18: 972 | U18: 847 | V18: 887 | W18: 925 | X18: 907 | Y18: 900 | Z18: 893 | AA18: 858 | AB18: 917 | AC18: 950 | AD18: 5,141 | AE18: 5,555 | AF18: 5,073 | AG18: 4,831 | AH18: 4,945 | AI18: 4,498 | AJ18: 4,177 | AK18: 3,570 | AL18: 2,921 | AM18: 2,416 | AN18: 1,868 | AO18: 1,266 | AP18: 842 | AQ18: 883 | AR18: 59 | AS18: 377 | AT18: 283 | AU18: 799 | AV18: 33,048 | AW18: 2,303 | AX18: 2,370 | AY18: 14,647 | AZ18: 1,005 | BB18: 66,286 | BC18: 11,063 | BD18: 5,370 | BE18: 12,563 | BF18: 27,094 | BG18: 9,313
A19: 040111 | B19: AREQUIPA | C19: AREQUIPA | D19: AREQUIPA | E19: MOLLEBAYA | I19: 7,201 | J19: 59 | K19: 73 | L19: 63 | M19: 69 | N19: 67 | O19: 66 | P19: 119 | Q19: 159 | R19: 140 | S19: 111 | T19: 126 | U19: 98 | V19: 97 | W19: 97 | X19: 115 | Y19: 96 | Z19: 94 | AA19: 102 | AB19: 120 | AC19: 92 | AD19: 527 | AE19: 592 | AF19: 594 | AG19: 594 | AH19: 492 | AI19: 473 | AJ19: 439 | AK19: 417 | AL19: 358 | AM19: 264 | AN19: 211 | AO19: 131 | AP19: 71 | AQ19: 75 | AR19: 5 | AS19: 36 | AT19: 23 | AU19: 74 | AV19: 3,666 | AW19: 286 | AX19: 254 | AY19: 1,532 | AZ19: 94 | BB19: 7,201 | BC19: 1,150 | BD19: 601 | BE19: 1,331 | BF19: 3,009 | BG19: 1,035
A20: 040112 | B20: AREQUIPA | C20: AREQUIPA | D20: AREQUIPA | E20: PAUCARPATA | I20: 138,083 | J20: 1,580 | K20: 1,786 | L20: 2,138 | M20: 2,260 | N20: 2,344 | O20: 2,403 | P20: 1,891 | Q20: 1,933 | R20: 1,984 | S20: 1,965 | T20: 1,990 | U20: 2,019 | V20: 2,095 | W20: 2,092 | X20: 2,046 | Y20: 2,059 | Z20: 2,026 | AA20: 1,977 | AB20: 2,021 | AC20: 2,104 | AD20: 11,018 | AE20: 11,841 | AF20: 10,639 | AG20: 10,312 | AH20: 10,194 | AI20: 9,165 | AJ20: 8,109 | AK20: 6,797 | AL20: 5,360 | AM20: 4,537 | AN20: 3,586 | AO20: 2,656 | AP20: 1,619 | AQ20: 1,537 | AR20: 123 | AS20: 834 | AT20: 746 | AU20: 1,869 | AV20: 70,505 | AW20: 5,070 | AX20: 5,269 | AY20: 32,265 | AZ20: 2,349 | BB20: 138,083 | BC20: 24,293 | BD20: 12,295 | BE20: 26,984 | BF20: 55,216 | BG20: 17,758
A21: 040113 | B21: AREQUIPA | C21: AREQUIPA | D21: AREQUIPA | E21: POCSI | I21: 463 | J21: 3 | K21: 10 | L21: 10 | M21: 6 | N21: 8 | O21: 4 | P21: 4 | Q21: 3 | R21: 3 | S21: 3 | T21: 3 | U21: 2 | V21: 2 | W21: 4 | X21: 3 | Y21: 3 | Z21: 4 | AA21: 4 | AB21: 5 | AC21: 4 | AD21: 21 | AE21: 29 | AF21: 37 | AG21: 40 | AH21: 32 | AI21: 33 | AJ21: 39 | AK21: 32 | AL21: 28 | AM21: 22 | AN21: 20 | AO21: 16 | AP21: 13 | AQ21: 13 | AR21: 1 | AS21: 1 | AT21: 2 | AU21: 4 | AV21: 187 | AW21: 5 | AX21: 9 | AY21: 61 | AZ21: 6 | BB21: 463 | BC21: 59 | BD21: 20 | BE21: 59 | BF21: 213 | BG21: 99
A22: 040114 | B22: AREQUIPA | C22: AREQUIPA | D22: AREQUIPA | E22: POLOBAYA | I22: 766 | J22: 14 | K22: 18 | L22: 8 | M22: 12 | N22: 13 | O22: 11 | P22: 7 | Q22: 4 | R22: 8 | S22: 10 | T22: 9 | U22: 7 | V22: 4 | W22: 6 | X22: 7 | Y22: 7 | Z22: 8 | AA22: 8 | AB22: 8 | AC22: 14 | AD22: 52 | AE22: 62 | AF22: 41 | AG22: 46 | AH22: 64 | AI22: 49 | AJ22: 47 | AK22: 57 | AL22: 50 | AM22: 35 | AN22: 29 | AO22: 20 | AP22: 17 | AQ22: 14 | AR22: 1 | AS22: 6 | AT22: 8 | AU22: 23 | AV22: 337 | AW22: 12 | AX22: 21 | AY22: 140 | AZ22: 30 | BB22: 766 | BC22: 121 | BD22: 40 | BE22: 136 | BF22: 304 | BG22: 151
A23: 040115 | B23: AREQUIPA | C23: AREQUIPA | D23: AREQUIPA | E23: QUEQUEÑA | I23: 6,839 | J23: 48 | K23: 41 | L23: 33 | M23: 32 | N23: 25 | O23: 23 | P23: 121 | Q23: 84 | R23: 74 | S23: 80 | T23: 87 | U23: 77 | V23: 83 | W23: 67 | X23: 77 | Y23: 87 | Z23: 67 | AA23: 77 | AB23: 80 | AC23: 84 | AD23: 372 | AE23: 566 | AF23: 553 | AG23: 663 | AH23: 455 | AI23: 439 | AJ23: 455 | AK23: 525 | AL23: 479 | AM23: 318 | AN23: 248 | AO23: 184 | AP23: 124 | AQ23: 111 | AR23: 1 | AS23: 27 | AT23: 21 | AU23: 63 | AV23: 3,263 | AW23: 191 | AX23: 194 | AY23: 1,373 | AZ23: 80 | BB23: 6,839 | BC23: 725 | BD23: 458 | BE23: 1,102 | BF23: 3,090 | BG23: 1,353
A24: 040116 | B24: AREQUIPA | C24: AREQUIPA | D24: AREQUIPA | E24: SABANDIA | I24: 4,727 | J24: 99 | K24: 97 | L24: 102 | M24: 88 | N24: 74 | O24: 72 | P24: 76 | Q24: 73 | R24: 76 | S24: 59 | T24: 61 | U24: 67 | V24: 65 | W24: 60 | X24: 60 | Y24: 61 | Z24: 63 | AA24: 57 | AB24: 67 | AC24: 62 | AD24: 364 | AE24: 357 | AF24: 350 | AG24: 328 | AH24: 317 | AI24: 293 | AJ24: 285 | AK24: 221 | AL24: 202 | AM24: 184 | AN24: 149 | AO24: 100 | AP24: 73 | AQ24: 65 | AR24: 6 | AS24: 50 | AT24: 49 | AU24: 111 | AV24: 2,376 | AW24: 155 | AX24: 164 | AY24: 989 | AZ24: 141 | BB24: 4,727 | BC24: 944 | BD24: 366 | BE24: 850 | BF24: 1,794 | BG24: 708
A25: 040117 | B25: AREQUIPA | C25: AREQUIPA | D25: AREQUIPA | E25: SACHACA | I25: 29,363 | J25: 382 | K25: 451 | L25: 456 | M25: 517 | N25: 498 | O25: 545 | P25: 427 | Q25: 404 | R25: 409 | S25: 384 | T25: 429 | U25: 412 | V25: 430 | W25: 406 | X25: 444 | Y25: 379 | Z25: 404 | AA25: 436 | AB25: 438 | AC25: 424 | AD25: 2,444 | AE25: 2,376 | AF25: 2,158 | AG25: 2,145 | AH25: 2,151 | AI25: 1,899 | AJ25: 1,615 | AK25: 1,491 | AL25: 1,198 | AM25: 1,072 | AN25: 823 | AO25: 563 | AP25: 367 | AQ25: 386 | AR25: 27 | AS25: 206 | AT25: 176 | AU25: 425 | AV25: 15,119 | AW25: 1,076 | AX25: 1,091 | AY25: 6,948 | AZ25: 536 | BB25: 29,363 | BC25: 5,314 | BD25: 2,499 | BE25: 5,682 | BF25: 11,459 | BG25: 4,023
A26: 040118 | B26: AREQUIPA | C26: AREQUIPA | D26: AREQUIPA | E26: SAN JUAN DE SIGUAS | I26: 558 | J26: 12 | K26: 9 | L26: 6 | M26: 16 | N26: 17 | O26: 10 | P26: 5 | Q26: 4 | R26: 6 | S26: 7 | T26: 7 | U26: 4 | V26: 7 | W26: 3 | X26: 5 | Y26: 9 | Z26: 10 | AA26: 8 | AB26: 7 | AC26: 4 | AD26: 28 | AE26: 59 | AF26: 33 | AG26: 39 | AH26: 36 | AI26: 33 | AJ26: 38 | AK26: 39 | AL26: 27 | AM26: 24 | AN26: 13 | AO26: 15 | AP26: 8 | AQ26: 10 | AR26: 2 | AS26: 6 | AT26: 6 | AU26: 15 | AV26: 238 | AW26: 10 | AX26: 20 | AY26: 99 | AZ26: 20 | BB26: 558 | BC26: 103 | BD26: 42 | BE26: 98 | BF26: 218 | BG26: 87
A27: 040119 | B27: AREQUIPA | C27: AREQUIPA | D27: AREQUIPA | E27: SAN JUAN DE TARUCANI | I27: 1,252 | J27: 18 | K27: 25 | L27: 23 | M27: 31 | N27: 31 | O27: 35 | P27: 15 | Q27: 13 | R27: 12 | S27: 19 | T27: 17 | U27: 9 | V27: 8 | W27: 8 | X27: 9 | Y27: 11 | Z27: 9 | AA27: 14 | AB27: 19 | AC27: 6 | AD27: 80 | AE27: 56 | AF27: 83 | AG27: 80 | AH27: 102 | AI27: 83 | AJ27: 92 | AK27: 80 | AL27: 73 | AM27: 64 | AN27: 46 | AO27: 32 | AP27: 25 | AQ27: 24 | AR27: 2 | AS27: 8 | AT27: 10 | AU27: 22 | AV27: 553 | AW27: 24 | AX27: 26 | AY27: 195 | AZ27: 29 | BB27: 1,252 | BC27: 248 | BD27: 59 | BE27: 161 | BF27: 520 | BG27: 240
A28: 040120 | B28: AREQUIPA | C28: AREQUIPA | D28: AREQUIPA | E28: SANTA ISABEL DE SIGUAS | I28: 634 | J28: 5 | K28: 12 | L28: 5 | M28: 7 | N28: 8 | O28: 8 | P28: 9 | Q28: 4 | R28: 6 | S28: 7 | T28: 6 | U28: 7 | V28: 10 | W28: 5 | X28: 7 | Y28: 9 | Z28: 10 | AA28: 12 | AB28: 15 | AC28: 7 | AD28: 52 | AE28: 51 | AF28: 60 | AG28: 24 | AH28: 35 | AI28: 43 | AJ28: 48 | AK28: 39 | AL28: 31 | AM28: 28 | AN28: 22 | AO28: 11 | AP28: 16 | AQ28: 15 | AR28: 0 | AS28: 2 | AT28: 3 | AU28: 7 | AV28: 278 | AW28: 19 | AX28: 24 | AY28: 124 | AZ28: 10 | BB28: 634 | BC28: 84 | BD28: 53 | BE28: 125 | BF28: 249 | BG28: 108
A29: 040121 | B29: AREQUIPA | C29: AREQUIPA | D29: AREQUIPA | E29: SANTA RITA DE SIGUAS | I29: 7,921 | J29: 113 | K29: 108 | L29: 99 | M29: 103 | N29: 115 | O29: 109 | P29: 115 | Q29: 126 | R29: 119 | S29: 105 | T29: 134 | U29: 130 | V29: 121 | W29: 117 | X29: 111 | Y29: 120 | Z29: 110 | AA29: 115 | AB29: 127 | AC29: 139 | AD29: 753 | AE29: 692 | AF29: 658 | AG29: 659 | AH29: 574 | AI29: 496 | AJ29: 459 | AK29: 403 | AL29: 327 | AM29: 217 | AN29: 153 | AO29: 88 | AP29: 56 | AQ29: 50 | AR29: 10 | AS29: 56 | AT29: 57 | AU29: 139 | AV29: 4,175 | AW29: 305 | AX29: 319 | AY29: 1,904 | AZ29: 176 | BB29: 7,921 | BC29: 1,376 | BD29: 694 | BE29: 1,711 | BF29: 3,249 | BG29: 841
A30: 040122 | B30: AREQUIPA | C30: AREQUIPA | D30: AREQUIPA | E30: SOCABAYA | I30: 84,182 | J30: 779 | K30: 926 | L30: 1,093 | M30: 1,110 | N30: 1,261 | O30: 1,329 | P30: 1,152 | Q30: 1,246 | R30: 1,281 | S30: 1,328 | T30: 1,257 | U30: 1,195 | V30: 1,196 | W30: 1,185 | X30: 1,239 | Y30: 1,194 | Z30: 1,277 | AA30: 1,224 | AB30: 1,346 | AC30: 1,289 | AD30: 6,844 | AE30: 7,454 | AF30: 6,520 | AG30: 6,427 | AH30: 6,257 | AI30: 5,601 | AJ30: 4,932 | AK30: 4,197 | AL30: 3,457 | AM30: 2,959 | AN30: 2,211 | AO30: 1,488 | AP30: 959 | AQ30: 969 | AR30: 63 | AS30: 430 | AT30: 349 | AU30: 942 | AV30: 43,537 | AW30: 3,088 | AX30: 3,248 | AY30: 20,123 | AZ30: 1,182 | BB30: 84,182 | BC30: 13,957 | BD30: 7,315 | BE30: 16,933 | BF30: 33,934 | BG30: 11,074
A31: 040123 | B31: AREQUIPA | C31: AREQUIPA | D31: AREQUIPA | E31: TIABAYA | I31: 17,655 | J31: 238 | K31: 299 | L31: 276 | M31: 300 | N31: 303 | O31: 338 | P31: 261 | Q31: 258 | R31: 230 | S31: 245 | T31: 242 | U31: 258 | V31: 260 | W31: 258 | X31: 263 | Y31: 231 | Z31: 224 | AA31: 260 | AB31: 224 | AC31: 253 | AD31: 1,335 | AE31: 1,517 | AF31: 1,494 | AG31: 1,335 | AH31: 1,310 | AI31: 1,108 | AJ31: 1,002 | AK31: 883 | AL31: 741 | AM31: 576 | AN31: 443 | AO31: 293 | AP31: 205 | AQ31: 192 | AR31: 25 | AS31: 137 | AT31: 101 | AU31: 291 | AV31: 8,849 | AW31: 669 | AX31: 624 | AY31: 3,869 | AZ31: 367 | BB31: 17,655 | BC31: 3,248 | BD31: 1,496 | BE31: 3,329 | BF31: 7,132 | BG31: 2,258
A32: 040124 | B32: AREQUIPA | C32: AREQUIPA | D32: AREQUIPA | E32: UCHUMAYO | I32: 17,490 | J32: 200 | K32: 252 | L32: 258 | M32: 260 | N32: 247 | O32: 261 | P32: 242 | Q32: 247 | R32: 222 | S32: 223 | T32: 233 | U32: 262 | V32: 235 | W32: 239 | X32: 217 | Y32: 235 | Z32: 237 | AA32: 253 | AB32: 249 | AC32: 236 | AD32: 1,275 | AE32: 1,507 | AF32: 1,419 | AG32: 1,507 | AH32: 1,430 | AI32: 1,133 | AJ32: 1,059 | AK32: 915 | AL32: 740 | AM32: 615 | AN32: 450 | AO32: 278 | AP32: 186 | AQ32: 168 | AR32: 12 | AS32: 101 | AT32: 99 | AU32: 229 | AV32: 8,434 | AW32: 598 | AX32: 628 | AY32: 3,652 | AZ32: 290 | BB32: 17,490 | BC32: 2,907 | BD32: 1,416 | BE32: 3,267 | BF32: 7,463 | BG32: 2,269
A33: 040125 | B33: AREQUIPA | C33: AREQUIPA | D33: AREQUIPA | E33: VITOR | I33: 4,771 | J33: 38 | K33: 38 | L33: 34 | M33: 44 | N33: 51 | O33: 33 | P33: 42 | Q33: 64 | R33: 56 | S33: 61 | T33: 35 | U33: 69 | V33: 75 | W33: 50 | X33: 60 | Y33: 67 | Z33: 77 | AA33: 74 | AB33: 85 | AC33: 70 | AD33: 414 | AE33: 362 | AF33: 430 | AG33: 409 | AH33: 417 | AI33: 304 | AJ33: 289 | AK33: 244 | AL33: 248 | AM33: 186 | AN33: 135 | AO33: 85 | AP33: 67 | AQ33: 58 | AR33: 3 | AS33: 22 | AT33: 16 | AU33: 47 | AV33: 2,368 | AW33: 131 | AX33: 174 | AY33: 1,250 | AZ33: 60 | BB33: 4,771 | BC33: 565 | BD33: 403 | BE33: 931 | BF33: 2,093 | BG33: 721
A34: 040126 | B34: AREQUIPA | C34: AREQUIPA | D34: AREQUIPA | E34: YANAHUARA | I34: 27,134 | J34: 296 | K34: 401 | L34: 422 | M34: 364 | N34: 308 | O34: 358 | P34: 373 | Q34: 327 | R34: 347 | S34: 312 | T34: 314 | U34: 376 | V34: 340 | W34: 362 | X34: 365 | Y34: 351 | Z34: 348 | AA34: 325 | AB34: 354 | AC34: 385 | AD34: 1,709 | AE34: 1,936 | AF34: 1,826 | AG34: 1,926 | AH34: 1,803 | AI34: 1,784 | AJ34: 1,746 | AK34: 1,630 | AL34: 1,394 | AM34: 1,284 | AN34: 1,095 | AO34: 792 | AP34: 540 | AQ34: 641 | AR34: 16 | AS34: 135 | AT34: 161 | AU34: 299 | AV34: 13,180 | AW34: 854 | AX34: 909 | AY34: 5,480 | AZ34: 376 | BB34: 27,134 | BC34: 4,198 | BD34: 2,091 | BE34: 4,384 | BF34: 10,715 | BG34: 5,105
A35: 040127 | B35: AREQUIPA | C35: AREQUIPA | D35: AREQUIPA | E35: YARABAMBA | I35: 1,669 | J35: 30 | K35: 34 | L35: 21 | M35: 19 | N35: 17 | O35: 23 | P35: 21 | Q35: 15 | R35: 11 | S35: 12 | T35: 16 | U35: 12 | V35: 17 | W35: 10 | X35: 12 | Y35: 17 | Z35: 18 | AA35: 12 | AB35: 24 | AC35: 19 | AD35: 114 | AE35: 129 | AF35: 140 | AG35: 158 | AH35: 119 | AI35: 131 | AJ35: 121 | AK35: 112 | AL35: 76 | AM35: 63 | AN35: 62 | AO35: 34 | AP35: 24 | AQ35: 26 | AR35: 3 | AS35: 16 | AT35: 14 | AU35: 38 | AV35: 671 | AW35: 31 | AX35: 37 | AY35: 257 | AZ35: 50 | BB35: 1,669 | BC35: 231 | BD35: 86 | BE35: 286 | BF35: 781 | BG35: 259
A36: 040128 | B36: AREQUIPA | C36: AREQUIPA | D36: AREQUIPA | E36: YURA | I36: 44,288 | J36: 588 | K36: 758 | L36: 857 | M36: 919 | N36: 956 | O36: 913 | P36: 967 | Q36: 937 | R36: 950 | S36: 880 | T36: 892 | U36: 664 | V36: 701 | W36: 662 | X36: 623 | Y36: 656 | Z36: 599 | AA36: 623 | AB36: 677 | AC36: 646 | AD36: 3,374 | AE36: 3,543 | AF36: 3,503 | AG36: 3,551 | AH36: 2,978 | AI36: 2,575 | AJ36: 2,384 | AK36: 2,113 | AL36: 1,608 | AM36: 1,220 | AN36: 842 | AO36: 510 | AP36: 322 | AQ36: 297 | AR36: 34 | AS36: 291 | AT36: 297 | AU36: 663 | AV36: 24,119 | AW36: 1,912 | AX36: 1,670 | AY36: 10,087 | AZ36: 831 | BB36: 44,288 | BC36: 10,281 | BD36: 3,864 | BE36: 8,240 | BF36: 17,104 | BG36: 4,502
A37: 040129 | B37: AREQUIPA | C37: AREQUIPA | D37: AREQUIPA | E37: JOSE LUIS BUSTAMANTE Y RIVERO | I37: 83,128 | J37: 716 | K37: 911 | L37: 1,050 | M37: 1,019 | N37: 934 | O37: 940 | P37: 1,090 | Q37: 1,145 | R37: 1,117 | S37: 974 | T37: 1,039 | U37: 1,118 | V37: 1,134 | W37: 1,110 | X37: 1,135 | Y37: 1,129 | Z37: 1,112 | AA37: 1,159 | AB37: 1,149 | AC37: 1,237 | AD37: 6,550 | AE37: 6,960 | AF37: 6,746 | AG37: 6,144 | AH37: 6,312 | AI37: 5,780 | AJ37: 5,054 | AK37: 4,482 | AL37: 3,696 | AM37: 3,100 | AN37: 2,614 | AO37: 1,912 | AP37: 1,283 | AQ37: 1,277 | AR37: 55 | AS37: 409 | AT37: 307 | AU37: 827 | AV37: 41,415 | AW37: 2,685 | AX37: 2,953 | AY37: 19,130 | AZ37: 1,040 | BB37: 83,128 | BC37: 12,053 | BD37: 6,779 | BE37: 15,896 | BF37: 34,518 | BG37: 12,605
A38: 040201 | B38: AREQUIPA | C38: AREQUIPA | D38: CAMANA | E38: CAMANA | I38: 12,558 | J38: 75 | K38: 67 | L38: 128 | M38: 154 | N38: 137 | O38: 169 | P38: 110 | Q38: 143 | R38: 141 | S38: 134 | T38: 141 | U38: 189 | V38: 183 | W38: 208 | X38: 186 | Y38: 220 | Z38: 176 | AA38: 194 | AB38: 197 | AC38: 201 | AD38: 1,152 | AE38: 1,114 | AF38: 1,106 | AG38: 893 | AH38: 915 | AI38: 832 | AJ38: 731 | AK38: 648 | AL38: 580 | AM38: 458 | AN38: 365 | AO38: 256 | AP38: 176 | AQ38: 179 | AR38: 10 | AS38: 51 | AT38: 24 | AU38: 91 | AV38: 6,311 | AW38: 407 | AX38: 485 | AY38: 3,337 | AZ38: 116 | BB38: 12,558 | BC38: 1,588 | BD38: 1,167 | BE38: 2,664 | BF38: 5,125 | BG38: 1,835
A39: 040202 | B39: AREQUIPA | C39: AREQUIPA | D39: CAMANA | E39: JOSE MARIA QUIMPER | I39: 4,868 | J39: 48 | K39: 75 | L39: 82 | M39: 86 | N39: 99 | O39: 86 | P39: 74 | Q39: 93 | R39: 84 | S39: 69 | T39: 63 | U39: 68 | V39: 79 | W39: 73 | X39: 63 | Y39: 69 | Z39: 67 | AA39: 69 | AB39: 58 | AC39: 71 | AD39: 342 | AE39: 432 | AF39: 320 | AG39: 370 | AH39: 319 | AI39: 275 | AJ39: 284 | AK39: 263 | AL39: 231 | AM39: 209 | AN39: 126 | AO39: 93 | AP39: 56 | AQ39: 72 | AR39: 3 | AS39: 21 | AT39: 27 | AU39: 59 | AV39: 2,541 | AW39: 185 | AX39: 190 | AY39: 1,094 | AZ39: 76 | BB39: 4,868 | BC39: 927 | BD39: 420 | BE39: 903 | BF39: 1,831 | BG39: 715
A40: 040203 | B40: AREQUIPA | C40: AREQUIPA | D40: CAMANA | E40: MARIANO NICOLAS VALCARCEL | I40: 8,469 | J40: 151 | K40: 173 | L40: 215 | M40: 284 | N40: 321 | O40: 241 | P40: 212 | Q40: 221 | R40: 300 | S40: 303 | T40: 251 | U40: 109 | V40: 96 | W40: 83 | X40: 114 | Y40: 90 | Z40: 119 | AA40: 107 | AB40: 86 | AC40: 66 | AD40: 394 | AE40: 417 | AF40: 519 | AG40: 580 | AH40: 443 | AI40: 444 | AJ40: 534 | AK40: 631 | AL40: 394 | AM40: 248 | AN40: 151 | AO40: 77 | AP40: 56 | AQ40: 39 | AR40: 8 | AS40: 66 | AT40: 85 | AU40: 198 | AV40: 4,378 | AW40: 406 | AX40: 302 | AY40: 1,021 | AZ40: 248 | BB40: 8,469 | BC40: 2,781 | BD40: 609 | BE40: 963 | BF40: 3,151 | BG40: 926
A41: 040204 | B41: AREQUIPA | C41: AREQUIPA | D41: CAMANA | E41: MARISCAL CACERES | I41: 6,606 | J41: 86 | K41: 125 | L41: 108 | M41: 107 | N41: 125 | O41: 109 | P41: 105 | Q41: 86 | R41: 88 | S41: 88 | T41: 86 | U41: 89 | V41: 82 | W41: 80 | X41: 92 | Y41: 80 | Z41: 91 | AA41: 73 | AB41: 98 | AC41: 91 | AD41: 487 | AE41: 511 | AF41: 556 | AG41: 485 | AH41: 455 | AI41: 403 | AJ41: 450 | AK41: 369 | AL41: 321 | AM41: 244 | AN41: 180 | AO41: 115 | AP41: 74 | AQ41: 67 | AR41: 8 | AS41: 44 | AT41: 42 | AU41: 105 | AV41: 3,409 | AW41: 212 | AX41: 215 | AY41: 1,499 | AZ41: 134 | BB41: 6,606 | BC41: 1,202 | BD41: 498 | BE41: 1,187 | BF41: 2,718 | BG41: 934
A42: 040205 | B42: AREQUIPA | C42: AREQUIPA | D42: CAMANA | E42: NICOLAS DE PIEROLA | I42: 7,917 | J42: 86 | K42: 127 | L42: 108 | M42: 133 | N42: 126 | O42: 136 | P42: 124 | Q42: 112 | R42: 123 | S42: 120 | T42: 133 | U42: 109 | V42: 124 | W42: 112 | X42: 112 | Y42: 113 | Z42: 121 | AA42: 118 | AB42: 135 | AC42: 116 | AD42: 535 | AE42: 655 | AF42: 573 | AG42: 573 | AH42: 556 | AI42: 505 | AJ42: 447 | AK42: 437 | AL42: 394 | AM42: 283 | AN42: 212 | AO42: 158 | AP42: 103 | AQ42: 98 | AR42: 7 | AS42: 44 | AT42: 42 | AU42: 99 | AV42: 4,013 | AW42: 274 | AX42: 305 | AY42: 1,800 | AZ42: 126 | BB42: 7,917 | BC42: 1,437 | BD42: 700 | BE42: 1,441 | BF42: 3,091 | BG42: 1,150
A43: 040206 | B43: AREQUIPA | C43: AREQUIPA | D43: CAMANA | E43: OCOÑA | I43: 3,944 | J43: 52 | K43: 66 | L43: 60 | M43: 55 | N43: 53 | O43: 47 | P43: 57 | Q43: 62 | R43: 41 | S43: 34 | T43: 54 | U43: 51 | V43: 43 | W43: 44 | X43: 51 | Y43: 50 | Z43: 45 | AA43: 64 | AB43: 54 | AC43: 53 | AD43: 299 | AE43: 326 | AF43: 289 | AG43: 266 | AH43: 264 | AI43: 235 | AJ43: 265 | AK43: 235 | AL43: 206 | AM43: 173 | AN43: 140 | AO43: 86 | AP43: 57 | AQ43: 67 | AR43: 5 | AS43: 25 | AT43: 27 | AU43: 63 | AV43: 1,909 | AW43: 121 | AX43: 125 | AY43: 907 | AZ43: 80 | BB43: 3,944 | BC43: 632 | BD43: 297 | BE43: 732 | BF43: 1,554 | BG43: 662
A44: 040207 | B44: AREQUIPA | C44: AREQUIPA | D44: CAMANA | E44: QUILCA | I44: 1,071 | J44: 14 | K44: 11 | L44: 13 | M44: 15 | N44: 28 | O44: 12 | P44: 10 | Q44: 11 | R44: 12 | S44: 23 | T44: 12 | U44: 14 | V44: 13 | W44: 11 | X44: 13 | Y44: 14 | Z44: 14 | AA44: 12 | AB44: 14 | AC44: 16 | AD44: 57 | AE44: 83 | AF44: 89 | AG44: 59 | AH44: 79 | AI44: 73 | AJ44: 74 | AK44: 65 | AL44: 65 | AM44: 48 | AN44: 39 | AO44: 27 | AP44: 15 | AQ44: 16 | AR44: 2 | AS44: 9 | AT44: 5 | AU44: 18 | AV44: 477 | AW44: 32 | AX44: 36 | AY44: 195 | AZ44: 23 | BB44: 1,071 | BC44: 175 | BD44: 77 | BE44: 170 | BF44: 439 | BG44: 194
A45: 040208 | B45: AREQUIPA | C45: AREQUIPA | D45: CAMANA | E45: SAMUEL PASTOR | I45: 17,004 | J45: 254 | K45: 317 | L45: 325 | M45: 335 | N45: 333 | O45: 311 | P45: 282 | Q45: 277 | R45: 275 | S45: 278 | T45: 233 | U45: 285 | V45: 247 | W45: 255 | X45: 235 | Y45: 252 | Z45: 264 | AA45: 258 | AB45: 266 | AC45: 250 | AD45: 1,335 | AE45: 1,427 | AF45: 1,298 | AG45: 1,213 | AH45: 1,143 | AI45: 1,059 | AJ45: 964 | AK45: 836 | AL45: 720 | AM45: 522 | AN45: 367 | AO45: 262 | AP45: 159 | AQ45: 167 | AR45: 21 | AS45: 123 | AT45: 131 | AU45: 308 | AV45: 8,909 | AW45: 620 | AX45: 658 | AY45: 3,971 | AZ45: 389 | BB45: 17,004 | BC45: 3,505 | BD45: 1,511 | BE45: 3,278 | BF45: 6,513 | BG45: 2,030
A46: 040301 | B46: AREQUIPA | C46: AREQUIPA | D46: CARAVELI | E46: CARAVELI | I46: 4,242 | J46: 68 | K46: 66 | L46: 64 | M46: 80 | N46: 83 | O46: 71 | P46: 58 | Q46: 51 | R46: 56 | S46: 67 | T46: 57 | U46: 56 | V46: 56 | W46: 53 | X46: 49 | Y46: 72 | Z46: 59 | AA46: 65 | AB46: 56 | AC46: 53 | AD46: 294 | AE46: 372 | AF46: 297 | AG46: 397 | AH46: 335 | AI46: 283 | AJ46: 279 | AK46: 204 | AL46: 156 | AM46: 123 | AN46: 101 | AO46: 64 | AP46: 42 | AQ46: 55 | AR46: 10 | AS46: 38 | AT46: 30 | AU46: 76 | AV46: 2,276 | AW46: 143 | AX46: 136 | AY46: 1,148 | AZ46: 96 | BB46: 4,242 | BC46: 777 | BD46: 354 | BE46: 775 | BF46: 1,795 | BG46: 486
A47: 040302 | B47: AREQUIPA | C47: AREQUIPA | D47: CARAVELI | E47: ACARI | I47: 5,293 | J47: 54 | K47: 55 | L47: 50 | M47: 60 | N47: 78 | O47: 72 | P47: 67 | Q47: 78 | R47: 54 | S47: 71 | T47: 73 | U47: 73 | V47: 86 | W47: 77 | X47: 90 | Y47: 94 | Z47: 96 | AA47: 94 | AB47: 99 | AC47: 73 | AD47: 487 | AE47: 437 | AF47: 389 | AG47: 353 | AH47: 318 | AI47: 307 | AJ47: 292 | AK47: 288 | AL47: 253 | AM47: 188 | AN47: 171 | AO47: 145 | AP47: 69 | AQ47: 102 | AR47: 3 | AS47: 27 | AT47: 27 | AU47: 68 | AV47: 2,748 | AW47: 177 | AX47: 243 | AY47: 1,382 | AZ47: 86 | BB47: 5,293 | BC47: 785 | BD47: 537 | BE47: 1,096 | BF47: 1,947 | BG47: 826
A48: 040303 | B48: AREQUIPA | C48: AREQUIPA | D48: CARAVELI | E48: ATICO | I48: 6,134 | J48: 57 | K48: 79 | L48: 67 | M48: 83 | N48: 89 | O48: 88 | P48: 85 | Q48: 85 | R48: 92 | S48: 86 | T48: 102 | U48: 104 | V48: 87 | W48: 79 | X48: 102 | Y48: 94 | Z48: 110 | AA48: 82 | AB48: 99 | AC48: 99 | AD48: 512 | AE48: 476 | AF48: 461 | AG48: 482 | AH48: 431 | AI48: 373 | AJ48: 392 | AK48: 356 | AL48: 277 | AM48: 215 | AN48: 160 | AO48: 104 | AP48: 76 | AQ48: 50 | AR48: 5 | AS48: 29 | AT48: 28 | AU48: 70 | AV48: 3,099 | AW48: 224 | AX48: 241 | AY48: 1,410 | AZ48: 88 | BB48: 6,134 | BC48: 1,017 | BD48: 554 | BE48: 1,186 | BF48: 2,495 | BG48: 832
A49: 040304 | B49: AREQUIPA | C49: AREQUIPA | D49: CARAVELI | E49: ATIQUIPA | I49: 475 | J49: 7 | K49: 12 | L49: 12 | M49: 12 | N49: 19 | O49: 11 | P49: 5 | Q49: 4 | R49: 8 | S49: 9 | T49: 4 | U49: 3 | V49: 5 | W49: 7 | X49: 5 | Y49: 10 | Z49: 5 | AA49: 6 | AB49: 5 | AC49: 5 | AD49: 21 | AE49: 50 | AF49: 40 | AG49: 40 | AH49: 21 | AI49: 22 | AJ49: 27 | AK49: 27 | AL49: 23 | AM49: 15 | AN49: 11 | AO49: 10 | AP49: 6 | AQ49: 8 | AR49: 1 | AS49: 4 | AT49: 3 | AU49: 10 | AV49: 236 | AW49: 11 | AX49: 18 | AY49: 97 | AZ49: 14 | BB49: 475 | BC49: 106 | BD49: 38 | BE49: 81 | BF49: 177 | BG49: 65
A50: 040305 | B50: AREQUIPA | C50: AREQUIPA | D50: CARAVELI | E50: BELLA UNION | I50: 2,740 | J50: 42 | K50: 40 | L50: 37 | M50: 33 | N50: 35 | O50: 27 | P50: 40 | Q50: 36 | R50: 35 | S50: 42 | T50: 28 | U50: 37 | V50: 40 | W50: 28 | X50: 34 | Y50: 24 | Z50: 45 | AA50: 29 | AB50: 44 | AC50: 35 | AD50: 225 | AE50: 245 | AF50: 226 | AG50: 183 | AH50: 205 | AI50: 191 | AJ50: 178 | AK50: 144 | AL50: 131 | AM50: 86 | AN50: 83 | AO50: 61 | AP50: 39 | AQ50: 32 | AR50: 7 | AS50: 20 | AT50: 22 | AU50: 56 | AV50: 1,409 | AW50: 85 | AX50: 80 | AY50: 693 | AZ50: 71 | BB50: 2,740 | BC50: 432 | BD50: 200 | BE50: 549 | BF50: 1,127 | BG50: 400
A51: 040306 | B51: AREQUIPA | C51: AREQUIPA | D51: CARAVELI | E51: CAHUACHO | I51: 566 | J51: 44 | K51: 16 | L51: 7 | M51: 9 | N51: 4 | O51: 10 | P51: 7 | Q51: 4 | R51: 9 | S51: 5 | T51: 4 | U51: 5 | V51: 5 | W51: 8 | X51: 8 | Y51: 9 | Z51: 8 | AA51: 9 | AB51: 7 | AC51: 8 | AD51: 39 | AE51: 33 | AF51: 37 | AG51: 49 | AH51: 44 | AI51: 26 | AJ51: 29 | AK51: 24 | AL51: 17 | AM51: 23 | AN51: 18 | AO51: 13 | AP51: 14 | AQ51: 14 | AR51: 0 | AS51: 19 | AT51: 25 | AU51: 57 | AV51: 285 | AW51: 13 | AX51: 23 | AY51: 134 | AZ51: 74 | BB51: 566 | BC51: 124 | BD51: 47 | BE51: 87 | BF51: 209 | BG51: 85
A52: 040307 | B52: AREQUIPA | C52: AREQUIPA | D52: CARAVELI | E52: CHALA | I52: 10,255 | J52: 163 | K52: 194 | L52: 172 | M52: 166 | N52: 151 | O52: 144 | P52: 226 | Q52: 192 | R52: 199 | S52: 188 | T52: 163 | U52: 179 | V52: 162 | W52: 181 | X52: 156 | Y52: 183 | Z52: 156 | AA52: 154 | AB52: 122 | AC52: 170 | AD52: 815 | AE52: 923 | AF52: 760 | AG52: 795 | AH52: 607 | AI52: 618 | AJ52: 539 | AK52: 513 | AL52: 435 | AM52: 334 | AN52: 201 | AO52: 131 | AP52: 75 | AQ52: 88 | AR52: 14 | AS52: 89 | AT52: 74 | AU52: 212 | AV52: 5,487 | AW52: 404 | AX52: 394 | AY52: 2,532 | AZ52: 266 | BB52: 10,255 | BC52: 2,137 | BD52: 992 | BE52: 2,030 | BF52: 3,832 | BG52: 1,176
A53: 040308 | B53: AREQUIPA | C53: AREQUIPA | D53: CARAVELI | E53: CHAPARRA | I53: 3,468 | J53: 38 | K53: 61 | L53: 81 | M53: 49 | N53: 48 | O53: 55 | P53: 51 | Q53: 67 | R53: 33 | S53: 59 | T53: 41 | U53: 50 | V53: 50 | W53: 45 | X53: 39 | Y53: 45 | Z53: 54 | AA53: 41 | AB53: 45 | AC53: 57 | AD53: 309 | AE53: 268 | AF53: 353 | AG53: 262 | AH53: 236 | AI53: 217 | AJ53: 193 | AK53: 183 | AL53: 145 | AM53: 111 | AN53: 82 | AO53: 34 | AP53: 37 | AQ53: 29 | AR53: 5 | AS53: 19 | AT53: 19 | AU53: 50 | AV53: 1,677 | AW53: 101 | AX53: 141 | AY53: 814 | AZ53: 64 | BB53: 3,468 | BC53: 633 | BD53: 274 | BE53: 679 | BF53: 1,444 | BG53: 409
A54: 040309 | B54: AREQUIPA | C54: AREQUIPA | D54: CARAVELI | E54: HUANUHUANU | I54: 3,121 | J54: 45 | K54: 54 | L54: 29 | M54: 43 | N54: 43 | O54: 52 | P54: 52 | Q54: 42 | R54: 50 | S54: 43 | T54: 53 | U54: 45 | V54: 47 | W54: 48 | X54: 53 | Y54: 41 | Z54: 58 | AA54: 40 | AB54: 71 | AC54: 54 | AD54: 212 | AE54: 247 | AF54: 303 | AG54: 257 | AH54: 246 | AI54: 206 | AJ54: 191 | AK54: 167 | AL54: 127 | AM54: 84 | AN54: 54 | AO54: 27 | AP54: 18 | AQ54: 19 | AR54: 2 | AS54: 27 | AT54: 18 | AU54: 59 | AV54: 1,379 | AW54: 108 | AX54: 140 | AY54: 589 | AZ54: 75 | BB54: 3,121 | BC54: 551 | BD54: 287 | BE54: 584 | BF54: 1,370 | BG54: 310
A55: 040310 | B55: AREQUIPA | C55: AREQUIPA | D55: CARAVELI | E55: JAQUI | I55: 1,605 | J55: 22 | K55: 33 | L55: 23 | M55: 17 | N55: 22 | O55: 18 | P55: 29 | Q55: 18 | R55: 21 | S55: 18 | T55: 19 | U55: 24 | V55: 31 | W55: 21 | X55: 21 | Y55: 23 | Z55: 32 | AA55: 29 | AB55: 26 | AC55: 22 | AD55: 142 | AE55: 152 | AF55: 113 | AG55: 105 | AH55: 95 | AI55: 90 | AJ55: 92 | AK55: 91 | AL55: 67 | AM55: 70 | AN55: 46 | AO55: 29 | AP55: 20 | AQ55: 24 | AR55: 0 | AS55: 10 | AT55: 12 | AU55: 29 | AV55: 820 | AW55: 46 | AX55: 72 | AY55: 405 | AZ55: 38 | BB55: 1,605 | BC55: 264 | BD55: 157 | BE55: 342 | BF55: 586 | BG55: 232
A56: 040311 | B56: AREQUIPA | C56: AREQUIPA | D56: CARAVELI | E56: LOMAS | I56: 1,586 | J56: 21 | K56: 17 | L56: 13 | M56: 27 | N56: 29 | O56: 35 | P56: 17 | Q56: 16 | R56: 20 | S56: 33 | T56: 34 | U56: 26 | V56: 10 | W56: 27 | X56: 25 | Y56: 20 | Z56: 18 | AA56: 19 | AB56: 22 | AC56: 18 | AD56: 129 | AE56: 129 | AF56: 116 | AG56: 94 | AH56: 116 | AI56: 113 | AJ56: 96 | AK56: 98 | AL56: 84 | AM56: 56 | AN56: 40 | AO56: 33 | AP56: 19 | AQ56: 16 | AR56: 2 | AS56: 12 | AT56: 9 | AU56: 28 | AV56: 755 | AW56: 67 | AX56: 51 | AY56: 309 | AZ56: 36 | BB56: 1,586 | BC56: 288 | BD56: 119 | BE56: 298 | BF56: 633 | BG56: 232
A57: 040312 | B57: AREQUIPA | C57: AREQUIPA | D57: CARAVELI | E57: QUICACHA | I57: 1,921 | J57: 23 | K57: 43 | L57: 16 | M57: 28 | N57: 28 | O57: 24 | P57: 32 | Q57: 14 | R57: 27 | S57: 27 | T57: 25 | U57: 33 | V57: 32 | W57: 23 | X57: 23 | Y57: 42 | Z57: 42 | AA57: 32 | AB57: 40 | AC57: 35 | AD57: 168 | AE57: 161 | AF57: 181 | AG57: 124 | AH57: 137 | AI57: 121 | AJ57: 94 | AK57: 89 | AL57: 77 | AM57: 59 | AN57: 43 | AO57: 32 | AP57: 21 | AQ57: 25 | AR57: 0 | AS57: 11 | AT57: 12 | AU57: 30 | AV57: 1,019 | AW57: 66 | AX57: 105 | AY57: 525 | AZ57: 39 | BB57: 1,921 | BC57: 320 | BD57: 194 | BE57: 404 | BF57: 746 | BG57: 232
A58: 040313 | B58: AREQUIPA | C58: AREQUIPA | D58: CARAVELI | E58: YAUCA | I58: 2,047 | J58: 13 | K58: 21 | L58: 14 | M58: 22 | N58: 25 | O58: 13 | P58: 29 | Q58: 24 | R58: 35 | S58: 35 | T58: 24 | U58: 32 | V58: 25 | W58: 27 | X58: 40 | Y58: 39 | Z58: 39 | AA58: 38 | AB58: 28 | AC58: 37 | AD58: 135 | AE58: 172 | AF58: 123 | AG58: 85 | AH58: 153 | AI58: 127 | AJ58: 138 | AK58: 130 | AL58: 130 | AM58: 90 | AN58: 79 | AO58: 50 | AP58: 40 | AQ58: 35 | AR58: 5 | AS58: 8 | AT58: 5 | AU58: 17 | AV58: 979 | AW58: 67 | AX58: 104 | AY58: 399 | AZ58: 22 | BB58: 2,047 | BC58: 287 | BD58: 208 | BE58: 372 | BF58: 756 | BG58: 389
A59: 040401 | B59: AREQUIPA | C59: AREQUIPA | D59: CASTILLA | E59: APLAO | I59: 9,099 | J59: 119 | K59: 148 | L59: 126 | M59: 135 | N59: 142 | O59: 151 | P59: 122 | Q59: 108 | R59: 112 | S59: 108 | T59: 125 | U59: 120 | V59: 130 | W59: 127 | X59: 114 | Y59: 113 | Z59: 144 | AA59: 166 | AB59: 115 | AC59: 137 | AD59: 649 | AE59: 856 | AF59: 706 | AG59: 677 | AH59: 633 | AI59: 580 | AJ59: 541 | AK59: 485 | AL59: 393 | AM59: 323 | AN59: 276 | AO59: 184 | AP59: 117 | AQ59: 117 | AR59: 5 | AS59: 57 | AT59: 62 | AU59: 154 | AV59: 4,713 | AW59: 259 | AX59: 348 | AY59: 2,350 | AZ59: 194 | BB59: 9,099 | BC59: 1,516 | BD59: 794 | BE59: 1,757 | BF59: 3,622 | BG59: 1,293
A60: 040402 | B60: AREQUIPA | C60: AREQUIPA | D60: CASTILLA | E60: ANDAGUA | I60: 973 | J60: 10 | K60: 15 | L60: 7 | M60: 8 | N60: 15 | O60: 11 | P60: 16 | Q60: 13 | R60: 12 | S60: 14 | T60: 9 | U60: 12 | V60: 11 | W60: 13 | X60: 14 | Y60: 15 | Z60: 17 | AA60: 14 | AB60: 17 | AC60: 12 | AD60: 56 | AE60: 97 | AF60: 69 | AG60: 69 | AH60: 59 | AI60: 73 | AJ60: 58 | AK60: 47 | AL60: 45 | AM60: 41 | AN60: 38 | AO60: 25 | AP60: 17 | AQ60: 24 | AR60: 1 | AS60: 6 | AT60: 4 | AU60: 16 | AV60: 446 | AW60: 23 | AX60: 40 | AY60: 215 | AZ60: 21 | BB60: 973 | BC60: 142 | BD60: 84 | BE60: 182 | BF60: 375 | BG60: 166
A61: 040403 | B61: AREQUIPA | C61: AREQUIPA | D61: CASTILLA | E61: AYO | I61: 216 | J61: 4 | K61: 3 | L61: 2 | M61: 3 | N61: 0 | O61: 2 | P61: 2 | Q61: 2 | R61: 2 | S61: 1 | T61: 0 | U61: 1 | V61: 1 | W61: 2 | X61: 1 | Y61: 1 | Z61: 4 | AA61: 3 | AB61: 1 | AC61: 2 | AD61: 5 | AE61: 9 | AF61: 11 | AG61: 13 | AH61: 18 | AI61: 12 | AJ61: 13 | AK61: 14 | AL61: 18 | AM61: 17 | AN61: 12 | AO61: 16 | AP61: 11 | AQ61: 10 | AR61: 1 | AS61: 2 | AT61: 2 | AU61: 5 | AV61: 62 | AW61: 2 | AX61: 4 | AY61: 15 | AZ61: 7 | BB61: 216 | BC61: 22 | BD61: 12 | BE61: 17 | BF61: 81 | BG61: 74
A62: 040404 | B62: AREQUIPA | C62: AREQUIPA | D62: CASTILLA | E62: CHACHAS | I62: 1,602 | J62: 29 | K62: 34 | L62: 29 | M62: 23 | N62: 27 | O62: 37 | P62: 24 | Q62: 13 | R62: 21 | S62: 18 | T62: 25 | U62: 19 | V62: 27 | W62: 26 | X62: 23 | Y62: 35 | Z62: 24 | AA62: 26 | AB62: 20 | AC62: 25 | AD62: 172 | AE62: 112 | AF62: 150 | AG62: 113 | AH62: 102 | AI62: 92 | AJ62: 82 | AK62: 78 | AL62: 56 | AM62: 37 | AN62: 36 | AO62: 27 | AP62: 17 | AQ62: 23 | AR62: 5 | AS62: 15 | AT62: 14 | AU62: 29 | AV62: 761 | AW62: 51 | AX62: 64 | AY62: 372 | AZ62: 37 | BB62: 1,602 | BC62: 299 | BD62: 161 | BE62: 329 | BF62: 617 | BG62: 173
A63: 040405 | B63: AREQUIPA | C63: AREQUIPA | D63: CASTILLA | E63: CHILCAYMARCA | I63: 1,072 | J63: 12 | K63: 10 | L63: 10 | M63: 6 | N63: 13 | O63: 11 | P63: 13 | Q63: 16 | R63: 9 | S63: 16 | T63: 14 | U63: 15 | V63: 11 | W63: 17 | X63: 20 | Y63: 15 | Z63: 17 | AA63: 12 | AB63: 15 | AC63: 9 | AD63: 112 | AE63: 96 | AF63: 110 | AG63: 87 | AH63: 58 | AI63: 76 | AJ63: 67 | AK63: 54 | AL63: 52 | AM63: 40 | AN63: 20 | AO63: 19 | AP63: 11 | AQ63: 9 | AR63: 0 | AS63: 6 | AT63: 6 | AU63: 15 | AV63: 562 | AW63: 37 | AX63: 31 | AY63: 288 | AZ63: 20 | BB63: 1,072 | BC63: 145 | BD63: 92 | BE63: 232 | BF63: 452 | BG63: 142
A64: 040406 | B64: AREQUIPA | C64: AREQUIPA | D64: CASTILLA | E64: CHOCO | I64: 631 | J64: 3 | K64: 7 | L64: 6 | M64: 4 | N64: 3 | O64: 5 | P64: 5 | Q64: 6 | R64: 3 | S64: 3 | T64: 3 | U64: 6 | V64: 7 | W64: 5 | X64: 3 | Y64: 5 | Z64: 9 | AA64: 6 | AB64: 10 | AC64: 13 | AD64: 45 | AE64: 52 | AF64: 42 | AG64: 57 | AH64: 47 | AI64: 53 | AJ64: 40 | AK64: 33 | AL64: 36 | AM64: 32 | AN64: 24 | AO64: 19 | AP64: 19 | AQ64: 20 | AR64: 0 | AS64: 0 | AT64: 3 | AU64: 4 | AV64: 229 | AW64: 11 | AX64: 21 | AY64: 113 | AZ64: 6 | BB64: 631 | BC64: 54 | BD64: 35 | BE64: 120 | BF64: 272 | BG64: 130
A65: 040407 | B65: AREQUIPA | C65: AREQUIPA | D65: CASTILLA | E65: HUANCARQUI | I65: 1,621 | J65: 11 | K65: 23 | L65: 12 | M65: 11 | N65: 14 | O65: 9 | P65: 22 | Q65: 16 | R65: 13 | S65: 17 | T65: 16 | U65: 20 | V65: 15 | W65: 18 | X65: 19 | Y65: 18 | Z65: 14 | AA65: 21 | AB65: 16 | AC65: 26 | AD65: 121 | AE65: 106 | AF65: 142 | AG65: 116 | AH65: 123 | AI65: 116 | AJ65: 108 | AK65: 110 | AL65: 89 | AM65: 77 | AN65: 66 | AO65: 45 | AP65: 35 | AQ65: 36 | AR65: 1 | AS65: 5 | AT65: 6 | AU65: 11 | AV65: 695 | AW65: 39 | AX65: 43 | AY65: 307 | AZ65: 15 | BB65: 1,621 | BC65: 184 | BD65: 105 | BE65: 269 | BF65: 715 | BG65: 312
A66: 040408 | B66: AREQUIPA | C66: AREQUIPA | D66: CASTILLA | E66: MACHAGUAY | I66: 413 | J66: 4 | K66: 3 | L66: 7 | M66: 3 | N66: 6 | O66: 3 | P66: 1 | Q66: 3 | R66: 1 | S66: 4 | T66: 4 | U66: 3 | V66: 5 | W66: 5 | X66: 3 | Y66: 3 | Z66: 8 | AA66: 8 | AB66: 6 | AC66: 6 | AD66: 29 | AE66: 31 | AF66: 24 | AG66: 29 | AH66: 35 | AI66: 24 | AJ66: 22 | AK66: 23 | AL66: 21 | AM66: 15 | AN66: 26 | AO66: 17 | AP66: 14 | AQ66: 17 | AR66: 0 | AS66: 2 | AT66: 2 | AU66: 5 | AV66: 178 | AW66: 8 | AX66: 15 | AY66: 102 | AZ66: 8 | BB66: 413 | BC66: 42 | BD66: 32 | BE66: 72 | BF66: 157 | BG66: 93
A67: 040409 | B67: AREQUIPA | C67: AREQUIPA | D67: CASTILLA | E67: ORCOPAMPA | I67: 8,577 | J67: 52 | K67: 90 | L67: 75 | M67: 119 | N67: 162 | O67: 162 | P67: 128 | Q67: 116 | R67: 157 | S67: 190 | T67: 174 | U67: 125 | V67: 134 | W67: 152 | X67: 140 | Y67: 178 | Z67: 163 | AA67: 179 | AB67: 146 | AC67: 140 | AD67: 908 | AE67: 855 | AF67: 727 | AG67: 699 | AH67: 548 | AI67: 463 | AJ67: 371 | AK67: 351 | AL67: 274 | AM67: 217 | AN67: 156 | AO67: 90 | AP67: 67 | AQ67: 69 | AR67: 3 | AS67: 25 | AT67: 27 | AU67: 68 | AV67: 4,834 | AW67: 351 | AX67: 401 | AY67: 2,571 | AZ67: 87 | BB67: 8,577 | BC67: 1,550 | BD67: 946 | BE67: 2,049 | BF67: 3,159 | BG67: 804
A68: 040410 | B68: AREQUIPA | C68: AREQUIPA | D68: CASTILLA | E68: PAMPACOLCA | I68: 1,728 | J68: 34 | K68: 34 | L68: 20 | M68: 23 | N68: 29 | O68: 21 | P68: 25 | Q68: 18 | R68: 20 | S68: 15 | T68: 22 | U68: 20 | V68: 20 | W68: 27 | X68: 23 | Y68: 28 | Z68: 26 | AA68: 29 | AB68: 20 | AC68: 29 | AD68: 161 | AE68: 159 | AF68: 133 | AG68: 100 | AH68: 112 | AI68: 109 | AJ68: 78 | AK68: 94 | AL68: 58 | AM68: 61 | AN68: 41 | AO68: 57 | AP68: 43 | AQ68: 39 | AR68: 2 | AS68: 19 | AT68: 15 | AU68: 50 | AV68: 874 | AW68: 46 | AX68: 64 | AY68: 482 | AZ68: 64 | BB68: 1,728 | BC68: 281 | BD68: 153 | BE68: 369 | BF68: 626 | BG68: 260
A69: 040411 | B69: AREQUIPA | C69: AREQUIPA | D69: CASTILLA | E69: TIPAN | I69: 420 | J69: 2 | K69: 3 | L69: 0 | M69: 3 | N69: 3 | O69: 5 | P69: 5 | Q69: 3 | R69: 3 | S69: 2 | T69: 3 | U69: 4 | V69: 5 | W69: 6 | X69: 4 | Y69: 3 | Z69: 3 | AA69: 7 | AB69: 9 | AC69: 4 | AD69: 37 | AE69: 32 | AF69: 31 | AG69: 39 | AH69: 36 | AI69: 24 | AJ69: 16 | AK69: 31 | AL69: 22 | AM69: 18 | AN69: 14 | AO69: 18 | AP69: 8 | AQ69: 17 | AR69: 0 | AS69: 1 | AT69: 1 | AU69: 2 | AV69: 198 | AW69: 12 | AX69: 10 | AY69: 124 | AZ69: 3 | BB69: 420 | BC69: 36 | BD69: 28 | BE69: 82 | BF69: 177 | BG69: 80
A70: 040412 | B70: AREQUIPA | C70: AREQUIPA | D70: CASTILLA | E70: UÑON | I70: 191 | J70: 2 | K70: 3 | L70: 0 | M70: 2 | N70: 3 | O70: 1 | P70: 0 | Q70: 0 | R70: 2 | S70: 1 | T70: 2 | U70: 3 | V70: 0 | W70: 1 | X70: 5 | Y70: 1 | Z70: 2 | AA70: 1 | AB70: 0 | AC70: 2 | AD70: 11 | AE70: 12 | AF70: 12 | AG70: 10 | AH70: 18 | AI70: 14 | AJ70: 20 | AK70: 9 | AL70: 13 | AM70: 12 | AN70: 12 | AO70: 5 | AP70: 6 | AQ70: 6 | AR70: 0 | AS70: 2 | AT70: 0 | AU70: 2 | AV70: 75 | AW70: 7 | AX70: 3 | AY70: 31 | AZ70: 4 | BB70: 191 | BC70: 19 | BD70: 10 | BE70: 25 | BF70: 83 | BG70: 48
A71: 040413 | B71: AREQUIPA | C71: AREQUIPA | D71: CASTILLA | E71: URACA | I71: 6,397 | J71: 71 | K71: 64 | L71: 80 | M71: 91 | N71: 65 | O71: 89 | P71: 64 | Q71: 64 | R71: 82 | S71: 62 | T71: 67 | U71: 75 | V71: 85 | W71: 84 | X71: 80 | Y71: 101 | Z71: 86 | AA71: 82 | AB71: 86 | AC71: 98 | AD71: 540 | AE71: 681 | AF71: 497 | AG71: 465 | AH71: 459 | AI71: 380 | AJ71: 390 | AK71: 340 | AL71: 314 | AM71: 244 | AN71: 196 | AO71: 129 | AP71: 95 | AQ71: 91 | AR71: 4 | AS71: 35 | AT71: 36 | AU71: 93 | AV71: 3,212 | AW71: 197 | AX71: 218 | AY71: 1,656 | AZ71: 118 | BB71: 6,397 | BC71: 874 | BD71: 518 | BE71: 1,405 | BF71: 2,531 | BG71: 978
A72: 040414 | B72: AREQUIPA | C72: AREQUIPA | D72: CASTILLA | E72: VIRACO | I72: 1,384 | J72: 15 | K72: 11 | L72: 14 | M72: 11 | N72: 13 | O72: 14 | P72: 9 | Q72: 13 | R72: 12 | S72: 7 | T72: 10 | U72: 18 | V72: 17 | W72: 15 | X72: 17 | Y72: 13 | Z72: 14 | AA72: 34 | AB72: 18 | AC72: 20 | AD72: 97 | AE72: 145 | AF72: 94 | AG72: 92 | AH72: 97 | AI72: 87 | AJ72: 83 | AK72: 67 | AL72: 71 | AM72: 82 | AN72: 50 | AO72: 48 | AP72: 40 | AQ72: 36 | AR72: 1 | AS72: 8 | AT72: 7 | AU72: 18 | AV72: 641 | AW72: 42 | AX72: 54 | AY72: 363 | AZ72: 23 | BB72: 1,384 | BC72: 147 | BD72: 110 | BE72: 280 | BF72: 520 | BG72: 291
A73: 040501 | B73: AREQUIPA | C73: AREQUIPA | D73: CAYLLOMA | E73: CHIVAY | I73: 6,058 | J73: 48 | K73: 75 | L73: 71 | M73: 104 | N73: 129 | O73: 139 | P73: 70 | Q73: 78 | R73: 78 | S73: 100 | T73: 95 | U73: 110 | V73: 94 | W73: 93 | X73: 104 | Y73: 113 | Z73: 100 | AA73: 108 | AB73: 105 | AC73: 90 | AD73: 542 | AE73: 569 | AF73: 510 | AG73: 497 | AH73: 392 | AI73: 386 | AJ73: 299 | AK73: 275 | AL73: 210 | AM73: 156 | AN73: 113 | AO73: 86 | AP73: 63 | AQ73: 56 | AR73: 2 | AS73: 30 | AT73: 18 | AU73: 57 | AV73: 3,319 | AW73: 246 | AX73: 247 | AY73: 1,697 | AZ73: 72 | BB73: 6,058 | BC73: 1,097 | BD73: 612 | BE73: 1,306 | BF73: 2,359 | BG73: 628
A74: 040502 | B74: AREQUIPA | C74: AREQUIPA | D74: CAYLLOMA | E74: ACHOMA | I74: 824 | J74: 10 | K74: 9 | L74: 6 | M74: 10 | N74: 11 | O74: 7 | P74: 8 | Q74: 8 | R74: 4 | S74: 5 | T74: 6 | U74: 9 | V74: 12 | W74: 5 | X74: 7 | Y74: 6 | Z74: 7 | AA74: 11 | AB74: 7 | AC74: 13 | AD74: 76 | AE74: 73 | AF74: 55 | AG74: 40 | AH74: 70 | AI74: 61 | AJ74: 58 | AK74: 55 | AL74: 42 | AM74: 37 | AN74: 32 | AO74: 24 | AP74: 19 | AQ74: 21 | AR74: 0 | AS74: 4 | AT74: 6 | AU74: 13 | AV74: 360 | AW74: 18 | AX74: 19 | AY74: 170 | AZ74: 18 | BB74: 824 | BC74: 93 | BD74: 48 | BE74: 169 | BF74: 339 | BG74: 154
A75: 040503 | B75: AREQUIPA | C75: AREQUIPA | D75: CAYLLOMA | E75: CABANACONDE | I75: 2,065 | J75: 21 | K75: 28 | L75: 15 | M75: 20 | N75: 13 | O75: 24 | P75: 22 | Q75: 16 | R75: 17 | S75: 17 | T75: 22 | U75: 31 | V75: 24 | W75: 27 | X75: 21 | Y75: 21 | Z75: 26 | AA75: 28 | AB75: 31 | AC75: 24 | AD75: 145 | AE75: 231 | AF75: 139 | AG75: 122 | AH75: 154 | AI75: 131 | AJ75: 140 | AK75: 137 | AL75: 102 | AM75: 98 | AN75: 71 | AO75: 53 | AP75: 48 | AQ75: 46 | AR75: 0 | AS75: 8 | AT75: 13 | AU75: 28 | AV75: 985 | AW75: 60 | AX75: 61 | AY75: 491 | AZ75: 36 | BB75: 2,065 | BC75: 246 | BD75: 147 | BE75: 431 | BF75: 823 | BG75: 372
A76: 040504 | B76: AREQUIPA | C76: AREQUIPA | D76: CAYLLOMA | E76: CALLALLI | I76: 1,315 | J76: 18 | K76: 30 | L76: 10 | M76: 17 | N76: 18 | O76: 13 | P76: 19 | Q76: 8 | R76: 11 | S76: 15 | T76: 10 | U76: 16 | V76: 11 | W76: 16 | X76: 14 | Y76: 12 | Z76: 17 | AA76: 10 | AB76: 18 | AC76: 9 | AD76: 95 | AE76: 132 | AF76: 91 | AG76: 91 | AH76: 84 | AI76: 99 | AJ76: 91 | AK76: 82 | AL76: 72 | AM76: 53 | AN76: 48 | AO76: 39 | AP76: 23 | AQ76: 23 | AR76: 2 | AS76: 10 | AT76: 8 | AU76: 21 | AV76: 607 | AW76: 30 | AX76: 38 | AY76: 286 | AZ76: 28 | BB76: 1,315 | BC76: 185 | BD76: 80 | BE76: 254 | BF76: 538 | BG76: 235
A77: 040505 | B77: AREQUIPA | C77: AREQUIPA | D77: CAYLLOMA | E77: CAYLLOMA | I77: 3,647 | J77: 65 | K77: 56 | L77: 54 | M77: 37 | N77: 57 | O77: 62 | P77: 30 | Q77: 45 | R77: 39 | S77: 49 | T77: 49 | U77: 52 | V77: 51 | W77: 52 | X77: 62 | Y77: 66 | Z77: 68 | AA77: 77 | AB77: 60 | AC77: 57 | AD77: 355 | AE77: 307 | AF77: 276 | AG77: 331 | AH77: 256 | AI77: 229 | AJ77: 202 | AK77: 168 | AL77: 133 | AM77: 108 | AN77: 77 | AO77: 48 | AP77: 33 | AQ77: 36 | AR77: 8 | AS77: 32 | AT77: 33 | AU77: 85 | AV77: 1,893 | AW77: 118 | AX77: 170 | AY77: 982 | AZ77: 107 | BB77: 3,647 | BC77: 595 | BD77: 376 | BE77: 779 | BF77: 1,462 | BG77: 399
A78: 040506 | B78: AREQUIPA | C78: AREQUIPA | D78: CAYLLOMA | E78: COPORAQUE | I78: 1,091 | J78: 11 | K78: 16 | L78: 17 | M78: 9 | N78: 13 | O78: 8 | P78: 20 | Q78: 17 | R78: 9 | S78: 8 | T78: 4 | U78: 12 | V78: 15 | W78: 12 | X78: 12 | Y78: 14 | Z78: 14 | AA78: 6 | AB78: 9 | AC78: 14 | AD78: 75 | AE78: 66 | AF78: 93 | AG78: 97 | AH78: 84 | AI78: 64 | AJ78: 70 | AK78: 61 | AL78: 67 | AM78: 60 | AN78: 38 | AO78: 31 | AP78: 20 | AQ78: 25 | AR78: 1 | AS78: 5 | AT78: 6 | AU78: 15 | AV78: 533 | AW78: 33 | AX78: 24 | AY78: 230 | AZ78: 20 | BB78: 1,091 | BC78: 144 | BD78: 73 | BE78: 164 | BF78: 469 | BG78: 216
A79: 040507 | B79: AREQUIPA | C79: AREQUIPA | D79: CAYLLOMA | E79: HUAMBO | I79: 643 | J79: 7 | K79: 6 | L79: 8 | M79: 7 | N79: 11 | O79: 5 | P79: 7 | Q79: 6 | R79: 3 | S79: 7 | T79: 6 | U79: 7 | V79: 6 | W79: 3 | X79: 5 | Y79: 7 | Z79: 11 | AA79: 10 | AB79: 8 | AC79: 8 | AD79: 53 | AE79: 65 | AF79: 64 | AG79: 41 | AH79: 32 | AI79: 41 | AJ79: 38 | AK79: 32 | AL79: 30 | AM79: 29 | AN79: 16 | AO79: 27 | AP79: 18 | AQ79: 19 | AR79: 1 | AS79: 4 | AT79: 3 | AU79: 8 | AV79: 285 | AW79: 8 | AX79: 21 | AY79: 164 | AZ79: 11 | BB79: 643 | BC79: 80 | BD79: 42 | BE79: 134 | BF79: 248 | BG79: 120
A80: 040508 | B80: AREQUIPA | C80: AREQUIPA | D80: CAYLLOMA | E80: HUANCA | I80: 966 | J80: 13 | K80: 8 | L80: 3 | M80: 12 | N80: 19 | O80: 12 | P80: 2 | Q80: 3 | R80: 6 | S80: 8 | T80: 8 | U80: 7 | V80: 8 | W80: 8 | X80: 10 | Y80: 8 | Z80: 9 | AA80: 11 | AB80: 10 | AC80: 10 | AD80: 49 | AE80: 71 | AF80: 65 | AG80: 66 | AH80: 90 | AI80: 76 | AJ80: 73 | AK80: 59 | AL80: 64 | AM80: 49 | AN80: 46 | AO80: 30 | AP80: 27 | AQ80: 26 | AR80: 0 | AS80: 10 | AT80: 3 | AU80: 17 | AV80: 386 | AW80: 18 | AX80: 22 | AY80: 180 | AZ80: 23 | BB80: 966 | BC80: 101 | BD80: 54 | BE80: 140 | BF80: 429 | BG80: 216
A81: 040509 | B81: AREQUIPA | C81: AREQUIPA | D81: CAYLLOMA | E81: ICHUPAMPA | I81: 577 | J81: 8 | K81: 14 | L81: 3 | M81: 8 | N81: 4 | O81: 9 | P81: 7 | Q81: 1 | R81: 4 | S81: 5 | T81: 7 | U81: 8 | V81: 9 | W81: 7 | X81: 4 | Y81: 5 | Z81: 11 | AA81: 9 | AB81: 5 | AC81: 10 | AD81: 28 | AE81: 37 | AF81: 57 | AG81: 25 | AH81: 43 | AI81: 40 | AJ81: 40 | AK81: 40 | AL81: 34 | AM81: 29 | AN81: 28 | AO81: 14 | AP81: 13 | AQ81: 11 | AR81: 1 | AS81: 5 | AT81: 3 | AU81: 8 | AV81: 243 | AW81: 15 | AX81: 21 | AY81: 95 | AZ81: 12 | BB81: 577 | BC81: 78 | BD81: 45 | BE81: 80 | BF81: 245 | BG81: 118
A82: 040510 | B82: AREQUIPA | C82: AREQUIPA | D82: CAYLLOMA | E82: LARI | I82: 818 | J82: 13 | K82: 15 | L82: 11 | M82: 8 | N82: 8 | O82: 15 | P82: 8 | Q82: 7 | R82: 5 | S82: 9 | T82: 9 | U82: 7 | V82: 9 | W82: 9 | X82: 8 | Y82: 12 | Z82: 13 | AA82: 9 | AB82: 15 | AC82: 16 | AD82: 69 | AE82: 79 | AF82: 68 | AG82: 63 | AH82: 60 | AI82: 57 | AJ82: 46 | AK82: 37 | AL82: 35 | AM82: 33 | AN82: 20 | AO82: 17 | AP82: 16 | AQ82: 12 | AR82: 1 | AS82: 5 | AT82: 8 | AU82: 13 | AV82: 399 | AW82: 16 | AX82: 33 | AY82: 208 | AZ82: 17 | BB82: 818 | BC82: 115 | BD82: 60 | BE82: 179 | BF82: 331 | BG82: 121
A83: 040511 | B83: AREQUIPA | C83: AREQUIPA | D83: CAYLLOMA | E83: LLUTA | I83: 706 | J83: 8 | K83: 7 | L83: 7 | M83: 5 | N83: 9 | O83: 16 | P83: 2 | Q83: 2 | R83: 5 | S83: 3 | T83: 5 | U83: 6 | V83: 6 | W83: 11 | X83: 6 | Y83: 6 | Z83: 8 | AA83: 12 | AB83: 8 | AC83: 6 | AD83: 64 | AE83: 35 | AF83: 58 | AG83: 70 | AH83: 40 | AI83: 53 | AJ83: 44 | AK83: 46 | AL83: 35 | AM83: 34 | AN83: 31 | AO83: 22 | AP83: 20 | AQ83: 16 | AR83: 2 | AS83: 5 | AT83: 3 | AU83: 11 | AV83: 278 | AW83: 12 | AX83: 19 | AY83: 153 | AZ83: 15 | BB83: 706 | BC83: 75 | BD83: 49 | BE83: 113 | BF83: 311 | BG83: 142
A84: 040512 | B84: AREQUIPA | C84: AREQUIPA | D84: CAYLLOMA | E84: MACA | I84: 662 | J84: 8 | K84: 4 | L84: 6 | M84: 3 | N84: 6 | O84: 2 | P84: 5 | Q84: 5 | R84: 5 | S84: 6 | T84: 2 | U84: 7 | V84: 6 | W84: 6 | X84: 7 | Y84: 8 | Z84: 6 | AA84: 8 | AB84: 3 | AC84: 11 | AD84: 53 | AE84: 51 | AF84: 52 | AG84: 54 | AH84: 49 | AI84: 50 | AJ84: 49 | AK84: 35 | AL84: 37 | AM84: 33 | AN84: 27 | AO84: 26 | AP84: 12 | AQ84: 20 | AR84: 2 | AS84: 4 | AT84: 4 | AU84: 10 | AV84: 289 | AW84: 12 | AX84: 11 | AY84: 141 | AZ84: 13 | BB84: 662 | BC84: 59 | BD84: 41 | BE84: 118 | BF84: 289 | BG84: 135
A85: 040513 | B85: AREQUIPA | C85: AREQUIPA | D85: CAYLLOMA | E85: MADRIGAL | I85: 655 | J85: 4 | K85: 2 | L85: 6 | M85: 3 | N85: 6 | O85: 6 | P85: 4 | Q85: 5 | R85: 4 | S85: 2 | T85: 7 | U85: 3 | V85: 4 | W85: 6 | X85: 7 | Y85: 3 | Z85: 8 | AA85: 7 | AB85: 9 | AC85: 7 | AD85: 53 | AE85: 42 | AF85: 63 | AG85: 49 | AH85: 50 | AI85: 51 | AJ85: 42 | AK85: 32 | AL85: 39 | AM85: 34 | AN85: 31 | AO85: 25 | AP85: 19 | AQ85: 22 | AR85: 0 | AS85: 2 | AT85: 2 | AU85: 5 | AV85: 290 | AW85: 13 | AX85: 17 | AY85: 156 | AZ85: 7 | BB85: 655 | BC85: 52 | BD85: 35 | BE85: 111 | BF85: 287 | BG85: 148
A86: 040514 | B86: AREQUIPA | C86: AREQUIPA | D86: CAYLLOMA | E86: SAN ANTONIO DE CHUCA | I86: 861 | J86: 9 | K86: 9 | L86: 12 | M86: 5 | N86: 12 | O86: 17 | P86: 10 | Q86: 12 | R86: 7 | S86: 10 | T86: 13 | U86: 9 | V86: 10 | W86: 13 | X86: 13 | Y86: 15 | Z86: 16 | AA86: 14 | AB86: 11 | AC86: 12 | AD86: 67 | AE86: 77 | AF86: 69 | AG86: 63 | AH86: 57 | AI86: 52 | AJ86: 50 | AK86: 49 | AL86: 47 | AM86: 30 | AN86: 31 | AO86: 18 | AP86: 11 | AQ86: 11 | AR86: 1 | AS86: 7 | AT86: 2 | AU86: 11 | AV86: 424 | AW86: 26 | AX86: 30 | AY86: 220 | AZ86: 15 | BB86: 861 | BC86: 125 | BD86: 81 | BE86: 167 | BF86: 340 | BG86: 137
A87: 040515 | B87: AREQUIPA | C87: AREQUIPA | D87: CAYLLOMA | E87: SIBAYO | I87: 684 | J87: 5 | K87: 11 | L87: 8 | M87: 6 | N87: 7 | O87: 8 | P87: 5 | Q87: 8 | R87: 4 | S87: 8 | T87: 5 | U87: 8 | V87: 8 | W87: 9 | X87: 10 | Y87: 11 | Z87: 8 | AA87: 11 | AB87: 10 | AC87: 6 | AD87: 63 | AE87: 65 | AF87: 48 | AG87: 45 | AH87: 48 | AI87: 59 | AJ87: 45 | AK87: 34 | AL87: 34 | AM87: 27 | AN87: 25 | AO87: 10 | AP87: 14 | AQ87: 11 | AR87: 2 | AS87: 5 | AT87: 0 | AU87: 5 | AV87: 335 | AW87: 19 | AX87: 17 | AY87: 165 | AZ87: 7 | BB87: 684 | BC87: 83 | BD87: 57 | BE87: 144 | BF87: 279 | BG87: 110
A88: 040516 | B88: AREQUIPA | C88: AREQUIPA | D88: CAYLLOMA | E88: TAPAY | I88: 843 | J88: 11 | K88: 8 | L88: 9 | M88: 3 | N88: 3 | O88: 14 | P88: 11 | Q88: 10 | R88: 6 | S88: 5 | T88: 7 | U88: 7 | V88: 5 | W88: 9 | X88: 11 | Y88: 7 | Z88: 9 | AA88: 9 | AB88: 7 | AC88: 13 | AD88: 58 | AE88: 82 | AF88: 61 | AG88: 72 | AH88: 73 | AI88: 51 | AJ88: 54 | AK88: 51 | AL88: 52 | AM88: 46 | AN88: 32 | AO88: 19 | AP88: 15 | AQ88: 13 | AR88: 1 | AS88: 5 | AT88: 6 | AU88: 15 | AV88: 337 | AW88: 19 | AX88: 22 | AY88: 168 | AZ88: 20 | BB88: 843 | BC88: 94 | BD88: 50 | BE88: 160 | BF88: 362 | BG88: 164
A89: 040517 | B89: AREQUIPA | C89: AREQUIPA | D89: CAYLLOMA | E89: TISCO | I89: 1,495 | J89: 15 | K89: 14 | L89: 19 | M89: 17 | N89: 21 | O89: 19 | P89: 11 | Q89: 18 | R89: 11 | S89: 14 | T89: 11 | U89: 21 | V89: 24 | W89: 14 | X89: 24 | Y89: 17 | Z89: 23 | AA89: 26 | AB89: 26 | AC89: 21 | AD89: 150 | AE89: 96 | AF89: 127 | AG89: 123 | AH89: 104 | AI89: 114 | AJ89: 96 | AK89: 80 | AL89: 60 | AM89: 53 | AN89: 38 | AO89: 46 | AP89: 20 | AQ89: 22 | AR89: 0 | AS89: 8 | AT89: 7 | AU89: 17 | AV89: 689 | AW89: 36 | AX89: 46 | AY89: 371 | AZ89: 23 | BB89: 1,495 | BC89: 191 | BD89: 128 | BE89: 293 | BF89: 644 | BG89: 217
A90: 040518 | B90: AREQUIPA | C90: AREQUIPA | D90: CAYLLOMA | E90: TUTI | I90: 593 | J90: 6 | K90: 10 | L90: 5 | M90: 8 | N90: 8 | O90: 7 | P90: 10 | Q90: 7 | R90: 5 | S90: 3 | T90: 7 | U90: 7 | V90: 7 | W90: 6 | X90: 7 | Y90: 7 | Z90: 12 | AA90: 10 | AB90: 7 | AC90: 9 | AD90: 57 | AE90: 50 | AF90: 29 | AG90: 52 | AH90: 42 | AI90: 46 | AJ90: 36 | AK90: 37 | AL90: 24 | AM90: 21 | AN90: 21 | AO90: 12 | AP90: 9 | AQ90: 9 | AR90: 1 | AS90: 3 | AT90: 3 | AU90: 6 | AV90: 276 | AW90: 14 | AX90: 12 | AY90: 140 | AZ90: 8 | BB90: 593 | BC90: 83 | BD90: 49 | BE90: 123 | BF90: 242 | BG90: 87
A91: 040519 | B91: AREQUIPA | C91: AREQUIPA | D91: CAYLLOMA | E91: YANQUE | I91: 2,155 | J91: 25 | K91: 40 | L91: 25 | M91: 22 | N91: 30 | O91: 28 | P91: 35 | Q91: 23 | R91: 19 | S91: 21 | T91: 25 | U91: 23 | V91: 29 | W91: 19 | X91: 21 | Y91: 27 | Z91: 26 | AA91: 33 | AB91: 36 | AC91: 36 | AD91: 140 | AE91: 177 | AF91: 188 | AG91: 157 | AH91: 153 | AI91: 150 | AJ91: 135 | AK91: 115 | AL91: 115 | AM91: 97 | AN91: 80 | AO91: 50 | AP91: 28 | AQ91: 27 | AR91: 2 | AS91: 12 | AT91: 13 | AU91: 33 | AV91: 1,003 | AW91: 57 | AX91: 69 | AY91: 438 | AZ91: 42 | BB91: 2,155 | BC91: 316 | BD91: 155 | BE91: 389 | BF91: 898 | BG91: 370
A92: 040520 | B92: AREQUIPA | C92: AREQUIPA | D92: CAYLLOMA | E92: MAJES | I92: 73,831 | J92: 1,215 | K92: 1,324 | L92: 1,339 | M92: 1,304 | N92: 1,269 | O92: 1,217 | P92: 1,297 | Q92: 1,270 | R92: 1,135 | S92: 1,124 | T92: 1,067 | U92: 1,072 | V92: 1,097 | W92: 1,053 | X92: 1,079 | Y92: 1,026 | Z92: 1,100 | AA92: 1,078 | AB92: 1,100 | AC92: 1,147 | AD92: 5,284 | AE92: 6,223 | AF92: 5,714 | AG92: 5,770 | AH92: 5,231 | AI92: 4,674 | AJ92: 4,276 | AK92: 3,729 | AL92: 3,064 | AM92: 2,390 | AN92: 1,778 | AO92: 1,150 | AP92: 666 | AQ92: 569 | AR92: 80 | AS92: 595 | AT92: 620 | AU92: 1,480 | AV92: 38,831 | AW92: 2,723 | AX92: 2,780 | AY92: 16,731 | AZ92: 1,859 | BB92: 73,831 | BC92: 14,633 | BD92: 6,433 | BE92: 13,754 | BF92: 29,394 | BG92: 9,048
A93: 040601 | B93: AREQUIPA | C93: AREQUIPA | D93: CONDESUYOS | E93: CHUQUIBAMBA | I93: 3,356 | J93: 37 | K93: 43 | L93: 42 | M93: 59 | N93: 56 | O93: 58 | P93: 43 | Q93: 42 | R93: 46 | S93: 41 | T93: 52 | U93: 43 | V93: 51 | W93: 45 | X93: 60 | Y93: 72 | Z93: 58 | AA93: 55 | AB93: 61 | AC93: 63 | AD93: 268 | AE93: 280 | AF93: 292 | AG93: 196 | AH93: 215 | AI93: 214 | AJ93: 173 | AK93: 144 | AL93: 113 | AM93: 131 | AN93: 112 | AO93: 74 | AP93: 60 | AQ93: 57 | AR93: 4 | AS93: 15 | AT93: 22 | AU93: 51 | AV93: 1,743 | AW93: 124 | AX93: 154 | AY93: 865 | AZ93: 65 | BB93: 3,356 | BC93: 562 | BD93: 341 | BE93: 672 | BF93: 1,234 | BG93: 490
A94: 040602 | B94: AREQUIPA | C94: AREQUIPA | D94: CONDESUYOS | E94: ANDARAY | I94: 664 | J94: 4 | K94: 4 | L94: 4 | M94: 2 | N94: 3 | O94: 5 | P94: 4 | Q94: 4 | R94: 3 | S94: 6 | T94: 9 | U94: 8 | V94: 6 | W94: 6 | X94: 7 | Y94: 9 | Z94: 7 | AA94: 9 | AB94: 8 | AC94: 8 | AD94: 47 | AE94: 37 | AF94: 51 | AG94: 53 | AH94: 49 | AI94: 43 | AJ94: 53 | AK94: 39 | AL94: 40 | AM94: 37 | AN94: 35 | AO94: 19 | AP94: 19 | AQ94: 26 | AR94: 1 | AS94: 2 | AT94: 2 | AU94: 5 | AV94: 284 | AW94: 21 | AX94: 16 | AY94: 122 | AZ94: 7 | BB94: 664 | BC94: 56 | BD94: 44 | BE94: 100 | BF94: 288 | BG94: 150
A95: 040603 | B95: AREQUIPA | C95: AREQUIPA | D95: CONDESUYOS | E95: CAYARANI | I95: 3,241 | J95: 50 | K95: 36 | L95: 42 | M95: 48 | N95: 36 | O95: 45 | P95: 34 | Q95: 45 | R95: 53 | S95: 37 | T95: 47 | U95: 39 | V95: 46 | W95: 49 | X95: 51 | Y95: 57 | Z95: 66 | AA95: 44 | AB95: 61 | AC95: 54 | AD95: 351 | AE95: 297 | AF95: 307 | AG95: 248 | AH95: 248 | AI95: 218 | AJ95: 145 | AK95: 150 | AL95: 107 | AM95: 82 | AN95: 61 | AO95: 30 | AP95: 26 | AQ95: 31 | AR95: 2 | AS95: 23 | AT95: 27 | AU95: 63 | AV95: 1,770 | AW95: 109 | AX95: 127 | AY95: 1,011 | AZ95: 79 | BB95: 3,241 | BC95: 512 | BD95: 313 | BE95: 763 | BF95: 1,316 | BG95: 306
A96: 040604 | B96: AREQUIPA | C96: AREQUIPA | D96: CONDESUYOS | E96: CHICHAS | I96: 639 | J96: 5 | K96: 3 | L96: 1 | M96: 6 | N96: 7 | O96: 4 | P96: 3 | Q96: 2 | R96: 6 | S96: 7 | T96: 7 | U96: 8 | V96: 5 | W96: 6 | X96: 5 | Y96: 6 | Z96: 8 | AA96: 11 | AB96: 10 | AC96: 6 | AD96: 47 | AE96: 39 | AF96: 64 | AG96: 21 | AH96: 49 | AI96: 38 | AJ96: 56 | AK96: 47 | AL96: 40 | AM96: 31 | AN96: 24 | AO96: 22 | AP96: 22 | AQ96: 23 | AR96: 1 | AS96: 3 | AT96: 2 | AU96: 6 | AV96: 243 | AW96: 13 | AX96: 17 | AY96: 130 | AZ96: 9 | BB96: 639 | BC96: 59 | BD96: 41 | BE96: 102 | BF96: 275 | BG96: 139
A97: 040605 | B97: AREQUIPA | C97: AREQUIPA | D97: CONDESUYOS | E97: IRAY | I97: 558 | J97: 9 | K97: 6 | L97: 6 | M97: 2 | N97: 7 | O97: 5 | P97: 3 | Q97: 5 | R97: 2 | S97: 3 | T97: 5 | U97: 7 | V97: 7 | W97: 9 | X97: 5 | Y97: 5 | Z97: 9 | AA97: 7 | AB97: 8 | AC97: 4 | AD97: 33 | AE97: 50 | AF97: 56 | AG97: 31 | AH97: 26 | AI97: 29 | AJ97: 40 | AK97: 33 | AL97: 30 | AM97: 35 | AN97: 25 | AO97: 19 | AP97: 16 | AQ97: 21 | AR97: 1 | AS97: 4 | AT97: 5 | AU97: 10 | AV97: 225 | AW97: 13 | AX97: 15 | AY97: 114 | AZ97: 13 | BB97: 558 | BC97: 60 | BD97: 42 | BE97: 95 | BF97: 215 | BG97: 125
A98: 040606 | B98: AREQUIPA | C98: AREQUIPA | D98: CONDESUYOS | E98: RIO GRANDE | I98: 3,318 | J98: 41 | K98: 59 | L98: 63 | M98: 70 | N98: 37 | O98: 22 | P98: 62 | Q98: 69 | R98: 57 | S98: 35 | T98: 44 | U98: 44 | V98: 31 | W98: 42 | X98: 37 | Y98: 43 | Z98: 56 | AA98: 50 | AB98: 37 | AC98: 41 | AD98: 204 | AE98: 292 | AF98: 270 | AG98: 193 | AH98: 268 | AI98: 201 | AJ98: 191 | AK98: 202 | AL98: 175 | AM98: 118 | AN98: 100 | AO98: 76 | AP98: 49 | AQ98: 39 | AR98: 4 | AS98: 23 | AT98: 18 | AU98: 53 | AV98: 1,590 | AW98: 101 | AX98: 100 | AY98: 694 | AZ98: 67 | BB98: 3,318 | BC98: 603 | BD98: 259 | BE98: 574 | BF98: 1,325 | BG98: 518
A99: 040607 | B99: AREQUIPA | C99: AREQUIPA | D99: CONDESUYOS | E99: SALAMANCA | I99: 371 | J99: 4 | K99: 4 | L99: 4 | M99: 6 | N99: 5 | O99: 3 | P99: 2 | Q99: 2 | R99: 5 | S99: 2 | T99: 2 | U99: 6 | V99: 3 | W99: 1 | X99: 9 | Y99: 5 | Z99: 5 | AA99: 5 | AB99: 6 | AC99: 6 | AD99: 20 | AE99: 32 | AF99: 30 | AG99: 24 | AH99: 20 | AI99: 28 | AJ99: 21 | AK99: 26 | AL99: 15 | AM99: 18 | AN99: 15 | AO99: 14 | AP99: 10 | AQ99: 13 | AR99: 2 | AS99: 3 | AT99: 1 | AU99: 5 | AV99: 152 | AW99: 6 | AX99: 12 | AY99: 77 | AZ99: 7 | BB99: 371 | BC99: 45 | BD99: 28 | BE99: 64 | BF99: 149 | BG99: 72
A100: 040608 | B100: AREQUIPA | C100: AREQUIPA | D100: CONDESUYOS | E100: YANAQUIHUA | I100: 3,730 | J100: 48 | K100: 48 | L100: 34 | M100: 33 | N100: 42 | O100: 41 | P100: 32 | Q100: 28 | R100: 29 | S100: 38 | T100: 37 | U100: 49 | V100: 39 | W100: 43 | X100: 44 | Y100: 49 | Z100: 59 | AA100: 48 | AB100: 40 | AC100: 44 | AD100: 284 | AE100: 326 | AF100: 385 | AG100: 352 | AH100: 270 | AI100: 275 | AJ100: 259 | AK100: 186 | AL100: 161 | AM100: 144 | AN100: 95 | AO100: 53 | AP100: 56 | AQ100: 59 | AR100: 5 | AS100: 23 | AT100: 25 | AU100: 63 | AV100: 1,759 | AW100: 93 | AX100: 108 | AY100: 954 | AZ100: 80 | BB100: 3,730 | BC100: 459 | BD100: 282 | BE100: 694 | BF100: 1,727 | BG100: 509
A101: 040701 | B101: AREQUIPA | C101: AREQUIPA | D101: ISLAY | E101: MOLLENDO | I101: 26,553 | J101: 307 | K101: 310 | L101: 378 | M101: 349 | N101: 363 | O101: 411 | P101: 329 | Q101: 366 | R101: 308 | S101: 356 | T101: 349 | U101: 334 | V101: 361 | W101: 359 | X101: 358 | Y101: 353 | Z101: 350 | AA101: 359 | AB101: 377 | AC101: 405 | AD101: 1,909 | AE101: 2,253 | AF101: 1,962 | AG101: 1,881 | AH101: 1,912 | AI101: 1,840 | AJ101: 1,620 | AK101: 1,430 | AL101: 1,202 | AM101: 1,067 | AN101: 887 | AO101: 624 | AP101: 460 | AQ101: 424 | AR101: 21 | AS101: 157 | AT101: 150 | AU101: 372 | AV101: 13,000 | AW101: 878 | AX101: 935 | AY101: 6,142 | AZ101: 469 | BB101: 26,553 | BC101: 4,160 | BD101: 2,140 | BE101: 4,944 | BF101: 10,645 | BG101: 4,240
A102: 040702 | B102: AREQUIPA | C102: AREQUIPA | D102: ISLAY | E102: COCACHACRA | I102: 8,357 | J102: 97 | K102: 99 | L102: 116 | M102: 107 | N102: 145 | O102: 143 | P102: 83 | Q102: 93 | R102: 99 | S102: 109 | T102: 94 | U102: 91 | V102: 102 | W102: 108 | X102: 101 | Y102: 114 | Z102: 84 | AA102: 89 | AB102: 115 | AC102: 117 | AD102: 584 | AE102: 665 | AF102: 661 | AG102: 632 | AH102: 605 | AI102: 540 | AJ102: 525 | AK102: 515 | AL102: 409 | AM102: 381 | AN102: 266 | AO102: 197 | AP102: 146 | AQ102: 125 | AR102: 8 | AS102: 46 | AT102: 51 | AU102: 126 | AV102: 3,887 | AW102: 252 | AX102: 241 | AY102: 1,736 | AZ102: 161 | BB102: 8,357 | BC102: 1,276 | BD102: 598 | BE102: 1,481 | BF102: 3,478 | BG102: 1,399
A103: 040703 | B103: AREQUIPA | C103: AREQUIPA | D103: ISLAY | E103: DEAN VALDIVIA | I103: 7,166 | J103: 101 | K103: 99 | L103: 87 | M103: 105 | N103: 103 | O103: 96 | P103: 106 | Q103: 83 | R103: 86 | S103: 88 | T103: 92 | U103: 94 | V103: 100 | W103: 82 | X103: 89 | Y103: 89 | Z103: 100 | AA103: 106 | AB103: 85 | AC103: 100 | AD103: 580 | AE103: 621 | AF103: 517 | AG103: 577 | AH103: 510 | AI103: 494 | AJ103: 436 | AK103: 415 | AL103: 297 | AM103: 294 | AN103: 189 | AO103: 142 | AP103: 96 | AQ103: 107 | AR103: 9 | AS103: 50 | AT103: 51 | AU103: 122 | AV103: 3,588 | AW103: 226 | AX103: 228 | AY103: 1,684 | AZ103: 154 | BB103: 7,166 | BC103: 1,140 | BD103: 566 | BE103: 1,386 | BF103: 2,949 | BG103: 1,018
A104: 040704 | B104: AREQUIPA | C104: AREQUIPA | D104: ISLAY | E104: ISLAY | I104: 5,279 | J104: 83 | K104: 92 | L104: 80 | M104: 97 | N104: 88 | O104: 117 | P104: 77 | Q104: 74 | R104: 69 | S104: 72 | T104: 91 | U104: 75 | V104: 80 | W104: 74 | X104: 72 | Y104: 68 | Z104: 86 | AA104: 73 | AB104: 73 | AC104: 66 | AD104: 369 | AE104: 466 | AF104: 429 | AG104: 441 | AH104: 387 | AI104: 348 | AJ104: 320 | AK104: 254 | AL104: 201 | AM104: 169 | AN104: 134 | AO104: 74 | AP104: 40 | AQ104: 40 | AR104: 3 | AS104: 28 | AT104: 55 | AU104: 98 | AV104: 2,738 | AW104: 207 | AX104: 171 | AY104: 1,316 | AZ104: 124 | BB104: 5,279 | BC104: 1,015 | BD104: 453 | BE104: 974 | BF104: 2,179 | BG104: 618
A105: 040705 | B105: AREQUIPA | C105: AREQUIPA | D105: ISLAY | E105: MEJIA | I105: 1,219 | J105: 17 | K105: 16 | L105: 10 | M105: 17 | N105: 13 | O105: 16 | P105: 17 | Q105: 11 | R105: 11 | S105: 16 | T105: 11 | U105: 14 | V105: 12 | W105: 13 | X105: 13 | Y105: 15 | Z105: 15 | AA105: 9 | AB105: 14 | AC105: 17 | AD105: 45 | AE105: 58 | AF105: 79 | AG105: 88 | AH105: 96 | AI105: 92 | AJ105: 94 | AK105: 86 | AL105: 91 | AM105: 63 | AN105: 58 | AO105: 40 | AP105: 22 | AQ105: 30 | AR105: 2 | AS105: 12 | AT105: 5 | AU105: 17 | AV105: 462 | AW105: 24 | AX105: 32 | AY105: 161 | AZ105: 22 | BB105: 1,219 | BC105: 169 | BD105: 77 | BE105: 134 | BF105: 535 | BG105: 274
A106: 040706 | B106: AREQUIPA | C106: AREQUIPA | D106: ISLAY | E106: PUNTA DE BOMBON | I106: 6,503 | J106: 74 | K106: 101 | L106: 81 | M106: 91 | N106: 97 | O106: 107 | P106: 92 | Q106: 80 | R106: 64 | S106: 76 | T106: 82 | U106: 87 | V106: 76 | W106: 77 | X106: 67 | Y106: 82 | Z106: 101 | AA106: 93 | AB106: 86 | AC106: 82 | AD106: 548 | AE106: 513 | AF106: 464 | AG106: 495 | AH106: 449 | AI106: 418 | AJ106: 388 | AK106: 360 | AL106: 331 | AM106: 282 | AN106: 206 | AO106: 153 | AP106: 86 | AQ106: 114 | AR106: 6 | AS106: 36 | AT106: 38 | AU106: 82 | AV106: 3,097 | AW106: 183 | AX106: 210 | AY106: 1,435 | AZ106: 104 | BB106: 6,503 | BC106: 1,032 | BD106: 496 | BE106: 1,229 | BF106: 2,574 | BG106: 1,058
A107: 040801 | B107: AREQUIPA | C107: AREQUIPA | D107: LA UNION | E107: COTAHUASI | I107: 2,935 | J107: 54 | K107: 49 | L107: 53 | M107: 50 | N107: 49 | O107: 41 | P107: 42 | Q107: 36 | R107: 36 | S107: 41 | T107: 37 | U107: 49 | V107: 45 | W107: 42 | X107: 43 | Y107: 50 | Z107: 42 | AA107: 50 | AB107: 53 | AC107: 46 | AD107: 235 | AE107: 310 | AF107: 201 | AG107: 250 | AH107: 194 | AI107: 165 | AJ107: 133 | AK107: 114 | AL107: 102 | AM107: 97 | AN107: 73 | AO107: 58 | AP107: 42 | AQ107: 53 | AR107: 2 | AS107: 17 | AT107: 37 | AU107: 72 | AV107: 1,598 | AW107: 97 | AX107: 119 | AY107: 880 | AZ107: 93 | BB107: 2,935 | BC107: 537 | BD107: 272 | BE107: 644 | BF107: 1,057 | BG107: 372
A108: 040802 | B108: AREQUIPA | C108: AREQUIPA | D108: LA UNION | E108: ALCA | I108: 1,846 | J108: 32 | K108: 28 | L108: 27 | M108: 18 | N108: 23 | O108: 32 | P108: 23 | Q108: 24 | R108: 22 | S108: 21 | T108: 22 | U108: 18 | V108: 29 | W108: 24 | X108: 32 | Y108: 31 | Z108: 28 | AA108: 27 | AB108: 28 | AC108: 34 | AD108: 171 | AE108: 171 | AF108: 166 | AG108: 160 | AH108: 120 | AI108: 110 | AJ108: 87 | AK108: 80 | AL108: 73 | AM108: 44 | AN108: 49 | AO108: 39 | AP108: 24 | AQ108: 29 | AR108: 1 | AS108: 13 | AT108: 19 | AU108: 42 | AV108: 1,020 | AW108: 70 | AX108: 72 | AY108: 589 | AZ108: 55 | BB108: 1,846 | BC108: 290 | BD108: 171 | BE108: 404 | BF108: 723 | BG108: 229
A109: 040803 | B109: AREQUIPA | C109: AREQUIPA | D109: LA UNION | E109: CHARCANA | I109: 562 | J109: 9 | K109: 10 | L109: 5 | M109: 5 | N109: 10 | O109: 7 | P109: 5 | Q109: 8 | R109: 6 | S109: 9 | T109: 8 | U109: 10 | V109: 6 | W109: 5 | X109: 6 | Y109: 10 | Z109: 14 | AA109: 14 | AB109: 8 | AC109: 10 | AD109: 47 | AE109: 48 | AF109: 55 | AG109: 56 | AH109: 24 | AI109: 33 | AJ109: 24 | AK109: 24 | AL109: 13 | AM109: 21 | AN109: 15 | AO109: 17 | AP109: 10 | AQ109: 10 | AR109: 1 | AS109: 7 | AT109: 2 | AU109: 12 | AV109: 287 | AW109: 20 | AX109: 35 | AY109: 152 | AZ109: 16 | BB109: 562 | BC109: 92 | BD109: 55 | BE109: 113 | BF109: 216 | BG109: 76
A110: 040804 | B110: AREQUIPA | C110: AREQUIPA | D110: LA UNION | E110: HUAYNACOTAS | I110: 1,793 | J110: 44 | K110: 36 | L110: 21 | M110: 24 | N110: 21 | O110: 28 | P110: 30 | Q110: 18 | R110: 25 | S110: 25 | T110: 25 | U110: 29 | V110: 29 | W110: 32 | X110: 27 | Y110: 30 | Z110: 32 | AA110: 34 | AB110: 26 | AC110: 29 | AD110: 157 | AE110: 179 | AF110: 129 | AG110: 136 | AH110: 126 | AI110: 110 | AJ110: 90 | AK110: 71 | AL110: 54 | AM110: 51 | AN110: 49 | AO110: 31 | AP110: 23 | AQ110: 22 | AR110: 3 | AS110: 19 | AT110: 25 | AU110: 64 | AV110: 940 | AW110: 65 | AX110: 69 | AY110: 509 | AZ110: 82 | BB110: 1,793 | BC110: 326 | BD110: 184 | BE110: 391 | BF110: 662 | BG110: 208
A111: 040805 | B111: AREQUIPA | C111: AREQUIPA | D111: LA UNION | E111: PAMPAMARCA | I111: 1,093 | J111: 17 | K111: 23 | L111: 16 | M111: 21 | N111: 20 | O111: 15 | P111: 11 | Q111: 10 | R111: 11 | S111: 12 | T111: 10 | U111: 11 | V111: 18 | W111: 11 | X111: 19 | Y111: 18 | Z111: 19 | AA111: 28 | AB111: 24 | AC111: 22 | AD111: 110 | AE111: 81 | AF111: 97 | AG111: 93 | AH111: 76 | AI111: 65 | AJ111: 42 | AK111: 42 | AL111: 37 | AM111: 36 | AN111: 29 | AO111: 23 | AP111: 13 | AQ111: 13 | AR111: 1 | AS111: 7 | AT111: 10 | AU111: 22 | AV111: 565 | AW111: 35 | AX111: 54 | AY111: 305 | AZ111: 28 | BB111: 1,093 | BC111: 177 | BD111: 113 | BE111: 237 | BF111: 415 | BG111: 138
A112: 040806 | B112: AREQUIPA | C112: AREQUIPA | D112: LA UNION | E112: PUYCA | I112: 2,327 | J112: 52 | K112: 34 | L112: 46 | M112: 39 | N112: 32 | O112: 45 | P112: 28 | Q112: 42 | R112: 32 | S112: 30 | T112: 39 | U112: 40 | V112: 34 | W112: 46 | X112: 51 | Y112: 48 | Z112: 49 | AA112: 48 | AB112: 43 | AC112: 40 | AD112: 252 | AE112: 208 | AF112: 196 | AG112: 165 | AH112: 135 | AI112: 128 | AJ112: 96 | AK112: 87 | AL112: 62 | AM112: 58 | AN112: 46 | AO112: 34 | AP112: 23 | AQ112: 19 | AR112: 4 | AS112: 21 | AT112: 31 | AU112: 75 | AV112: 1,276 | AW112: 89 | AX112: 112 | AY112: 704 | AZ112: 95 | BB112: 2,327 | BC112: 459 | BD112: 276 | BE112: 543 | BF112: 807 | BG112: 223
A113: 040807 | B113: AREQUIPA | C113: AREQUIPA | D113: LA UNION | E113: QUECHUALLA | I113: 295 | J113: 2 | K113: 1 | L113: 4 | M113: 6 | N113: 5 | O113: 5 | P113: 1 | Q113: 3 | R113: 4 | S113: 3 | T113: 2 | U113: 1 | V113: 1 | W113: 1 | X113: 0 | Y113: 2 | Z113: 1 | AA113: 4 | AB113: 3 | AC113: 2 | AD113: 10 | AE113: 16 | AF113: 21 | AG113: 26 | AH113: 21 | AI113: 16 | AJ113: 22 | AK113: 25 | AL113: 28 | AM113: 18 | AN113: 15 | AO113: 11 | AP113: 8 | AQ113: 7 | AR113: 0 | AS113: 2 | AT113: 0 | AU113: 4 | AV113: 113 | AW113: 4 | AX113: 5 | AY113: 39 | AZ113: 6 | BB113: 295 | BC113: 37 | BD113: 9 | BE113: 31 | BF113: 131 | BG113: 80
A114: 040808 | B114: AREQUIPA | C114: AREQUIPA | D114: LA UNION | E114: SAYLA | I114: 286 | J114: 4 | K114: 2 | L114: 0 | M114: 4 | N114: 4 | O114: 6 | P114: 2 | Q114: 1 | R114: 4 | S114: 3 | T114: 4 | U114: 3 | V114: 4 | W114: 2 | X114: 1 | Y114: 2 | Z114: 2 | AA114: 8 | AB114: 5 | AC114: 6 | AD114: 26 | AE114: 39 | AF114: 26 | AG114: 19 | AH114: 21 | AI114: 13 | AJ114: 13 | AK114: 12 | AL114: 10 | AM114: 11 | AN114: 7 | AO114: 6 | AP114: 8 | AQ114: 8 | AR114: 0 | AS114: 3 | AT114: 1 | AU114: 5 | AV114: 121 | AW114: 7 | AX114: 9 | AY114: 74 | AZ114: 8 | BB114: 286 | BC114: 37 | BD114: 19 | BE114: 76 | BF114: 104 | BG114: 42
A115: 040809 | B115: AREQUIPA | C115: AREQUIPA | D115: LA UNION | E115: TAURIA | I115: 334 | J115: 2 | K115: 9 | L115: 10 | M115: 5 | N115: 14 | O115: 4 | P115: 6 | Q115: 4 | R115: 7 | S115: 8 | T115: 3 | U115: 1 | V115: 3 | W115: 5 | X115: 3 | Y115: 6 | Z115: 8 | AA115: 7 | AB115: 3 | AC115: 6 | AD115: 27 | AE115: 13 | AF115: 43 | AG115: 19 | AH115: 33 | AI115: 10 | AJ115: 8 | AK115: 17 | AL115: 13 | AM115: 10 | AN115: 10 | AO115: 4 | AP115: 7 | AQ115: 6 | AR115: 0 | AS115: 2 | AT115: 0 | AU115: 2 | AV115: 167 | AW115: 10 | AX115: 15 | AY115: 74 | AZ115: 4 | BB115: 334 | BC115: 73 | BD115: 32 | BE115: 49 | BF115: 130 | BG115: 44
A116: 040810 | B116: AREQUIPA | C116: AREQUIPA | D116: LA UNION | E116: TOMEPAMPA | I116: 637 | J116: 6 | K116: 7 | L116: 7 | M116: 4 | N116: 5 | O116: 4 | P116: 7 | Q116: 5 | R116: 9 | S116: 6 | T116: 7 | U116: 9 | V116: 6 | W116: 8 | X116: 11 | Y116: 10 | Z116: 14 | AA116: 10 | AB116: 11 | AC116: 8 | AD116: 34 | AE116: 50 | AF116: 68 | AG116: 43 | AH116: 46 | AI116: 43 | AJ116: 45 | AK116: 36 | AL116: 33 | AM116: 25 | AN116: 21 | AO116: 20 | AP116: 6 | AQ116: 13 | AR116: 0 | AS116: 3 | AT116: 3 | AU116: 7 | AV116: 313 | AW116: 18 | AX116: 26 | AY116: 163 | AZ116: 10 | BB116: 637 | BC116: 76 | BD116: 59 | BE116: 103 | BF116: 281 | BG116: 105
A117: 040811 | B117: AREQUIPA | C117: AREQUIPA | D117: LA UNION | E117: TORO | I117: 477 | J117: 4 | K117: 6 | L117: 1 | M117: 3 | N117: 5 | O117: 3 | P117: 6 | Q117: 2 | R117: 4 | S117: 6 | T117: 2 | U117: 5 | V117: 5 | W117: 4 | X117: 6 | Y117: 8 | Z117: 5 | AA117: 6 | AB117: 6 | AC117: 7 | AD117: 21 | AE117: 54 | AF117: 38 | AG117: 26 | AH117: 31 | AI117: 34 | AJ117: 32 | AK117: 37 | AL117: 25 | AM117: 18 | AN117: 18 | AO117: 15 | AP117: 15 | AQ117: 19 | AR117: 0 | AS117: 2 | AT117: 2 | AU117: 8 | AV117: 199 | AW117: 9 | AX117: 15 | AY117: 106 | AZ117: 11 | BB117: 477 | BC117: 47 | BD117: 34 | BE117: 88 | BF117: 198 | BG117: 91
A119: NOTA: LA POBLACION ESTIMADA DE EDADES SIMPLES Y GRUPOS DE EDAD DE DISTRITOS, CORRESPONDEN A CIFRAS REFERENCIALES HASTA OBTENER LAS CIFRAS DE LAS PROYECCIONES DEL INEI
A120: FUENTE: CENSO NACIONAL XI DE POBLACION Y VI DE VIVIENDA 2017/- BOLETIN DEMOGRAFICO Nº 26,37, 39 / Padrón Nominal/ CNV
A121: La población de 0-5 años corresponden a la poblacion del Padrón Nominal /corte al mes de diciembre 2021
A122: OFICINA DE GESTION DE LA INFORMACION - MINISTERIO DE SALUD

Sheet PROVINCIAL
A4: POBLACION ESTIMADA POR EDADES SIMPLES Y GRUPOS DE EDAD, SEGÚN DEPARTAMENTO y PROVINCIA. 2022
A5: * Actualizado con datos INEI y Padrón Nominal de niños de 0-5 años
A6: POBLACION 2022 | F6: POBLACION TOTAL, POR EDADS SIMPLES | Z6: POBLACIÓN TOTAL, POR GRUPOS QUINQUEN ALES DE EDAD | AN6: EDADES ESPECIALES | AQ6: NACIMIENTOS VIVOS | AR6: POBLACION FEMENINA TOTAL | AS6: POBLACION FEMENINA | AV6: GESTANTES ESPERADAS
A7: UBIGEO | B7: DIRESA | C7: DEPARTAMENTO | D7: PROVINCIA | E7: Total | F7: 0 | G7: 1 | H7: 2 | I7: 3 | J7: 4 | K7: 5 | L7: 6 | M7: 7 | N7: 8 | O7: 9 | P7: 10 | Q7: 11 | R7: 12 | S7: 13 | T7: 14 | U7: 15 | V7: 16 | W7: 17 | X7: 18 | Y7: 19 | Z7: 20-24 | AA7: 25-29 | AB7: 30-34 | AC7: 35-39 | AD7: 40-44 | AE7: 45-49 | AF7: 50-54 | AG7: 55-59 | AH7: 60-64 | AI7: 65-69 | AJ7: 70-74 | AK7: 75-79 | AL7: 80-84 | AM7: 85-+ | AN7: 28 DIAS | AO7: 0-5 MESES | AP7: 6-11 MESES | AS7: 10 - 14 | AT7: 15- 19 | AU7: 20- 49 | AX7: TOTAL | AY7: NIÑO | AZ7: Adolescente | BA7: Joven | BB7: Adulto | BC7: Adulto Mayor
A8: 0000 | B8: PERU | C8: PERU | D8: PERU | E8: 1,539,996 | F8: 17,846 | G8: 20,821 | H8: 22,275 | I8: 23,017 | J8: 23,851 | K8: 24,530 | L8: 22,959 | M8: 22,777 | N8: 22,680 | O8: 22,583 | P8: 22,506 | Q8: 22,411 | R8: 22,389 | S8: 22,305 | T8: 22,196 | U8: 22,141 | V8: 22,076 | W8: 22,159 | X8: 22,565 | Y8: 22,970 | Z8: 121,549 | AA8: 129,092 | AB8: 120,709 | AC8: 115,493 | AD8: 110,822 | AE8: 99,738 | AF8: 90,936 | AG8: 80,028 | AH8: 65,235 | AI8: 53,278 | AJ8: 41,077 | AK8: 28,000 | AL8: 18,440 | AM8: 18,542 | AN8: 1,344 | AO8: 9,422 | AP8: 8,424 | AQ8: 20,954 | AR8: 786,580 | AS8: 56,300 | AT8: 57,506 | AU8: 355,237 | AV8: 26,411 | AX8: 1,539,996 | AY8: 268,256 | AZ8: 133,266 | BA8: 296,176 | BB8: 617,726 | BC8: 206,030
A9: 0401 | B9: AREQUIPA | C9: AREQUIPA | D9: AREQUIPA | E9: 1215754 | F9: 13492 | G9: 15910 | H9: 17491 | I9: 17998 | J9: 18636 | K9: 19387 | L9: 18220 | M9: 18144 | N9: 18153 | O9: 17924 | P9: 17986 | Q9: 17892 | R9: 17884 | S9: 17845 | T9: 17670 | U9: 17455 | V9: 17216 | W9: 17357 | X9: 17838 | Y9: 18175 | Z9: 96662 | AA9: 101593 | AB9: 95378 | AC9: 91209 | AD9: 88316 | AE9: 79126 | AF9: 71961 | AG9: 62908 | AH9: 50982 | AI9: 41765 | AJ9: 32319 | AK9: 21952 | AL9: 14387 | AM9: 14523 | AN9: 1015 | AO9: 7263 | AP9: 6229 | AQ9: 15535 | AR9: 622,085 | AS9: 45279 | AT9: 45550 | AU9: 278765 | AV9: 19521 | AX9: 1,215,754 | AY9: 211,233 | AZ9: 105,427 | BA9: 234,268 | BB9: 488,898 | BC9: 161,405
A10: 0402 | B10: AREQUIPA | C10: AREQUIPA | D10: CAMANA | E10: 62437 | F10: 766 | G10: 961 | H10: 1039 | I10: 1169 | J10: 1222 | K10: 1111 | L10: 974 | M10: 1005 | N10: 1064 | O10: 1049 | P10: 973 | Q10: 914 | R10: 867 | S10: 866 | T10: 866 | U10: 888 | V10: 897 | W10: 895 | X10: 908 | Y10: 864 | Z10: 4601 | AA10: 4965 | AB10: 4750 | AC10: 4439 | AD10: 4174 | AE10: 3826 | AF10: 3749 | AG10: 3484 | AH10: 2911 | AI10: 2185 | AJ10: 1580 | AK10: 1074 | AL10: 696 | AM10: 705 | AN10: 64 | AO10: 383 | AP10: 383 | AQ10: 941 | AR10: 31,947 | AS10: 2257 | AT10: 2316 | AU10: 13824 | AV10: 1192 | AX10: 62,437 | AY10: 12,247 | AZ10: 5,279 | BA10: 11,338 | BB10: 24,422 | BC10: 8,446
A11: 0403 | B11: AREQUIPA | C11: AREQUIPA | D11: CARAVELI | E11: 43453 | F11: 597 | G11: 691 | H11: 585 | I11: 629 | J11: 654 | K11: 620 | L11: 698 | M11: 631 | N11: 639 | O11: 683 | P11: 627 | Q11: 667 | R11: 636 | S11: 624 | T11: 645 | U11: 696 | V11: 722 | W11: 638 | X11: 664 | Y11: 666 | Z11: 3488 | AA11: 3665 | AB11: 3399 | AC11: 3226 | AD11: 2944 | AE11: 2694 | AF11: 2540 | AG11: 2314 | AH11: 1922 | AI11: 1454 | AJ11: 1089 | AK11: 733 | AL11: 476 | AM11: 497 | AN11: 54 | AO11: 313 | AP11: 284 | AQ11: 762 | AR11: 22,169 | AS11: 1512 | AT11: 1748 | AU11: 10437 | AV11: 969 | AX11: 43,453 | AY11: 7,721 | AZ11: 3,961 | BA11: 8,483 | BB11: 17,117 | BC11: 5,674
A12: 0404 | B12: AREQUIPA | C12: AREQUIPA | D12: CASTILLA | E12: 34324 | F12: 368 | G12: 448 | H12: 388 | I12: 442 | J12: 495 | K12: 521 | L12: 436 | M12: 391 | N12: 449 | O12: 458 | P12: 474 | Q12: 441 | R12: 468 | S12: 498 | T12: 466 | U12: 529 | V12: 531 | W12: 588 | X12: 479 | Y12: 523 | Z12: 2943 | AA12: 3243 | AB12: 2748 | AC12: 2566 | AD12: 2345 | AE12: 2103 | AF12: 1889 | AG12: 1736 | AH12: 1462 | AI12: 1216 | AJ12: 967 | AK12: 699 | AL12: 500 | AM12: 514 | AN12: 23 | AO12: 183 | AP12: 185 | AQ12: 472 | AR12: 17,480 | AS12: 1085 | AT12: 1316 | AU12: 8989 | AV12: 607 | AX12: 34,324 | AY12: 5,311 | AZ12: 3,080 | BA12: 7,188 | BB12: 13,387 | BC12: 4,844
A13: 0405 | B13: AREQUIPA | C13: AREQUIPA | D13: CAYLLOMA | E13: 100489 | F13: 1520 | G13: 1686 | H13: 1634 | I13: 1608 | J13: 1654 | K13: 1628 | L13: 1583 | M13: 1549 | N13: 1377 | O13: 1419 | P13: 1365 | Q13: 1422 | R13: 1435 | S13: 1378 | T13: 1432 | U13: 1391 | V13: 1492 | W13: 1487 | X13: 1485 | Y13: 1519 | Z13: 7476 | AA13: 8528 | AB13: 7827 | AC13: 7828 | AD13: 7112 | AE13: 6484 | AF13: 5884 | AG13: 5154 | AH13: 4296 | AI13: 3417 | AJ13: 2583 | AK13: 1747 | AL13: 1094 | AM13: 995 | AN13: 107 | AO13: 759 | AP13: 761 | AQ13: 1858 | AR13: 51,762 | AS13: 3493 | AT13: 3679 | AU13: 23186 | AV13: 2353 | AX13: 100,489 | AY13: 18,445 | AZ13: 8,615 | BA13: 19,008 | BB13: 40,289 | BC13: 13,137
A14: 0406 | B14: AREQUIPA | C14: AREQUIPA | D14: CONDESUYOS | E14: 15877 | F14: 198 | G14: 203 | H14: 196 | I14: 226 | J14: 193 | K14: 183 | L14: 183 | M14: 197 | N14: 201 | O14: 169 | P14: 203 | Q14: 204 | R14: 188 | S14: 201 | T14: 218 | U14: 246 | V14: 268 | W14: 229 | X14: 231 | Y14: 226 | Z14: 1254 | AA14: 1353 | AB14: 1455 | AC14: 1118 | AD14: 1145 | AE14: 1046 | AF14: 938 | AG14: 827 | AH14: 681 | AI14: 596 | AJ14: 467 | AK14: 307 | AL14: 258 | AM14: 269 | AN14: 20 | AO14: 96 | AP14: 102 | AQ14: 256 | AR14: 7,766 | AS14: 480 | AT14: 549 | AU14: 3967 | AV14: 327 | AX14: 15,877 | AY14: 2,356 | AZ14: 1,350 | BA14: 3,064 | BB14: 6,529 | BC14: 2,309
A15: 0407 | B15: AREQUIPA | C15: AREQUIPA | D15: ISLAY | E15: 55077 | F15: 679 | G15: 717 | H15: 752 | I15: 766 | J15: 809 | K15: 890 | L15: 704 | M15: 707 | N15: 637 | O15: 717 | P15: 719 | Q15: 695 | R15: 731 | S15: 713 | T15: 700 | U15: 721 | V15: 736 | W15: 729 | X15: 750 | Y15: 787 | Z15: 4035 | AA15: 4576 | AB15: 4112 | AC15: 4114 | AD15: 3959 | AE15: 3732 | AF15: 3383 | AG15: 3060 | AH15: 2531 | AI15: 2256 | AJ15: 1740 | AK15: 1230 | AL15: 850 | AM15: 840 | AN15: 49 | AO15: 329 | AP15: 350 | AQ15: 817 | AR15: 26,772 | AS15: 1770 | AT15: 1817 | AU15: 12474 | AV15: 1034 | AX15: 55,077 | AY15: 8,792 | AZ15: 4,330 | BA15: 10,148 | BB15: 22,360 | BC15: 8,607
A16: 0408 | B16: AREQUIPA | C16: AREQUIPA | D16: LA UNION | E16: 12585 | F16: 226 | G16: 205 | H16: 190 | I16: 179 | J16: 188 | K16: 190 | L16: 161 | M16: 153 | N16: 160 | O16: 164 | P16: 159 | Q16: 176 | R16: 180 | S16: 180 | T16: 199 | U16: 215 | V16: 214 | W16: 236 | X16: 210 | Y16: 210 | Z16: 1090 | AA16: 1169 | AB16: 1040 | AC16: 993 | AD16: 827 | AE16: 727 | AF16: 592 | AG16: 545 | AH16: 450 | AI16: 389 | AJ16: 332 | AK16: 258 | AL16: 179 | AM16: 199 | AN16: 12 | AO16: 96 | AP16: 130 | AQ16: 313 | AR16: 6,599 | AS16: 424 | AT16: 531 | AU16: 3595 | AV16: 408 | AX16: 12,585 | AY16: 2,151 | AZ16: 1,224 | BA16: 2,679 | BB16: 4,724 | BC16: 1,608
A18: NOTA: LA POBLACION ESTIMADA DE EDADES SIMPLES Y GRUPOS DE EDAD DE DISTRITOS, CORRESPONDEN A CIFRAS REFERENCIALES HASTA OBTENER LAS CIFRAS DE LAS PROYECCIONES DEL INEI
A19: FUENTE: CENSO NACIONAL XI DE POBLACION Y VI DE VIVIENDA 2017/- BOLETIN DEMOGRAFICO Nº 26,37, 39 / Padrón Nominal/ CNV
A20: La población de 0-5 años corresponden a la poblacion del Padrón Nominal /corte al mes de diciembre 2021
A21: OFICINA DE GESTION DE LA INFORMACION - MINISTERIO DE SALUD

Sheet DEPARTAMENTAL
A4: POBLACION ESTIMADA POR EDADES SIMPLES Y GRUPOS DE EDAD, SEGÚN DEPARTAMENTO. 2022
A5: * Actualizado con datos INEI y Padrón Nominal de niños de 0-5 años
A6: POBLACION 2022 | D6: POBLACION TOTAL, POR EDADS SIMPLES | X6: POBLACIÓN TOTAL, POR GRUPOS QUINQUEN ALES DE EDAD | AL6: EDADES ESPECIALES | AO6: NACIMIENTOS VIVOS | AP6: POBLACION FEMENINA TOTAL | AQ6: POBLACION FEMENINA | AT6: GESTANTES ESPERADAS
A7: UBIGEO | B7: DEPARTAMENTO | C7: Total | D7: 0 | E7: 1 | F7: 2 | G7: 3 | H7: 4 | I7: 5 | J7: 6 | K7: 7 | L7: 8 | M7: 9 | N7: 10 | O7: 11 | P7: 12 | Q7: 13 | R7: 14 | S7: 15 | T7: 16 | U7: 17 | V7: 18 | W7: 19 | X7: 20-24 | Y7: 25-29 | Z7: 30-34 | AA7: 35-39 | AB7: 40-44 | AC7: 45-49 | AD7: 50-54 | AE7: 55-59 | AF7: 60-64 | AG7: 65-69 | AH7: 70-74 | AI7: 75-79 | AJ7: 80-84 | AK7: 85-+ | AL7: 28 DIAS | AM7: 0-5 MESES | AN7: 6-11 MESES | AQ7: 10 - 14 | AR7: 15- 19 | AS7: 20- 49 | AV7: TOTAL | AW7: NIÑO | AX7: Adolescente | AY7: Joven | AZ7: Adulto | BA7: Adulto Mayor
A8: 00 | B8: PERU | C8: 1,539,996 | D8: 17,846 | E8: 20,821 | F8: 22,275 | G8: 23,017 | H8: 23,851 | I8: 24,530 | J8: 22,959 | K8: 22,777 | L8: 22,680 | M8: 22,583 | N8: 22,506 | O8: 22,411 | P8: 22,389 | Q8: 22,305 | R8: 22,196 | S8: 22,141 | T8: 22,076 | U8: 22,159 | V8: 22,565 | W8: 22,970 | X8: 121,549 | Y8: 129,092 | Z8: 120,709 | AA8: 115,493 | AB8: 110,822 | AC8: 99,738 | AD8: 90,936 | AE8: 80,028 | AF8: 65,235 | AG8: 53,278 | AH8: 41,077 | AI8: 28,000 | AJ8: 18,440 | AK8: 18,542 | AL8: 1,344 | AM8: 9,422 | AN8: 8,424 | AO8: 20,954 | AP8: 786,580 | AQ8: 56,300 | AR8: 57,506 | AS8: 355,237 | AT8: 26,411 | AV8: 1,539,996 | AW8: 268,256 | AX8: 133,266 | AY8: 296,176 | AZ8: 617,726 | BA8: 206,030
A9: 04 | B9: AREQUIPA | C9: 1539996 | D9: 17846 | E9: 20821 | F9: 22275 | G9: 23017 | H9: 23851 | I9: 24530 | J9: 22959 | K9: 22777 | L9: 22680 | M9: 22583 | N9: 22506 | O9: 22411 | P9: 22389 | Q9: 22305 | R9: 22196 | S9: 22141 | T9: 22076 | U9: 22159 | V9: 22565 | W9: 22970 | X9: 121549 | Y9: 129092 | Z9: 120709 | AA9: 115493 | AB9: 110822 | AC9: 99738 | AD9: 90936 | AE9: 80028 | AF9: 65235 | AG9: 53278 | AH9: 41077 | AI9: 28000 | AJ9: 18440 | AK9: 18542 | AL9: 1344 | AM9: 9422 | AN9: 8424 | AO9: 20954 | AP9: 786,580 | AQ9: 56300 | AR9: 57506 | AS9: 355237 | AT9: 26411 | AV9: 1,539,996 | AW9: 268,256 | AX9: 133,266 | AY9: 296,176 | AZ9: 617,726 | BA9: 206,030
A11: NOTA: LA POBLACION ESTIMADA DE EDADES SIMPLES Y GRUPOS DE EDAD DE DISTRITOS, CORRESPONDEN A CIFRAS REFERENCIALES HASTA OBTENER LAS CIFRAS DE LAS PROYECCIONES DEL INEI
A12: FUENTE: CENSO NACIONAL XI DE POBLACION Y VI DE VIVIENDA 2017/- BOLETIN DEMOGRAFICO Nº 26,37, 39 / Padrón Nominal/ CNV
A13: La población de 0-5 años corresponden a la poblacion del Padrón Nominal /corte al mes de diciembre 2021
A14: OFICINA DE GESTION DE LA INFORMACION - MINISTERIO DE SALUD

Sheet Pob x Genero
A4: POBLACION ESTIMADA POR EDADES SIMPLES, GRUPOS DE EDAD y GÉNERO, SEGÚN DEPARTAMENTO, PROVINCIA Y DISTRITO. 2022
A5: * Actualizado con datos INEI y Padrón Nominal de niños de 0-5 años
A6: POBLACION 2022 | G6: Total Hombres | H6: HOMBRES | AB6: POBLACIÓN TOTAL, POR GRUPOS QUINQUEN ALES DE EDAD | AP6: EDADES ESPECIALES | AS6: NACIMIENTOS VIVOS | AT6: Total Mujeres | AU6: MUJERES | BO6: POBLACIÓN TOTAL, POR GRUPOS QUINQUEN ALES DE EDAD | CC6: EDADES ESPECIALES | CF6: NACIMIENTOS VIVOS | CI6: Hombre | CN6: Mujer | CS6: Hombre | DK6: Mujer
A7: UBIGEO | B7: DIRESA | C7: DEPARTAMENTO | D7: PROVINCIA | E7: DISTRITO | F7: TOTAL | H7: 0 | I7: 1 | J7: 2 | K7: 3 | L7: 4 | M7: 5 | N7: 6 | O7: 7 | P7: 8 | Q7: 9 | R7: 10 | S7: 11 | T7: 12 | U7: 13 | V7: 14 | W7: 15 | X7: 16 | Y7: 17 | Z7: 18 | AA7: 19 | AB7: 20-24 | AC7: 25-29 | AD7: 30-34 | AE7: 35-39 | AF7: 40-44 | AG7: 45-49 | AH7: 50-54 | AI7: 55-59 | AJ7: 60-64 | AK7: 65-69 | AL7: 70-74 | AM7: 75-79 | AN7: 80-84 | AO7: 85-+ | AP7: 28 DIAS | AQ7: 0-5 MESES | AR7: 6-11 MESES | AU7: 0 | AV7: 1 | AW7: 2 | AX7: 3 | AY7: 4 | AZ7: 5 | BA7: 6 | BB7: 7 | BC7: 8 | BD7: 9 | BE7: 10 | BF7: 11 | BG7: 12 | BH7: 13 | BI7: 14 | BJ7: 15 | BK7: 16 | BL7: 17 | BM7: 18 | BN7: 19 | BO7: 20-24 | BP7: 25-29 | BQ7: 30-34 | BR7: 35-39 | BS7: 40-44 | BT7: 45-49 | BU7: 50-54 | BV7: 55-59 | BW7: 60-64 | BX7: 65-69 | BY7: 70-74 | BZ7: 75-79 | CA7: 80-84 | CB7: 85-+ | CC7: 28 DIAS | CD7: 0-5 MESES | CE7: 6-11 MESES | CI7: NIÑO | CJ7: Adolescente | CK7: Joven | CL7: Adulto | CM7: Adulto Mayor | CN7: NIÑO | CO7: Adolescente | CP7: Joven | CQ7: Adulto | CR7: Adulto Mayor | CS7: 00-04 | CT7: 05-09 | CU7: 10-14 | CV7: 15-19 | CW7: 20-24 | CX7: 25-29 | CY7: 30-34 | CZ7: 35-39 | DA7: 40-44 | DB7: 45-49 | DC7: 50-54 | DD7: 55-59 | DE7: 60-64 | DF7: 65-69 | DG7: 70-74 | DH7: 75-79 | DI7: 80-84 | DJ7: 85-+ | DK7: 00-04 | DL7: 05-09 | DM7: 10-14 | DN7: 15-19 | DO7: 20-24 | DP7: 25-29 | DQ7: 30-34 | DR7: 35-39 | DS7: 40-44 | DT7: 45-49 | DU7: 50-54 | DV7: 55-59 | DW7: 60-64 | DX7: 65-69 | DY7: 70-74 | DZ7: 75-79 | EA7: 80-84 | EB7: 85-+
A8: 000000 | B8: PERU | C8: PERU | D8: PERU | E8: PERU | F8: 1,539,996 | G8: 753,416 | H8: 9,055 | I8: 10,635 | J8: 11,365 | K8: 11,743 | L8: 12,189 | M8: 12,540 | N8: 11,473 | O8: 11,318 | P8: 11,246 | Q8: 11,206 | R8: 11,159 | S8: 11,161 | T8: 11,155 | U8: 11,077 | V8: 10,955 | W8: 10,898 | X8: 10,841 | Y8: 10,800 | Z8: 10,907 | AA8: 10,959 | AB8: 56,797 | AC8: 62,015 | AD8: 60,761 | AE8: 58,492 | AF8: 55,447 | AG8: 48,654 | AH8: 44,062 | AI8: 39,255 | AJ8: 31,339 | AK8: 25,239 | AL8: 19,595 | AM8: 13,126 | AN8: 8,345 | AO8: 7,607 | AP8: 718 | AQ8: 4,828 | AR8: 4,227 | AS8: 10,629 | AT8: 786,580 | AU8: 8,791 | AV8: 10,186 | AW8: 10,910 | AX8: 11,274 | AY8: 11,662 | AZ8: 11,990 | BA8: 11,486 | BB8: 11,459 | BC8: 11,434 | BD8: 11,377 | BE8: 11,347 | BF8: 11,250 | BG8: 11,234 | BH8: 11,228 | BI8: 11,241 | BJ8: 11,243 | BK8: 11,235 | BL8: 11,359 | BM8: 11,658 | BN8: 12,011 | BO8: 64,752 | BP8: 67,077 | BQ8: 59,948 | BR8: 57,001 | BS8: 55,375 | BT8: 51,084 | BU8: 46,874 | BV8: 40,773 | BW8: 33,896 | BX8: 28,039 | BY8: 21,482 | BZ8: 14,874 | CA8: 10,095 | CB8: 10,935 | CC8: 626 | CD8: 4,594 | CE8: 4,197 | CF8: 10,325 | CI8: 135,090 | CJ8: 65,726 | CK8: 140,678 | CL8: 306,671 | CM8: 97,644 | CN8: 133,166 | CO8: 67,540 | CP8: 155,498 | CQ8: 311,055 | CR8: 108,386 | CS8: 54,987 | CT8: 57,783 | CU8: 55,507 | CV8: 54,405 | CW8: 56,797 | CX8: 62,015 | CY8: 60,761 | CZ8: 58,492 | DA8: 55,447 | DB8: 48,654 | DC8: 44,062 | DD8: 39,255 | DE8: 31,339 | DF8: 25,239 | DG8: 19,595 | DH8: 13,126 | DI8: 8,345 | DJ8: 7,607 | DK8: 52,823 | DL8: 57,746 | DM8: 56,300 | DN8: 57,506 | DO8: 64,752 | DP8: 67,077 | DQ8: 59,948 | DR8: 57,001 | DS8: 55,375 | DT8: 51,084 | DU8: 46,874 | DV8: 40,773 | DW8: 33,896 | DX8: 28,039 | DY8: 21,482 | DZ8: 14,874 | EA8: 10,095 | EB8: 10,935
A9: 040101 | B9: AREQUIPA | C9: AREQUIPA | D9: AREQUIPA | E9: AREQUIPA | F9: 55462 | G9: 30287 | H9: 269 | I9: 333 | J9: 373 | K9: 399 | L9: 440 | M9: 508 | N9: 335 | O9: 339 | P9: 331 | Q9: 320 | R9: 348 | S9: 337 | T9: 326 | U9: 320 | V9: 313 | W9: 326 | X9: 314 | Y9: 316 | Z9: 307 | AA9: 338 | AB9: 1,818 | AC9: 1,929 | AD9: 2,082 | AE9: 1,918 | AF9: 1,959 | AG9: 2,056 | AH9: 2,204 | AI9: 2,183 | AJ9: 1,985 | AK9: 1,647 | AL9: 1,359 | AM9: 951 | AN9: 662 | AO9: 642 | AP9: 37 | AQ9: 179 | AR9: 90 | AS9: 318 | AT9: 25,175 | AU9: 250 | AV9: 312 | AW9: 372 | AX9: 425 | AY9: 426 | AZ9: 440 | BA9: 233 | BB9: 257 | BC9: 284 | BD9: 274 | BE9: 276 | BF9: 290 | BG9: 319 | BH9: 334 | BI9: 320 | BJ9: 305 | BK9: 315 | BL9: 318 | BM9: 337 | BN9: 384 | BO9: 1,995 | BP9: 1,989 | BQ9: 1,742 | BR9: 1,625 | BS9: 1,537 | BT9: 1,627 | BU9: 1,437 | BV9: 1,355 | BW9: 1,187 | BX9: 1,107 | BY9: 964 | BZ9: 779 | CA9: 609 | CB9: 751 | CC9: 21 | CD9: 138 | CE9: 112 | CF9: 296 | CI9: 4,332 | CJ9: 1,915 | CK9: 4,392 | CL9: 12,402 | CM9: 6,604 | CN9: 3,839 | CO9: 1,911 | CP9: 4,705 | CQ9: 9,323 | CR9: 4,646 | CS9: 1,814 | CT9: 1,833 | CU9: 1,644 | CV9: 1,601 | CW9: 1,818 | CX9: 1,929 | CY9: 2,082 | CZ9: 1,918 | DA9: 1,959 | DB9: 2,056 | DC9: 2,204 | DD9: 2,183 | DE9: 1,985 | DF9: 1,647 | DG9: 1,359 | DH9: 951 | DI9: 662 | DJ9: 642 | DK9: 1,785 | DL9: 1,488 | DM9: 1,539 | DN9: 1,659 | DO9: 1,995 | DP9: 1,989 | DQ9: 1,742 | DR9: 1,625 | DS9: 1,537 | DT9: 1,627 | DU9: 1,437 | DV9: 1,355 | DW9: 1,187 | DX9: 1,107 | DY9: 964 | DZ9: 779 | EA9: 609 | EB9: 751
A10: 040102 | B10: AREQUIPA | C10: AREQUIPA | D10: AREQUIPA | E10: ALTO SELVA ALEGRE | F10: 91507 | G10: 44649 | H10: 534 | I10: 690 | J10: 656 | K10: 730 | L10: 736 | M10: 816 | N10: 644 | O10: 715 | P10: 676 | Q10: 687 | R10: 700 | S10: 675 | T10: 649 | U10: 658 | V10: 680 | W10: 613 | X10: 657 | Y10: 606 | Z10: 613 | AA10: 654 | AB10: 3,513 | AC10: 4,020 | AD10: 3,929 | AE10: 3,516 | AF10: 3,225 | AG10: 2,600 | AH10: 2,374 | AI10: 2,316 | AJ10: 1,930 | AK10: 1,422 | AL10: 982 | AM10: 610 | AN10: 406 | AO10: 417 | AP10: 39 | AQ10: 306 | AR10: 228 | AS10: 547 | AT10: 46,858 | AU10: 549 | AV10: 614 | AW10: 694 | AX10: 699 | AY10: 718 | AZ10: 742 | BA10: 667 | BB10: 700 | BC10: 680 | BD10: 674 | BE10: 678 | BF10: 689 | BG10: 629 | BH10: 670 | BI10: 647 | BJ10: 642 | BK10: 661 | BL10: 665 | BM10: 710 | BN10: 720 | BO10: 3,565 | BP10: 3,690 | BQ10: 3,460 | BR10: 3,021 | BS10: 3,377 | BT10: 3,286 | BU10: 3,192 | BV10: 2,629 | BW10: 2,028 | BX10: 1,605 | BY10: 1,251 | BZ10: 939 | CA10: 637 | CB10: 730 | CC10: 36 | CD10: 297 | CE10: 252 | CF10: 563 | CI10: 8,259 | CJ10: 3,863 | CK10: 8,800 | CL10: 17,960 | CM10: 5,350 | CN10: 8,104 | CO10: 3,914 | CP10: 8,685 | CQ10: 18,965 | CR10: 6,460 | CS10: 3,346 | CT10: 3,538 | CU10: 3,362 | CV10: 3,143 | CW10: 3,513 | CX10: 4,020 | CY10: 3,929 | CZ10: 3,516 | DA10: 3,225 | DB10: 2,600 | DC10: 2,374 | DD10: 2,316 | DE10: 1,930 | DF10: 1,422 | DG10: 982 | DH10: 610 | DI10: 406 | DJ10: 417 | DK10: 3,274 | DL10: 3,463 | DM10: 3,313 | DN10: 3,398 | DO10: 3,565 | DP10: 3,690 | DQ10: 3,460 | DR10: 3,021 | DS10: 3,377 | DT10: 3,286 | DU10: 3,192 | DV10: 2,629 | DW10: 2,028 | DX10: 1,605 | DY10: 1,251 | DZ10: 939 | EA10: 637 | EB10: 730
A11: 040103 | B11: AREQUIPA | C11: AREQUIPA | D11: AREQUIPA | E11: CAYMA | F11: 107806 | G11: 52480 | H11: 609 | I11: 722 | J11: 839 | K11: 841 | L11: 912 | M11: 938 | N11: 866 | O11: 788 | P11: 853 | Q11: 838 | R11: 806 | S11: 797 | T11: 845 | U11: 803 | V11: 794 | W11: 800 | X11: 672 | Y11: 760 | Z11: 810 | AA11: 781 | AB11: 4,127 | AC11: 4,639 | AD11: 4,703 | AE11: 4,279 | AF11: 3,766 | AG11: 3,193 | AH11: 2,790 | AI11: 2,452 | AJ11: 2,047 | AK11: 1,574 | AL11: 1,203 | AM11: 781 | AN11: 424 | AO11: 428 | AP11: 44 | AQ11: 316 | AR11: 293 | AS11: 670 | AT11: 55,326 | AU11: 598 | AV11: 674 | AW11: 760 | AX11: 777 | AY11: 858 | AZ11: 944 | BA11: 752 | BB11: 786 | BC11: 775 | BD11: 826 | BE11: 885 | BF11: 869 | BG11: 872 | BH11: 819 | BI11: 795 | BJ11: 826 | BK11: 806 | BL11: 842 | BM11: 831 | BN11: 812 | BO11: 4,642 | BP11: 4,517 | BQ11: 3,984 | BR11: 3,792 | BS11: 3,637 | BT11: 3,631 | BU11: 3,424 | BV11: 3,173 | BW11: 2,558 | BX11: 1,971 | BY11: 1,434 | BZ11: 1,015 | CA11: 691 | CB11: 750 | CC11: 37 | CD11: 302 | CE11: 296 | CF11: 658 | CI11: 9,809 | CJ11: 4,674 | CK11: 10,357 | CL11: 21,183 | CM11: 6,029 | CN11: 9,504 | CO11: 4,960 | CP11: 10,802 | CQ11: 21,641 | CR11: 7,669 | CS11: 3,923 | CT11: 4,283 | CU11: 4,045 | CV11: 3,823 | CW11: 4,127 | CX11: 4,639 | CY11: 4,703 | CZ11: 4,279 | DA11: 3,766 | DB11: 3,193 | DC11: 2,790 | DD11: 2,452 | DE11: 2,047 | DF11: 1,574 | DG11: 1,203 | DH11: 781 | DI11: 424 | DJ11: 428 | DK11: 3,667 | DL11: 4,083 | DM11: 4,240 | DN11: 4,117 | DO11: 4,642 | DP11: 4,517 | DQ11: 3,984 | DR11: 3,792 | DS11: 3,637 | DT11: 3,631 | DU11: 3,424 | DV11: 3,173 | DW11: 2,558 | DX11: 1,971 | DY11: 1,434 | DZ11: 1,015 | EA11: 691 | EB11: 750
A12: 040104 | B12: AREQUIPA | C12: AREQUIPA | D12: AREQUIPA | E12: CERRO COLORADO | F12: 236098 | G12: 110645 | H12: 1,346 | I12: 1,641 | J12: 1,747 | K12: 1,685 | L12: 1,774 | M12: 1,784 | N12: 2,139 | O12: 2,019 | P12: 2,014 | Q12: 2,018 | R12: 1,912 | S12: 1,906 | T12: 1,838 | U12: 1,840 | V12: 1,722 | W12: 1,777 | X12: 1,724 | Y12: 1,724 | Z12: 1,723 | AA12: 1,815 | AB12: 9,445 | AC12: 9,830 | AD12: 9,403 | AE12: 8,861 | AF12: 8,324 | AG12: 6,755 | AH12: 5,927 | AI12: 4,769 | AJ12: 3,443 | AK12: 2,692 | AL12: 2,214 | AM12: 1,301 | AN12: 823 | AO12: 710 | AP12: 95 | AQ12: 727 | AR12: 619 | AS12: 1,601 | AT12: 125,453 | AU12: 1,314 | AV12: 1,468 | AW12: 1,658 | AX12: 1,633 | AY12: 1,671 | AZ12: 1,730 | BA12: 1,917 | BB12: 2,010 | BC12: 1,907 | BD12: 1,884 | BE12: 1,899 | BF12: 2,068 | BG12: 2,069 | BH12: 2,057 | BI12: 2,012 | BJ12: 1,967 | BK12: 1,869 | BL12: 1,907 | BM12: 1,886 | BN12: 1,894 | BO12: 10,365 | BP12: 9,954 | BQ12: 9,628 | BR12: 9,412 | BS12: 9,251 | BT12: 8,331 | BU12: 7,638 | BV12: 6,657 | BW12: 5,380 | BX12: 4,436 | BY12: 3,161 | BZ12: 1,942 | CA12: 1,259 | CB12: 1,219 | CC12: 104 | CD12: 690 | CE12: 624 | CF12: 1,562 | CI12: 21,985 | CJ12: 10,625 | CK12: 22,813 | CL12: 44,039 | CM12: 10,473 | CN12: 21,159 | CO12: 11,881 | CP12: 24,099 | CQ12: 50,917 | CR12: 16,178 | CS12: 8,193 | CT12: 9,974 | CU12: 9,218 | CV12: 8,763 | CW12: 9,445 | CX12: 9,830 | CY12: 9,403 | CZ12: 8,861 | DA12: 8,324 | DB12: 6,755 | DC12: 5,927 | DD12: 4,769 | DE12: 3,443 | DF12: 2,692 | DG12: 2,214 | DH12: 1,301 | DI12: 823 | DJ12: 710 | DK12: 7,744 | DL12: 9,448 | DM12: 10,105 | DN12: 9,523 | DO12: 10,365 | DP12: 9,954 | DQ12: 9,628 | DR12: 9,412 | DS12: 9,251 | DT12: 8,331 | DU12: 7,638 | DV12: 6,657 | DW12: 5,380 | DX12: 4,436 | DY12: 3,161 | DZ12: 1,942 | EA12: 1,259 | EB12: 1,219
A13: 040105 | B13: AREQUIPA | C13: AREQUIPA | D13: AREQUIPA | E13: CHARACATO | F13: 16995 | G13: 8231 | H13: 79 | I13: 93 | J13: 100 | K13: 93 | L13: 84 | M13: 107 | N13: 140 | O13: 126 | P13: 98 | Q13: 123 | R13: 126 | S13: 129 | T13: 136 | U13: 143 | V13: 108 | W13: 107 | X13: 135 | Y13: 113 | Z13: 124 | AA13: 143 | AB13: 655 | AC13: 640 | AD13: 649 | AE13: 687 | AF13: 645 | AG13: 569 | AH13: 494 | AI13: 426 | AJ13: 329 | AK13: 276 | AL13: 237 | AM13: 156 | AN13: 94 | AO13: 67 | AP13: 9 | AQ13: 42 | AR13: 37 | AS13: 92 | AT13: 8,764 | AU13: 88 | AV13: 102 | AW13: 117 | AX13: 111 | AY13: 85 | AZ13: 72 | BA13: 164 | BB13: 174 | BC13: 159 | BD13: 118 | BE13: 97 | BF13: 165 | BG13: 137 | BH13: 127 | BI13: 117 | BJ13: 132 | BK13: 117 | BL13: 133 | BM13: 124 | BN13: 145 | BO13: 781 | BP13: 630 | BQ13: 559 | BR13: 630 | BS13: 793 | BT13: 579 | BU13: 500 | BV13: 431 | BW13: 383 | BX13: 357 | BY13: 260 | BZ13: 161 | CA13: 108 | CB13: 108 | CC13: 5 | CD13: 45 | CE13: 43 | CF13: 102 | CI13: 1,298 | CJ13: 742 | CK13: 1,562 | CL13: 3,470 | CM13: 1,092 | CN13: 1,452 | CO13: 763 | CP13: 1,680 | CQ13: 3,492 | CR13: 1,269 | CS13: 449 | CT13: 594 | CU13: 642 | CV13: 622 | CW13: 655 | CX13: 640 | CY13: 649 | CZ13: 687 | DA13: 645 | DB13: 569 | DC13: 494 | DD13: 426 | DE13: 329 | DF13: 276 | DG13: 237 | DH13: 156 | DI13: 94 | DJ13: 67 | DK13: 503 | DL13: 687 | DM13: 643 | DN13: 651 | DO13: 781 | DP13: 630 | DQ13: 559 | DR13: 630 | DS13: 793 | DT13: 579 | DU13: 500 | DV13: 431 | DW13: 383 | DX13: 357 | DY13: 260 | DZ13: 161 | EA13: 108 | EB13: 108
A14: 040106 | B14: AREQUIPA | C14: AREQUIPA | D14: AREQUIPA | E14: CHIGUATA | F14: 3266 | G14: 1747 | H14: 30 | I14: 40 | J14: 24 | K14: 26 | L14: 33 | M14: 21 | N14: 25 | O14: 29 | P14: 22 | Q14: 21 | R14: 22 | S14: 26 | T14: 23 | U14: 19 | V14: 21 | W14: 26 | X14: 13 | Y14: 22 | Z14: 20 | AA14: 23 | AB14: 119 | AC14: 127 | AD14: 149 | AE14: 136 | AF14: 107 | AG14: 103 | AH14: 103 | AI14: 98 | AJ14: 68 | AK14: 78 | AL14: 70 | AM14: 41 | AN14: 30 | AO14: 32 | AP14: 3 | AQ14: 16 | AR14: 14 | AS14: 40 | AT14: 1,519 | AU14: 24 | AV14: 28 | AW14: 37 | AX14: 21 | AY14: 34 | AZ14: 25 | BA14: 22 | BB14: 27 | BC14: 15 | BD14: 23 | BE14: 16 | BF14: 19 | BG14: 21 | BH14: 23 | BI14: 23 | BJ14: 17 | BK14: 26 | BL14: 14 | BM14: 15 | BN14: 28 | BO14: 127 | BP14: 84 | BQ14: 98 | BR14: 117 | BS14: 78 | BT14: 102 | BU14: 98 | BV14: 91 | BW14: 75 | BX14: 66 | BY14: 46 | BZ14: 33 | CA14: 22 | CB14: 24 | CC14: 1 | CD14: 9 | CE14: 15 | CF14: 32 | CI14: 319 | CJ14: 124 | CK14: 289 | CL14: 696 | CM14: 287 | CN14: 291 | CO14: 124 | CP14: 254 | CQ14: 584 | CR14: 242 | CS14: 153 | CT14: 118 | CU14: 111 | CV14: 104 | CW14: 119 | CX14: 127 | CY14: 149 | CZ14: 136 | DA14: 107 | DB14: 103 | DC14: 103 | DD14: 98 | DE14: 68 | DF14: 78 | DG14: 70 | DH14: 41 | DI14: 30 | DJ14: 32 | DK14: 144 | DL14: 112 | DM14: 102 | DN14: 100 | DO14: 127 | DP14: 84 | DQ14: 98 | DR14: 117 | DS14: 78 | DT14: 102 | DU14: 98 | DV14: 91 | DW14: 75 | DX14: 66 | DY14: 46 | DZ14: 33 | EA14: 22 | EB14: 24
A15: 040107 | B15: AREQUIPA | C15: AREQUIPA | D15: AREQUIPA | E15: JACOBO HUNTER | F15: 53356 | G15: 26087 | H15: 304 | I15: 372 | J15: 385 | K15: 410 | L15: 451 | M15: 464 | N15: 415 | O15: 401 | P15: 375 | Q15: 402 | R15: 385 | S15: 352 | T15: 413 | U15: 395 | V15: 386 | W15: 348 | X15: 370 | Y15: 377 | Z15: 352 | AA15: 355 | AB15: 1,996 | AC15: 2,182 | AD15: 2,094 | AE15: 2,124 | AF15: 2,052 | AG15: 1,711 | AH15: 1,504 | AI15: 1,313 | AJ15: 994 | AK15: 863 | AL15: 613 | AM15: 437 | AN15: 254 | AO15: 238 | AP15: 28 | AQ15: 183 | AR15: 121 | AS15: 305 | AT15: 27,269 | AU15: 294 | AV15: 343 | AW15: 370 | AX15: 371 | AY15: 402 | AZ15: 410 | BA15: 364 | BB15: 364 | BC15: 352 | BD15: 368 | BE15: 365 | BF15: 436 | BG15: 402 | BH15: 419 | BI15: 404 | BJ15: 395 | BK15: 400 | BL15: 398 | BM15: 442 | BN15: 366 | BO15: 2,323 | BP15: 2,402 | BQ15: 2,160 | BR15: 1,869 | BS15: 1,809 | BT15: 1,799 | BU15: 1,636 | BV15: 1,358 | BW15: 1,199 | BX15: 991 | BY15: 786 | BZ15: 540 | CA15: 356 | CB15: 376 | CC15: 15 | CD15: 154 | CE15: 140 | CF15: 295 | CI15: 4,716 | CJ15: 2,289 | CK15: 4,885 | CL15: 10,798 | CM15: 3,161 | CN15: 4,439 | CO15: 2,418 | CP15: 5,533 | CQ15: 10,631 | CR15: 3,872 | CS15: 1,922 | CT15: 2,057 | CU15: 1,931 | CV15: 1,802 | CW15: 1,996 | CX15: 2,182 | CY15: 2,094 | CZ15: 2,124 | DA15: 2,052 | DB15: 1,711 | DC15: 1,504 | DD15: 1,313 | DE15: 994 | DF15: 863 | DG15: 613 | DH15: 437 | DI15: 254 | DJ15: 238 | DK15: 1,780 | DL15: 1,858 | DM15: 2,026 | DN15: 2,001 | DO15: 2,323 | DP15: 2,402 | DQ15: 2,160 | DR15: 1,869 | DS15: 1,809 | DT15: 1,799 | DU15: 1,636 | DV15: 1,358 | DW15: 1,199 | DX15: 991 | DY15: 786 | DZ15: 540 | EA15: 356 | EB15: 376
A16: 040108 | B16: AREQUIPA | C16: AREQUIPA | D16: AREQUIPA | E16: LA JOYA | F16: 40059 | G16: 18628 | H16: 292 | I16: 308 | J16: 342 | K16: 309 | L16: 311 | M16: 335 | N16: 346 | O16: 310 | P16: 300 | Q16: 338 | R16: 329 | S16: 280 | T16: 277 | U16: 291 | V16: 306 | W16: 314 | X16: 308 | Y16: 325 | Z16: 327 | AA16: 292 | AB16: 1,541 | AC16: 1,685 | AD16: 1,485 | AE16: 1,446 | AF16: 1,236 | AG16: 1,112 | AH16: 947 | AI16: 836 | AJ16: 642 | AK16: 535 | AL16: 375 | AM16: 246 | AN16: 156 | AO16: 146 | AP16: 24 | AQ16: 143 | AR16: 149 | AS16: 341 | AT16: 21,431 | AU16: 296 | AV16: 307 | AW16: 254 | AX16: 325 | AY16: 303 | AZ16: 296 | BA16: 383 | BB16: 294 | BC16: 363 | BD16: 326 | BE16: 310 | BF16: 293 | BG16: 261 | BH16: 315 | BI16: 316 | BJ16: 310 | BK16: 309 | BL16: 333 | BM16: 314 | BN16: 361 | BO16: 1,782 | BP16: 1,981 | BQ16: 1,628 | BR16: 1,740 | BS16: 1,770 | BT16: 1,401 | BU16: 1,243 | BV16: 970 | BW16: 838 | BX16: 617 | BY16: 491 | BZ16: 294 | CA16: 199 | CB16: 208 | CC16: 19 | CD16: 156 | CE16: 140 | CF16: 345 | CI16: 3,800 | CJ16: 1,821 | CK16: 3,845 | CL16: 7,062 | CM16: 1,954 | CN16: 3,750 | CO16: 1,844 | CP16: 4,438 | CQ16: 8,752 | CR16: 2,439 | CS16: 1,562 | CT16: 1,629 | CU16: 1,483 | CV16: 1,566 | CW16: 1,541 | CX16: 1,685 | CY16: 1,485 | CZ16: 1,446 | DA16: 1,236 | DB16: 1,112 | DC16: 947 | DD16: 836 | DE16: 642 | DF16: 535 | DG16: 375 | DH16: 246 | DI16: 156 | DJ16: 146 | DK16: 1,485 | DL16: 1,662 | DM16: 1,495 | DN16: 1,627 | DO16: 1,782 | DP16: 1,981 | DQ16: 1,628 | DR16: 1,740 | DS16: 1,770 | DT16: 1,401 | DU16: 1,243 | DV16: 970 | DW16: 838 | DX16: 617 | DY16: 491 | DZ16: 294 | EA16: 199 | EB16: 208
A17: 040109 | B17: AREQUIPA | C17: AREQUIPA | D17: AREQUIPA | E17: MARIANO MELGAR | F17: 66795 | G17: 32823 | H17: 374 | I17: 411 | J17: 472 | K17: 475 | L17: 553 | M17: 602 | N17: 498 | O17: 448 | P17: 470 | Q17: 460 | R17: 460 | S17: 480 | T17: 449 | U17: 465 | V17: 492 | W17: 458 | X17: 470 | Y17: 414 | Z17: 458 | AA17: 505 | AB17: 2,488 | AC17: 2,718 | AD17: 2,694 | AE17: 2,414 | AF17: 2,412 | AG17: 2,149 | AH17: 2,000 | AI17: 1,823 | AJ17: 1,435 | AK17: 1,133 | AL17: 876 | AM17: 557 | AN17: 376 | AO17: 334 | AP17: 28 | AQ17: 216 | AR17: 158 | AS17: 446 | AT17: 33,972 | AU17: 364 | AV17: 422 | AW17: 430 | AX17: 462 | AY17: 539 | AZ17: 556 | BA17: 454 | BB17: 430 | BC17: 445 | BD17: 501 | BE17: 503 | BF17: 448 | BG17: 451 | BH17: 481 | BI17: 509 | BJ17: 471 | BK17: 460 | BL17: 492 | BM17: 513 | BN17: 534 | BO17: 2,913 | BP17: 2,932 | BQ17: 2,574 | BR17: 2,404 | BS17: 2,315 | BT17: 2,202 | BU17: 2,060 | BV17: 1,781 | BW17: 1,447 | BX17: 1,211 | BY17: 977 | BZ17: 695 | CA17: 464 | CB17: 532 | CC17: 22 | CD17: 194 | CE17: 170 | CF17: 435 | CI17: 5,703 | CJ17: 2,748 | CK17: 6,169 | CL17: 13,492 | CM17: 4,377 | CN17: 5,554 | CO17: 2,864 | CP17: 6,892 | CQ17: 13,336 | CR17: 4,794 | CS17: 2,285 | CT17: 2,478 | CU17: 2,346 | CV17: 2,305 | CW17: 2,488 | CX17: 2,718 | CY17: 2,694 | CZ17: 2,414 | DA17: 2,412 | DB17: 2,149 | DC17: 2,000 | DD17: 1,823 | DE17: 1,435 | DF17: 1,133 | DG17: 876 | DH17: 557 | DI17: 376 | DJ17: 334 | DK17: 2,217 | DL17: 2,386 | DM17: 2,392 | DN17: 2,470 | DO17: 2,913 | DP17: 2,932 | DQ17: 2,574 | DR17: 2,404 | DS17: 2,315 | DT17: 2,202 | DU17: 2,060 | DV17: 1,781 | DW17: 1,447 | DX17: 1,211 | DY17: 977 | DZ17: 695 | EA17: 464 | EB17: 532
A18: 040110 | B18: AREQUIPA | C18: AREQUIPA | D18: AREQUIPA | E18: MIRAFLORES | F18: 66286 | G18: 33238 | H18: 335 | I18: 399 | J18: 491 | K18: 540 | L18: 524 | M18: 546 | N18: 498 | O18: 455 | P18: 500 | Q18: 457 | R18: 444 | S18: 441 | T18: 430 | U18: 449 | V18: 471 | W18: 391 | X18: 435 | Y18: 409 | Z18: 444 | AA18: 469 | AB18: 2,564 | AC18: 2,803 | AD18: 2,699 | AE18: 2,536 | AF18: 2,526 | AG18: 2,268 | AH18: 2,127 | AI18: 1,796 | AJ18: 1,489 | AK18: 1,147 | AL18: 865 | AM18: 560 | AN18: 365 | AO18: 365 | AP18: 18 | AQ18: 184 | AR18: 151 | AS18: 406 | AT18: 33,048 | AU18: 325 | AV18: 382 | AW18: 416 | AX18: 490 | AY18: 505 | AZ18: 570 | BA18: 421 | BB18: 426 | BC18: 483 | BD18: 481 | BE18: 528 | BF18: 406 | BG18: 457 | BH18: 476 | BI18: 436 | BJ18: 509 | BK18: 458 | BL18: 449 | BM18: 473 | BN18: 481 | BO18: 2,577 | BP18: 2,752 | BQ18: 2,374 | BR18: 2,295 | BS18: 2,419 | BT18: 2,230 | BU18: 2,050 | BV18: 1,774 | BW18: 1,432 | BX18: 1,269 | BY18: 1,003 | BZ18: 706 | CA18: 477 | CB18: 518 | CC18: 41 | CD18: 193 | CE18: 132 | CF18: 393 | CI18: 5,630 | CJ18: 2,585 | CK18: 6,280 | CL18: 13,952 | CM18: 4,426 | CN18: 5,433 | CO18: 2,785 | CP18: 6,283 | CQ18: 13,142 | CR18: 4,887 | CS18: 2,289 | CT18: 2,456 | CU18: 2,235 | CV18: 2,148 | CW18: 2,564 | CX18: 2,803 | CY18: 2,699 | CZ18: 2,536 | DA18: 2,526 | DB18: 2,268 | DC18: 2,127 | DD18: 1,796 | DE18: 1,489 | DF18: 1,147 | DG18: 865 | DH18: 560 | DI18: 365 | DJ18: 365 | DK18: 2,118 | DL18: 2,381 | DM18: 2,303 | DN18: 2,370 | DO18: 2,577 | DP18: 2,752 | DQ18: 2,374 | DR18: 2,295 | DS18: 2,419 | DT18: 2,230 | DU18: 2,050 | DV18: 1,774 | DW18: 1,432 | DX18: 1,269 | DY18: 1,003 | DZ18: 706 | EA18: 477 | EB18: 518
A19: 040111 | B19: AREQUIPA | C19: AREQUIPA | D19: AREQUIPA | E19: MOLLEBAYA | F19: 7201 | G19: 3535 | H19: 33 | I19: 41 | J19: 21 | K19: 34 | L19: 35 | M19: 35 | N19: 46 | O19: 69 | P19: 69 | Q19: 48 | R19: 65 | S19: 56 | T19: 36 | U19: 36 | V19: 54 | W19: 54 | X19: 46 | Y19: 56 | Z19: 61 | AA19: 33 | AB19: 215 | AC19: 247 | AD19: 372 | AE19: 337 | AF19: 293 | AG19: 276 | AH19: 180 | AI19: 176 | AJ19: 163 | AK19: 113 | AL19: 98 | AM19: 79 | AN19: 29 | AO19: 29 | AP19: 2 | AQ19: 19 | AR19: 14 | AS19: 41 | AT19: 3,666 | AU19: 26 | AV19: 32 | AW19: 42 | AX19: 35 | AY19: 32 | AZ19: 31 | BA19: 73 | BB19: 90 | BC19: 71 | BD19: 63 | BE19: 61 | BF19: 42 | BG19: 61 | BH19: 61 | BI19: 61 | BJ19: 42 | BK19: 48 | BL19: 46 | BM19: 59 | BN19: 59 | BO19: 312 | BP19: 345 | BQ19: 222 | BR19: 257 | BS19: 199 | BT19: 197 | BU19: 259 | BV19: 241 | BW19: 195 | BX19: 151 | BY19: 113 | BZ19: 52 | CA19: 42 | CB19: 46 | CC19: 3 | CD19: 17 | CE19: 9 | CF19: 33 | CI19: 552 | CJ19: 282 | CK19: 556 | CL19: 1,634 | CM19: 482 | CN19: 598 | CO19: 319 | CP19: 775 | CQ19: 1,375 | CR19: 553 | CS19: 164 | CT19: 267 | CU19: 247 | CV19: 250 | CW19: 215 | CX19: 247 | CY19: 372 | CZ19: 337 | DA19: 293 | DB19: 276 | DC19: 180 | DD19: 176 | DE19: 163 | DF19: 113 | DG19: 98 | DH19: 79 | DI19: 29 | DJ19: 29 | DK19: 167 | DL19: 328 | DM19: 286 | DN19: 254 | DO19: 312 | DP19: 345 | DQ19: 222 | DR19: 257 | DS19: 199 | DT19: 197 | DU19: 259 | DV19: 241 | DW19: 195 | DX19: 151 | DY19: 113 | DZ19: 52 | EA19: 42 | EB19: 46
A20: 040112 | B20: AREQUIPA | C20: AREQUIPA | D20: AREQUIPA | E20: PAUCARPATA | F20: 138083 | G20: 67578 | H20: 797 | I20: 899 | J20: 1,105 | K20: 1,121 | L20: 1,182 | M20: 1,216 | N20: 1,034 | O20: 1,006 | P20: 999 | Q20: 995 | R20: 1,025 | S20: 1,014 | T20: 1,048 | U20: 1,082 | V20: 1,003 | W20: 1,015 | X20: 993 | Y20: 962 | Z20: 974 | AA20: 974 | AB20: 5,084 | AC20: 5,529 | AD20: 5,295 | AE20: 5,153 | AF20: 5,207 | AG20: 4,636 | AH20: 4,119 | AI20: 3,339 | AJ20: 2,446 | AK20: 2,015 | AL20: 1,600 | AM20: 1,268 | AN20: 778 | AO20: 665 | AP20: 62 | AQ20: 425 | AR20: 372 | AS20: 943 | AT20: 70,505 | AU20: 783 | AV20: 887 | AW20: 1,033 | AX20: 1,139 | AY20: 1,162 | AZ20: 1,187 | BA20: 857 | BB20: 927 | BC20: 985 | BD20: 970 | BE20: 965 | BF20: 1,005 | BG20: 1,047 | BH20: 1,010 | BI20: 1,043 | BJ20: 1,044 | BK20: 1,033 | BL20: 1,015 | BM20: 1,047 | BN20: 1,130 | BO20: 5,934 | BP20: 6,312 | BQ20: 5,344 | BR20: 5,159 | BS20: 4,987 | BT20: 4,529 | BU20: 3,990 | BV20: 3,458 | BW20: 2,914 | BX20: 2,522 | BY20: 1,986 | BZ20: 1,388 | CA20: 841 | CB20: 872 | CC20: 61 | CD20: 409 | CE20: 374 | CF20: 926 | CI20: 12,393 | CJ20: 6,103 | CK20: 12,561 | CL20: 27,749 | CM20: 8,107 | CN20: 11,900 | CO20: 6,192 | CP20: 14,423 | CQ20: 27,467 | CR20: 9,651 | CS20: 5,104 | CT20: 5,250 | CU20: 5,172 | CV20: 4,918 | CW20: 5,084 | CX20: 5,529 | CY20: 5,295 | CZ20: 5,153 | DA20: 5,207 | DB20: 4,636 | DC20: 4,119 | DD20: 3,339 | DE20: 2,446 | DF20: 2,015 | DG20: 1,600 | DH20: 1,268 | DI20: 778 | DJ20: 665 | DK20: 5,004 | DL20: 4,926 | DM20: 5,070 | DN20: 5,269 | DO20: 5,934 | DP20: 6,312 | DQ20: 5,344 | DR20: 5,159 | DS20: 4,987 | DT20: 4,529 | DU20: 3,990 | DV20: 3,458 | DW20: 2,914 | DX20: 2,522 | DY20: 1,986 | DZ20: 1,388 | EA20: 841 | EB20: 872
A21: 040113 | B21: AREQUIPA | C21: AREQUIPA | D21: AREQUIPA | E21: POCSI | F21: 463 | G21: 276 | H21: 1 | I21: 4 | J21: 6 | K21: 2 | L21: 4 | M21: 1 | N21: 1 | O21: 1 | P21: 1 | Q21: 1 | R21: 2 | S21: 1 | T21: 1 | U21: 3 | V21: 2 | W21: 2 | X21: 2 | Y21: 2 | Z21: 2 | AA21: 3 | AB21: 13 | AC21: 23 | AD21: 27 | AE21: 23 | AF21: 25 | AG21: 20 | AH21: 22 | AI21: 17 | AJ21: 19 | AK21: 12 | AL21: 9 | AM21: 9 | AN21: 8 | AO21: 7 | AP21: 0 | AQ21: 0 | AR21: 1 | AS21: 1 | AT21: 187 | AU21: 2 | AV21: 6 | AW21: 4 | AX21: 4 | AY21: 4 | AZ21: 3 | BA21: 3 | BB21: 2 | BC21: 2 | BD21: 2 | BE21: 1 | BF21: 1 | BG21: 1 | BH21: 1 | BI21: 1 | BJ21: 1 | BK21: 2 | BL21: 2 | BM21: 3 | BN21: 1 | BO21: 8 | BP21: 6 | BQ21: 10 | BR21: 17 | BS21: 7 | BT21: 13 | BU21: 17 | BV21: 15 | BW21: 9 | BX21: 10 | BY21: 11 | BZ21: 7 | CA21: 5 | CB21: 6 | CC21: 1 | CD21: 1 | CE21: 1 | CF21: 3 | CI21: 25 | CJ21: 12 | CK21: 41 | CL21: 134 | CM21: 57 | CN21: 34 | CO21: 8 | CP21: 18 | CQ21: 79 | CR21: 42 | CS21: 17 | CT21: 5 | CU21: 9 | CV21: 11 | CW21: 13 | CX21: 23 | CY21: 27 | CZ21: 23 | DA21: 25 | DB21: 20 | DC21: 22 | DD21: 17 | DE21: 19 | DF21: 12 | DG21: 9 | DH21: 9 | DI21: 8 | DJ21: 7 | DK21: 20 | DL21: 12 | DM21: 5 | DN21: 9 | DO21: 8 | DP21: 6 | DQ21: 10 | DR21: 17 | DS21: 7 | DT21: 13 | DU21: 17 | DV21: 15 | DW21: 9 | DX21: 10 | DY21: 11 | DZ21: 7 | EA21: 5 | EB21: 6
A22: 040114 | B22: AREQUIPA | C22: AREQUIPA | D22: AREQUIPA | E22: POLOBAYA | F22: 766 | G22: 429 | H22: 4 | I22: 8 | J22: 4 | K22: 5 | L22: 6 | M22: 4 | N22: 1 | O22: 2 | P22: 4 | Q22: 6 | R22: 5 | S22: 5 | T22: 2 | U22: 4 | V22: 5 | W22: 4 | X22: 4 | Y22: 3 | Z22: 4 | AA22: 9 | AB22: 25 | AC22: 34 | AD22: 29 | AE22: 31 | AF22: 32 | AG22: 23 | AH22: 26 | AI22: 35 | AJ22: 35 | AK22: 25 | AL22: 18 | AM22: 12 | AN22: 9 | AO22: 6 | AP22: 1 | AQ22: 3 | AR22: 1 | AS22: 7 | AT22: 337 | AU22: 10 | AV22: 10 | AW22: 4 | AX22: 7 | AY22: 7 | AZ22: 7 | BA22: 6 | BB22: 2 | BC22: 4 | BD22: 4 | BE22: 4 | BF22: 2 | BG22: 2 | BH22: 2 | BI22: 2 | BJ22: 3 | BK22: 4 | BL22: 5 | BM22: 4 | BN22: 5 | BO22: 27 | BP22: 28 | BQ22: 12 | BR22: 15 | BS22: 32 | BT22: 26 | BU22: 21 | BV22: 22 | BW22: 15 | BX22: 10 | BY22: 11 | BZ22: 8 | CA22: 8 | CB22: 8 | CC22: 0 | CD22: 3 | CE22: 7 | CF22: 16 | CI22: 54 | CJ22: 22 | CK22: 72 | CL22: 176 | CM22: 99 | CN22: 67 | CO22: 18 | CP22: 64 | CQ22: 128 | CR22: 52 | CS22: 27 | CT22: 17 | CU22: 21 | CV22: 24 | CW22: 25 | CX22: 34 | CY22: 29 | CZ22: 31 | DA22: 32 | DB22: 23 | DC22: 26 | DD22: 35 | DE22: 35 | DF22: 25 | DG22: 18 | DH22: 12 | DI22: 9 | DJ22: 6 | DK22: 38 | DL22: 23 | DM22: 12 | DN22: 21 | DO22: 27 | DP22: 28 | DQ22: 12 | DR22: 15 | DS22: 32 | DT22: 26 | DU22: 21 | DV22: 22 | DW22: 15 | DX22: 10 | DY22: 11 | DZ22: 8 | EA22: 8 | EB22: 8
A23: 040115 | B23: AREQUIPA | C23: AREQUIPA | D23: AREQUIPA | E23: QUEQUEÑA | F23: 6839 | G23: 3576 | H23: 30 | I23: 21 | J23: 19 | K23: 18 | L23: 12 | M23: 13 | N23: 47 | O23: 37 | P23: 27 | Q23: 40 | R23: 57 | S23: 33 | T23: 33 | U23: 37 | V23: 40 | W23: 50 | X23: 27 | Y23: 30 | Z23: 50 | AA23: 44 | AB23: 161 | AC23: 268 | AD23: 285 | AE23: 405 | AF23: 288 | AG23: 268 | AH23: 278 | AI23: 244 | AJ23: 248 | AK23: 147 | AL23: 114 | AM23: 87 | AN23: 64 | AO23: 54 | AP23: 1 | AQ23: 19 | AR23: 11 | AS23: 39 | AT23: 3,263 | AU23: 18 | AV23: 20 | AW23: 14 | AX23: 14 | AY23: 13 | AZ23: 10 | BA23: 74 | BB23: 47 | BC23: 47 | BD23: 40 | BE23: 30 | BF23: 44 | BG23: 50 | BH23: 30 | BI23: 37 | BJ23: 37 | BK23: 40 | BL23: 47 | BM23: 30 | BN23: 40 | BO23: 211 | BP23: 298 | BQ23: 268 | BR23: 258 | BS23: 167 | BT23: 171 | BU23: 177 | BV23: 281 | BW23: 231 | BX23: 171 | BY23: 134 | BZ23: 97 | CA23: 60 | CB23: 57 | CC23: 0 | CD23: 8 | CE23: 10 | CF23: 24 | CI23: 354 | CJ23: 217 | CK23: 523 | CL23: 1,768 | CM23: 660 | CN23: 371 | CO23: 241 | CP23: 579 | CQ23: 1,322 | CR23: 693 | CS23: 100 | CT23: 164 | CU23: 200 | CV23: 201 | CW23: 161 | CX23: 268 | CY23: 285 | CZ23: 405 | DA23: 288 | DB23: 268 | DC23: 278 | DD23: 244 | DE23: 248 | DF23: 147 | DG23: 114 | DH23: 87 | DI23: 64 | DJ23: 54 | DK23: 79 | DL23: 218 | DM23: 191 | DN23: 194 | DO23: 211 | DP23: 298 | DQ23: 268 | DR23: 258 | DS23: 167 | DT23: 171 | DU23: 177 | DV23: 281 | DW23: 231 | DX23: 171 | DY23: 134 | DZ23: 97 | EA23: 60 | EB23: 57
A24: 040116 | B24: AREQUIPA | C24: AREQUIPA | D24: AREQUIPA | E24: SABANDIA | F24: 4727 | G24: 2351 | H24: 48 | I24: 50 | J24: 54 | K24: 48 | L24: 34 | M24: 37 | N24: 31 | O24: 31 | P24: 42 | Q24: 26 | R24: 33 | S24: 33 | T24: 36 | U24: 28 | V24: 28 | W24: 32 | X24: 29 | Y24: 22 | Z24: 35 | AA24: 28 | AB24: 166 | AC24: 173 | AD24: 167 | AE24: 191 | AF24: 170 | AG24: 153 | AH24: 134 | AI24: 111 | AJ24: 88 | AK24: 89 | AL24: 76 | AM24: 53 | AN24: 42 | AO24: 33 | AP24: 3 | AQ24: 24 | AR24: 24 | AS24: 54 | AT24: 2,376 | AU24: 51 | AV24: 47 | AW24: 48 | AX24: 40 | AY24: 40 | AZ24: 35 | BA24: 45 | BB24: 42 | BC24: 34 | BD24: 33 | BE24: 28 | BF24: 34 | BG24: 29 | BH24: 32 | BI24: 32 | BJ24: 29 | BK24: 34 | BL24: 35 | BM24: 32 | BN24: 34 | BO24: 198 | BP24: 184 | BQ24: 183 | BR24: 137 | BS24: 147 | BT24: 140 | BU24: 151 | BV24: 110 | BW24: 114 | BX24: 95 | BY24: 73 | BZ24: 47 | CA24: 31 | CB24: 32 | CC24: 3 | CD24: 26 | CE24: 25 | CF24: 57 | CI24: 467 | CJ24: 175 | CK24: 402 | CL24: 926 | CM24: 348 | CN24: 477 | CO24: 191 | CP24: 448 | CQ24: 868 | CR24: 360 | CS24: 234 | CT24: 167 | CU24: 158 | CV24: 146 | CW24: 166 | CX24: 173 | CY24: 167 | CZ24: 191 | DA24: 170 | DB24: 153 | DC24: 134 | DD24: 111 | DE24: 88 | DF24: 89 | DG24: 76 | DH24: 53 | DI24: 42 | DJ24: 33 | DK24: 226 | DL24: 189 | DM24: 155 | DN24: 164 | DO24: 198 | DP24: 184 | DQ24: 183 | DR24: 137 | DS24: 147 | DT24: 140 | DU24: 151 | DV24: 110 | DW24: 114 | DX24: 95 | DY24: 73 | DZ24: 47 | EA24: 31 | EB24: 32
A25: 040117 | B25: AREQUIPA | C25: AREQUIPA | D25: AREQUIPA | E25: SACHACA | F25: 29363 | G25: 14244 | H25: 179 | I25: 241 | J25: 255 | K25: 281 | L25: 276 | M25: 272 | N25: 227 | O25: 227 | P25: 208 | Q25: 202 | R25: 211 | S25: 200 | T25: 215 | U25: 191 | V25: 228 | W25: 195 | X25: 189 | Y25: 215 | Z25: 199 | AA25: 192 | AB25: 1,093 | AC25: 1,099 | AD25: 1,066 | AE25: 1,043 | AF25: 1,008 | AG25: 916 | AH25: 811 | AI25: 727 | AJ25: 571 | AK25: 512 | AL25: 402 | AM25: 268 | AN25: 170 | AO25: 155 | AP25: 12 | AQ25: 92 | AR25: 87 | AS25: 199 | AT25: 15,119 | AU25: 203 | AV25: 210 | AW25: 201 | AX25: 236 | AY25: 222 | AZ25: 273 | BA25: 200 | BB25: 177 | BC25: 201 | BD25: 182 | BE25: 218 | BF25: 212 | BG25: 215 | BH25: 215 | BI25: 216 | BJ25: 184 | BK25: 215 | BL25: 221 | BM25: 239 | BN25: 232 | BO25: 1,351 | BP25: 1,277 | BQ25: 1,092 | BR25: 1,102 | BS25: 1,143 | BT25: 983 | BU25: 804 | BV25: 764 | BW25: 627 | BX25: 560 | BY25: 421 | BZ25: 295 | CA25: 197 | CB25: 231 | CC25: 15 | CD25: 114 | CE25: 89 | CF25: 226 | CI25: 2,779 | CJ25: 1,233 | CK25: 2,583 | CL25: 5,571 | CM25: 1,923 | CN25: 2,535 | CO25: 1,266 | CP25: 3,099 | CQ25: 5,888 | CR25: 2,100 | CS25: 1,232 | CT25: 1,136 | CU25: 1,045 | CV25: 990 | CW25: 1,093 | CX25: 1,099 | CY25: 1,066 | CZ25: 1,043 | DA25: 1,008 | DB25: 916 | DC25: 811 | DD25: 727 | DE25: 571 | DF25: 512 | DG25: 402 | DH25: 268 | DI25: 170 | DJ25: 155 | DK25: 1,072 | DL25: 1,033 | DM25: 1,076 | DN25: 1,091 | DO25: 1,351 | DP25: 1,277 | DQ25: 1,092 | DR25: 1,102 | DS25: 1,143 | DT25: 983 | DU25: 804 | DV25: 764 | DW25: 627 | DX25: 560 | DY25: 421 | DZ25: 295 | EA25: 197 | EB25: 231
A26: 040118 | B26: AREQUIPA | C26: AREQUIPA | D26: AREQUIPA | E26: SAN JUAN DE SIGUAS | F26: 558 | G26: 320 | H26: 6 | I26: 4 | J26: 5 | K26: 10 | L26: 9 | M26: 4 | N26: 3 | O26: 4 | P26: 3 | Q26: 3 | R26: 4 | S26: 3 | T26: 4 | U26: 2 | V26: 3 | W26: 4 | X26: 5 | Y26: 3 | Z26: 4 | AA26: 2 | AB26: 20 | AC26: 24 | AD26: 21 | AE26: 20 | AF26: 27 | AG26: 17 | AH26: 25 | AI26: 24 | AJ26: 17 | AK26: 16 | AL26: 8 | AM26: 8 | AN26: 3 | AO26: 5 | AP26: 1 | AQ26: 3 | AR26: 3 | AS26: 8 | AT26: 238 | AU26: 6 | AV26: 5 | AW26: 1 | AX26: 6 | AY26: 8 | AZ26: 6 | BA26: 2 | BB26: 0 | BC26: 3 | BD26: 4 | BE26: 3 | BF26: 1 | BG26: 3 | BH26: 1 | BI26: 2 | BJ26: 5 | BK26: 5 | BL26: 5 | BM26: 3 | BN26: 2 | BO26: 8 | BP26: 35 | BQ26: 12 | BR26: 19 | BS26: 9 | BT26: 16 | BU26: 13 | BV26: 15 | BW26: 10 | BX26: 8 | BY26: 5 | BZ26: 7 | CA26: 5 | CB26: 5 | CC26: 1 | CD26: 3 | CE26: 3 | CF26: 7 | CI26: 58 | CJ26: 21 | CK26: 50 | CL26: 134 | CM26: 52 | CN26: 45 | CO26: 21 | CP26: 48 | CQ26: 84 | CR26: 35 | CS26: 34 | CT26: 17 | CU26: 16 | CV26: 18 | CW26: 20 | CX26: 24 | CY26: 21 | CZ26: 20 | DA26: 27 | DB26: 17 | DC26: 25 | DD26: 24 | DE26: 17 | DF26: 16 | DG26: 8 | DH26: 8 | DI26: 3 | DJ26: 5 | DK26: 26 | DL26: 15 | DM26: 10 | DN26: 20 | DO26: 8 | DP26: 35 | DQ26: 12 | DR26: 19 | DS26: 9 | DT26: 16 | DU26: 13 | DV26: 15 | DW26: 10 | DX26: 8 | DY26: 5 | DZ26: 7 | EA26: 5 | EB26: 5
A27: 040119 | B27: AREQUIPA | C27: AREQUIPA | D27: AREQUIPA | E27: SAN JUAN DE TARUCANI | F27: 1252 | G27: 699 | H27: 11 | I27: 13 | J27: 13 | K27: 22 | L27: 16 | M27: 20 | N27: 5 | O27: 5 | P27: 5 | Q27: 8 | R27: 6 | S27: 7 | T27: 3 | U27: 6 | V27: 5 | W27: 6 | X27: 5 | Y27: 11 | Z27: 8 | AA27: 3 | AB27: 37 | AC27: 38 | AD27: 51 | AE27: 53 | AF27: 57 | AG27: 53 | AH27: 49 | AI27: 50 | AJ27: 38 | AK27: 29 | AL27: 26 | AM27: 17 | AN27: 12 | AO27: 11 | AP27: 2 | AQ27: 4 | AR27: 7 | AS27: 13 | AT27: 553 | AU27: 7 | AV27: 12 | AW27: 10 | AX27: 9 | AY27: 15 | AZ27: 15 | BA27: 10 | BB27: 8 | BC27: 7 | BD27: 11 | BE27: 11 | BF27: 2 | BG27: 5 | BH27: 2 | BI27: 4 | BJ27: 5 | BK27: 4 | BL27: 3 | BM27: 11 | BN27: 3 | BO27: 43 | BP27: 18 | BQ27: 32 | BR27: 27 | BS27: 45 | BT27: 30 | BU27: 43 | BV27: 30 | BW27: 35 | BX27: 35 | BY27: 20 | BZ27: 15 | CA27: 13 | CB27: 13 | CC27: 0 | CD27: 4 | CE27: 3 | CF27: 9 | CI27: 131 | CJ27: 36 | CK27: 86 | CL27: 313 | CM27: 122 | CN27: 117 | CO27: 23 | CP27: 75 | CQ27: 207 | CR27: 118 | CS27: 75 | CT27: 43 | CU27: 27 | CV27: 33 | CW27: 37 | CX27: 38 | CY27: 51 | CZ27: 53 | DA27: 57 | DB27: 53 | DC27: 49 | DD27: 50 | DE27: 38 | DF27: 29 | DG27: 26 | DH27: 17 | DI27: 12 | DJ27: 11 | DK27: 53 | DL27: 51 | DM27: 24 | DN27: 26 | DO27: 43 | DP27: 18 | DQ27: 32 | DR27: 27 | DS27: 45 | DT27: 30 | DU27: 43 | DV27: 30 | DW27: 35 | DX27: 35 | DY27: 20 | DZ27: 15 | EA27: 13 | EB27: 13
A28: 040120 | B28: AREQUIPA | C28: AREQUIPA | D28: AREQUIPA | E28: SANTA ISABEL DE SIGUAS | F28: 634 | G28: 356 | H28: 2 | I28: 6 | J28: 3 | K28: 2 | L28: 4 | M28: 3 | N28: 4 | O28: 2 | P28: 2 | Q28: 4 | R28: 2 | S28: 4 | T28: 4 | U28: 2 | V28: 4 | W28: 4 | X28: 5 | Y28: 8 | Z28: 7 | AA28: 5 | AB28: 30 | AC28: 24 | AD28: 24 | AE28: 20 | AF28: 20 | AG28: 23 | AH28: 32 | AI28: 24 | AJ28: 23 | AK28: 20 | AL28: 14 | AM28: 5 | AN28: 11 | AO28: 9 | AP28: 0 | AQ28: 0 | AR28: 2 | AS28: 3 | AT28: 278 | AU28: 3 | AV28: 6 | AW28: 2 | AX28: 5 | AY28: 4 | AZ28: 5 | BA28: 5 | BB28: 2 | BC28: 4 | BD28: 3 | BE28: 4 | BF28: 3 | BG28: 6 | BH28: 3 | BI28: 3 | BJ28: 5 | BK28: 5 | BL28: 4 | BM28: 8 | BN28: 2 | BO28: 22 | BP28: 27 | BQ28: 36 | BR28: 4 | BS28: 15 | BT28: 20 | BU28: 16 | BV28: 15 | BW28: 8 | BX28: 8 | BY28: 8 | BZ28: 6 | CA28: 5 | CB28: 6 | CC28: 0 | CD28: 2 | CE28: 1 | CF28: 4 | CI28: 38 | CJ28: 27 | CK28: 66 | CL28: 143 | CM28: 73 | CN28: 46 | CO28: 26 | CP28: 59 | CQ28: 106 | CR28: 35 | CS28: 17 | CT28: 15 | CU28: 16 | CV28: 29 | CW28: 30 | CX28: 24 | CY28: 24 | CZ28: 20 | DA28: 20 | DB28: 23 | DC28: 32 | DD28: 24 | DE28: 23 | DF28: 20 | DG28: 14 | DH28: 5 | DI28: 11 | DJ28: 9 | DK28: 20 | DL28: 19 | DM28: 19 | DN28: 24 | DO28: 22 | DP28: 27 | DQ28: 36 | DR28: 4 | DS28: 15 | DT28: 20 | DU28: 16 | DV28: 15 | DW28: 8 | DX28: 8 | DY28: 8 | DZ28: 6 | EA28: 5 | EB28: 6
A29: 040121 | B29: AREQUIPA | C29: AREQUIPA | D29: AREQUIPA | E29: SANTA RITA DE SIGUAS | F29: 7921 | G29: 3746 | H29: 58 | I29: 55 | J29: 50 | K29: 44 | L29: 65 | M29: 52 | N29: 54 | O29: 73 | P29: 58 | Q29: 55 | R29: 78 | S29: 54 | T29: 59 | U29: 63 | V29: 54 | W29: 56 | X29: 50 | Y29: 52 | Z29: 57 | AA29: 77 | AB29: 311 | AC29: 368 | AD29: 373 | AE29: 362 | AF29: 294 | AG29: 220 | AH29: 167 | AI29: 147 | AJ29: 131 | AK29: 74 | AL29: 73 | AM29: 35 | AN29: 15 | AO29: 12 | AP29: 8 | AQ29: 35 | AR29: 23 | AS29: 71 | AT29: 4,175 | AU29: 55 | AV29: 53 | AW29: 49 | AX29: 59 | AY29: 50 | AZ29: 57 | BA29: 61 | BB29: 53 | BC29: 61 | BD29: 50 | BE29: 56 | BF29: 76 | BG29: 62 | BH29: 54 | BI29: 57 | BJ29: 64 | BK29: 60 | BL29: 63 | BM29: 70 | BN29: 62 | BO29: 442 | BP29: 324 | BQ29: 285 | BR29: 297 | BS29: 280 | BT29: 276 | BU29: 292 | BV29: 256 | BW29: 196 | BX29: 143 | BY29: 80 | BZ29: 53 | CA29: 41 | CB29: 38 | CC29: 2 | CD29: 21 | CE29: 34 | CF29: 68 | CI29: 696 | CJ29: 334 | CK29: 813 | CL29: 1,563 | CM29: 328 | CN29: 680 | CO29: 360 | CP29: 898 | CQ29: 1,686 | CR29: 513 | CS29: 272 | CT29: 292 | CU29: 308 | CV29: 292 | CW29: 311 | CX29: 368 | CY29: 373 | CZ29: 362 | DA29: 294 | DB29: 220 | DC29: 167 | DD29: 147 | DE29: 131 | DF29: 74 | DG29: 73 | DH29: 35 | DI29: 15 | DJ29: 12 | DK29: 266 | DL29: 282 | DM29: 305 | DN29: 319 | DO29: 442 | DP29: 324 | DQ29: 285 | DR29: 297 | DS29: 280 | DT29: 276 | DU29: 292 | DV29: 256 | DW29: 196 | DX29: 143 | DY29: 80 | DZ29: 53 | EA29: 41 | EB29: 38
A30: 040122 | B30: AREQUIPA | C30: AREQUIPA | D30: AREQUIPA | E30: SOCABAYA | F30: 84182 | G30: 40645 | H30: 409 | I30: 475 | J30: 550 | K30: 547 | L30: 633 | M30: 694 | N30: 577 | O30: 604 | P30: 639 | Q30: 637 | R30: 576 | S30: 601 | T30: 604 | U30: 601 | V30: 602 | W30: 597 | X30: 617 | Y30: 587 | Z30: 640 | AA30: 641 | AB30: 3,349 | AC30: 3,495 | AD30: 3,299 | AE30: 3,163 | AF30: 3,043 | AG30: 2,631 | AH30: 2,281 | AI30: 2,015 | AJ30: 1,663 | AK30: 1,431 | AL30: 1,011 | AM30: 680 | AN30: 398 | AO30: 355 | AP30: 40 | AQ30: 221 | AR30: 188 | AS30: 495 | AT30: 43,537 | AU30: 370 | AV30: 451 | AW30: 543 | AX30: 563 | AY30: 628 | AZ30: 635 | BA30: 575 | BB30: 642 | BC30: 642 | BD30: 691 | BE30: 681 | BF30: 594 | BG30: 592 | BH30: 584 | BI30: 637 | BJ30: 597 | BK30: 660 | BL30: 637 | BM30: 706 | BN30: 648 | BO30: 3,495 | BP30: 3,959 | BQ30: 3,221 | BR30: 3,264 | BS30: 3,214 | BT30: 2,970 | BU30: 2,651 | BV30: 2,182 | BW30: 1,794 | BX30: 1,528 | BY30: 1,200 | BZ30: 808 | CA30: 561 | CB30: 614 | CC30: 23 | CD30: 209 | CE30: 161 | CF30: 447 | CI30: 6,942 | CJ30: 3,608 | CK30: 8,125 | CL30: 16,432 | CM30: 5,183 | CN30: 7,015 | CO30: 3,707 | CP30: 8,808 | CQ30: 17,502 | CR30: 5,891 | CS30: 2,614 | CT30: 3,151 | CU30: 2,984 | CV30: 3,082 | CW30: 3,349 | CX30: 3,495 | CY30: 3,299 | CZ30: 3,163 | DA30: 3,043 | DB30: 2,631 | DC30: 2,281 | DD30: 2,015 | DE30: 1,663 | DF30: 1,431 | DG30: 1,011 | DH30: 680 | DI30: 398 | DJ30: 355 | DK30: 2,555 | DL30: 3,185 | DM30: 3,088 | DN30: 3,248 | DO30: 3,495 | DP30: 3,959 | DQ30: 3,221 | DR30: 3,264 | DS30: 3,214 | DT30: 2,970 | DU30: 2,651 | DV30: 2,182 | DW30: 1,794 | DX30: 1,528 | DY30: 1,200 | DZ30: 808 | EA30: 561 | EB30: 614
A31: 040123 | B31: AREQUIPA | C31: AREQUIPA | D31: AREQUIPA | E31: TIABAYA | F31: 17655 | G31: 8806 | H31: 116 | I31: 145 | J31: 145 | K31: 162 | L31: 138 | M31: 174 | N31: 119 | O31: 146 | P31: 116 | Q31: 114 | R31: 115 | S31: 125 | T31: 106 | U31: 133 | V31: 133 | W31: 122 | X31: 102 | Y31: 123 | Z31: 102 | AA31: 119 | AB31: 680 | AC31: 789 | AD31: 791 | AE31: 740 | AF31: 678 | AG31: 552 | AH31: 463 | AI31: 434 | AJ31: 353 | AK31: 252 | AL31: 206 | AM31: 134 | AN31: 96 | AO31: 83 | AP31: 13 | AQ31: 63 | AR31: 53 | AS31: 142 | AT31: 8,849 | AU31: 122 | AV31: 154 | AW31: 131 | AX31: 138 | AY31: 165 | AZ31: 164 | BA31: 142 | BB31: 112 | BC31: 114 | BD31: 131 | BE31: 127 | BF31: 133 | BG31: 154 | BH31: 125 | BI31: 130 | BJ31: 109 | BK31: 122 | BL31: 137 | BM31: 122 | BN31: 134 | BO31: 655 | BP31: 728 | BQ31: 703 | BR31: 595 | BS31: 632 | BT31: 556 | BU31: 539 | BV31: 449 | BW31: 388 | BX31: 324 | BY31: 237 | BZ31: 159 | CA31: 109 | CB31: 109 | CC31: 12 | CD31: 74 | CE31: 48 | CF31: 149 | CI31: 1,615 | CJ31: 719 | CK31: 1,690 | CL31: 3,658 | CM31: 1,041 | CN31: 1,633 | CO31: 777 | CP31: 1,639 | CQ31: 3,474 | CR31: 1,217 | CS31: 706 | CT31: 669 | CU31: 612 | CV31: 568 | CW31: 680 | CX31: 789 | CY31: 791 | CZ31: 740 | DA31: 678 | DB31: 552 | DC31: 463 | DD31: 434 | DE31: 353 | DF31: 252 | DG31: 206 | DH31: 134 | DI31: 96 | DJ31: 83 | DK31: 710 | DL31: 663 | DM31: 669 | DN31: 624 | DO31: 655 | DP31: 728 | DQ31: 703 | DR31: 595 | DS31: 632 | DT31: 556 | DU31: 539 | DV31: 449 | DW31: 388 | DX31: 324 | DY31: 237 | DZ31: 159 | EA31: 109 | EB31: 109
A32: 040124 | B32: AREQUIPA | C32: AREQUIPA | D32: AREQUIPA | E32: UCHUMAYO | F32: 17490 | G32: 9056 | H32: 99 | I32: 138 | J32: 131 | K32: 139 | L32: 129 | M32: 126 | N32: 129 | O32: 130 | P32: 114 | Q32: 122 | R32: 120 | S32: 128 | T32: 115 | U32: 118 | V32: 107 | W32: 111 | X32: 115 | Y32: 116 | Z32: 124 | AA32: 116 | AB32: 594 | AC32: 828 | AD32: 852 | AE32: 893 | AF32: 825 | AG32: 627 | AH32: 522 | AI32: 459 | AJ32: 330 | AK32: 266 | AL32: 196 | AM32: 118 | AN32: 76 | AO32: 43 | AP32: 4 | AQ32: 52 | AR32: 47 | AS32: 113 | AT32: 8,434 | AU32: 101 | AV32: 114 | AW32: 127 | AX32: 121 | AY32: 118 | AZ32: 135 | BA32: 113 | BB32: 117 | BC32: 108 | BD32: 101 | BE32: 113 | BF32: 134 | BG32: 120 | BH32: 121 | BI32: 110 | BJ32: 124 | BK32: 122 | BL32: 137 | BM32: 125 | BN32: 120 | BO32: 681 | BP32: 679 | BQ32: 567 | BR32: 614 | BS32: 605 | BT32: 506 | BU32: 537 | BV32: 456 | BW32: 410 | BX32: 349 | BY32: 254 | BZ32: 160 | CA32: 110 | CB32: 125 | CC32: 8 | CD32: 49 | CE32: 52 | CF32: 116 | CI32: 1,505 | CJ32: 682 | CK32: 1,662 | CL32: 4,178 | CM32: 986 | CN32: 1,402 | CO32: 734 | CP32: 1,605 | CQ32: 3,285 | CR32: 1,283 | CS32: 636 | CT32: 621 | CU32: 588 | CV32: 582 | CW32: 594 | CX32: 828 | CY32: 852 | CZ32: 893 | DA32: 825 | DB32: 627 | DC32: 522 | DD32: 459 | DE32: 330 | DF32: 266 | DG32: 196 | DH32: 118 | DI32: 76 | DJ32: 43 | DK32: 581 | DL32: 574 | DM32: 598 | DN32: 628 | DO32: 681 | DP32: 679 | DQ32: 567 | DR32: 614 | DS32: 605 | DT32: 506 | DU32: 537 | DV32: 456 | DW32: 410 | DX32: 349 | DY32: 254 | DZ32: 160 | EA32: 110 | EB32: 125
A33: 040125 | B33: AREQUIPA | C33: AREQUIPA | D33: AREQUIPA | E33: VITOR | F33: 4771 | G33: 2403 | H33: 16 | I33: 24 | J33: 14 | K33: 25 | L33: 29 | M33: 21 | N33: 21 | O33: 36 | P33: 29 | Q33: 32 | R33: 20 | S33: 41 | T33: 43 | U33: 25 | V33: 29 | W33: 38 | X33: 48 | Y33: 42 | Z33: 39 | AA33: 32 | AB33: 180 | AC33: 197 | AD33: 208 | AE33: 187 | AF33: 178 | AG33: 136 | AH33: 137 | AI33: 138 | AJ33: 140 | AK33: 110 | AL33: 78 | AM33: 46 | AN33: 35 | AO33: 29 | AP33: 1 | AQ33: 11 | AR33: 5 | AS33: 20 | AT33: 2,368 | AU33: 22 | AV33: 14 | AW33: 20 | AX33: 19 | AY33: 22 | AZ33: 12 | BA33: 21 | BB33: 28 | BC33: 27 | BD33: 29 | BE33: 15 | BF33: 28 | BG33: 32 | BH33: 25 | BI33: 31 | BJ33: 29 | BK33: 29 | BL33: 32 | BM33: 46 | BN33: 38 | BO33: 234 | BP33: 165 | BQ33: 222 | BR33: 222 | BS33: 239 | BT33: 168 | BU33: 152 | BV33: 106 | BW33: 108 | BX33: 76 | BY33: 57 | BZ33: 39 | CA33: 32 | CB33: 29 | CC33: 2 | CD33: 11 | CE33: 11 | CF33: 27 | CI33: 308 | CJ33: 225 | CK33: 448 | CL33: 984 | CM33: 409 | CN33: 257 | CO33: 178 | CP33: 483 | CQ33: 1,109 | CR33: 312 | CS33: 108 | CT33: 139 | CU33: 158 | CV33: 199 | CW33: 180 | CX33: 197 | CY33: 208 | CZ33: 187 | DA33: 178 | DB33: 136 | DC33: 137 | DD33: 138 | DE33: 140 | DF33: 110 | DG33: 78 | DH33: 46 | DI33: 35 | DJ33: 29 | DK33: 97 | DL33: 117 | DM33: 131 | DN33: 174 | DO33: 234 | DP33: 165 | DQ33: 222 | DR33: 222 | DS33: 239 | DT33: 168 | DU33: 152 | DV33: 106 | DW33: 108 | DX33: 76 | DY33: 57 | DZ33: 39 | EA33: 32 | EB33: 29
A34: 040126 | B34: AREQUIPA | C34: AREQUIPA | D34: AREQUIPA | E34: YANAHUARA | F34: 27134 | G34: 13954 | H34: 172 | I34: 192 | J34: 234 | K34: 179 | L34: 167 | M34: 189 | N34: 182 | O34: 167 | P34: 195 | Q34: 200 | R34: 184 | S34: 197 | T34: 169 | U34: 187 | V34: 166 | W34: 161 | X34: 178 | Y34: 147 | Z34: 170 | AA34: 198 | AB34: 808 | AC34: 930 | AD34: 927 | AE34: 956 | AF34: 944 | AG34: 939 | AH34: 965 | AI34: 858 | AJ34: 754 | AK34: 691 | AL34: 574 | AM34: 423 | AN34: 262 | AO34: 289 | AP34: 11 | AQ34: 77 | AR34: 95 | AS34: 174 | AT34: 13,180 | AU34: 124 | AV34: 209 | AW34: 188 | AX34: 185 | AY34: 141 | AZ34: 169 | BA34: 191 | BB34: 160 | BC34: 152 | BD34: 112 | BE34: 130 | BF34: 179 | BG34: 171 | BH34: 175 | BI34: 199 | BJ34: 190 | BK34: 170 | BL34: 178 | BM34: 184 | BN34: 187 | BO34: 901 | BP34: 1,006 | BQ34: 899 | BR34: 970 | BS34: 859 | BT34: 845 | BU34: 781 | BV34: 772 | BW34: 640 | BX34: 593 | BY34: 521 | BZ34: 369 | CA34: 278 | CB34: 352 | CC34: 5 | CD34: 58 | CE34: 66 | CF34: 125 | CI34: 2,258 | CJ34: 1,008 | CK34: 2,106 | CL34: 5,589 | CM34: 2,704 | CN34: 1,940 | CO34: 1,083 | CP34: 2,278 | CQ34: 5,126 | CR34: 2,401 | CS34: 944 | CT34: 933 | CU34: 903 | CV34: 854 | CW34: 808 | CX34: 930 | CY34: 927 | CZ34: 956 | DA34: 944 | DB34: 939 | DC34: 965 | DD34: 858 | DE34: 754 | DF34: 691 | DG34: 574 | DH34: 423 | DI34: 262 | DJ34: 289 | DK34: 847 | DL34: 784 | DM34: 854 | DN34: 909 | DO34: 901 | DP34: 1,006 | DQ34: 899 | DR34: 970 | DS34: 859 | DT34: 845 | DU34: 781 | DV34: 772 | DW34: 640 | DX34: 593 | DY34: 521 | DZ34: 369 | EA34: 278 | EB34: 352
A35: 040127 | B35: AREQUIPA | C35: AREQUIPA | D35: AREQUIPA | E35: YARABAMBA | F35: 1669 | G35: 998 | H35: 16 | I35: 15 | J35: 10 | K35: 14 | L35: 8 | M35: 14 | N35: 9 | O35: 9 | P35: 8 | Q35: 7 | R35: 11 | S35: 6 | T35: 8 | U35: 4 | V35: 7 | W35: 9 | X35: 9 | Y35: 6 | Z35: 16 | AA35: 13 | AB35: 70 | AC35: 91 | AD35: 100 | AE35: 98 | AF35: 87 | AG35: 88 | AH35: 67 | AI35: 54 | AJ35: 40 | AK35: 30 | AL35: 34 | AM35: 18 | AN35: 11 | AO35: 11 | AP35: 0 | AQ35: 6 | AR35: 10 | AS35: 20 | AT35: 671 | AU35: 14 | AV35: 19 | AW35: 11 | AX35: 5 | AY35: 9 | AZ35: 9 | BA35: 12 | BB35: 6 | BC35: 3 | BD35: 5 | BE35: 5 | BF35: 6 | BG35: 9 | BH35: 6 | BI35: 5 | BJ35: 8 | BK35: 9 | BL35: 6 | BM35: 8 | BN35: 6 | BO35: 44 | BP35: 38 | BQ35: 40 | BR35: 60 | BS35: 32 | BT35: 43 | BU35: 54 | BV35: 58 | BW35: 36 | BX35: 33 | BY35: 28 | BZ35: 16 | CA35: 13 | CB35: 15 | CC35: 3 | CD35: 10 | CE35: 4 | CF35: 18 | CI35: 127 | CJ35: 43 | CK35: 190 | CL35: 494 | CM35: 133 | CN35: 104 | CO35: 43 | CP35: 96 | CQ35: 287 | CR35: 126 | CS35: 63 | CT35: 47 | CU35: 36 | CV35: 53 | CW35: 70 | CX35: 91 | CY35: 100 | CZ35: 98 | DA35: 87 | DB35: 88 | DC35: 67 | DD35: 54 | DE35: 40 | DF35: 30 | DG35: 34 | DH35: 18 | DI35: 11 | DJ35: 11 | DK35: 58 | DL35: 35 | DM35: 31 | DN35: 37 | DO35: 44 | DP35: 38 | DQ35: 40 | DR35: 60 | DS35: 32 | DT35: 43 | DU35: 54 | DV35: 58 | DW35: 36 | DX35: 33 | DY35: 28 | DZ35: 16 | EA35: 13 | EB35: 15
A36: 040128 | B36: AREQUIPA | C36: AREQUIPA | D36: AREQUIPA | E36: YURA | F36: 44288 | G36: 20169 | H36: 304 | I36: 366 | J36: 419 | K36: 469 | L36: 496 | M36: 462 | N36: 400 | O36: 348 | P36: 367 | Q36: 305 | R36: 343 | S36: 306 | T36: 363 | U36: 322 | V36: 296 | W36: 313 | X36: 268 | Y36: 304 | Z36: 331 | AA36: 315 | AB36: 1,647 | AC36: 1,891 | AD36: 1,803 | AE36: 1,667 | AF36: 1,368 | AG36: 1,061 | AH36: 936 | AI36: 797 | AJ36: 631 | AK36: 529 | AL36: 335 | AM36: 193 | AN36: 111 | AO36: 103 | AP36: 18 | AQ36: 157 | AR36: 147 | AS36: 343 | AT36: 24,119 | AU36: 284 | AV36: 392 | AW36: 438 | AX36: 450 | AY36: 460 | AZ36: 451 | BA36: 567 | BB36: 589 | BC36: 583 | BD36: 575 | BE36: 549 | BF36: 358 | BG36: 338 | BH36: 340 | BI36: 327 | BJ36: 343 | BK36: 331 | BL36: 319 | BM36: 346 | BN36: 331 | BO36: 1,727 | BP36: 1,652 | BQ36: 1,700 | BR36: 1,884 | BS36: 1,610 | BT36: 1,514 | BU36: 1,448 | BV36: 1,316 | BW36: 977 | BX36: 691 | BY36: 507 | BZ36: 317 | CA36: 211 | CB36: 194 | CC36: 16 | CD36: 134 | CE36: 150 | CF36: 320 | CI36: 4,585 | CJ36: 1,866 | CK36: 4,184 | CL36: 7,632 | CM36: 1,799 | CN36: 5,696 | CO36: 1,998 | CP36: 4,056 | CQ36: 9,472 | CR36: 2,703 | CS36: 2,054 | CT36: 1,882 | CU36: 1,630 | CV36: 1,531 | CW36: 1,647 | CX36: 1,891 | CY36: 1,803 | CZ36: 1,667 | DA36: 1,368 | DB36: 1,061 | DC36: 936 | DD36: 797 | DE36: 631 | DF36: 529 | DG36: 335 | DH36: 193 | DI36: 111 | DJ36: 103 | DK36: 2,024 | DL36: 2,765 | DM36: 1,912 | DN36: 1,670 | DO36: 1,727 | DP36: 1,652 | DQ36: 1,700 | DR36: 1,884 | DS36: 1,610 | DT36: 1,514 | DU36: 1,448 | DV36: 1,316 | DW36: 977 | DX36: 691 | DY36: 507 | DZ36: 317 | EA36: 211 | EB36: 194
A37: 040129 | B37: AREQUIPA | C37: AREQUIPA | D37: AREQUIPA | E37: JOSE LUIS BUSTAMANTE Y RIVERO | F37: 83128 | G37: 41713 | H37: 366 | I37: 441 | J37: 508 | K37: 515 | L37: 511 | M37: 464 | N37: 560 | O37: 578 | P37: 609 | Q37: 562 | R37: 588 | S37: 573 | T37: 587 | U37: 557 | V37: 546 | W37: 558 | X37: 544 | Y37: 548 | Z37: 592 | AA37: 591 | AB37: 3,118 | AC37: 3,424 | AD37: 3,458 | AE37: 3,238 | AF37: 3,275 | AG37: 2,849 | AH37: 2,482 | AI37: 2,193 | AJ37: 1,820 | AK37: 1,494 | AL37: 1,362 | AM37: 985 | AN37: 661 | AO37: 556 | AP37: 34 | AQ37: 207 | AR37: 159 | AS37: 423 | AT37: 41,415 | AU37: 350 | AV37: 470 | AW37: 542 | AX37: 504 | AY37: 423 | AZ37: 476 | BA37: 530 | BB37: 567 | BC37: 508 | BD37: 412 | BE37: 451 | BF37: 545 | BG37: 547 | BH37: 553 | BI37: 589 | BJ37: 571 | BK37: 568 | BL37: 611 | BM37: 557 | BN37: 646 | BO37: 3,432 | BP37: 3,536 | BQ37: 3,288 | BR37: 2,906 | BS37: 3,037 | BT37: 2,931 | BU37: 2,572 | BV37: 2,289 | BW37: 1,876 | BX37: 1,606 | BY37: 1,252 | BZ37: 927 | CA37: 622 | CB37: 721 | CC37: 21 | CD37: 202 | CE37: 148 | CF37: 404 | CI37: 6,275 | CJ37: 3,340 | CK37: 7,725 | CL37: 17,495 | CM37: 6,322 | CN37: 5,778 | CO37: 3,439 | CP37: 8,171 | CQ37: 17,023 | CR37: 6,283 | CS37: 2,341 | CT37: 2,773 | CU37: 2,851 | CV37: 2,833 | CW37: 3,118 | CX37: 3,424 | CY37: 3,458 | CZ37: 3,238 | DA37: 3,275 | DB37: 2,849 | DC37: 2,482 | DD37: 2,193 | DE37: 1,820 | DF37: 1,494 | DG37: 1,362 | DH37: 985 | DI37: 661 | DJ37: 556 | DK37: 2,289 | DL37: 2,493 | DM37: 2,685 | DN37: 2,953 | DO37: 3,432 | DP37: 3,536 | DQ37: 3,288 | DR37: 2,906 | DS37: 3,037 | DT37: 2,931 | DU37: 2,572 | DV37: 2,289 | DW37: 1,876 | DX37: 1,606 | DY37: 1,252 | DZ37: 927 | EA37: 622 | EB37: 721
A38: 040201 | B38: AREQUIPA | C38: AREQUIPA | D38: CAMANA | E38: CAMANA | F38: 12558 | G38: 6247 | H38: 36 | I38: 29 | J38: 56 | K38: 81 | L38: 70 | M38: 90 | N38: 80 | O38: 91 | P38: 90 | Q38: 89 | R38: 89 | S38: 102 | T38: 92 | U38: 108 | V38: 109 | W38: 118 | X38: 95 | Y38: 101 | Z38: 97 | AA38: 92 | AB38: 520 | AC38: 522 | AD38: 492 | AE38: 396 | AF38: 359 | AG38: 386 | AH38: 394 | AI38: 368 | AJ38: 353 | AK38: 260 | AL38: 199 | AM38: 126 | AN38: 85 | AO38: 72 | AP38: 5 | AQ38: 26 | AR38: 10 | AS38: 44 | AT38: 6,311 | AU38: 39 | AV38: 38 | AW38: 72 | AX38: 73 | AY38: 67 | AZ38: 79 | BA38: 30 | BB38: 52 | BC38: 51 | BD38: 45 | BE38: 52 | BF38: 87 | BG38: 91 | BH38: 100 | BI38: 77 | BJ38: 102 | BK38: 81 | BL38: 93 | BM38: 100 | BN38: 109 | BO38: 632 | BP38: 592 | BQ38: 614 | BR38: 497 | BS38: 556 | BT38: 446 | BU38: 337 | BV38: 280 | BW38: 227 | BX38: 198 | BY38: 166 | BZ38: 130 | CA38: 91 | CB38: 107 | CC38: 5 | CD38: 25 | CE38: 14 | CF38: 47 | CI38: 903 | CJ38: 623 | CK38: 1,231 | CL38: 2,395 | CM38: 1,023 | CN38: 685 | CO38: 544 | CP38: 1,433 | CQ38: 2,730 | CR38: 812 | CS38: 272 | CT38: 440 | CU38: 500 | CV38: 503 | CW38: 520 | CX38: 522 | CY38: 492 | CZ38: 396 | DA38: 359 | DB38: 386 | DC38: 394 | DD38: 368 | DE38: 353 | DF38: 260 | DG38: 199 | DH38: 126 | DI38: 85 | DJ38: 72 | DK38: 289 | DL38: 257 | DM38: 407 | DN38: 485 | DO38: 632 | DP38: 592 | DQ38: 614 | DR38: 497 | DS38: 556 | DT38: 446 | DU38: 337 | DV38: 280 | DW38: 227 | DX38: 198 | DY38: 166 | DZ38: 130 | EA38: 91 | EB38: 107
A39: 040202 | B39: AREQUIPA | C39: AREQUIPA | D39: CAMANA | E39: JOSE MARIA QUIMPER | F39: 4868 | G39: 2327 | H39: 28 | I39: 37 | J39: 32 | K39: 42 | L39: 47 | M39: 41 | N39: 35 | O39: 46 | P39: 44 | Q39: 24 | R39: 24 | S39: 40 | T39: 36 | U39: 33 | V39: 28 | W39: 35 | X39: 28 | Y39: 29 | Z39: 26 | AA39: 26 | AB39: 147 | AC39: 176 | AD39: 178 | AE39: 171 | AF39: 157 | AG39: 135 | AH39: 124 | AI39: 145 | AJ39: 120 | AK39: 128 | AL39: 65 | AM39: 50 | AN39: 24 | AO39: 26 | AP39: 2 | AQ39: 10 | AR39: 18 | AS39: 34 | AT39: 2,541 | AU39: 20 | AV39: 38 | AW39: 50 | AX39: 44 | AY39: 52 | AZ39: 45 | BA39: 39 | BB39: 47 | BC39: 40 | BD39: 45 | BE39: 39 | BF39: 28 | BG39: 43 | BH39: 40 | BI39: 35 | BJ39: 34 | BK39: 39 | BL39: 40 | BM39: 32 | BN39: 45 | BO39: 195 | BP39: 256 | BQ39: 142 | BR39: 199 | BS39: 162 | BT39: 140 | BU39: 160 | BV39: 118 | BW39: 111 | BX39: 81 | BY39: 61 | BZ39: 43 | CA39: 32 | CB39: 46 | CC39: 1 | CD39: 11 | CE39: 9 | CF39: 25 | CI39: 440 | CJ39: 189 | CK39: 375 | CL39: 910 | CM39: 387 | CN39: 487 | CO39: 231 | CP39: 528 | CQ39: 921 | CR39: 328 | CS39: 186 | CT39: 190 | CU39: 161 | CV39: 144 | CW39: 147 | CX39: 176 | CY39: 178 | CZ39: 171 | DA39: 157 | DB39: 135 | DC39: 124 | DD39: 145 | DE39: 120 | DF39: 128 | DG39: 65 | DH39: 50 | DI39: 24 | DJ39: 26 | DK39: 204 | DL39: 216 | DM39: 185 | DN39: 190 | DO39: 195 | DP39: 256 | DQ39: 142 | DR39: 199 | DS39: 162 | DT39: 140 | DU39: 160 | DV39: 118 | DW39: 111 | DX39: 81 | DY39: 61 | DZ39: 43 | EA39: 32 | EB39: 46
A40: 040203 | B40: AREQUIPA | C40: AREQUIPA | D40: CAMANA | E40: MARIANO NICOLAS VALCARCEL | F40: 8469 | G40: 4091 | H40: 77 | I40: 92 | J40: 114 | K40: 132 | L40: 163 | M40: 104 | N40: 61 | O40: 46 | P40: 47 | Q40: 49 | R40: 37 | S40: 53 | T40: 54 | U40: 42 | V40: 61 | W40: 32 | X40: 46 | Y40: 41 | Z40: 27 | AA40: 20 | AB40: 131 | AC40: 197 | AD40: 339 | AE40: 424 | AF40: 375 | AG40: 310 | AH40: 305 | AI40: 322 | AJ40: 168 | AK40: 114 | AL40: 56 | AM40: 24 | AN40: 20 | AO40: 8 | AP40: 7 | AQ40: 30 | AR40: 47 | AS40: 101 | AT40: 4,378 | AU40: 74 | AV40: 81 | AW40: 101 | AX40: 152 | AY40: 158 | AZ40: 137 | BA40: 151 | BB40: 175 | BC40: 253 | BD40: 254 | BE40: 214 | BF40: 56 | BG40: 42 | BH40: 41 | BI40: 53 | BJ40: 58 | BK40: 73 | BL40: 66 | BM40: 59 | BN40: 46 | BO40: 263 | BP40: 220 | BQ40: 180 | BR40: 156 | BS40: 68 | BT40: 134 | BU40: 229 | BV40: 309 | BW40: 226 | BX40: 134 | BY40: 95 | BZ40: 53 | CA40: 36 | CB40: 31 | CC40: 1 | CD40: 36 | CE40: 38 | CF40: 97 | CI40: 975 | CJ40: 276 | CK40: 375 | CL40: 2,075 | CM40: 382 | CN40: 1,806 | CO40: 333 | CP40: 588 | CQ40: 1,076 | CR40: 544 | CS40: 578 | CT40: 307 | CU40: 247 | CV40: 166 | CW40: 131 | CX40: 197 | CY40: 339 | CZ40: 424 | DA40: 375 | DB40: 310 | DC40: 305 | DD40: 322 | DE40: 168 | DF40: 114 | DG40: 56 | DH40: 24 | DI40: 20 | DJ40: 8 | DK40: 566 | DL40: 970 | DM40: 406 | DN40: 302 | DO40: 263 | DP40: 220 | DQ40: 180 | DR40: 156 | DS40: 68 | DT40: 134 | DU40: 229 | DV40: 309 | DW40: 226 | DX40: 134 | DY40: 95 | DZ40: 53 | EA40: 36 | EB40: 31
A41: 040204 | B41: AREQUIPA | C41: AREQUIPA | D41: CAMANA | E41: MARISCAL CACERES | F41: 6606 | G41: 3197 | H41: 40 | I41: 57 | J41: 55 | K41: 55 | L41: 62 | M41: 56 | N41: 41 | O41: 40 | P41: 45 | Q41: 37 | R41: 44 | S41: 49 | T41: 43 | U41: 37 | V41: 44 | W41: 41 | X41: 49 | Y41: 38 | Z41: 51 | AA41: 39 | AB41: 189 | AC41: 265 | AD41: 244 | AE41: 240 | AF41: 241 | AG41: 219 | AH41: 227 | AI41: 193 | AJ41: 158 | AK41: 121 | AL41: 80 | AM41: 47 | AN41: 31 | AO41: 19 | AP41: 6 | AQ41: 24 | AR41: 16 | AS41: 49 | AT41: 3,409 | AU41: 46 | AV41: 68 | AW41: 53 | AX41: 52 | AY41: 63 | AZ41: 53 | BA41: 64 | BB41: 46 | BC41: 43 | BD41: 51 | BE41: 42 | BF41: 40 | BG41: 39 | BH41: 43 | BI41: 48 | BJ41: 39 | BK41: 42 | BL41: 35 | BM41: 47 | BN41: 52 | BO41: 298 | BP41: 246 | BQ41: 312 | BR41: 245 | BS41: 214 | BT41: 184 | BU41: 223 | BV41: 176 | BW41: 163 | BX41: 123 | BY41: 100 | BZ41: 68 | CA41: 43 | CB41: 48 | CC41: 2 | CD41: 20 | CE41: 26 | CF41: 56 | CI41: 581 | CJ41: 252 | CK41: 544 | CL41: 1,364 | CM41: 437 | CN41: 621 | CO41: 246 | CP41: 643 | CQ41: 1,354 | CR41: 497 | CS41: 269 | CT41: 219 | CU41: 217 | CV41: 218 | CW41: 189 | CX41: 265 | CY41: 244 | CZ41: 240 | DA41: 241 | DB41: 219 | DC41: 227 | DD41: 193 | DE41: 158 | DF41: 121 | DG41: 80 | DH41: 47 | DI41: 31 | DJ41: 19 | DK41: 282 | DL41: 257 | DM41: 212 | DN41: 215 | DO41: 298 | DP41: 246 | DQ41: 312 | DR41: 245 | DS41: 214 | DT41: 184 | DU41: 223 | DV41: 176 | DW41: 163 | DX41: 123 | DY41: 100 | DZ41: 68 | EA41: 43 | EB41: 48
A42: 040205 | B42: AREQUIPA | C42: AREQUIPA | D42: CAMANA | E42: NICOLAS DE PIEROLA | F42: 7917 | G42: 3904 | H42: 47 | I42: 60 | J42: 58 | K42: 69 | L42: 62 | M42: 72 | N42: 52 | O42: 63 | P42: 62 | Q42: 61 | R42: 76 | S42: 62 | T42: 60 | U42: 59 | V42: 59 | W42: 65 | X42: 60 | Y42: 56 | Z42: 61 | AA42: 56 | AB42: 240 | AC42: 283 | AD42: 280 | AE42: 270 | AF42: 274 | AG42: 250 | AH42: 227 | AI42: 232 | AJ42: 210 | AK42: 149 | AL42: 109 | AM42: 73 | AN42: 46 | AO42: 41 | AP42: 5 | AQ42: 24 | AR42: 23 | AS42: 54 | AT42: 4,013 | AU42: 39 | AV42: 67 | AW42: 50 | AX42: 64 | AY42: 64 | AZ42: 64 | BA42: 72 | BB42: 49 | BC42: 61 | BD42: 59 | BE42: 57 | BF42: 47 | BG42: 64 | BH42: 53 | BI42: 53 | BJ42: 48 | BK42: 61 | BL42: 62 | BM42: 74 | BN42: 60 | BO42: 295 | BP42: 372 | BQ42: 293 | BR42: 303 | BS42: 282 | BT42: 255 | BU42: 220 | BV42: 205 | BW42: 184 | BX42: 134 | BY42: 103 | BZ42: 85 | CA42: 57 | CB42: 57 | CC42: 2 | CD42: 20 | CE42: 19 | CF42: 45 | CI42: 744 | CJ42: 359 | CK42: 640 | CL42: 1,533 | CM42: 587 | CN42: 693 | CO42: 341 | CP42: 801 | CQ42: 1,558 | CR42: 563 | CS42: 296 | CT42: 310 | CU42: 316 | CV42: 298 | CW42: 240 | CX42: 283 | CY42: 280 | CZ42: 270 | DA42: 274 | DB42: 250 | DC42: 227 | DD42: 232 | DE42: 210 | DF42: 149 | DG42: 109 | DH42: 73 | DI42: 46 | DJ42: 41 | DK42: 284 | DL42: 305 | DM42: 274 | DN42: 305 | DO42: 295 | DP42: 372 | DQ42: 293 | DR42: 303 | DS42: 282 | DT42: 255 | DU42: 220 | DV42: 205 | DW42: 184 | DX42: 134 | DY42: 103 | DZ42: 85 | EA42: 57 | EB42: 57
A43: 040206 | B43: AREQUIPA | C43: AREQUIPA | D43: CAMANA | E43: OCOÑA | F43: 3944 | G43: 2035 | H43: 32 | I43: 33 | J43: 26 | K43: 35 | L43: 29 | M43: 18 | N43: 26 | O43: 32 | P43: 24 | Q43: 14 | R43: 31 | S43: 25 | T43: 20 | U43: 20 | V43: 26 | W43: 30 | X43: 22 | Y43: 42 | Z43: 25 | AA43: 22 | AB43: 119 | AC43: 131 | AD43: 118 | AE43: 131 | AF43: 140 | AG43: 133 | AH43: 145 | AI43: 160 | AJ43: 126 | AK43: 103 | AL43: 92 | AM43: 44 | AN43: 31 | AO43: 30 | AP43: 3 | AQ43: 14 | AR43: 18 | AS43: 39 | AT43: 1,909 | AU43: 20 | AV43: 33 | AW43: 34 | AX43: 20 | AY43: 24 | AZ43: 29 | BA43: 31 | BB43: 30 | BC43: 17 | BD43: 20 | BE43: 23 | BF43: 26 | BG43: 23 | BH43: 24 | BI43: 25 | BJ43: 20 | BK43: 23 | BL43: 22 | BM43: 29 | BN43: 31 | BO43: 180 | BP43: 195 | BQ43: 171 | BR43: 135 | BS43: 124 | BT43: 102 | BU43: 120 | BV43: 75 | BW43: 80 | BX43: 70 | BY43: 48 | BZ43: 42 | CA43: 26 | CB43: 37 | CC43: 2 | CD43: 11 | CE43: 9 | CF43: 24 | CI43: 325 | CJ43: 160 | CK43: 297 | CL43: 827 | CM43: 396 | CN43: 307 | CO43: 137 | CP43: 435 | CQ43: 727 | CR43: 266 | CS43: 155 | CT43: 114 | CU43: 122 | CV43: 141 | CW43: 119 | CX43: 131 | CY43: 118 | CZ43: 131 | DA43: 140 | DB43: 133 | DC43: 145 | DD43: 160 | DE43: 126 | DF43: 103 | DG43: 92 | DH43: 44 | DI43: 31 | DJ43: 30 | DK43: 131 | DL43: 127 | DM43: 121 | DN43: 125 | DO43: 180 | DP43: 195 | DQ43: 171 | DR43: 135 | DS43: 124 | DT43: 102 | DU43: 120 | DV43: 75 | DW43: 80 | DX43: 70 | DY43: 48 | DZ43: 42 | EA43: 26 | EB43: 37
A44: 040207 | B44: AREQUIPA | C44: AREQUIPA | D44: CAMANA | E44: QUILCA | F44: 1071 | G44: 594 | H44: 13 | I44: 6 | J44: 7 | K44: 7 | L44: 11 | M44: 7 | N44: 5 | O44: 5 | P44: 4 | Q44: 8 | R44: 7 | S44: 4 | T44: 6 | U44: 7 | V44: 7 | W44: 8 | X44: 6 | Y44: 8 | Z44: 6 | AA44: 6 | AB44: 25 | AC44: 33 | AD44: 54 | AE44: 45 | AF44: 41 | AG44: 47 | AH44: 44 | AI44: 41 | AJ44: 39 | AK44: 28 | AL44: 28 | AM44: 18 | AN44: 9 | AO44: 4 | AP44: 2 | AQ44: 8 | AR44: 5 | AS44: 17 | AT44: 477 | AU44: 1 | AV44: 5 | AW44: 6 | AX44: 8 | AY44: 17 | AZ44: 5 | BA44: 5 | BB44: 6 | BC44: 8 | BD44: 15 | BE44: 5 | BF44: 10 | BG44: 7 | BH44: 4 | BI44: 6 | BJ44: 6 | BK44: 8 | BL44: 4 | BM44: 8 | BN44: 10 | BO44: 32 | BP44: 50 | BQ44: 35 | BR44: 14 | BS44: 38 | BT44: 26 | BU44: 30 | BV44: 24 | BW44: 26 | BX44: 20 | BY44: 11 | BZ44: 9 | CA44: 6 | CB44: 12 | CC44: 0 | CD44: 1 | CE44: 0 | CF44: 1 | CI44: 84 | CJ44: 42 | CK44: 70 | CL44: 272 | CM44: 122 | CN44: 91 | CO44: 35 | CP44: 100 | CQ44: 167 | CR44: 72 | CS44: 44 | CT44: 29 | CU44: 31 | CV44: 34 | CW44: 25 | CX44: 33 | CY44: 54 | CZ44: 45 | DA44: 41 | DB44: 47 | DC44: 44 | DD44: 41 | DE44: 39 | DF44: 28 | DG44: 28 | DH44: 18 | DI44: 9 | DJ44: 4 | DK44: 37 | DL44: 39 | DM44: 32 | DN44: 36 | DO44: 32 | DP44: 50 | DQ44: 35 | DR44: 14 | DS44: 38 | DT44: 26 | DU44: 30 | DV44: 24 | DW44: 26 | DX44: 20 | DY44: 11 | DZ44: 9 | EA44: 6 | EB44: 12
A45: 040208 | B45: AREQUIPA | C45: AREQUIPA | D45: CAMANA | E45: SAMUEL PASTOR | F45: 17004 | G45: 8095 | H45: 138 | I45: 161 | J45: 167 | K45: 157 | L45: 179 | M45: 174 | N45: 125 | O45: 129 | P45: 114 | Q45: 144 | R45: 117 | S45: 144 | T45: 123 | U45: 116 | V45: 135 | W45: 128 | X45: 126 | Y45: 121 | Z45: 141 | AA45: 116 | AB45: 606 | AC45: 655 | AD45: 600 | AE45: 603 | AF45: 533 | AG45: 507 | AH45: 458 | AI45: 412 | AJ45: 350 | AK45: 235 | AL45: 157 | AM45: 102 | AN45: 59 | AO45: 63 | AP45: 12 | AQ45: 71 | AR45: 67 | AS45: 167 | AT45: 8,909 | AU45: 116 | AV45: 156 | AW45: 158 | AX45: 178 | AY45: 154 | AZ45: 137 | BA45: 157 | BB45: 148 | BC45: 161 | BD45: 134 | BE45: 116 | BF45: 141 | BG45: 124 | BH45: 139 | BI45: 100 | BJ45: 124 | BK45: 138 | BL45: 137 | BM45: 125 | BN45: 134 | BO45: 729 | BP45: 772 | BQ45: 698 | BR45: 610 | BS45: 610 | BT45: 552 | BU45: 506 | BV45: 424 | BW45: 370 | BX45: 287 | BY45: 210 | BZ45: 160 | CA45: 100 | CB45: 104 | CC45: 9 | CD45: 52 | CE45: 64 | CF45: 141 | CI45: 1,749 | CJ45: 749 | CK45: 1,518 | CL45: 3,113 | CM45: 903 | CN45: 1,756 | CO45: 762 | CP45: 1,760 | CQ45: 3,400 | CR45: 1,127 | CS45: 802 | CT45: 686 | CU45: 635 | CV45: 632 | CW45: 606 | CX45: 655 | CY45: 600 | CZ45: 603 | DA45: 533 | DB45: 507 | DC45: 458 | DD45: 412 | DE45: 350 | DF45: 235 | DG45: 157 | DH45: 102 | DI45: 59 | DJ45: 63 | DK45: 762 | DL45: 737 | DM45: 620 | DN45: 658 | DO45: 729 | DP45: 772 | DQ45: 698 | DR45: 610 | DS45: 610 | DT45: 552 | DU45: 506 | DV45: 424 | DW45: 370 | DX45: 287 | DY45: 210 | DZ45: 160 | EA45: 100 | EB45: 104
A46: 040301 | B46: AREQUIPA | C46: AREQUIPA | D46: CARAVELI | E46: CARAVELI | F46: 4242 | G46: 1966 | H46: 38 | I46: 35 | J46: 38 | K46: 41 | L46: 40 | M46: 33 | N46: 25 | O46: 26 | P46: 19 | Q46: 27 | R46: 23 | S46: 21 | T46: 27 | U46: 27 | V46: 30 | W46: 38 | X46: 40 | Y46: 34 | Z46: 29 | AA46: 28 | AB46: 153 | AC46: 169 | AD46: 146 | AE46: 140 | AF46: 113 | AG46: 109 | AH46: 135 | AI46: 104 | AJ46: 82 | AK46: 66 | AL46: 50 | AM46: 30 | AN46: 20 | AO46: 30 | AP46: 4 | AQ46: 19 | AR46: 19 | AS46: 42 | AT46: 2,276 | AU46: 30 | AV46: 31 | AW46: 26 | AX46: 39 | AY46: 43 | AZ46: 38 | BA46: 33 | BB46: 25 | BC46: 37 | BD46: 40 | BE46: 34 | BF46: 35 | BG46: 29 | BH46: 26 | BI46: 19 | BJ46: 34 | BK46: 19 | BL46: 31 | BM46: 27 | BN46: 25 | BO46: 141 | BP46: 203 | BQ46: 151 | BR46: 257 | BS46: 222 | BT46: 174 | BU46: 144 | BV46: 100 | BW46: 74 | BX46: 57 | BY46: 51 | BZ46: 34 | CA46: 22 | CB46: 25 | CC46: 6 | CD46: 19 | CE46: 11 | CF46: 34 | CI46: 366 | CJ46: 196 | CK46: 379 | CL46: 747 | CM46: 248 | CN46: 411 | CO46: 158 | CP46: 396 | CQ46: 1,048 | CR46: 238 | CS46: 192 | CT46: 130 | CU46: 128 | CV46: 169 | CW46: 153 | CX46: 169 | CY46: 146 | CZ46: 140 | DA46: 113 | DB46: 109 | DC46: 135 | DD46: 104 | DE46: 82 | DF46: 66 | DG46: 50 | DH46: 30 | DI46: 20 | DJ46: 30 | DK46: 169 | DL46: 173 | DM46: 143 | DN46: 136 | DO46: 141 | DP46: 203 | DQ46: 151 | DR46: 257 | DS46: 222 | DT46: 174 | DU46: 144 | DV46: 100 | DW46: 74 | DX46: 57 | DY46: 51 | DZ46: 34 | EA46: 22 | EB46: 25
A47: 040302 | B47: AREQUIPA | C47: AREQUIPA | D47: CARAVELI | E47: ACARI | F47: 5293 | G47: 2545 | H47: 24 | I47: 27 | J47: 19 | K47: 35 | L47: 44 | M47: 40 | N47: 32 | O47: 42 | P47: 26 | Q47: 35 | R47: 39 | S47: 43 | T47: 50 | U47: 44 | V47: 46 | W47: 43 | X47: 51 | Y47: 46 | Z47: 43 | AA47: 30 | AB47: 176 | AC47: 144 | AD47: 108 | AE47: 168 | AF47: 153 | AG47: 160 | AH47: 161 | AI47: 172 | AJ47: 154 | AK47: 103 | AL47: 100 | AM47: 89 | AN47: 35 | AO47: 63 | AP47: 2 | AQ47: 13 | AR47: 11 | AS47: 30 | AT47: 2,748 | AU47: 30 | AV47: 28 | AW47: 31 | AX47: 25 | AY47: 34 | AZ47: 32 | BA47: 35 | BB47: 36 | BC47: 28 | BD47: 36 | BE47: 34 | BF47: 30 | BG47: 36 | BH47: 33 | BI47: 44 | BJ47: 51 | BK47: 45 | BL47: 48 | BM47: 56 | BN47: 43 | BO47: 311 | BP47: 293 | BQ47: 281 | BR47: 185 | BS47: 165 | BT47: 147 | BU47: 131 | BV47: 116 | BW47: 99 | BX47: 85 | BY47: 71 | BZ47: 56 | CA47: 34 | CB47: 39 | CC47: 1 | CD47: 14 | CE47: 16 | CF47: 38 | CI47: 406 | CJ47: 280 | CK47: 393 | CL47: 922 | CM47: 481 | CN47: 379 | CO47: 257 | CP47: 703 | CQ47: 1,025 | CR47: 345 | CS47: 149 | CT47: 175 | CU47: 222 | CV47: 213 | CW47: 176 | CX47: 144 | CY47: 108 | CZ47: 168 | DA47: 153 | DB47: 160 | DC47: 161 | DD47: 172 | DE47: 154 | DF47: 103 | DG47: 100 | DH47: 89 | DI47: 35 | DJ47: 63 | DK47: 148 | DL47: 167 | DM47: 177 | DN47: 243 | DO47: 311 | DP47: 293 | DQ47: 281 | DR47: 185 | DS47: 165 | DT47: 147 | DU47: 131 | DV47: 116 | DW47: 99 | DX47: 85 | DY47: 71 | DZ47: 56 | EA47: 34 | EB47: 39
A48: 040303 | B48: AREQUIPA | C48: AREQUIPA | D48: CARAVELI | E48: ATICO | F48: 6134 | G48: 3035 | H48: 26 | I48: 48 | J48: 29 | K48: 40 | L48: 48 | M48: 40 | N48: 44 | O48: 38 | P48: 41 | Q48: 39 | R48: 49 | S48: 52 | T48: 51 | U48: 41 | V48: 57 | W48: 45 | X48: 60 | Y48: 50 | Z48: 49 | AA48: 39 | AB48: 198 | AC48: 210 | AD48: 229 | AE48: 233 | AF48: 235 | AG48: 220 | AH48: 218 | AI48: 185 | AJ48: 134 | AK48: 114 | AL48: 72 | AM48: 46 | AN48: 40 | AO48: 15 | AP48: 4 | AQ48: 15 | AR48: 11 | AS48: 32 | AT48: 3,099 | AU48: 31 | AV48: 31 | AW48: 38 | AX48: 43 | AY48: 41 | AZ48: 48 | BA48: 41 | BB48: 47 | BC48: 51 | BD48: 47 | BE48: 53 | BF48: 52 | BG48: 36 | BH48: 38 | BI48: 45 | BJ48: 49 | BK48: 50 | BL48: 32 | BM48: 50 | BN48: 60 | BO48: 314 | BP48: 266 | BQ48: 232 | BR48: 249 | BS48: 196 | BT48: 153 | BU48: 174 | BV48: 171 | BW48: 143 | BX48: 101 | BY48: 88 | BZ48: 58 | CA48: 36 | CB48: 35 | CC48: 1 | CD48: 14 | CE48: 17 | CF48: 38 | CI48: 494 | CJ48: 304 | CK48: 496 | CL48: 1,320 | CM48: 406 | CN48: 523 | CO48: 250 | CP48: 690 | CQ48: 1,175 | CR48: 426 | CS48: 191 | CT48: 202 | CU48: 250 | CV48: 243 | CW48: 198 | CX48: 210 | CY48: 229 | CZ48: 233 | DA48: 235 | DB48: 220 | DC48: 218 | DD48: 185 | DE48: 134 | DF48: 114 | DG48: 72 | DH48: 46 | DI48: 40 | DJ48: 15 | DK48: 184 | DL48: 234 | DM48: 224 | DN48: 241 | DO48: 314 | DP48: 266 | DQ48: 232 | DR48: 249 | DS48: 196 | DT48: 153 | DU48: 174 | DV48: 171 | DW48: 143 | DX48: 101 | DY48: 88 | DZ48: 58 | EA48: 36 | EB48: 35
A49: 040304 | B49: AREQUIPA | C49: AREQUIPA | D49: CARAVELI | E49: ATIQUIPA | F49: 475 | G49: 239 | H49: 4 | I49: 7 | J49: 7 | K49: 5 | L49: 11 | M49: 6 | N49: 2 | O49: 1 | P49: 3 | Q49: 4 | R49: 1 | S49: 2 | T49: 3 | U49: 5 | V49: 2 | W49: 5 | X49: 2 | Y49: 1 | Z49: 2 | AA49: 3 | AB49: 14 | AC49: 22 | AD49: 18 | AE49: 15 | AF49: 18 | AG49: 10 | AH49: 11 | AI49: 15 | AJ49: 14 | AK49: 6 | AL49: 7 | AM49: 5 | AN49: 3 | AO49: 5 | AP49: 0 | AQ49: 2 | AR49: 2 | AS49: 6 | AT49: 236 | AU49: 3 | AV49: 5 | AW49: 5 | AX49: 7 | AY49: 8 | AZ49: 5 | BA49: 3 | BB49: 3 | BC49: 5 | BD49: 5 | BE49: 3 | BF49: 1 | BG49: 2 | BH49: 2 | BI49: 3 | BJ49: 5 | BK49: 3 | BL49: 5 | BM49: 3 | BN49: 2 | BO49: 7 | BP49: 28 | BQ49: 22 | BR49: 25 | BS49: 3 | BT49: 12 | BU49: 16 | BV49: 12 | BW49: 9 | BX49: 9 | BY49: 4 | BZ49: 5 | CA49: 3 | CB49: 3 | CC49: 1 | CD49: 2 | CE49: 1 | CF49: 4 | CI49: 53 | CJ49: 18 | CK49: 41 | CL49: 87 | CM49: 35 | CN49: 53 | CO49: 20 | CP49: 40 | CQ49: 90 | CR49: 30 | CS49: 34 | CT49: 16 | CU49: 13 | CV49: 13 | CW49: 14 | CX49: 22 | CY49: 18 | CZ49: 15 | DA49: 18 | DB49: 10 | DC49: 11 | DD49: 15 | DE49: 14 | DF49: 6 | DG49: 7 | DH49: 5 | DI49: 3 | DJ49: 5 | DK49: 28 | DL49: 21 | DM49: 11 | DN49: 18 | DO49: 7 | DP49: 28 | DQ49: 22 | DR49: 25 | DS49: 3 | DT49: 12 | DU49: 16 | DV49: 12 | DW49: 9 | DX49: 9 | DY49: 4 | DZ49: 5 | EA49: 3 | EB49: 3
A50: 040305 | B50: AREQUIPA | C50: AREQUIPA | D50: CARAVELI | E50: BELLA UNION | F50: 2740 | G50: 1331 | H50: 28 | I50: 19 | J50: 16 | K50: 16 | L50: 9 | M50: 11 | N50: 17 | O50: 15 | P50: 18 | Q50: 17 | R50: 13 | S50: 15 | T50: 23 | U50: 12 | V50: 19 | W50: 14 | X50: 26 | Y50: 12 | Z50: 23 | AA50: 22 | AB50: 86 | AC50: 85 | AD50: 92 | AE50: 100 | AF50: 109 | AG50: 110 | AH50: 88 | AI50: 84 | AJ50: 67 | AK50: 41 | AL50: 48 | AM50: 39 | AN50: 23 | AO50: 14 | AP50: 6 | AQ50: 13 | AR50: 15 | AS50: 37 | AT50: 1,409 | AU50: 14 | AV50: 21 | AW50: 21 | AX50: 17 | AY50: 26 | AZ50: 16 | BA50: 23 | BB50: 21 | BC50: 17 | BD50: 25 | BE50: 15 | BF50: 22 | BG50: 17 | BH50: 16 | BI50: 15 | BJ50: 10 | BK50: 19 | BL50: 17 | BM50: 21 | BN50: 13 | BO50: 139 | BP50: 160 | BQ50: 134 | BR50: 83 | BS50: 96 | BT50: 81 | BU50: 90 | BV50: 60 | BW50: 64 | BX50: 45 | BY50: 35 | BZ50: 22 | CA50: 16 | CB50: 18 | CC50: 1 | CD50: 7 | CE50: 7 | CF50: 19 | CI50: 194 | CJ50: 106 | CK50: 216 | CL50: 583 | CM50: 218 | CN50: 238 | CO50: 94 | CP50: 333 | CQ50: 544 | CR50: 182 | CS50: 88 | CT50: 78 | CU50: 82 | CV50: 97 | CW50: 86 | CX50: 85 | CY50: 92 | CZ50: 100 | DA50: 109 | DB50: 110 | DC50: 88 | DD50: 84 | DE50: 67 | DF50: 41 | DG50: 48 | DH50: 39 | DI50: 23 | DJ50: 14 | DK50: 99 | DL50: 102 | DM50: 85 | DN50: 80 | DO50: 139 | DP50: 160 | DQ50: 134 | DR50: 83 | DS50: 96 | DT50: 81 | DU50: 90 | DV50: 60 | DW50: 64 | DX50: 45 | DY50: 35 | DZ50: 22 | EA50: 16 | EB50: 18
A51: 040306 | B51: AREQUIPA | C51: AREQUIPA | D51: CARAVELI | E51: CAHUACHO | F51: 566 | G51: 281 | H51: 25 | I51: 8 | J51: 4 | K51: 2 | L51: 0 | M51: 5 | N51: 1 | O51: 2 | P51: 5 | Q51: 3 | R51: 1 | S51: 3 | T51: 4 | U51: 4 | V51: 5 | W51: 5 | X51: 4 | Y51: 4 | Z51: 2 | AA51: 3 | AB51: 14 | AC51: 18 | AD51: 14 | AE51: 17 | AF51: 16 | AG51: 15 | AH51: 17 | AI51: 14 | AJ51: 11 | AK51: 14 | AL51: 13 | AM51: 8 | AN51: 10 | AO51: 10 | AP51: 0 | AQ51: 14 | AR51: 11 | AS51: 32 | AT51: 285 | AU51: 19 | AV51: 8 | AW51: 3 | AX51: 7 | AY51: 4 | AZ51: 5 | BA51: 6 | BB51: 2 | BC51: 4 | BD51: 2 | BE51: 3 | BF51: 2 | BG51: 1 | BH51: 4 | BI51: 3 | BJ51: 4 | BK51: 4 | BL51: 5 | BM51: 5 | BN51: 5 | BO51: 25 | BP51: 15 | BQ51: 23 | BR51: 32 | BS51: 28 | BT51: 11 | BU51: 12 | BV51: 10 | BW51: 6 | BX51: 9 | BY51: 5 | BZ51: 5 | CA51: 4 | CB51: 4 | CC51: 0 | CD51: 5 | CE51: 14 | CF51: 25 | CI51: 59 | CJ51: 26 | CK51: 37 | CL51: 93 | CM51: 56 | CN51: 65 | CO51: 21 | CP51: 50 | CQ51: 116 | CR51: 29 | CS51: 39 | CT51: 16 | CU51: 17 | CV51: 18 | CW51: 14 | CX51: 18 | CY51: 14 | CZ51: 17 | DA51: 16 | DB51: 15 | DC51: 17 | DD51: 14 | DE51: 11 | DF51: 14 | DG51: 13 | DH51: 8 | DI51: 10 | DJ51: 10 | DK51: 41 | DL51: 19 | DM51: 13 | DN51: 23 | DO51: 25 | DP51: 15 | DQ51: 23 | DR51: 32 | DS51: 28 | DT51: 11 | DU51: 12 | DV51: 10 | DW51: 6 | DX51: 9 | DY51: 5 | DZ51: 5 | EA51: 4 | EB51: 4
A52: 040307 | B52: AREQUIPA | C52: AREQUIPA | D52: CARAVELI | E52: CHALA | F52: 10255 | G52: 4768 | H52: 88 | I52: 94 | J52: 97 | K52: 98 | L52: 79 | M52: 79 | N52: 89 | O52: 98 | P52: 116 | Q52: 104 | R52: 88 | S52: 92 | T52: 84 | U52: 92 | V52: 81 | W52: 87 | X52: 79 | Y52: 88 | Z52: 56 | AA52: 81 | AB52: 302 | AC52: 322 | AD52: 365 | AE52: 374 | AF52: 308 | AG52: 315 | AH52: 256 | AI52: 245 | AJ52: 163 | AK52: 143 | AL52: 87 | AM52: 50 | AN52: 32 | AO52: 36 | AP52: 10 | AQ52: 48 | AR52: 40 | AS52: 114 | AT52: 5,487 | AU52: 75 | AV52: 100 | AW52: 75 | AX52: 68 | AY52: 72 | AZ52: 65 | BA52: 137 | BB52: 94 | BC52: 83 | BD52: 84 | BE52: 75 | BF52: 87 | BG52: 78 | BH52: 89 | BI52: 75 | BJ52: 96 | BK52: 77 | BL52: 66 | BM52: 66 | BN52: 89 | BO52: 513 | BP52: 601 | BQ52: 395 | BR52: 421 | BS52: 299 | BT52: 303 | BU52: 283 | BV52: 268 | BW52: 272 | BX52: 191 | BY52: 114 | BZ52: 81 | CA52: 43 | CB52: 52 | CC52: 4 | CD52: 41 | CE52: 34 | CF52: 98 | CI52: 1,122 | CJ52: 511 | CK52: 761 | CL52: 1,863 | CM52: 475 | CN52: 1,015 | CO52: 481 | CP52: 1,269 | CQ52: 1,969 | CR52: 701 | CS52: 456 | CT52: 486 | CU52: 437 | CV52: 391 | CW52: 302 | CX52: 322 | CY52: 365 | CZ52: 374 | DA52: 308 | DB52: 315 | DC52: 256 | DD52: 245 | DE52: 163 | DF52: 143 | DG52: 87 | DH52: 50 | DI52: 32 | DJ52: 36 | DK52: 390 | DL52: 463 | DM52: 404 | DN52: 394 | DO52: 513 | DP52: 601 | DQ52: 395 | DR52: 421 | DS52: 299 | DT52: 303 | DU52: 283 | DV52: 268 | DW52: 272 | DX52: 191 | DY52: 114 | DZ52: 81 | EA52: 43 | EB52: 52
A53: 040308 | B53: AREQUIPA | C53: AREQUIPA | D53: CARAVELI | E53: CHAPARRA | F53: 3468 | G53: 1791 | H53: 13 | I53: 36 | J53: 40 | K53: 36 | L53: 21 | M53: 33 | N53: 18 | O53: 15 | P53: 17 | Q53: 27 | R53: 16 | S53: 29 | T53: 29 | U53: 29 | V53: 21 | W53: 18 | X53: 22 | Y53: 18 | Z53: 23 | AA53: 20 | AB53: 83 | AC53: 101 | AD53: 164 | AE53: 174 | AF53: 162 | AG53: 147 | AH53: 139 | AI53: 117 | AJ53: 75 | AK53: 52 | AL53: 50 | AM53: 13 | AN53: 15 | AO53: 18 | AP53: 1 | AQ53: 6 | AR53: 7 | AS53: 17 | AT53: 1,677 | AU53: 25 | AV53: 25 | AW53: 41 | AX53: 13 | AY53: 27 | AZ53: 22 | BA53: 33 | BB53: 52 | BC53: 16 | BD53: 32 | BE53: 25 | BF53: 21 | BG53: 21 | BH53: 16 | BI53: 18 | BJ53: 27 | BK53: 32 | BL53: 23 | BM53: 22 | BN53: 37 | BO53: 226 | BP53: 167 | BQ53: 189 | BR53: 88 | BS53: 74 | BT53: 70 | BU53: 54 | BV53: 66 | BW53: 70 | BX53: 59 | BY53: 32 | BZ53: 21 | CA53: 22 | CB53: 11 | CC53: 4 | CD53: 13 | CE53: 12 | CF53: 33 | CI53: 301 | CJ53: 137 | CK53: 227 | CL53: 903 | CM53: 205 | CN53: 332 | CO53: 137 | CP53: 452 | CQ53: 541 | CR53: 204 | CS53: 146 | CT53: 110 | CU53: 124 | CV53: 101 | CW53: 83 | CX53: 101 | CY53: 164 | CZ53: 174 | DA53: 162 | DB53: 147 | DC53: 139 | DD53: 117 | DE53: 75 | DF53: 52 | DG53: 50 | DH53: 13 | DI53: 15 | DJ53: 18 | DK53: 131 | DL53: 155 | DM53: 101 | DN53: 141 | DO53: 226 | DP53: 167 | DQ53: 189 | DR53: 88 | DS53: 74 | DT53: 70 | DU53: 54 | DV53: 66 | DW53: 70 | DX53: 59 | DY53: 32 | DZ53: 21 | EA53: 22 | EB53: 11
A54: 040309 | B54: AREQUIPA | C54: AREQUIPA | D54: CARAVELI | E54: HUANUHUANU | F54: 3121 | G54: 1742 | H54: 18 | I54: 33 | J54: 19 | K54: 20 | L54: 25 | M54: 29 | N54: 15 | O54: 26 | P54: 13 | Q54: 16 | R54: 19 | S54: 27 | T54: 34 | U54: 29 | V54: 29 | W54: 23 | X54: 32 | Y54: 19 | Z54: 32 | AA54: 18 | AB54: 73 | AC54: 132 | AD54: 184 | AE54: 207 | AF54: 149 | AG54: 137 | AH54: 128 | AI54: 94 | AJ54: 77 | AK54: 48 | AL54: 18 | AM54: 6 | AN54: 5 | AO54: 8 | AP54: 1 | AQ54: 9 | AR54: 9 | AS54: 24 | AT54: 1,379 | AU54: 27 | AV54: 21 | AW54: 10 | AX54: 23 | AY54: 18 | AZ54: 23 | BA54: 37 | BB54: 16 | BC54: 37 | BD54: 27 | BE54: 34 | BF54: 18 | BG54: 13 | BH54: 19 | BI54: 24 | BJ54: 18 | BK54: 26 | BL54: 21 | BM54: 39 | BN54: 36 | BO54: 139 | BP54: 115 | BQ54: 119 | BR54: 50 | BS54: 97 | BT54: 69 | BU54: 63 | BV54: 73 | BW54: 50 | BX54: 36 | BY54: 36 | BZ54: 21 | CA54: 13 | CB54: 11 | CC54: 1 | CD54: 18 | CE54: 9 | CF54: 35 | CI54: 260 | CJ54: 166 | CK54: 255 | CL54: 899 | CM54: 154 | CN54: 291 | CO54: 121 | CP54: 329 | CQ54: 471 | CR54: 156 | CS54: 115 | CT54: 99 | CU54: 138 | CV54: 124 | CW54: 73 | CX54: 132 | CY54: 184 | CZ54: 207 | DA54: 149 | DB54: 137 | DC54: 128 | DD54: 94 | DE54: 77 | DF54: 48 | DG54: 18 | DH54: 6 | DI54: 5 | DJ54: 8 | DK54: 99 | DL54: 140 | DM54: 108 | DN54: 140 | DO54: 139 | DP54: 115 | DQ54: 119 | DR54: 50 | DS54: 97 | DT54: 69 | DU54: 63 | DV54: 73 | DW54: 50 | DX54: 36 | DY54: 36 | DZ54: 21 | EA54: 13 | EB54: 11
A55: 040310 | B55: AREQUIPA | C55: AREQUIPA | D55: CARAVELI | E55: JAQUI | F55: 1605 | G55: 785 | H55: 7 | I55: 18 | J55: 11 | K55: 7 | L55: 8 | M55: 8 | N55: 14 | O55: 7 | P55: 12 | Q55: 6 | R55: 11 | S55: 18 | T55: 18 | U55: 12 | V55: 11 | W55: 14 | X55: 13 | Y55: 13 | Z55: 13 | AA55: 7 | AB55: 41 | AC55: 64 | AD55: 45 | AE55: 43 | AF55: 49 | AG55: 50 | AH55: 54 | AI55: 60 | AJ55: 46 | AK55: 48 | AL55: 25 | AM55: 13 | AN55: 10 | AO55: 9 | AP55: 0 | AQ55: 4 | AR55: 3 | AS55: 9 | AT55: 820 | AU55: 15 | AV55: 15 | AW55: 12 | AX55: 10 | AY55: 14 | AZ55: 10 | BA55: 15 | BB55: 11 | BC55: 9 | BD55: 12 | BE55: 8 | BF55: 6 | BG55: 13 | BH55: 9 | BI55: 10 | BJ55: 9 | BK55: 19 | BL55: 16 | BM55: 13 | BN55: 15 | BO55: 101 | BP55: 88 | BQ55: 68 | BR55: 62 | BS55: 46 | BT55: 40 | BU55: 38 | BV55: 31 | BW55: 21 | BX55: 22 | BY55: 21 | BZ55: 16 | CA55: 10 | CB55: 15 | CC55: 0 | CD55: 6 | CE55: 9 | CF55: 20 | CI55: 127 | CJ55: 81 | CK55: 125 | CL55: 301 | CM55: 142 | CN55: 137 | CO55: 76 | CP55: 217 | CQ55: 285 | CR55: 90 | CS55: 51 | CT55: 47 | CU55: 70 | CV55: 60 | CW55: 41 | CX55: 64 | CY55: 45 | CZ55: 43 | DA55: 49 | DB55: 50 | DC55: 54 | DD55: 60 | DE55: 46 | DF55: 48 | DG55: 25 | DH55: 13 | DI55: 10 | DJ55: 9 | DK55: 66 | DL55: 57 | DM55: 46 | DN55: 72 | DO55: 101 | DP55: 88 | DQ55: 68 | DR55: 62 | DS55: 46 | DT55: 40 | DU55: 38 | DV55: 31 | DW55: 21 | DX55: 22 | DY55: 21 | DZ55: 16 | EA55: 10 | EB55: 15
A56: 040311 | B56: AREQUIPA | C56: AREQUIPA | D56: CARAVELI | E56: LOMAS | F56: 1586 | G56: 831 | H56: 8 | I56: 12 | J56: 10 | K56: 14 | L56: 11 | M56: 16 | N56: 11 | O56: 12 | P56: 4 | Q56: 12 | R56: 12 | S56: 16 | T56: 6 | U56: 13 | V56: 8 | W56: 10 | X56: 10 | Y56: 8 | Z56: 12 | AA56: 6 | AB56: 60 | AC56: 58 | AD56: 65 | AE56: 69 | AF56: 68 | AG56: 68 | AH56: 48 | AI56: 58 | AJ56: 51 | AK56: 28 | AL56: 18 | AM56: 17 | AN56: 8 | AO56: 4 | AP56: 1 | AQ56: 6 | AR56: 2 | AS56: 11 | AT56: 755 | AU56: 13 | AV56: 5 | AW56: 3 | AX56: 13 | AY56: 18 | AZ56: 19 | BA56: 6 | BB56: 4 | BC56: 16 | BD56: 21 | BE56: 22 | BF56: 10 | BG56: 4 | BH56: 14 | BI56: 17 | BJ56: 10 | BK56: 8 | BL56: 11 | BM56: 10 | BN56: 12 | BO56: 69 | BP56: 71 | BQ56: 51 | BR56: 25 | BS56: 48 | BT56: 45 | BU56: 48 | BV56: 40 | BW56: 33 | BX56: 28 | BY56: 22 | BZ56: 16 | CA56: 11 | CB56: 12 | CC56: 1 | CD56: 6 | CE56: 7 | CF56: 17 | CI56: 138 | CJ56: 55 | CK56: 136 | CL56: 376 | CM56: 122 | CN56: 150 | CO56: 64 | CP56: 162 | CQ56: 257 | CR56: 110 | CS56: 55 | CT56: 55 | CU56: 55 | CV56: 46 | CW56: 60 | CX56: 58 | CY56: 65 | CZ56: 69 | DA56: 68 | DB56: 68 | DC56: 48 | DD56: 58 | DE56: 51 | DF56: 28 | DG56: 18 | DH56: 17 | DI56: 8 | DJ56: 4 | DK56: 52 | DL56: 66 | DM56: 67 | DN56: 51 | DO56: 69 | DP56: 71 | DQ56: 51 | DR56: 25 | DS56: 48 | DT56: 45 | DU56: 48 | DV56: 40 | DW56: 33 | DX56: 28 | DY56: 22 | DZ56: 16 | EA56: 11 | EB56: 12
A57: 040312 | B57: AREQUIPA | C57: AREQUIPA | D57: CARAVELI | E57: QUICACHA | F57: 1921 | G57: 902 | H57: 10 | I57: 22 | J57: 9 | K57: 15 | L57: 15 | M57: 12 | N57: 11 | O57: 8 | P57: 15 | Q57: 16 | R57: 15 | S57: 15 | T57: 15 | U57: 15 | V57: 10 | W57: 22 | X57: 19 | Y57: 15 | Z57: 15 | AA57: 15 | AB57: 69 | AC57: 54 | AD57: 65 | AE57: 63 | AF57: 55 | AG57: 61 | AH57: 48 | AI57: 55 | AJ57: 42 | AK57: 35 | AL57: 25 | AM57: 16 | AN57: 11 | AO57: 14 | AP57: 0 | AQ57: 5 | AR57: 5 | AS57: 13 | AT57: 1,019 | AU57: 13 | AV57: 21 | AW57: 7 | AX57: 13 | AY57: 13 | AZ57: 12 | BA57: 21 | BB57: 6 | BC57: 12 | BD57: 11 | BE57: 10 | BF57: 18 | BG57: 17 | BH57: 8 | BI57: 13 | BJ57: 20 | BK57: 23 | BL57: 17 | BM57: 25 | BN57: 20 | BO57: 99 | BP57: 107 | BQ57: 116 | BR57: 61 | BS57: 82 | BT57: 60 | BU57: 46 | BV57: 34 | BW57: 35 | BX57: 24 | BY57: 18 | BZ57: 16 | CA57: 10 | CB57: 11 | CC57: 0 | CD57: 6 | CE57: 7 | CF57: 17 | CI57: 163 | CJ57: 96 | CK57: 153 | CL57: 347 | CM57: 129 | CN57: 157 | CO57: 98 | CP57: 251 | CQ57: 399 | CR57: 103 | CS57: 71 | CT57: 62 | CU57: 70 | CV57: 86 | CW57: 69 | CX57: 54 | CY57: 65 | CZ57: 63 | DA57: 55 | DB57: 61 | DC57: 48 | DD57: 55 | DE57: 42 | DF57: 35 | DG57: 25 | DH57: 16 | DI57: 11 | DJ57: 14 | DK57: 67 | DL57: 62 | DM57: 66 | DN57: 105 | DO57: 99 | DP57: 107 | DQ57: 116 | DR57: 61 | DS57: 82 | DT57: 60 | DU57: 46 | DV57: 34 | DW57: 35 | DX57: 24 | DY57: 18 | DZ57: 16 | EA57: 10 | EB57: 11
A58: 040313 | B58: AREQUIPA | C58: AREQUIPA | D58: CARAVELI | E58: YAUCA | F58: 2047 | G58: 1068 | H58: 5 | I58: 9 | J58: 6 | K58: 8 | L58: 11 | M58: 8 | N58: 14 | O58: 15 | P58: 19 | Q58: 20 | R58: 18 | S58: 18 | T58: 11 | U58: 15 | V58: 19 | W58: 20 | X58: 19 | Y58: 13 | Z58: 14 | AA58: 11 | AB58: 68 | AC58: 75 | AD58: 55 | AE58: 55 | AF58: 77 | AG58: 66 | AH58: 68 | AI58: 80 | AJ58: 88 | AK58: 54 | AL58: 46 | AM58: 28 | AN58: 19 | AO58: 16 | AP58: 2 | AQ58: 3 | AR58: 2 | AS58: 7 | AT58: 979 | AU58: 8 | AV58: 12 | AW58: 8 | AX58: 14 | AY58: 14 | AZ58: 5 | BA58: 15 | BB58: 9 | BC58: 16 | BD58: 15 | BE58: 6 | BF58: 14 | BG58: 14 | BH58: 12 | BI58: 21 | BJ58: 19 | BK58: 20 | BL58: 25 | BM58: 14 | BN58: 26 | BO58: 67 | BP58: 97 | BQ58: 68 | BR58: 30 | BS58: 76 | BT58: 61 | BU58: 70 | BV58: 50 | BW58: 42 | BX58: 36 | BY58: 33 | BZ58: 22 | CA58: 21 | CB58: 19 | CC58: 3 | CD58: 5 | CE58: 3 | CF58: 10 | CI58: 151 | CJ58: 97 | CK58: 168 | CL58: 401 | CM58: 235 | CN58: 136 | CO58: 111 | CP58: 204 | CQ58: 355 | CR58: 154 | CS58: 39 | CT58: 76 | CU58: 81 | CV58: 77 | CW58: 68 | CX58: 75 | CY58: 55 | CZ58: 55 | DA58: 77 | DB58: 66 | DC58: 68 | DD58: 80 | DE58: 88 | DF58: 54 | DG58: 46 | DH58: 28 | DI58: 19 | DJ58: 16 | DK58: 56 | DL58: 60 | DM58: 67 | DN58: 104 | DO58: 67 | DP58: 97 | DQ58: 68 | DR58: 30 | DS58: 76 | DT58: 61 | DU58: 70 | DV58: 50 | DW58: 42 | DX58: 36 | DY58: 33 | DZ58: 22 | EA58: 21 | EB58: 19
A59: 040401 | B59: AREQUIPA | C59: AREQUIPA | D59: CASTILLA | E59: APLAO | F59: 9099 | G59: 4386 | H59: 51 | I59: 76 | J59: 63 | K59: 71 | L59: 71 | M59: 79 | N59: 53 | O59: 52 | P59: 57 | Q59: 50 | R59: 68 | S59: 68 | T59: 80 | U59: 75 | V59: 66 | W59: 57 | X59: 74 | Y59: 81 | Z59: 55 | AA59: 60 | AB59: 294 | AC59: 332 | AD59: 305 | AE59: 280 | AF59: 270 | AG59: 270 | AH59: 278 | AI59: 283 | AJ59: 220 | AK59: 183 | AL59: 157 | AM59: 99 | AN59: 53 | AO59: 55 | AP59: 3 | AQ59: 23 | AR59: 28 | AS59: 66 | AT59: 4,713 | AU59: 68 | AV59: 72 | AW59: 63 | AX59: 64 | AY59: 71 | AZ59: 72 | BA59: 69 | BB59: 56 | BC59: 55 | BD59: 58 | BE59: 57 | BF59: 52 | BG59: 50 | BH59: 52 | BI59: 48 | BJ59: 56 | BK59: 70 | BL59: 85 | BM59: 60 | BN59: 77 | BO59: 355 | BP59: 524 | BQ59: 401 | BR59: 397 | BS59: 363 | BT59: 310 | BU59: 263 | BV59: 202 | BW59: 173 | BX59: 140 | BY59: 119 | BZ59: 85 | CA59: 64 | CB59: 62 | CC59: 2 | CD59: 34 | CE59: 34 | CF59: 88 | CI59: 759 | CJ59: 433 | CK59: 741 | CL59: 1,686 | CM59: 712 | CN59: 757 | CO59: 361 | CP59: 1,016 | CQ59: 1,936 | CR59: 581 | CS59: 332 | CT59: 291 | CU59: 357 | CV59: 327 | CW59: 294 | CX59: 332 | CY59: 305 | CZ59: 280 | DA59: 270 | DB59: 270 | DC59: 278 | DD59: 283 | DE59: 220 | DF59: 183 | DG59: 157 | DH59: 99 | DI59: 53 | DJ59: 55 | DK59: 338 | DL59: 310 | DM59: 259 | DN59: 348 | DO59: 355 | DP59: 524 | DQ59: 401 | DR59: 397 | DS59: 363 | DT59: 310 | DU59: 263 | DV59: 202 | DW59: 173 | DX59: 140 | DY59: 119 | DZ59: 85 | EA59: 64 | EB59: 62
A60: 040402 | B60: AREQUIPA | C60: AREQUIPA | D60: CASTILLA | E60: ANDAGUA | F60: 973 | G60: 527 | H60: 3 | I60: 6 | J60: 2 | K60: 2 | L60: 6 | M60: 9 | N60: 7 | O60: 9 | P60: 7 | Q60: 6 | R60: 7 | S60: 6 | T60: 7 | U60: 10 | V60: 6 | W60: 7 | X60: 10 | Y60: 7 | Z60: 7 | AA60: 4 | AB60: 41 | AC60: 34 | AD60: 32 | AE60: 28 | AF60: 37 | AG60: 36 | AH60: 41 | AI60: 32 | AJ60: 28 | AK60: 27 | AL60: 26 | AM60: 16 | AN60: 9 | AO60: 12 | AP60: 1 | AQ60: 2 | AR60: 1 | AS60: 5 | AT60: 446 | AU60: 7 | AV60: 9 | AW60: 5 | AX60: 6 | AY60: 9 | AZ60: 2 | BA60: 9 | BB60: 4 | BC60: 5 | BD60: 8 | BE60: 2 | BF60: 6 | BG60: 4 | BH60: 3 | BI60: 8 | BJ60: 8 | BK60: 7 | BL60: 7 | BM60: 10 | BN60: 8 | BO60: 15 | BP60: 63 | BQ60: 37 | BR60: 41 | BS60: 22 | BT60: 37 | BU60: 17 | BV60: 15 | BW60: 17 | BX60: 14 | BY60: 12 | BZ60: 9 | CA60: 8 | CB60: 12 | CC60: 0 | CD60: 4 | CE60: 3 | CF60: 11 | CI60: 70 | CJ60: 47 | CK60: 86 | CL60: 206 | CM60: 106 | CN60: 72 | CO60: 37 | CP60: 96 | CQ60: 169 | CR60: 60 | CS60: 19 | CT60: 38 | CU60: 36 | CV60: 35 | CW60: 41 | CX60: 34 | CY60: 32 | CZ60: 28 | DA60: 37 | DB60: 36 | DC60: 41 | DD60: 32 | DE60: 28 | DF60: 27 | DG60: 26 | DH60: 16 | DI60: 9 | DJ60: 12 | DK60: 36 | DL60: 28 | DM60: 23 | DN60: 40 | DO60: 15 | DP60: 63 | DQ60: 37 | DR60: 41 | DS60: 22 | DT60: 37 | DU60: 17 | DV60: 15 | DW60: 17 | DX60: 14 | DY60: 12 | DZ60: 9 | EA60: 8 | EB60: 12
A61: 040403 | B61: AREQUIPA | C61: AREQUIPA | D61: CASTILLA | E61: AYO | F61: 216 | G61: 154 | H61: 3 | I61: 1 | J61: 1 | K61: 2 | L61: 0 | M61: 2 | N61: 1 | O61: 1 | P61: 1 | Q61: 1 | R61: 0 | S61: 1 | T61: 0 | U61: 1 | V61: 1 | W61: 1 | X61: 2 | Y61: 2 | Z61: 1 | AA61: 1 | AB61: 5 | AC61: 5 | AD61: 8 | AE61: 13 | AF61: 11 | AG61: 11 | AH61: 9 | AI61: 9 | AJ61: 13 | AK61: 12 | AL61: 9 | AM61: 11 | AN61: 8 | AO61: 7 | AP61: 0 | AQ61: 1 | AR61: 2 | AS61: 4 | AT61: 62 | AU61: 1 | AV61: 2 | AW61: 1 | AX61: 1 | AY61: 0 | AZ61: 0 | BA61: 1 | BB61: 1 | BC61: 1 | BD61: 0 | BE61: 0 | BF61: 0 | BG61: 1 | BH61: 1 | BI61: 0 | BJ61: 0 | BK61: 2 | BL61: 1 | BM61: 0 | BN61: 1 | BO61: 0 | BP61: 4 | BQ61: 3 | BR61: 0 | BS61: 7 | BT61: 1 | BU61: 4 | BV61: 5 | BW61: 5 | BX61: 5 | BY61: 3 | BZ61: 5 | CA61: 3 | CB61: 3 | CC61: 1 | CD61: 1 | CE61: 0 | CF61: 1 | CI61: 14 | CJ61: 7 | CK61: 12 | CL61: 61 | CM61: 53 | CN61: 8 | CO61: 5 | CP61: 5 | CQ61: 20 | CR61: 21 | CS61: 7 | CT61: 6 | CU61: 3 | CV61: 7 | CW61: 5 | CX61: 5 | CY61: 8 | CZ61: 13 | DA61: 11 | DB61: 11 | DC61: 9 | DD61: 9 | DE61: 13 | DF61: 12 | DG61: 9 | DH61: 11 | DI61: 8 | DJ61: 7 | DK61: 5 | DL61: 3 | DM61: 2 | DN61: 4 | DO61: 0 | DP61: 4 | DQ61: 3 | DR61: 0 | DS61: 7 | DT61: 1 | DU61: 4 | DV61: 5 | DW61: 5 | DX61: 5 | DY61: 3 | DZ61: 5 | EA61: 3 | EB61: 3
A62: 040404 | B62: AREQUIPA | C62: AREQUIPA | D62: CASTILLA | E62: CHACHAS | F62: 1602 | G62: 841 | H62: 15 | I62: 18 | J62: 17 | K62: 11 | L62: 10 | M62: 19 | N62: 12 | O62: 5 | P62: 13 | Q62: 7 | R62: 13 | S62: 14 | T62: 15 | U62: 17 | V62: 10 | W62: 17 | X62: 14 | Y62: 15 | Z62: 10 | AA62: 10 | AB62: 67 | AC62: 60 | AD62: 71 | AE62: 67 | AF62: 54 | AG62: 50 | AH62: 45 | AI62: 48 | AJ62: 32 | AK62: 25 | AL62: 23 | AM62: 18 | AN62: 7 | AO62: 12 | AP62: 3 | AQ62: 8 | AR62: 7 | AS62: 15 | AT62: 761 | AU62: 14 | AV62: 16 | AW62: 12 | AX62: 12 | AY62: 17 | AZ62: 18 | BA62: 12 | BB62: 8 | BC62: 8 | BD62: 11 | BE62: 12 | BF62: 5 | BG62: 12 | BH62: 9 | BI62: 13 | BJ62: 18 | BK62: 10 | BL62: 11 | BM62: 10 | BN62: 15 | BO62: 105 | BP62: 52 | BQ62: 79 | BR62: 46 | BS62: 48 | BT62: 42 | BU62: 37 | BV62: 30 | BW62: 24 | BX62: 12 | BY62: 13 | BZ62: 9 | CA62: 10 | CB62: 11 | CC62: 2 | CD62: 7 | CE62: 7 | CF62: 14 | CI62: 154 | CJ62: 88 | CK62: 147 | CL62: 335 | CM62: 105 | CN62: 145 | CO62: 73 | CP62: 182 | CQ62: 282 | CR62: 68 | CS62: 71 | CT62: 56 | CU62: 69 | CV62: 66 | CW62: 67 | CX62: 60 | CY62: 71 | CZ62: 67 | DA62: 54 | DB62: 50 | DC62: 45 | DD62: 48 | DE62: 32 | DF62: 25 | DG62: 23 | DH62: 18 | DI62: 7 | DJ62: 12 | DK62: 71 | DL62: 57 | DM62: 51 | DN62: 64 | DO62: 105 | DP62: 52 | DQ62: 79 | DR62: 46 | DS62: 48 | DT62: 42 | DU62: 37 | DV62: 30 | DW62: 24 | DX62: 12 | DY62: 13 | DZ62: 9 | EA62: 10 | EB62: 11
A63: 040405 | B63: AREQUIPA | C63: AREQUIPA | D63: CASTILLA | E63: CHILCAYMARCA | F63: 1072 | G63: 510 | H63: 5 | I63: 3 | J63: 3 | K63: 4 | L63: 5 | M63: 4 | N63: 6 | O63: 10 | P63: 7 | Q63: 9 | R63: 9 | S63: 7 | T63: 7 | U63: 5 | V63: 12 | W63: 8 | X63: 7 | Y63: 9 | Z63: 9 | AA63: 4 | AB63: 29 | AC63: 38 | AD63: 48 | AE63: 46 | AF63: 45 | AG63: 45 | AH63: 33 | AI63: 28 | AJ63: 25 | AK63: 16 | AL63: 7 | AM63: 10 | AN63: 5 | AO63: 2 | AP63: 0 | AQ63: 4 | AR63: 1 | AS63: 6 | AT63: 562 | AU63: 7 | AV63: 7 | AW63: 7 | AX63: 2 | AY63: 8 | AZ63: 7 | BA63: 7 | BB63: 6 | BC63: 2 | BD63: 7 | BE63: 5 | BF63: 8 | BG63: 4 | BH63: 12 | BI63: 8 | BJ63: 7 | BK63: 10 | BL63: 3 | BM63: 6 | BN63: 5 | BO63: 83 | BP63: 58 | BQ63: 62 | BR63: 41 | BS63: 13 | BT63: 31 | BU63: 34 | BV63: 26 | BW63: 27 | BX63: 24 | BY63: 13 | BZ63: 9 | CA63: 6 | CB63: 7 | CC63: 0 | CD63: 2 | CE63: 5 | CF63: 9 | CI63: 72 | CJ63: 48 | CK63: 80 | CL63: 245 | CM63: 63 | CN63: 73 | CO63: 44 | CP63: 152 | CQ63: 207 | CR63: 79 | CS63: 20 | CT63: 36 | CU63: 40 | CV63: 37 | CW63: 29 | CX63: 38 | CY63: 48 | CZ63: 46 | DA63: 45 | DB63: 45 | DC63: 33 | DD63: 28 | DE63: 25 | DF63: 16 | DG63: 7 | DH63: 10 | DI63: 5 | DJ63: 2 | DK63: 31 | DL63: 29 | DM63: 37 | DN63: 31 | DO63: 83 | DP63: 58 | DQ63: 62 | DR63: 41 | DS63: 13 | DT63: 31 | DU63: 34 | DV63: 26 | DW63: 27 | DX63: 24 | DY63: 13 | DZ63: 9 | EA63: 6 | EB63: 7
A64: 040406 | B64: AREQUIPA | C64: AREQUIPA | D64: CASTILLA | E64: CHOCO | F64: 631 | G64: 402 | H64: 1 | I64: 4 | J64: 3 | K64: 2 | L64: 1 | M64: 2 | N64: 3 | O64: 4 | P64: 2 | Q64: 2 | R64: 1 | S64: 3 | T64: 5 | U64: 3 | V64: 1 | W64: 2 | X64: 4 | Y64: 4 | Z64: 5 | AA64: 7 | AB64: 26 | AC64: 17 | AD64: 35 | AE64: 33 | AF64: 31 | AG64: 41 | AH64: 30 | AI64: 23 | AJ64: 27 | AK64: 20 | AL64: 18 | AM64: 13 | AN64: 15 | AO64: 14 | AP64: 0 | AQ64: 0 | AR64: 1 | AS64: 1 | AT64: 229 | AU64: 2 | AV64: 3 | AW64: 3 | AX64: 2 | AY64: 2 | AZ64: 3 | BA64: 2 | BB64: 2 | BC64: 1 | BD64: 1 | BE64: 2 | BF64: 3 | BG64: 2 | BH64: 2 | BI64: 2 | BJ64: 3 | BK64: 5 | BL64: 2 | BM64: 5 | BN64: 6 | BO64: 19 | BP64: 35 | BQ64: 7 | BR64: 24 | BS64: 16 | BT64: 12 | BU64: 10 | BV64: 10 | BW64: 9 | BX64: 12 | BY64: 6 | BZ64: 6 | CA64: 4 | CB64: 6 | CC64: 0 | CD64: 0 | CE64: 2 | CF64: 3 | CI64: 28 | CJ64: 19 | CK64: 55 | CL64: 193 | CM64: 93 | CN64: 26 | CO64: 16 | CP64: 65 | CQ64: 79 | CR64: 37 | CS64: 11 | CT64: 13 | CU64: 13 | CV64: 22 | CW64: 26 | CX64: 17 | CY64: 35 | CZ64: 33 | DA64: 31 | DB64: 41 | DC64: 30 | DD64: 23 | DE64: 27 | DF64: 20 | DG64: 18 | DH64: 13 | DI64: 15 | DJ64: 14 | DK64: 12 | DL64: 9 | DM64: 11 | DN64: 21 | DO64: 19 | DP64: 35 | DQ64: 7 | DR64: 24 | DS64: 16 | DT64: 12 | DU64: 10 | DV64: 10 | DW64: 9 | DX64: 12 | DY64: 6 | DZ64: 6 | EA64: 4 | EB64: 6
A65: 040407 | B65: AREQUIPA | C65: AREQUIPA | D65: CASTILLA | E65: HUANCARQUI | F65: 1621 | G65: 926 | H65: 6 | I65: 8 | J65: 4 | K65: 6 | L65: 7 | M65: 4 | N65: 7 | O65: 8 | P65: 8 | Q65: 10 | R65: 11 | S65: 11 | T65: 8 | U65: 8 | V65: 11 | W65: 9 | X65: 11 | Y65: 11 | Z65: 8 | AA65: 13 | AB65: 46 | AC65: 67 | AD65: 77 | AE65: 73 | AF65: 81 | AG65: 73 | AH65: 74 | AI65: 61 | AJ65: 54 | AK65: 48 | AL65: 44 | AM65: 24 | AN65: 19 | AO65: 16 | AP65: 0 | AQ65: 3 | AR65: 3 | AS65: 6 | AT65: 695 | AU65: 5 | AV65: 15 | AW65: 8 | AX65: 5 | AY65: 7 | AZ65: 5 | BA65: 15 | BB65: 8 | BC65: 5 | BD65: 7 | BE65: 5 | BF65: 9 | BG65: 7 | BH65: 10 | BI65: 8 | BJ65: 9 | BK65: 3 | BL65: 10 | BM65: 8 | BN65: 13 | BO65: 75 | BP65: 39 | BQ65: 65 | BR65: 43 | BS65: 42 | BT65: 43 | BU65: 34 | BV65: 49 | BW65: 35 | BX65: 29 | BY65: 22 | BZ65: 21 | CA65: 16 | CB65: 20 | CC65: 1 | CD65: 2 | CE65: 3 | CF65: 5 | CI65: 90 | CJ65: 58 | CK65: 134 | CL65: 439 | CM65: 189 | CN65: 94 | CO65: 47 | CP65: 135 | CQ65: 276 | CR65: 123 | CS65: 31 | CT65: 37 | CU65: 49 | CV65: 52 | CW65: 46 | CX65: 67 | CY65: 77 | CZ65: 73 | DA65: 81 | DB65: 73 | DC65: 74 | DD65: 61 | DE65: 54 | DF65: 48 | DG65: 44 | DH65: 24 | DI65: 19 | DJ65: 16 | DK65: 40 | DL65: 40 | DM65: 39 | DN65: 43 | DO65: 75 | DP65: 39 | DQ65: 65 | DR65: 43 | DS65: 42 | DT65: 43 | DU65: 34 | DV65: 49 | DW65: 35 | DX65: 29 | DY65: 22 | DZ65: 21 | EA65: 16 | EB65: 20
A66: 040408 | B66: AREQUIPA | C66: AREQUIPA | D66: CASTILLA | E66: MACHAGUAY | F66: 413 | G66: 235 | H66: 3 | I66: 1 | J66: 5 | K66: 1 | L66: 4 | M66: 2 | N66: 0 | O66: 2 | P66: 0 | Q66: 3 | R66: 3 | S66: 1 | T66: 3 | U66: 3 | V66: 2 | W66: 2 | X66: 4 | Y66: 6 | Z66: 3 | AA66: 1 | AB66: 11 | AC66: 12 | AD66: 11 | AE66: 10 | AF66: 13 | AG66: 13 | AH66: 16 | AI66: 19 | AJ66: 18 | AK66: 9 | AL66: 20 | AM66: 11 | AN66: 11 | AO66: 12 | AP66: 0 | AQ66: 1 | AR66: 2 | AS66: 4 | AT66: 178 | AU66: 1 | AV66: 2 | AW66: 2 | AX66: 2 | AY66: 2 | AZ66: 1 | BA66: 1 | BB66: 1 | BC66: 1 | BD66: 1 | BE66: 1 | BF66: 2 | BG66: 2 | BH66: 2 | BI66: 1 | BJ66: 1 | BK66: 4 | BL66: 2 | BM66: 3 | BN66: 5 | BO66: 18 | BP66: 19 | BQ66: 13 | BR66: 19 | BS66: 22 | BT66: 11 | BU66: 6 | BV66: 4 | BW66: 3 | BX66: 6 | BY66: 6 | BZ66: 6 | CA66: 3 | CB66: 5 | CC66: 0 | CD66: 1 | CE66: 0 | CF66: 1 | CI66: 25 | CJ66: 20 | CK66: 27 | CL66: 82 | CM66: 69 | CN66: 17 | CO66: 12 | CP66: 45 | CQ66: 75 | CR66: 24 | CS66: 14 | CT66: 7 | CU66: 12 | CV66: 16 | CW66: 11 | CX66: 12 | CY66: 11 | CZ66: 10 | DA66: 13 | DB66: 13 | DC66: 16 | DD66: 19 | DE66: 18 | DF66: 9 | DG66: 20 | DH66: 11 | DI66: 11 | DJ66: 12 | DK66: 9 | DL66: 5 | DM66: 8 | DN66: 15 | DO66: 18 | DP66: 19 | DQ66: 13 | DR66: 19 | DS66: 22 | DT66: 11 | DU66: 6 | DV66: 4 | DW66: 3 | DX66: 6 | DY66: 6 | DZ66: 6 | EA66: 3 | EB66: 5
A67: 040409 | B67: AREQUIPA | C67: AREQUIPA | D67: CASTILLA | E67: ORCOPAMPA | F67: 8577 | G67: 3743 | H67: 24 | I67: 47 | J67: 39 | K67: 57 | L67: 81 | M67: 91 | N67: 61 | O67: 63 | P67: 70 | Q67: 80 | R67: 80 | S67: 74 | T67: 73 | U67: 73 | V67: 74 | W67: 97 | X67: 83 | Y67: 113 | Z67: 63 | AA67: 49 | AB67: 301 | AC67: 324 | AD67: 257 | AE67: 303 | AF67: 254 | AG67: 190 | AH67: 181 | AI67: 171 | AJ67: 120 | AK67: 94 | AL67: 67 | AM67: 40 | AN67: 23 | AO67: 26 | AP67: 0 | AQ67: 14 | AR67: 10 | AS67: 31 | AT67: 4,834 | AU67: 28 | AV67: 43 | AW67: 36 | AX67: 62 | AY67: 81 | AZ67: 71 | BA67: 67 | BB67: 53 | BC67: 87 | BD67: 110 | BE67: 94 | BF67: 51 | BG67: 61 | BH67: 79 | BI67: 66 | BJ67: 81 | BK67: 80 | BL67: 66 | BM67: 83 | BN67: 91 | BO67: 607 | BP67: 531 | BQ67: 470 | BR67: 396 | BS67: 294 | BT67: 273 | BU67: 190 | BV67: 180 | BW67: 154 | BX67: 123 | BY67: 89 | BZ67: 50 | CA67: 44 | CB67: 43 | CC67: 3 | CD67: 11 | CE67: 17 | CF67: 37 | CI67: 767 | CJ67: 513 | CK67: 737 | CL67: 1,356 | CM67: 344 | CN67: 783 | CO67: 433 | CP67: 1,312 | CQ67: 1,803 | CR67: 460 | CS67: 248 | CT67: 365 | CU67: 374 | CV67: 405 | CW67: 301 | CX67: 324 | CY67: 257 | CZ67: 303 | DA67: 254 | DB67: 190 | DC67: 181 | DD67: 171 | DE67: 120 | DF67: 94 | DG67: 67 | DH67: 40 | DI67: 23 | DJ67: 26 | DK67: 250 | DL67: 388 | DM67: 351 | DN67: 401 | DO67: 607 | DP67: 531 | DQ67: 470 | DR67: 396 | DS67: 294 | DT67: 273 | DU67: 190 | DV67: 180 | DW67: 154 | DX67: 123 | DY67: 89 | DZ67: 50 | EA67: 44 | EB67: 43
A68: 040410 | B68: AREQUIPA | C68: AREQUIPA | D68: CASTILLA | E68: PAMPACOLCA | F68: 1728 | G68: 854 | H68: 15 | I68: 16 | J68: 5 | K68: 12 | L68: 16 | M68: 11 | N68: 11 | O68: 8 | P68: 12 | Q68: 7 | R68: 16 | S68: 13 | T68: 12 | U68: 14 | V68: 11 | W68: 16 | X68: 12 | Y68: 16 | Z68: 8 | AA68: 16 | AB68: 62 | AC68: 53 | AD68: 42 | AE68: 37 | AF68: 43 | AG68: 55 | AH68: 49 | AI68: 69 | AJ68: 38 | AK68: 41 | AL68: 24 | AM68: 40 | AN68: 29 | AO68: 25 | AP68: 2 | AQ68: 8 | AR68: 7 | AS68: 22 | AT68: 874 | AU68: 19 | AV68: 18 | AW68: 15 | AX68: 11 | AY68: 13 | AZ68: 10 | BA68: 14 | BB68: 10 | BC68: 8 | BD68: 8 | BE68: 6 | BF68: 7 | BG68: 8 | BH68: 13 | BI68: 12 | BJ68: 12 | BK68: 14 | BL68: 13 | BM68: 12 | BN68: 13 | BO68: 99 | BP68: 106 | BQ68: 91 | BR68: 63 | BS68: 69 | BT68: 54 | BU68: 29 | BV68: 25 | BW68: 20 | BX68: 20 | BY68: 17 | BZ68: 17 | CA68: 14 | CB68: 14 | CC68: 0 | CD68: 11 | CE68: 8 | CF68: 28 | CI68: 142 | CJ68: 81 | CK68: 139 | CL68: 295 | CM68: 172 | CN68: 139 | CO68: 72 | CP68: 230 | CQ68: 331 | CR68: 88 | CS68: 64 | CT68: 49 | CU68: 66 | CV68: 68 | CW68: 62 | CX68: 53 | CY68: 42 | CZ68: 37 | DA68: 43 | DB68: 55 | DC68: 49 | DD68: 69 | DE68: 38 | DF68: 41 | DG68: 24 | DH68: 40 | DI68: 29 | DJ68: 25 | DK68: 76 | DL68: 50 | DM68: 46 | DN68: 64 | DO68: 99 | DP68: 106 | DQ68: 91 | DR68: 63 | DS68: 69 | DT68: 54 | DU68: 29 | DV68: 25 | DW68: 20 | DX68: 20 | DY68: 17 | DZ68: 17 | EA68: 14 | EB68: 14
A69: 040411 | B69: AREQUIPA | C69: AREQUIPA | D69: CASTILLA | E69: TIPAN | F69: 420 | G69: 222 | H69: 2 | I69: 1 | J69: 0 | K69: 1 | L69: 1 | M69: 2 | N69: 3 | O69: 3 | P69: 1 | Q69: 0 | R69: 0 | S69: 2 | T69: 3 | U69: 4 | V69: 1 | W69: 2 | X69: 0 | Y69: 5 | Z69: 5 | AA69: 4 | AB69: 10 | AC69: 15 | AD69: 12 | AE69: 11 | AF69: 13 | AG69: 14 | AH69: 11 | AI69: 25 | AJ69: 18 | AK69: 12 | AL69: 10 | AM69: 14 | AN69: 5 | AO69: 12 | AP69: 0 | AQ69: 1 | AR69: 1 | AS69: 2 | AT69: 198 | AU69: 0 | AV69: 2 | AW69: 0 | AX69: 2 | AY69: 2 | AZ69: 3 | BA69: 2 | BB69: 0 | BC69: 2 | BD69: 2 | BE69: 3 | BF69: 2 | BG69: 2 | BH69: 2 | BI69: 3 | BJ69: 1 | BK69: 3 | BL69: 2 | BM69: 4 | BN69: 0 | BO69: 27 | BP69: 17 | BQ69: 19 | BR69: 28 | BS69: 23 | BT69: 10 | BU69: 5 | BV69: 6 | BW69: 4 | BX69: 6 | BY69: 4 | BZ69: 4 | CA69: 3 | CB69: 5 | CC69: 0 | CD69: 0 | CE69: 0 | CF69: 0 | CI69: 16 | CJ69: 15 | CK69: 34 | CL69: 86 | CM69: 59 | CN69: 20 | CO69: 13 | CP69: 48 | CQ69: 91 | CR69: 21 | CS69: 5 | CT69: 9 | CU69: 10 | CV69: 16 | CW69: 10 | CX69: 15 | CY69: 12 | CZ69: 11 | DA69: 13 | DB69: 14 | DC69: 11 | DD69: 25 | DE69: 18 | DF69: 12 | DG69: 10 | DH69: 14 | DI69: 5 | DJ69: 12 | DK69: 6 | DL69: 9 | DM69: 12 | DN69: 10 | DO69: 27 | DP69: 17 | DQ69: 19 | DR69: 28 | DS69: 23 | DT69: 10 | DU69: 5 | DV69: 6 | DW69: 4 | DX69: 6 | DY69: 4 | DZ69: 4 | EA69: 3 | EB69: 5
A70: 040412 | B70: AREQUIPA | C70: AREQUIPA | D70: CASTILLA | E70: UÑON | F70: 191 | G70: 116 | H70: 0 | I70: 3 | J70: 0 | K70: 2 | L70: 2 | M70: 1 | N70: 0 | O70: 0 | P70: 2 | Q70: 0 | R70: 2 | S70: 0 | T70: 0 | U70: 0 | V70: 2 | W70: 1 | X70: 1 | Y70: 1 | Z70: 0 | AA70: 0 | AB70: 5 | AC70: 6 | AD70: 7 | AE70: 10 | AF70: 8 | AG70: 10 | AH70: 11 | AI70: 5 | AJ70: 11 | AK70: 8 | AL70: 9 | AM70: 3 | AN70: 4 | AO70: 2 | AP70: 0 | AQ70: 0 | AR70: 0 | AS70: 0 | AT70: 75 | AU70: 2 | AV70: 0 | AW70: 0 | AX70: 0 | AY70: 1 | AZ70: 0 | BA70: 0 | BB70: 0 | BC70: 0 | BD70: 1 | BE70: 0 | BF70: 3 | BG70: 0 | BH70: 1 | BI70: 3 | BJ70: 0 | BK70: 1 | BL70: 0 | BM70: 0 | BN70: 2 | BO70: 6 | BP70: 6 | BQ70: 5 | BR70: 0 | BS70: 10 | BT70: 4 | BU70: 9 | BV70: 4 | BW70: 2 | BX70: 4 | BY70: 3 | BZ70: 2 | CA70: 2 | CB70: 4 | CC70: 0 | CD70: 2 | CE70: 0 | CF70: 2 | CI70: 12 | CJ70: 5 | CK70: 11 | CL70: 51 | CM70: 35 | CN70: 7 | CO70: 5 | CP70: 14 | CQ70: 32 | CR70: 13 | CS70: 7 | CT70: 3 | CU70: 4 | CV70: 3 | CW70: 5 | CX70: 6 | CY70: 7 | CZ70: 10 | DA70: 8 | DB70: 10 | DC70: 11 | DD70: 5 | DE70: 11 | DF70: 8 | DG70: 9 | DH70: 3 | DI70: 4 | DJ70: 2 | DK70: 3 | DL70: 1 | DM70: 7 | DN70: 3 | DO70: 6 | DP70: 6 | DQ70: 5 | DR70: 0 | DS70: 10 | DT70: 4 | DU70: 9 | DV70: 4 | DW70: 2 | DX70: 4 | DY70: 3 | DZ70: 2 | EA70: 2 | EB70: 4
A71: 040413 | B71: AREQUIPA | C71: AREQUIPA | D71: CASTILLA | E71: URACA | F71: 6397 | G71: 3185 | H71: 40 | I71: 37 | J71: 43 | K71: 40 | L71: 34 | M71: 44 | N71: 38 | O71: 31 | P71: 38 | Q71: 37 | R71: 30 | S71: 38 | T71: 40 | U71: 46 | V71: 40 | W71: 54 | X71: 47 | Y71: 39 | Z71: 39 | AA71: 56 | AB71: 233 | AC71: 276 | AD71: 208 | AE71: 226 | AF71: 226 | AG71: 197 | AH71: 218 | AI71: 206 | AJ71: 181 | AK71: 133 | AL71: 111 | AM71: 67 | AN71: 48 | AO71: 44 | AP71: 3 | AQ71: 20 | AR71: 20 | AS71: 52 | AT71: 3,212 | AU71: 31 | AV71: 27 | AW71: 37 | AX71: 51 | AY71: 31 | AZ71: 45 | BA71: 26 | BB71: 33 | BC71: 44 | BD71: 25 | BE71: 37 | BF71: 37 | BG71: 45 | BH71: 38 | BI71: 40 | BJ71: 47 | BK71: 39 | BL71: 43 | BM71: 47 | BN71: 42 | BO71: 307 | BP71: 405 | BQ71: 289 | BR71: 239 | BS71: 233 | BT71: 183 | BU71: 172 | BV71: 134 | BW71: 133 | BX71: 111 | BY71: 85 | BZ71: 62 | CA71: 47 | CB71: 47 | CC71: 1 | CD71: 15 | CE71: 16 | CF71: 41 | CI71: 450 | CJ71: 266 | CK71: 604 | CL71: 1,281 | CM71: 540 | CN71: 424 | CO71: 252 | CP71: 801 | CQ71: 1,250 | CR71: 438 | CS71: 194 | CT71: 188 | CU71: 194 | CV71: 235 | CW71: 233 | CX71: 276 | CY71: 208 | CZ71: 226 | DA71: 226 | DB71: 197 | DC71: 218 | DD71: 206 | DE71: 181 | DF71: 133 | DG71: 111 | DH71: 67 | DI71: 48 | DJ71: 44 | DK71: 177 | DL71: 173 | DM71: 197 | DN71: 218 | DO71: 307 | DP71: 405 | DQ71: 289 | DR71: 239 | DS71: 233 | DT71: 183 | DU71: 172 | DV71: 134 | DW71: 133 | DX71: 111 | DY71: 85 | DZ71: 62 | EA71: 47 | EB71: 47
A72: 040414 | B72: AREQUIPA | C72: AREQUIPA | D72: CASTILLA | E72: VIRACO | F72: 1384 | G72: 743 | H72: 12 | I72: 9 | J72: 8 | K72: 6 | L72: 9 | M72: 7 | N72: 7 | O72: 7 | P72: 7 | Q72: 3 | R72: 4 | S72: 7 | T72: 8 | U72: 8 | V72: 8 | W72: 7 | X72: 4 | Y72: 18 | Z72: 7 | AA72: 9 | AB72: 38 | AC72: 46 | AD72: 33 | AE72: 34 | AF72: 50 | AG72: 48 | AH72: 55 | AI72: 47 | AJ72: 55 | AK72: 63 | AL72: 33 | AM72: 35 | AN72: 30 | AO72: 21 | AP72: 1 | AQ72: 6 | AR72: 6 | AS72: 14 | AT72: 641 | AU72: 3 | AV72: 2 | AW72: 6 | AX72: 5 | AY72: 4 | AZ72: 7 | BA72: 2 | BB72: 6 | BC72: 5 | BD72: 4 | BE72: 6 | BF72: 11 | BG72: 9 | BH72: 7 | BI72: 9 | BJ72: 6 | BK72: 10 | BL72: 16 | BM72: 11 | BN72: 11 | BO72: 59 | BP72: 99 | BQ72: 61 | BR72: 58 | BS72: 47 | BT72: 39 | BU72: 28 | BV72: 20 | BW72: 16 | BX72: 19 | BY72: 17 | BZ72: 13 | CA72: 10 | CB72: 15 | CC72: 0 | CD72: 2 | CE72: 1 | CF72: 4 | CI72: 86 | CJ72: 53 | CK72: 100 | CL72: 267 | CM72: 216 | CN72: 61 | CO72: 57 | CP72: 180 | CQ72: 253 | CR72: 75 | CS72: 44 | CT72: 31 | CU72: 35 | CV72: 45 | CW72: 38 | CX72: 46 | CY72: 33 | CZ72: 34 | DA72: 50 | DB72: 48 | DC72: 55 | DD72: 47 | DE72: 55 | DF72: 63 | DG72: 33 | DH72: 35 | DI72: 30 | DJ72: 21 | DK72: 20 | DL72: 24 | DM72: 42 | DN72: 54 | DO72: 59 | DP72: 99 | DQ72: 61 | DR72: 58 | DS72: 47 | DT72: 39 | DU72: 28 | DV72: 20 | DW72: 16 | DX72: 19 | DY72: 17 | DZ72: 13 | EA72: 10 | EB72: 15
A73: 040501 | B73: AREQUIPA | C73: AREQUIPA | D73: CAYLLOMA | E73: CHIVAY | F73: 6058 | G73: 2739 | H73: 19 | I73: 32 | J73: 33 | K73: 59 | L73: 59 | M73: 70 | N73: 32 | O73: 46 | P73: 42 | Q73: 46 | R73: 43 | S73: 56 | T73: 51 | U73: 44 | V73: 56 | W73: 63 | X73: 58 | Y73: 52 | Z73: 51 | AA73: 45 | AB73: 260 | AC73: 236 | AD73: 215 | AE73: 195 | AF73: 146 | AG73: 147 | AH73: 118 | AI73: 135 | AJ73: 106 | AK73: 69 | AL73: 56 | AM73: 47 | AN73: 26 | AO73: 26 | AP73: 0 | AQ73: 15 | AR73: 4 | AS73: 23 | AT73: 3,319 | AU73: 29 | AV73: 43 | AW73: 38 | AX73: 45 | AY73: 70 | AZ73: 69 | BA73: 38 | BB73: 32 | BC73: 36 | BD73: 54 | BE73: 52 | BF73: 54 | BG73: 43 | BH73: 49 | BI73: 48 | BJ73: 50 | BK73: 42 | BL73: 56 | BM73: 54 | BN73: 45 | BO73: 282 | BP73: 333 | BQ73: 295 | BR73: 302 | BS73: 246 | BT73: 239 | BU73: 181 | BV73: 140 | BW73: 104 | BX73: 87 | BY73: 57 | BZ73: 39 | CA73: 37 | CB73: 30 | CC73: 2 | CD73: 15 | CE73: 14 | CF73: 34 | CI73: 537 | CJ73: 324 | CK73: 592 | CL73: 956 | CM73: 304 | CN73: 560 | CO73: 288 | CP73: 714 | CQ73: 1,403 | CR73: 324 | CS73: 202 | CT73: 236 | CU73: 250 | CV73: 269 | CW73: 260 | CX73: 236 | CY73: 215 | CZ73: 195 | DA73: 146 | DB73: 147 | DC73: 118 | DD73: 135 | DE73: 106 | DF73: 69 | DG73: 56 | DH73: 47 | DI73: 26 | DJ73: 26 | DK73: 225 | DL73: 229 | DM73: 246 | DN73: 247 | DO73: 282 | DP73: 333 | DQ73: 295 | DR73: 302 | DS73: 246 | DT73: 239 | DU73: 181 | DV73: 140 | DW73: 104 | DX73: 87 | DY73: 57 | DZ73: 39 | EA73: 37 | EB73: 30
A74: 040502 | B74: AREQUIPA | C74: AREQUIPA | D74: CAYLLOMA | E74: ACHOMA | F74: 824 | G74: 464 | H74: 5 | I74: 5 | J74: 1 | K74: 7 | L74: 6 | M74: 3 | N74: 5 | O74: 4 | P74: 2 | Q74: 1 | R74: 3 | S74: 6 | T74: 7 | U74: 1 | V74: 4 | W74: 4 | X74: 4 | Y74: 7 | Z74: 3 | AA74: 7 | AB74: 38 | AC74: 43 | AD74: 35 | AE74: 21 | AF74: 30 | AG74: 38 | AH74: 33 | AI74: 40 | AJ74: 27 | AK74: 21 | AL74: 18 | AM74: 13 | AN74: 11 | AO74: 11 | AP74: 0 | AQ74: 2 | AR74: 3 | AS74: 7 | AT74: 360 | AU74: 5 | AV74: 4 | AW74: 5 | AX74: 3 | AY74: 5 | AZ74: 4 | BA74: 3 | BB74: 4 | BC74: 2 | BD74: 4 | BE74: 3 | BF74: 3 | BG74: 5 | BH74: 4 | BI74: 3 | BJ74: 2 | BK74: 3 | BL74: 4 | BM74: 4 | BN74: 6 | BO74: 38 | BP74: 30 | BQ74: 20 | BR74: 19 | BS74: 40 | BT74: 23 | BU74: 25 | BV74: 15 | BW74: 15 | BX74: 16 | BY74: 14 | BZ74: 11 | CA74: 8 | CB74: 10 | CC74: 0 | CD74: 2 | CE74: 3 | CF74: 6 | CI74: 48 | CJ74: 27 | CK74: 91 | CL74: 197 | CM74: 90 | CN74: 45 | CO74: 21 | CP74: 78 | CQ74: 142 | CR74: 64 | CS74: 24 | CT74: 15 | CU74: 21 | CV74: 25 | CW74: 38 | CX74: 43 | CY74: 35 | CZ74: 21 | DA74: 30 | DB74: 38 | DC74: 33 | DD74: 40 | DE74: 27 | DF74: 21 | DG74: 18 | DH74: 13 | DI74: 11 | DJ74: 11 | DK74: 22 | DL74: 17 | DM74: 18 | DN74: 19 | DO74: 38 | DP74: 30 | DQ74: 20 | DR74: 19 | DS74: 40 | DT74: 23 | DU74: 25 | DV74: 15 | DW74: 15 | DX74: 16 | DY74: 14 | DZ74: 11 | EA74: 8 | EB74: 10
A75: 040503 | B75: AREQUIPA | C75: AREQUIPA | D75: CAYLLOMA | E75: CABANACONDE | F75: 2065 | G75: 1080 | H75: 8 | I75: 13 | J75: 9 | K75: 9 | L75: 2 | M75: 11 | N75: 8 | O75: 11 | P75: 7 | Q75: 8 | R75: 11 | S75: 12 | T75: 12 | U75: 16 | V75: 14 | W75: 12 | X75: 15 | Y75: 17 | Z75: 15 | AA75: 10 | AB75: 77 | AC75: 77 | AD75: 67 | AE75: 62 | AF75: 77 | AG75: 71 | AH75: 79 | AI75: 93 | AJ75: 68 | AK75: 65 | AL75: 42 | AM75: 28 | AN75: 24 | AO75: 30 | AP75: 0 | AQ75: 5 | AR75: 3 | AS75: 11 | AT75: 985 | AU75: 13 | AV75: 15 | AW75: 6 | AX75: 11 | AY75: 11 | AZ75: 13 | BA75: 14 | BB75: 5 | BC75: 10 | BD75: 9 | BE75: 11 | BF75: 19 | BG75: 12 | BH75: 11 | BI75: 7 | BJ75: 9 | BK75: 11 | BL75: 11 | BM75: 16 | BN75: 14 | BO75: 68 | BP75: 154 | BQ75: 72 | BR75: 60 | BS75: 77 | BT75: 60 | BU75: 61 | BV75: 44 | BW75: 34 | BX75: 33 | BY75: 29 | BZ75: 25 | CA75: 24 | CB75: 16 | CC75: 0 | CD75: 3 | CE75: 10 | CF75: 17 | CI75: 109 | CJ75: 86 | CK75: 179 | CL75: 449 | CM75: 227 | CN75: 137 | CO75: 61 | CP75: 252 | CQ75: 374 | CR75: 145 | CS75: 41 | CT75: 45 | CU75: 65 | CV75: 69 | CW75: 77 | CX75: 77 | CY75: 67 | CZ75: 62 | DA75: 77 | DB75: 71 | DC75: 79 | DD75: 93 | DE75: 68 | DF75: 65 | DG75: 42 | DH75: 28 | DI75: 24 | DJ75: 30 | DK75: 56 | DL75: 51 | DM75: 60 | DN75: 61 | DO75: 68 | DP75: 154 | DQ75: 72 | DR75: 60 | DS75: 77 | DT75: 60 | DU75: 61 | DV75: 44 | DW75: 34 | DX75: 33 | DY75: 29 | DZ75: 25 | EA75: 24 | EB75: 16
A76: 040504 | B76: AREQUIPA | C76: AREQUIPA | D76: CAYLLOMA | E76: CALLALLI | F76: 1315 | G76: 708 | H76: 11 | I76: 14 | J76: 5 | K76: 10 | L76: 9 | M76: 6 | N76: 7 | O76: 5 | P76: 6 | Q76: 9 | R76: 6 | S76: 8 | T76: 6 | U76: 10 | V76: 7 | W76: 5 | X76: 6 | Y76: 5 | Z76: 7 | AA76: 5 | AB76: 44 | AC76: 60 | AD76: 55 | AE76: 49 | AF76: 43 | AG76: 55 | AH76: 52 | AI76: 53 | AJ76: 48 | AK76: 35 | AL76: 28 | AM76: 21 | AN76: 9 | AO76: 9 | AP76: 1 | AQ76: 6 | AR76: 5 | AS76: 13 | AT76: 607 | AU76: 7 | AV76: 16 | AW76: 5 | AX76: 7 | AY76: 9 | AZ76: 7 | BA76: 12 | BB76: 3 | BC76: 5 | BD76: 6 | BE76: 4 | BF76: 8 | BG76: 5 | BH76: 6 | BI76: 7 | BJ76: 7 | BK76: 11 | BL76: 5 | BM76: 11 | BN76: 4 | BO76: 51 | BP76: 72 | BQ76: 36 | BR76: 42 | BS76: 41 | BT76: 44 | BU76: 39 | BV76: 29 | BW76: 24 | BX76: 18 | BY76: 20 | BZ76: 18 | CA76: 14 | CB76: 14 | CC76: 1 | CD76: 4 | CE76: 3 | CF76: 8 | CI76: 96 | CJ76: 39 | CK76: 116 | CL76: 307 | CM76: 141 | CN76: 89 | CO76: 41 | CP76: 138 | CQ76: 231 | CR76: 94 | CS76: 49 | CT76: 33 | CU76: 37 | CV76: 28 | CW76: 44 | CX76: 60 | CY76: 55 | CZ76: 49 | DA76: 43 | DB76: 55 | DC76: 52 | DD76: 53 | DE76: 48 | DF76: 35 | DG76: 28 | DH76: 21 | DI76: 9 | DJ76: 9 | DK76: 44 | DL76: 33 | DM76: 30 | DN76: 38 | DO76: 51 | DP76: 72 | DQ76: 36 | DR76: 42 | DS76: 41 | DT76: 44 | DU76: 39 | DV76: 29 | DW76: 24 | DX76: 18 | DY76: 20 | DZ76: 18 | EA76: 14 | EB76: 14
A77: 040505 | B77: AREQUIPA | C77: AREQUIPA | D77: CAYLLOMA | E77: CAYLLOMA | F77: 3647 | G77: 1754 | H77: 29 | I77: 36 | J77: 34 | K77: 20 | L77: 28 | M77: 35 | N77: 13 | O77: 29 | P77: 26 | Q77: 28 | R77: 30 | S77: 29 | T77: 32 | U77: 24 | V77: 33 | W77: 33 | X77: 33 | Y77: 40 | Z77: 30 | AA77: 22 | AB77: 158 | AC77: 151 | AD77: 124 | AE77: 135 | AF77: 108 | AG77: 96 | AH77: 92 | AI77: 96 | AJ77: 71 | AK77: 54 | AL77: 38 | AM77: 21 | AN77: 14 | AO77: 12 | AP77: 3 | AQ77: 15 | AR77: 14 | AS77: 38 | AT77: 1,893 | AU77: 36 | AV77: 20 | AW77: 20 | AX77: 17 | AY77: 29 | AZ77: 27 | BA77: 17 | BB77: 16 | BC77: 13 | BD77: 21 | BE77: 19 | BF77: 23 | BG77: 19 | BH77: 28 | BI77: 29 | BJ77: 33 | BK77: 35 | BL77: 37 | BM77: 30 | BN77: 35 | BO77: 197 | BP77: 156 | BQ77: 152 | BR77: 196 | BS77: 148 | BT77: 133 | BU77: 110 | BV77: 72 | BW77: 62 | BX77: 54 | BY77: 39 | BZ77: 27 | CA77: 19 | CB77: 24 | CC77: 5 | CD77: 17 | CE77: 19 | CF77: 47 | CI77: 337 | CJ77: 195 | CK77: 361 | CL77: 651 | CM77: 198 | CN77: 258 | CO77: 181 | CP77: 418 | CQ77: 811 | CR77: 201 | CS77: 147 | CT77: 131 | CU77: 148 | CV77: 158 | CW77: 158 | CX77: 151 | CY77: 124 | CZ77: 135 | DA77: 108 | DB77: 96 | DC77: 92 | DD77: 96 | DE77: 71 | DF77: 54 | DG77: 38 | DH77: 21 | DI77: 14 | DJ77: 12 | DK77: 122 | DL77: 94 | DM77: 118 | DN77: 170 | DO77: 197 | DP77: 156 | DQ77: 152 | DR77: 196 | DS77: 148 | DT77: 133 | DU77: 110 | DV77: 72 | DW77: 62 | DX77: 54 | DY77: 39 | DZ77: 27 | EA77: 19 | EB77: 24
A78: 040506 | B78: AREQUIPA | C78: AREQUIPA | D78: CAYLLOMA | E78: COPORAQUE | F78: 1091 | G78: 558 | H78: 6 | I78: 6 | J78: 8 | K78: 4 | L78: 8 | M78: 4 | N78: 9 | O78: 8 | P78: 4 | Q78: 3 | R78: 0 | S78: 5 | T78: 9 | U78: 5 | V78: 3 | W78: 8 | X78: 9 | Y78: 3 | Z78: 4 | AA78: 9 | AB78: 34 | AC78: 35 | AD78: 39 | AE78: 50 | AF78: 58 | AG78: 33 | AH78: 28 | AI78: 36 | AJ78: 39 | AK78: 29 | AL78: 19 | AM78: 16 | AN78: 12 | AO78: 15 | AP78: 1 | AQ78: 4 | AR78: 2 | AS78: 8 | AT78: 533 | AU78: 5 | AV78: 10 | AW78: 9 | AX78: 5 | AY78: 5 | AZ78: 4 | BA78: 11 | BB78: 9 | BC78: 5 | BD78: 5 | BE78: 4 | BF78: 7 | BG78: 6 | BH78: 7 | BI78: 9 | BJ78: 6 | BK78: 5 | BL78: 3 | BM78: 5 | BN78: 5 | BO78: 41 | BP78: 31 | BQ78: 54 | BR78: 47 | BS78: 26 | BT78: 31 | BU78: 42 | BV78: 25 | BW78: 28 | BX78: 31 | BY78: 19 | BZ78: 15 | CA78: 8 | CB78: 10 | CC78: 0 | CD78: 1 | CE78: 4 | CF78: 7 | CI78: 65 | CJ78: 37 | CK78: 82 | CL78: 244 | CM78: 115 | CN78: 79 | CO78: 36 | CP78: 82 | CQ78: 225 | CR78: 101 | CS78: 32 | CT78: 28 | CU78: 22 | CV78: 33 | CW78: 34 | CX78: 35 | CY78: 39 | CZ78: 50 | DA78: 58 | DB78: 33 | DC78: 28 | DD78: 36 | DE78: 39 | DF78: 29 | DG78: 19 | DH78: 16 | DI78: 12 | DJ78: 15 | DK78: 34 | DL78: 34 | DM78: 33 | DN78: 24 | DO78: 41 | DP78: 31 | DQ78: 54 | DR78: 47 | DS78: 26 | DT78: 31 | DU78: 42 | DV78: 25 | DW78: 28 | DX78: 31 | DY78: 19 | DZ78: 15 | EA78: 8 | EB78: 10
A79: 040507 | B79: AREQUIPA | C79: AREQUIPA | D79: CAYLLOMA | E79: HUAMBO | F79: 643 | G79: 358 | H79: 4 | I79: 2 | J79: 5 | K79: 4 | L79: 6 | M79: 3 | N79: 4 | O79: 4 | P79: 1 | Q79: 3 | R79: 5 | S79: 4 | T79: 4 | U79: 2 | V79: 4 | W79: 2 | X79: 7 | Y79: 7 | Z79: 5 | AA79: 2 | AB79: 19 | AC79: 26 | AD79: 25 | AE79: 18 | AF79: 21 | AG79: 23 | AH79: 26 | AI79: 23 | AJ79: 21 | AK79: 20 | AL79: 11 | AM79: 20 | AN79: 12 | AO79: 15 | AP79: 1 | AQ79: 3 | AR79: 1 | AS79: 5 | AT79: 285 | AU79: 3 | AV79: 4 | AW79: 3 | AX79: 3 | AY79: 5 | AZ79: 2 | BA79: 3 | BB79: 2 | BC79: 2 | BD79: 4 | BE79: 1 | BF79: 3 | BG79: 2 | BH79: 1 | BI79: 1 | BJ79: 5 | BK79: 4 | BL79: 3 | BM79: 3 | BN79: 6 | BO79: 34 | BP79: 39 | BQ79: 39 | BR79: 23 | BS79: 11 | BT79: 18 | BU79: 12 | BV79: 9 | BW79: 9 | BX79: 9 | BY79: 5 | BZ79: 7 | CA79: 6 | CB79: 4 | CC79: 0 | CD79: 1 | CE79: 2 | CF79: 3 | CI79: 45 | CJ79: 26 | CK79: 52 | CL79: 136 | CM79: 84 | CN79: 35 | CO79: 16 | CP79: 82 | CQ79: 112 | CR79: 36 | CS79: 21 | CT79: 15 | CU79: 19 | CV79: 23 | CW79: 19 | CX79: 26 | CY79: 25 | CZ79: 18 | DA79: 21 | DB79: 23 | DC79: 26 | DD79: 23 | DE79: 21 | DF79: 20 | DG79: 11 | DH79: 20 | DI79: 12 | DJ79: 15 | DK79: 18 | DL79: 13 | DM79: 8 | DN79: 21 | DO79: 34 | DP79: 39 | DQ79: 39 | DR79: 23 | DS79: 11 | DT79: 18 | DU79: 12 | DV79: 9 | DW79: 9 | DX79: 9 | DY79: 5 | DZ79: 7 | EA79: 6 | EB79: 4
A80: 040508 | B80: AREQUIPA | C80: AREQUIPA | D80: CAYLLOMA | E80: HUANCA | F80: 966 | G80: 580 | H80: 7 | I80: 6 | J80: 1 | K80: 6 | L80: 9 | M80: 5 | N80: 1 | O80: 2 | P80: 2 | Q80: 2 | R80: 4 | S80: 3 | T80: 6 | U80: 5 | V80: 5 | W80: 3 | X80: 6 | Y80: 8 | Z80: 4 | AA80: 5 | AB80: 29 | AC80: 35 | AD80: 32 | AE80: 38 | AF80: 52 | AG80: 51 | AH80: 51 | AI80: 42 | AJ80: 46 | AK80: 33 | AL80: 31 | AM80: 18 | AN80: 18 | AO80: 14 | AP80: 0 | AQ80: 5 | AR80: 2 | AS80: 9 | AT80: 386 | AU80: 6 | AV80: 2 | AW80: 2 | AX80: 6 | AY80: 10 | AZ80: 7 | BA80: 1 | BB80: 1 | BC80: 4 | BD80: 6 | BE80: 4 | BF80: 4 | BG80: 2 | BH80: 3 | BI80: 5 | BJ80: 5 | BK80: 3 | BL80: 3 | BM80: 6 | BN80: 5 | BO80: 20 | BP80: 36 | BQ80: 33 | BR80: 28 | BS80: 38 | BT80: 25 | BU80: 22 | BV80: 17 | BW80: 18 | BX80: 16 | BY80: 15 | BZ80: 12 | CA80: 9 | CB80: 12 | CC80: 0 | CD80: 5 | CE80: 1 | CF80: 8 | CI80: 48 | CJ80: 33 | CK80: 73 | CL80: 266 | CM80: 146 | CN80: 53 | CO80: 21 | CP80: 67 | CQ80: 163 | CR80: 70 | CS80: 29 | CT80: 12 | CU80: 23 | CV80: 26 | CW80: 29 | CX80: 35 | CY80: 32 | CZ80: 38 | DA80: 52 | DB80: 51 | DC80: 51 | DD80: 42 | DE80: 46 | DF80: 33 | DG80: 31 | DH80: 18 | DI80: 18 | DJ80: 14 | DK80: 26 | DL80: 19 | DM80: 18 | DN80: 22 | DO80: 20 | DP80: 36 | DQ80: 33 | DR80: 28 | DS80: 38 | DT80: 25 | DU80: 22 | DV80: 17 | DW80: 18 | DX80: 16 | DY80: 15 | DZ80: 12 | EA80: 9 | EB80: 12
A81: 040509 | B81: AREQUIPA | C81: AREQUIPA | D81: CAYLLOMA | E81: ICHUPAMPA | F81: 577 | G81: 334 | H81: 5 | I81: 6 | J81: 3 | K81: 5 | L81: 3 | M81: 6 | N81: 1 | O81: 1 | P81: 2 | Q81: 4 | R81: 5 | S81: 4 | T81: 5 | U81: 3 | V81: 3 | W81: 3 | X81: 6 | Y81: 4 | Z81: 2 | AA81: 4 | AB81: 16 | AC81: 24 | AD81: 31 | AE81: 21 | AF81: 22 | AG81: 21 | AH81: 21 | AI81: 24 | AJ81: 19 | AK81: 19 | AL81: 19 | AM81: 8 | AN81: 9 | AO81: 5 | AP81: 0 | AQ81: 3 | AR81: 2 | AS81: 5 | AT81: 243 | AU81: 3 | AV81: 8 | AW81: 0 | AX81: 3 | AY81: 1 | AZ81: 3 | BA81: 6 | BB81: 0 | BC81: 2 | BD81: 1 | BE81: 2 | BF81: 4 | BG81: 4 | BH81: 4 | BI81: 1 | BJ81: 2 | BK81: 5 | BL81: 5 | BM81: 3 | BN81: 6 | BO81: 12 | BP81: 13 | BQ81: 26 | BR81: 4 | BS81: 21 | BT81: 19 | BU81: 19 | BV81: 16 | BW81: 15 | BX81: 10 | BY81: 9 | BZ81: 6 | CA81: 4 | CB81: 6 | CC81: 1 | CD81: 2 | CE81: 1 | CF81: 3 | CI81: 45 | CJ81: 24 | CK81: 46 | CL81: 140 | CM81: 74 | CN81: 33 | CO81: 21 | CP81: 34 | CQ81: 105 | CR81: 44 | CS81: 22 | CT81: 14 | CU81: 20 | CV81: 19 | CW81: 16 | CX81: 24 | CY81: 31 | CZ81: 21 | DA81: 22 | DB81: 21 | DC81: 21 | DD81: 24 | DE81: 19 | DF81: 19 | DG81: 19 | DH81: 8 | DI81: 9 | DJ81: 5 | DK81: 15 | DL81: 12 | DM81: 15 | DN81: 21 | DO81: 12 | DP81: 13 | DQ81: 26 | DR81: 4 | DS81: 21 | DT81: 19 | DU81: 19 | DV81: 16 | DW81: 15 | DX81: 10 | DY81: 9 | DZ81: 6 | EA81: 4 | EB81: 6
A82: 040510 | B82: AREQUIPA | C82: AREQUIPA | D82: CAYLLOMA | E82: LARI | F82: 818 | G82: 419 | H82: 8 | I82: 8 | J82: 5 | K82: 5 | L82: 3 | M82: 7 | N82: 3 | O82: 3 | P82: 3 | Q82: 6 | R82: 5 | S82: 4 | T82: 4 | U82: 8 | V82: 5 | W82: 5 | X82: 6 | Y82: 5 | Z82: 7 | AA82: 9 | AB82: 30 | AC82: 38 | AD82: 38 | AE82: 24 | AF82: 29 | AG82: 29 | AH82: 24 | AI82: 20 | AJ82: 24 | AK82: 21 | AL82: 9 | AM82: 9 | AN82: 9 | AO82: 6 | AP82: 1 | AQ82: 1 | AR82: 7 | AS82: 8 | AT82: 399 | AU82: 5 | AV82: 7 | AW82: 6 | AX82: 3 | AY82: 5 | AZ82: 8 | BA82: 5 | BB82: 4 | BC82: 2 | BD82: 3 | BE82: 4 | BF82: 3 | BG82: 5 | BH82: 1 | BI82: 3 | BJ82: 7 | BK82: 7 | BL82: 4 | BM82: 8 | BN82: 7 | BO82: 39 | BP82: 41 | BQ82: 30 | BR82: 39 | BS82: 31 | BT82: 28 | BU82: 22 | BV82: 17 | BW82: 11 | BX82: 12 | BY82: 11 | BZ82: 8 | CA82: 7 | CB82: 6 | CC82: 0 | CD82: 4 | CE82: 1 | CF82: 5 | CI82: 60 | CJ82: 33 | CK82: 84 | CL82: 164 | CM82: 72 | CN82: 55 | CO82: 27 | CP82: 95 | CQ82: 167 | CR82: 49 | CS82: 29 | CT82: 22 | CU82: 26 | CV82: 32 | CW82: 30 | CX82: 38 | CY82: 38 | CZ82: 24 | DA82: 29 | DB82: 29 | DC82: 24 | DD82: 20 | DE82: 24 | DF82: 21 | DG82: 9 | DH82: 9 | DI82: 9 | DJ82: 6 | DK82: 26 | DL82: 22 | DM82: 16 | DN82: 33 | DO82: 39 | DP82: 41 | DQ82: 30 | DR82: 39 | DS82: 31 | DT82: 28 | DU82: 22 | DV82: 17 | DW82: 11 | DX82: 12 | DY82: 11 | DZ82: 8 | EA82: 7 | EB82: 6
A83: 040511 | B83: AREQUIPA | C83: AREQUIPA | D83: CAYLLOMA | E83: LLUTA | F83: 706 | G83: 428 | H83: 4 | I83: 4 | J83: 5 | K83: 2 | L83: 6 | M83: 10 | N83: 1 | O83: 1 | P83: 4 | Q83: 2 | R83: 2 | S83: 5 | T83: 3 | U83: 7 | V83: 5 | W83: 3 | X83: 4 | Y83: 7 | Z83: 3 | AA83: 4 | AB83: 18 | AC83: 18 | AD83: 28 | AE83: 31 | AF83: 35 | AG83: 37 | AH83: 32 | AI83: 36 | AJ83: 25 | AK83: 25 | AL83: 22 | AM83: 15 | AN83: 14 | AO83: 10 | AP83: 0 | AQ83: 3 | AR83: 1 | AS83: 6 | AT83: 278 | AU83: 4 | AV83: 3 | AW83: 2 | AX83: 3 | AY83: 3 | AZ83: 6 | BA83: 1 | BB83: 1 | BC83: 1 | BD83: 1 | BE83: 3 | BF83: 1 | BG83: 3 | BH83: 4 | BI83: 1 | BJ83: 3 | BK83: 4 | BL83: 5 | BM83: 5 | BN83: 2 | BO83: 46 | BP83: 17 | BQ83: 30 | BR83: 39 | BS83: 5 | BT83: 16 | BU83: 12 | BV83: 10 | BW83: 10 | BX83: 9 | BY83: 9 | BZ83: 7 | CA83: 6 | CB83: 6 | CC83: 2 | CD83: 2 | CE83: 2 | CF83: 5 | CI83: 46 | CJ83: 29 | CK83: 43 | CL83: 199 | CM83: 101 | CN83: 29 | CO83: 20 | CP83: 70 | CQ83: 112 | CR83: 41 | CS83: 21 | CT83: 18 | CU83: 22 | CV83: 21 | CW83: 18 | CX83: 18 | CY83: 28 | CZ83: 31 | DA83: 35 | DB83: 37 | DC83: 32 | DD83: 36 | DE83: 25 | DF83: 25 | DG83: 22 | DH83: 15 | DI83: 14 | DJ83: 10 | DK83: 15 | DL83: 10 | DM83: 12 | DN83: 19 | DO83: 46 | DP83: 17 | DQ83: 30 | DR83: 39 | DS83: 5 | DT83: 16 | DU83: 12 | DV83: 10 | DW83: 10 | DX83: 9 | DY83: 9 | DZ83: 7 | EA83: 6 | EB83: 6
A84: 040512 | B84: AREQUIPA | C84: AREQUIPA | D84: CAYLLOMA | E84: MACA | F84: 662 | G84: 373 | H84: 2 | I84: 0 | J84: 4 | K84: 0 | L84: 1 | M84: 2 | N84: 2 | O84: 3 | P84: 3 | Q84: 2 | R84: 2 | S84: 4 | T84: 2 | U84: 3 | V84: 5 | W84: 5 | X84: 5 | Y84: 5 | Z84: 1 | AA84: 9 | AB84: 27 | AC84: 28 | AD84: 23 | AE84: 30 | AF84: 30 | AG84: 30 | AH84: 32 | AI84: 23 | AJ84: 19 | AK84: 18 | AL84: 15 | AM84: 19 | AN84: 5 | AO84: 14 | AP84: 1 | AQ84: 2 | AR84: 0 | AS84: 3 | AT84: 289 | AU84: 6 | AV84: 4 | AW84: 2 | AX84: 3 | AY84: 5 | AZ84: 0 | BA84: 3 | BB84: 2 | BC84: 2 | BD84: 4 | BE84: 0 | BF84: 3 | BG84: 4 | BH84: 3 | BI84: 2 | BJ84: 3 | BK84: 1 | BL84: 3 | BM84: 2 | BN84: 2 | BO84: 26 | BP84: 23 | BQ84: 29 | BR84: 24 | BS84: 19 | BT84: 20 | BU84: 17 | BV84: 12 | BW84: 18 | BX84: 15 | BY84: 12 | BZ84: 7 | CA84: 7 | CB84: 6 | CC84: 1 | CD84: 2 | CE84: 4 | CF84: 7 | CI84: 25 | CJ84: 25 | CK84: 65 | CL84: 168 | CM84: 76 | CN84: 34 | CO84: 16 | CP84: 53 | CQ84: 121 | CR84: 59 | CS84: 7 | CT84: 12 | CU84: 16 | CV84: 25 | CW84: 27 | CX84: 28 | CY84: 23 | CZ84: 30 | DA84: 30 | DB84: 30 | DC84: 32 | DD84: 23 | DE84: 19 | DF84: 18 | DG84: 15 | DH84: 19 | DI84: 5 | DJ84: 14 | DK84: 20 | DL84: 11 | DM84: 12 | DN84: 11 | DO84: 26 | DP84: 23 | DQ84: 29 | DR84: 24 | DS84: 19 | DT84: 20 | DU84: 17 | DV84: 12 | DW84: 18 | DX84: 15 | DY84: 12 | DZ84: 7 | EA84: 7 | EB84: 6
A85: 040513 | B85: AREQUIPA | C85: AREQUIPA | D85: CAYLLOMA | E85: MADRIGAL | F85: 655 | G85: 365 | H85: 2 | I85: 0 | J85: 4 | K85: 2 | L85: 5 | M85: 3 | N85: 2 | O85: 3 | P85: 3 | Q85: 1 | R85: 4 | S85: 0 | T85: 4 | U85: 3 | V85: 3 | W85: 1 | X85: 6 | Y85: 3 | Z85: 4 | AA85: 3 | AB85: 23 | AC85: 21 | AD85: 25 | AE85: 30 | AF85: 23 | AG85: 30 | AH85: 25 | AI85: 21 | AJ85: 26 | AK85: 23 | AL85: 20 | AM85: 18 | AN85: 13 | AO85: 11 | AP85: 0 | AQ85: 1 | AR85: 1 | AS85: 3 | AT85: 290 | AU85: 2 | AV85: 2 | AW85: 2 | AX85: 1 | AY85: 1 | AZ85: 3 | BA85: 2 | BB85: 2 | BC85: 1 | BD85: 1 | BE85: 3 | BF85: 3 | BG85: 0 | BH85: 3 | BI85: 4 | BJ85: 2 | BK85: 2 | BL85: 4 | BM85: 5 | BN85: 4 | BO85: 30 | BP85: 21 | BQ85: 38 | BR85: 19 | BS85: 27 | BT85: 21 | BU85: 17 | BV85: 11 | BW85: 13 | BX85: 11 | BY85: 11 | BZ85: 7 | CA85: 6 | CB85: 11 | CC85: 0 | CD85: 1 | CE85: 1 | CF85: 2 | CI85: 29 | CJ85: 20 | CK85: 51 | CL85: 154 | CM85: 100 | CN85: 23 | CO85: 15 | CP85: 60 | CQ85: 133 | CR85: 48 | CS85: 13 | CT85: 12 | CU85: 14 | CV85: 17 | CW85: 23 | CX85: 21 | CY85: 25 | CZ85: 30 | DA85: 23 | DB85: 30 | DC85: 25 | DD85: 21 | DE85: 26 | DF85: 23 | DG85: 20 | DH85: 18 | DI85: 13 | DJ85: 11 | DK85: 8 | DL85: 9 | DM85: 13 | DN85: 17 | DO85: 30 | DP85: 21 | DQ85: 38 | DR85: 19 | DS85: 27 | DT85: 21 | DU85: 17 | DV85: 11 | DW85: 13 | DX85: 11 | DY85: 11 | DZ85: 7 | EA85: 6 | EB85: 11
A86: 040514 | B86: AREQUIPA | C86: AREQUIPA | D86: CAYLLOMA | E86: SAN ANTONIO DE CHUCA | F86: 861 | G86: 437 | H86: 5 | I86: 4 | J86: 7 | K86: 3 | L86: 7 | M86: 8 | N86: 6 | O86: 8 | P86: 6 | Q86: 6 | R86: 7 | S86: 5 | T86: 6 | U86: 7 | V86: 7 | W86: 6 | X86: 8 | Y86: 11 | Z86: 7 | AA86: 6 | AB86: 27 | AC86: 27 | AD86: 24 | AE86: 24 | AF86: 36 | AG86: 27 | AH86: 29 | AI86: 33 | AJ86: 26 | AK86: 18 | AL86: 19 | AM86: 10 | AN86: 4 | AO86: 3 | AP86: 1 | AQ86: 5 | AR86: 0 | AS86: 6 | AT86: 424 | AU86: 4 | AV86: 5 | AW86: 5 | AX86: 2 | AY86: 5 | AZ86: 9 | BA86: 4 | BB86: 4 | BC86: 1 | BD86: 4 | BE86: 6 | BF86: 4 | BG86: 4 | BH86: 6 | BI86: 6 | BJ86: 9 | BK86: 8 | BL86: 3 | BM86: 4 | BN86: 6 | BO86: 40 | BP86: 50 | BQ86: 45 | BR86: 39 | BS86: 21 | BT86: 25 | BU86: 21 | BV86: 16 | BW86: 21 | BX86: 12 | BY86: 12 | BZ86: 8 | CA86: 7 | CB86: 8 | CC86: 0 | CD86: 2 | CE86: 2 | CF86: 5 | CI86: 72 | CJ86: 45 | CK86: 67 | CL86: 173 | CM86: 77 | CN86: 53 | CO86: 36 | CP86: 100 | CQ86: 167 | CR86: 60 | CS86: 26 | CT86: 34 | CU86: 32 | CV86: 38 | CW86: 27 | CX86: 27 | CY86: 24 | CZ86: 24 | DA86: 36 | DB86: 27 | DC86: 29 | DD86: 33 | DE86: 26 | DF86: 18 | DG86: 19 | DH86: 10 | DI86: 4 | DJ86: 3 | DK86: 21 | DL86: 22 | DM86: 26 | DN86: 30 | DO86: 40 | DP86: 50 | DQ86: 45 | DR86: 39 | DS86: 21 | DT86: 25 | DU86: 21 | DV86: 16 | DW86: 21 | DX86: 12 | DY86: 12 | DZ86: 8 | EA86: 7 | EB86: 8
A87: 040515 | B87: AREQUIPA | C87: AREQUIPA | D87: CAYLLOMA | E87: SIBAYO | F87: 684 | G87: 349 | H87: 1 | I87: 7 | J87: 3 | K87: 3 | L87: 2 | M87: 4 | N87: 2 | O87: 4 | P87: 2 | Q87: 4 | R87: 2 | S87: 6 | T87: 3 | U87: 5 | V87: 5 | W87: 7 | X87: 5 | Y87: 7 | Z87: 5 | AA87: 5 | AB87: 28 | AC87: 25 | AD87: 28 | AE87: 25 | AF87: 25 | AG87: 32 | AH87: 22 | AI87: 17 | AJ87: 20 | AK87: 13 | AL87: 14 | AM87: 5 | AN87: 8 | AO87: 5 | AP87: 1 | AQ87: 1 | AR87: 0 | AS87: 1 | AT87: 335 | AU87: 4 | AV87: 4 | AW87: 5 | AX87: 3 | AY87: 5 | AZ87: 4 | BA87: 3 | BB87: 4 | BC87: 2 | BD87: 4 | BE87: 3 | BF87: 2 | BG87: 5 | BH87: 4 | BI87: 5 | BJ87: 4 | BK87: 3 | BL87: 4 | BM87: 5 | BN87: 1 | BO87: 35 | BP87: 40 | BQ87: 20 | BR87: 20 | BS87: 23 | BT87: 27 | BU87: 23 | BV87: 17 | BW87: 14 | BX87: 14 | BY87: 11 | BZ87: 5 | CA87: 6 | CB87: 6 | CC87: 1 | CD87: 4 | CE87: 0 | CF87: 4 | CI87: 40 | CJ87: 32 | CK87: 63 | CL87: 149 | CM87: 60 | CN87: 43 | CO87: 25 | CP87: 81 | CQ87: 130 | CR87: 50 | CS87: 16 | CT87: 16 | CU87: 21 | CV87: 29 | CW87: 28 | CX87: 25 | CY87: 28 | CZ87: 25 | DA87: 25 | DB87: 32 | DC87: 22 | DD87: 17 | DE87: 20 | DF87: 13 | DG87: 14 | DH87: 5 | DI87: 8 | DJ87: 5 | DK87: 21 | DL87: 17 | DM87: 19 | DN87: 17 | DO87: 35 | DP87: 40 | DQ87: 20 | DR87: 20 | DS87: 23 | DT87: 27 | DU87: 23 | DV87: 17 | DW87: 14 | DX87: 14 | DY87: 11 | DZ87: 5 | EA87: 6 | EB87: 6
A88: 040516 | B88: AREQUIPA | C88: AREQUIPA | D88: CAYLLOMA | E88: TAPAY | F88: 843 | G88: 506 | H88: 8 | I88: 2 | J88: 6 | K88: 1 | L88: 2 | M88: 6 | N88: 5 | O88: 7 | P88: 4 | Q88: 4 | R88: 1 | S88: 3 | T88: 4 | U88: 4 | V88: 8 | W88: 5 | X88: 5 | Y88: 4 | Z88: 4 | AA88: 5 | AB88: 32 | AC88: 39 | AD88: 32 | AE88: 44 | AF88: 46 | AG88: 36 | AH88: 36 | AI88: 34 | AJ88: 34 | AK88: 34 | AL88: 22 | AM88: 14 | AN88: 10 | AO88: 5 | AP88: 1 | AQ88: 3 | AR88: 5 | AS88: 11 | AT88: 337 | AU88: 3 | AV88: 6 | AW88: 3 | AX88: 2 | AY88: 1 | AZ88: 8 | BA88: 6 | BB88: 3 | BC88: 2 | BD88: 1 | BE88: 6 | BF88: 4 | BG88: 1 | BH88: 5 | BI88: 3 | BJ88: 2 | BK88: 4 | BL88: 5 | BM88: 3 | BN88: 8 | BO88: 26 | BP88: 43 | BQ88: 29 | BR88: 28 | BS88: 27 | BT88: 15 | BU88: 18 | BV88: 17 | BW88: 18 | BX88: 12 | BY88: 10 | BZ88: 5 | CA88: 5 | CB88: 8 | CC88: 0 | CD88: 2 | CE88: 1 | CF88: 4 | CI88: 49 | CJ88: 30 | CK88: 80 | CL88: 228 | CM88: 114 | CN88: 45 | CO88: 20 | CP88: 80 | CQ88: 134 | CR88: 50 | CS88: 19 | CT88: 26 | CU88: 20 | CV88: 23 | CW88: 32 | CX88: 39 | CY88: 32 | CZ88: 44 | DA88: 46 | DB88: 36 | DC88: 36 | DD88: 34 | DE88: 34 | DF88: 34 | DG88: 22 | DH88: 14 | DI88: 10 | DJ88: 5 | DK88: 15 | DL88: 20 | DM88: 19 | DN88: 22 | DO88: 26 | DP88: 43 | DQ88: 29 | DR88: 28 | DS88: 27 | DT88: 15 | DU88: 18 | DV88: 17 | DW88: 18 | DX88: 12 | DY88: 10 | DZ88: 5 | EA88: 5 | EB88: 8
A89: 040517 | B89: AREQUIPA | C89: AREQUIPA | D89: CAYLLOMA | E89: TISCO | F89: 1495 | G89: 806 | H89: 6 | I89: 9 | J89: 7 | K89: 12 | L89: 11 | M89: 11 | N89: 7 | O89: 8 | P89: 7 | Q89: 7 | R89: 5 | S89: 12 | T89: 17 | U89: 7 | V89: 17 | W89: 10 | X89: 16 | Y89: 17 | Z89: 14 | AA89: 10 | AB89: 64 | AC89: 52 | AD89: 56 | AE89: 51 | AF89: 62 | AG89: 58 | AH89: 56 | AI89: 57 | AJ89: 38 | AK89: 32 | AL89: 22 | AM89: 31 | AN89: 8 | AO89: 9 | AP89: 0 | AQ89: 2 | AR89: 4 | AS89: 7 | AT89: 689 | AU89: 9 | AV89: 5 | AW89: 12 | AX89: 5 | AY89: 10 | AZ89: 8 | BA89: 4 | BB89: 10 | BC89: 4 | BD89: 7 | BE89: 6 | BF89: 9 | BG89: 7 | BH89: 7 | BI89: 7 | BJ89: 7 | BK89: 7 | BL89: 9 | BM89: 12 | BN89: 11 | BO89: 86 | BP89: 44 | BQ89: 71 | BR89: 72 | BS89: 42 | BT89: 56 | BU89: 40 | BV89: 23 | BW89: 22 | BX89: 21 | BY89: 16 | BZ89: 15 | CA89: 12 | CB89: 13 | CC89: 0 | CD89: 6 | CE89: 3 | CF89: 10 | CI89: 102 | CJ89: 84 | CK89: 140 | CL89: 340 | CM89: 131 | CN89: 89 | CO89: 44 | CP89: 153 | CQ89: 304 | CR89: 86 | CS89: 45 | CT89: 40 | CU89: 58 | CV89: 67 | CW89: 64 | CX89: 52 | CY89: 56 | CZ89: 51 | DA89: 62 | DB89: 58 | DC89: 56 | DD89: 57 | DE89: 38 | DF89: 32 | DG89: 22 | DH89: 31 | DI89: 8 | DJ89: 9 | DK89: 41 | DL89: 33 | DM89: 36 | DN89: 46 | DO89: 86 | DP89: 44 | DQ89: 71 | DR89: 72 | DS89: 42 | DT89: 56 | DU89: 40 | DV89: 23 | DW89: 22 | DX89: 21 | DY89: 16 | DZ89: 15 | EA89: 12 | EB89: 13
A90: 040518 | B90: AREQUIPA | C90: AREQUIPA | D90: CAYLLOMA | E90: TUTI | F90: 593 | G90: 317 | H90: 2 | I90: 3 | J90: 3 | K90: 4 | L90: 6 | M90: 3 | N90: 5 | O90: 6 | P90: 2 | Q90: 2 | R90: 4 | S90: 4 | T90: 4 | U90: 4 | V90: 4 | W90: 3 | X90: 8 | Y90: 7 | Z90: 6 | AA90: 9 | AB90: 24 | AC90: 21 | AD90: 19 | AE90: 26 | AF90: 23 | AG90: 23 | AH90: 19 | AI90: 21 | AJ90: 12 | AK90: 8 | AL90: 14 | AM90: 8 | AN90: 6 | AO90: 4 | AP90: 1 | AQ90: 1 | AR90: 1 | AS90: 2 | AT90: 276 | AU90: 4 | AV90: 7 | AW90: 2 | AX90: 4 | AY90: 2 | AZ90: 4 | BA90: 5 | BB90: 1 | BC90: 3 | BD90: 1 | BE90: 3 | BF90: 3 | BG90: 3 | BH90: 2 | BI90: 3 | BJ90: 4 | BK90: 4 | BL90: 3 | BM90: 1 | BN90: 0 | BO90: 33 | BP90: 29 | BQ90: 10 | BR90: 26 | BS90: 19 | BT90: 23 | BU90: 17 | BV90: 16 | BW90: 12 | BX90: 13 | BY90: 7 | BZ90: 4 | CA90: 3 | CB90: 5 | CC90: 0 | CD90: 2 | CE90: 2 | CF90: 4 | CI90: 44 | CJ90: 30 | CK90: 60 | CL90: 131 | CM90: 48 | CN90: 39 | CO90: 19 | CP90: 63 | CQ90: 111 | CR90: 39 | CS90: 18 | CT90: 18 | CU90: 20 | CV90: 33 | CW90: 24 | CX90: 21 | CY90: 19 | CZ90: 26 | DA90: 23 | DB90: 23 | DC90: 19 | DD90: 21 | DE90: 12 | DF90: 8 | DG90: 14 | DH90: 8 | DI90: 6 | DJ90: 4 | DK90: 19 | DL90: 14 | DM90: 14 | DN90: 12 | DO90: 33 | DP90: 29 | DQ90: 10 | DR90: 26 | DS90: 19 | DT90: 23 | DU90: 17 | DV90: 16 | DW90: 12 | DX90: 13 | DY90: 7 | DZ90: 4 | EA90: 3 | EB90: 5
A91: 040519 | B91: AREQUIPA | C91: AREQUIPA | D91: CAYLLOMA | E91: YANQUE | F91: 2155 | G91: 1152 | H91: 11 | I91: 16 | J91: 10 | K91: 10 | L91: 16 | M91: 14 | N91: 13 | O91: 10 | P91: 9 | Q91: 10 | R91: 14 | S91: 11 | T91: 16 | U91: 11 | V91: 8 | W91: 13 | X91: 16 | Y91: 19 | Z91: 20 | AA91: 21 | AB91: 87 | AC91: 102 | AD91: 95 | AE91: 84 | AF91: 82 | AG91: 77 | AH91: 67 | AI91: 60 | AJ91: 69 | AK91: 56 | AL91: 48 | AM91: 31 | AN91: 13 | AO91: 13 | AP91: 1 | AQ91: 5 | AR91: 6 | AS91: 15 | AT91: 1,003 | AU91: 14 | AV91: 24 | AW91: 15 | AX91: 12 | AY91: 14 | AZ91: 14 | BA91: 22 | BB91: 13 | BC91: 10 | BD91: 11 | BE91: 11 | BF91: 12 | BG91: 13 | BH91: 8 | BI91: 13 | BJ91: 14 | BK91: 10 | BL91: 14 | BM91: 16 | BN91: 15 | BO91: 53 | BP91: 75 | BQ91: 93 | BR91: 73 | BS91: 71 | BT91: 73 | BU91: 68 | BV91: 55 | BW91: 46 | BX91: 41 | BY91: 32 | BZ91: 19 | CA91: 15 | CB91: 14 | CC91: 1 | CD91: 7 | CE91: 7 | CF91: 18 | CI91: 144 | CJ91: 83 | CK91: 230 | CL91: 465 | CM91: 217 | CN91: 172 | CO91: 72 | CP91: 159 | CQ91: 433 | CR91: 153 | CS91: 63 | CT91: 56 | CU91: 60 | CV91: 89 | CW91: 87 | CX91: 102 | CY91: 95 | CZ91: 84 | DA91: 82 | DB91: 77 | DC91: 67 | DD91: 60 | DE91: 69 | DF91: 56 | DG91: 48 | DH91: 31 | DI91: 13 | DJ91: 13 | DK91: 79 | DL91: 70 | DM91: 57 | DN91: 69 | DO91: 53 | DP91: 75 | DQ91: 93 | DR91: 73 | DS91: 71 | DT91: 73 | DU91: 68 | DV91: 55 | DW91: 46 | DX91: 41 | DY91: 32 | DZ91: 19 | EA91: 15 | EB91: 14
A92: 040520 | B92: AREQUIPA | C92: AREQUIPA | D92: CAYLLOMA | E92: MAJES | F92: 73831 | G92: 35000 | H92: 611 | I92: 651 | J92: 670 | K92: 655 | L92: 636 | M92: 611 | N92: 550 | O92: 580 | P92: 490 | Q92: 517 | R92: 502 | S92: 535 | T92: 528 | U92: 541 | V92: 539 | W92: 487 | X92: 558 | Y92: 555 | Z92: 542 | AA92: 529 | AB92: 2,561 | AC92: 2,812 | AD92: 2,781 | AE92: 2,923 | AF92: 2,702 | AG92: 2,386 | AH92: 2,006 | AI92: 1,676 | AJ92: 1,257 | AK92: 996 | AL92: 755 | AM92: 480 | AN92: 235 | AO92: 143 | AP92: 41 | AQ92: 299 | AR92: 312 | AS92: 744 | AT92: 38,831 | AU92: 604 | AV92: 673 | AW92: 669 | AX92: 649 | AY92: 633 | AZ92: 606 | BA92: 747 | BB92: 690 | BC92: 645 | BD92: 607 | BE92: 565 | BF92: 537 | BG92: 569 | BH92: 512 | BI92: 540 | BJ92: 539 | BK92: 542 | BL92: 523 | BM92: 558 | BN92: 618 | BO92: 2,723 | BP92: 3,411 | BQ92: 2,933 | BR92: 2,847 | BS92: 2,529 | BT92: 2,288 | BU92: 2,270 | BV92: 2,053 | BW92: 1,807 | BX92: 1,394 | BY92: 1,023 | BZ92: 670 | CA92: 431 | CB92: 426 | CC92: 39 | CD92: 296 | CE92: 308 | CF92: 736 | CI92: 7,008 | CJ92: 3,208 | CK92: 6,444 | CL92: 14,474 | CM92: 3,723 | CN92: 7,625 | CO92: 3,225 | CP92: 7,310 | CQ92: 14,920 | CR92: 5,325 | CS92: 3,223 | CT92: 2,748 | CU92: 2,645 | CV92: 2,671 | CW92: 2,561 | CX92: 2,812 | CY92: 2,781 | CZ92: 2,923 | DA92: 2,702 | DB92: 2,386 | DC92: 2,006 | DD92: 1,676 | DE92: 1,257 | DF92: 996 | DG92: 755 | DH92: 480 | DI92: 235 | DJ92: 143 | DK92: 3,228 | DL92: 3,295 | DM92: 2,723 | DN92: 2,780 | DO92: 2,723 | DP92: 3,411 | DQ92: 2,933 | DR92: 2,847 | DS92: 2,529 | DT92: 2,288 | DU92: 2,270 | DV92: 2,053 | DW92: 1,807 | DX92: 1,394 | DY92: 1,023 | DZ92: 670 | EA92: 431 | EB92: 426
A93: 040601 | B93: AREQUIPA | C93: AREQUIPA | D93: CONDESUYOS | E93: CHUQUIBAMBA | F93: 3356 | G93: 1613 | H93: 17 | I93: 23 | J93: 22 | K93: 37 | L93: 35 | M93: 21 | N93: 23 | O93: 24 | P93: 26 | Q93: 23 | R93: 21 | S93: 25 | T93: 30 | U93: 22 | V93: 29 | W93: 41 | X93: 29 | Y93: 25 | Z93: 35 | AA93: 25 | AB93: 114 | AC93: 110 | AD93: 97 | AE93: 86 | AF93: 102 | AG93: 91 | AH93: 77 | AI93: 78 | AJ93: 64 | AK93: 79 | AL93: 72 | AM93: 43 | AN93: 36 | AO93: 31 | AP93: 1 | AQ93: 5 | AR93: 12 | AS93: 23 | AT93: 1,743 | AU93: 20 | AV93: 20 | AW93: 20 | AX93: 22 | AY93: 21 | AZ93: 37 | BA93: 20 | BB93: 18 | BC93: 20 | BD93: 18 | BE93: 31 | BF93: 18 | BG93: 21 | BH93: 23 | BI93: 31 | BJ93: 31 | BK93: 29 | BL93: 30 | BM93: 26 | BN93: 38 | BO93: 154 | BP93: 170 | BQ93: 195 | BR93: 110 | BS93: 113 | BT93: 123 | BU93: 96 | BV93: 66 | BW93: 49 | BX93: 52 | BY93: 40 | BZ93: 31 | CA93: 24 | CB93: 26 | CC93: 3 | CD93: 10 | CE93: 10 | CF93: 28 | CI93: 297 | CJ93: 176 | CK93: 284 | CL93: 531 | CM93: 294 | CN93: 265 | CO93: 165 | CP93: 388 | CQ93: 703 | CR93: 196 | CS93: 134 | CT93: 117 | CU93: 127 | CV93: 155 | CW93: 114 | CX93: 110 | CY93: 97 | CZ93: 86 | DA93: 102 | DB93: 91 | DC93: 77 | DD93: 78 | DE93: 64 | DF93: 79 | DG93: 72 | DH93: 43 | DI93: 36 | DJ93: 31 | DK93: 103 | DL93: 113 | DM93: 124 | DN93: 154 | DO93: 154 | DP93: 170 | DQ93: 195 | DR93: 110 | DS93: 113 | DT93: 123 | DU93: 96 | DV93: 66 | DW93: 49 | DX93: 52 | DY93: 40 | DZ93: 31 | EA93: 24 | EB93: 26
A94: 040602 | B94: AREQUIPA | C94: AREQUIPA | D94: CONDESUYOS | E94: ANDARAY | F94: 664 | G94: 380 | H94: 3 | I94: 2 | J94: 1 | K94: 1 | L94: 1 | M94: 1 | N94: 2 | O94: 0 | P94: 2 | Q94: 4 | R94: 4 | S94: 4 | T94: 4 | U94: 2 | V94: 1 | W94: 5 | X94: 5 | Y94: 7 | Z94: 2 | AA94: 6 | AB94: 20 | AC94: 30 | AD94: 26 | AE94: 35 | AF94: 20 | AG94: 27 | AH94: 28 | AI94: 26 | AJ94: 22 | AK94: 26 | AL94: 22 | AM94: 12 | AN94: 14 | AO94: 15 | AP94: 0 | AQ94: 1 | AR94: 2 | AS94: 4 | AT94: 284 | AU94: 1 | AV94: 2 | AW94: 3 | AX94: 1 | AY94: 2 | AZ94: 4 | BA94: 2 | BB94: 4 | BC94: 1 | BD94: 2 | BE94: 5 | BF94: 4 | BG94: 2 | BH94: 4 | BI94: 6 | BJ94: 4 | BK94: 2 | BL94: 2 | BM94: 6 | BN94: 2 | BO94: 27 | BP94: 7 | BQ94: 25 | BR94: 18 | BS94: 29 | BT94: 16 | BU94: 25 | BV94: 13 | BW94: 18 | BX94: 11 | BY94: 13 | BZ94: 7 | CA94: 5 | CB94: 11 | CC94: 1 | CD94: 1 | CE94: 0 | CF94: 1 | CI94: 25 | CJ94: 24 | CK94: 58 | CL94: 162 | CM94: 96 | CN94: 31 | CO94: 20 | CP94: 42 | CQ94: 126 | CR94: 54 | CS94: 8 | CT94: 9 | CU94: 15 | CV94: 25 | CW94: 20 | CX94: 30 | CY94: 26 | CZ94: 35 | DA94: 20 | DB94: 27 | DC94: 28 | DD94: 26 | DE94: 22 | DF94: 26 | DG94: 22 | DH94: 12 | DI94: 14 | DJ94: 15 | DK94: 9 | DL94: 13 | DM94: 21 | DN94: 16 | DO94: 27 | DP94: 7 | DQ94: 25 | DR94: 18 | DS94: 29 | DT94: 16 | DU94: 25 | DV94: 13 | DW94: 18 | DX94: 11 | DY94: 13 | DZ94: 7 | EA94: 5 | EB94: 11
A95: 040603 | B95: AREQUIPA | C95: AREQUIPA | D95: CONDESUYOS | E95: CAYARANI | F95: 3241 | G95: 1471 | H95: 28 | I95: 25 | J95: 15 | K95: 15 | L95: 15 | M95: 18 | N95: 23 | O95: 19 | P95: 24 | Q95: 19 | R95: 24 | S95: 21 | T95: 24 | U95: 28 | V95: 26 | W95: 35 | X95: 38 | Y95: 26 | Z95: 29 | AA95: 27 | AB95: 136 | AC95: 130 | AD95: 123 | AE95: 93 | AF95: 82 | AG95: 94 | AH95: 67 | AI95: 97 | AJ95: 58 | AK95: 44 | AL95: 32 | AM95: 11 | AN95: 10 | AO95: 15 | AP95: 0 | AQ95: 13 | AR95: 15 | AS95: 35 | AT95: 1,770 | AU95: 22 | AV95: 11 | AW95: 27 | AX95: 33 | AY95: 21 | AZ95: 27 | BA95: 11 | BB95: 26 | BC95: 29 | BD95: 18 | BE95: 23 | BF95: 18 | BG95: 22 | BH95: 21 | BI95: 25 | BJ95: 22 | BK95: 28 | BL95: 18 | BM95: 32 | BN95: 27 | BO95: 215 | BP95: 167 | BQ95: 184 | BR95: 155 | BS95: 166 | BT95: 124 | BU95: 78 | BV95: 53 | BW95: 49 | BX95: 38 | BY95: 29 | BZ95: 19 | CA95: 16 | CB95: 16 | CC95: 2 | CD95: 10 | CE95: 12 | CF95: 28 | CI95: 246 | CJ95: 177 | CK95: 322 | CL95: 556 | CM95: 155 | CN95: 266 | CO95: 136 | CP95: 441 | CQ95: 760 | CR95: 151 | CS95: 98 | CT95: 103 | CU95: 123 | CV95: 155 | CW95: 136 | CX95: 130 | CY95: 123 | CZ95: 93 | DA95: 82 | DB95: 94 | DC95: 67 | DD95: 97 | DE95: 58 | DF95: 44 | DG95: 32 | DH95: 11 | DI95: 10 | DJ95: 15 | DK95: 114 | DL95: 111 | DM95: 109 | DN95: 127 | DO95: 215 | DP95: 167 | DQ95: 184 | DR95: 155 | DS95: 166 | DT95: 124 | DU95: 78 | DV95: 53 | DW95: 49 | DX95: 38 | DY95: 29 | DZ95: 19 | EA95: 16 | EB95: 16
A96: 040604 | B96: AREQUIPA | C96: AREQUIPA | D96: CONDESUYOS | E96: CHICHAS | F96: 639 | G96: 396 | H96: 3 | I96: 2 | J96: 1 | K96: 4 | L96: 2 | M96: 2 | N96: 2 | O96: 2 | P96: 4 | Q96: 2 | R96: 5 | S96: 4 | T96: 2 | U96: 5 | V96: 2 | W96: 3 | X96: 5 | Y96: 6 | Z96: 7 | AA96: 3 | AB96: 17 | AC96: 21 | AD96: 26 | AE96: 16 | AF96: 23 | AG96: 25 | AH96: 45 | AI96: 38 | AJ96: 29 | AK96: 25 | AL96: 15 | AM96: 16 | AN96: 16 | AO96: 18 | AP96: 0 | AQ96: 1 | AR96: 2 | AS96: 4 | AT96: 243 | AU96: 2 | AV96: 1 | AW96: 0 | AX96: 2 | AY96: 5 | AZ96: 2 | BA96: 1 | BB96: 0 | BC96: 2 | BD96: 5 | BE96: 2 | BF96: 4 | BG96: 3 | BH96: 1 | BI96: 3 | BJ96: 3 | BK96: 3 | BL96: 5 | BM96: 3 | BN96: 3 | BO96: 30 | BP96: 18 | BQ96: 38 | BR96: 5 | BS96: 26 | BT96: 13 | BU96: 11 | BV96: 9 | BW96: 11 | BX96: 6 | BY96: 9 | BZ96: 6 | CA96: 6 | CB96: 5 | CC96: 1 | CD96: 2 | CE96: 0 | CF96: 2 | CI96: 33 | CJ96: 23 | CK96: 48 | CL96: 173 | CM96: 101 | CN96: 26 | CO96: 18 | CP96: 54 | CQ96: 102 | CR96: 38 | CS96: 12 | CT96: 12 | CU96: 18 | CV96: 24 | CW96: 17 | CX96: 21 | CY96: 26 | CZ96: 16 | DA96: 23 | DB96: 25 | DC96: 45 | DD96: 38 | DE96: 29 | DF96: 25 | DG96: 15 | DH96: 16 | DI96: 16 | DJ96: 18 | DK96: 10 | DL96: 10 | DM96: 13 | DN96: 17 | DO96: 30 | DP96: 18 | DQ96: 38 | DR96: 5 | DS96: 26 | DT96: 13 | DU96: 11 | DV96: 9 | DW96: 11 | DX96: 6 | DY96: 9 | DZ96: 6 | EA96: 6 | EB96: 5
A97: 040605 | B97: AREQUIPA | C97: AREQUIPA | D97: CONDESUYOS | E97: IRAY | F97: 558 | G97: 333 | H97: 4 | I97: 5 | J97: 5 | K97: 2 | L97: 6 | M97: 2 | N97: 2 | O97: 4 | P97: 2 | Q97: 2 | R97: 3 | S97: 4 | T97: 5 | U97: 6 | V97: 2 | W97: 2 | X97: 5 | Y97: 4 | Z97: 5 | AA97: 2 | AB97: 19 | AC97: 25 | AD97: 16 | AE97: 19 | AF97: 18 | AG97: 14 | AH97: 29 | AI97: 21 | AJ97: 23 | AK97: 26 | AL97: 15 | AM97: 12 | AN97: 10 | AO97: 14 | AP97: 1 | AQ97: 3 | AR97: 1 | AS97: 4 | AT97: 225 | AU97: 5 | AV97: 1 | AW97: 1 | AX97: 0 | AY97: 1 | AZ97: 3 | BA97: 1 | BB97: 1 | BC97: 0 | BD97: 1 | BE97: 2 | BF97: 3 | BG97: 2 | BH97: 3 | BI97: 3 | BJ97: 3 | BK97: 4 | BL97: 3 | BM97: 3 | BN97: 2 | BO97: 14 | BP97: 25 | BQ97: 40 | BR97: 12 | BS97: 8 | BT97: 15 | BU97: 11 | BV97: 12 | BW97: 7 | BX97: 9 | BY97: 10 | BZ97: 7 | CA97: 6 | CB97: 7 | CC97: 0 | CD97: 1 | CE97: 4 | CF97: 6 | CI97: 41 | CJ97: 24 | CK97: 51 | CL97: 117 | CM97: 86 | CN97: 19 | CO97: 18 | CP97: 44 | CQ97: 98 | CR97: 39 | CS97: 22 | CT97: 12 | CU97: 20 | CV97: 18 | CW97: 19 | CX97: 25 | CY97: 16 | CZ97: 19 | DA97: 18 | DB97: 14 | DC97: 29 | DD97: 21 | DE97: 23 | DF97: 26 | DG97: 15 | DH97: 12 | DI97: 10 | DJ97: 14 | DK97: 8 | DL97: 6 | DM97: 13 | DN97: 15 | DO97: 14 | DP97: 25 | DQ97: 40 | DR97: 12 | DS97: 8 | DT97: 15 | DU97: 11 | DV97: 12 | DW97: 7 | DX97: 9 | DY97: 10 | DZ97: 7 | EA97: 6 | EB97: 7
A98: 040606 | B98: AREQUIPA | C98: AREQUIPA | D98: CONDESUYOS | E98: RIO GRANDE | F98: 3318 | G98: 1728 | H98: 25 | I98: 29 | J98: 30 | K98: 37 | L98: 23 | M98: 7 | N98: 19 | O98: 25 | P98: 16 | Q98: 18 | R98: 26 | S98: 19 | T98: 12 | U98: 21 | V98: 19 | W98: 31 | X98: 39 | Y98: 25 | Z98: 18 | AA98: 14 | AB98: 115 | AC98: 116 | AD98: 106 | AE98: 127 | AF98: 145 | AG98: 125 | AH98: 102 | AI98: 140 | AJ98: 97 | AK98: 66 | AL98: 53 | AM98: 37 | AN98: 30 | AO98: 16 | AP98: 2 | AQ98: 14 | AR98: 11 | AS98: 32 | AT98: 1,590 | AU98: 16 | AV98: 30 | AW98: 33 | AX98: 33 | AY98: 14 | AZ98: 15 | BA98: 43 | BB98: 44 | BC98: 41 | BD98: 17 | BE98: 18 | BF98: 25 | BG98: 19 | BH98: 21 | BI98: 18 | BJ98: 12 | BK98: 17 | BL98: 25 | BM98: 19 | BN98: 27 | BO98: 89 | BP98: 176 | BQ98: 164 | BR98: 66 | BS98: 123 | BT98: 76 | BU98: 89 | BV98: 62 | BW98: 78 | BX98: 52 | BY98: 47 | BZ98: 39 | CA98: 19 | CB98: 23 | CC98: 2 | CD98: 9 | CE98: 7 | CF98: 21 | CI98: 274 | CJ98: 147 | CK98: 263 | CL98: 745 | CM98: 283 | CN98: 329 | CO98: 112 | CP98: 311 | CQ98: 580 | CR98: 235 | CS98: 144 | CT98: 85 | CU98: 97 | CV98: 127 | CW98: 115 | CX98: 116 | CY98: 106 | CZ98: 127 | DA98: 145 | DB98: 125 | DC98: 102 | DD98: 140 | DE98: 97 | DF98: 66 | DG98: 53 | DH98: 37 | DI98: 30 | DJ98: 16 | DK98: 126 | DL98: 160 | DM98: 101 | DN98: 100 | DO98: 89 | DP98: 176 | DQ98: 164 | DR98: 66 | DS98: 123 | DT98: 76 | DU98: 89 | DV98: 62 | DW98: 78 | DX98: 52 | DY98: 47 | DZ98: 39 | EA98: 19 | EB98: 23
A99: 040607 | B99: AREQUIPA | C99: AREQUIPA | D99: CONDESUYOS | E99: SALAMANCA | F99: 371 | G99: 219 | H99: 1 | I99: 4 | J99: 2 | K99: 3 | L99: 2 | M99: 2 | N99: 2 | O99: 1 | P99: 4 | Q99: 1 | R99: 2 | S99: 4 | T99: 2 | U99: 0 | V99: 7 | W99: 3 | X99: 2 | Y99: 3 | Z99: 3 | AA99: 4 | AB99: 12 | AC99: 12 | AD99: 10 | AE99: 14 | AF99: 13 | AG99: 16 | AH99: 14 | AI99: 18 | AJ99: 10 | AK99: 13 | AL99: 11 | AM99: 9 | AN99: 7 | AO99: 8 | AP99: 1 | AQ99: 1 | AR99: 0 | AS99: 1 | AT99: 152 | AU99: 3 | AV99: 0 | AW99: 2 | AX99: 3 | AY99: 3 | AZ99: 1 | BA99: 0 | BB99: 1 | BC99: 1 | BD99: 1 | BE99: 0 | BF99: 2 | BG99: 1 | BH99: 1 | BI99: 2 | BJ99: 2 | BK99: 3 | BL99: 2 | BM99: 3 | BN99: 2 | BO99: 8 | BP99: 20 | BQ99: 20 | BR99: 10 | BS99: 7 | BT99: 12 | BU99: 7 | BV99: 8 | BW99: 5 | BX99: 5 | BY99: 4 | BZ99: 5 | CA99: 3 | CB99: 5 | CC99: 1 | CD99: 2 | CE99: 1 | CF99: 4 | CI99: 28 | CJ99: 17 | CK99: 31 | CL99: 85 | CM99: 50 | CN99: 17 | CO99: 11 | CP99: 33 | CQ99: 64 | CR99: 22 | CS99: 12 | CT99: 10 | CU99: 15 | CV99: 15 | CW99: 12 | CX99: 12 | CY99: 10 | CZ99: 14 | DA99: 13 | DB99: 16 | DC99: 14 | DD99: 18 | DE99: 10 | DF99: 13 | DG99: 11 | DH99: 9 | DI99: 7 | DJ99: 8 | DK99: 11 | DL99: 4 | DM99: 6 | DN99: 12 | DO99: 8 | DP99: 20 | DQ99: 20 | DR99: 10 | DS99: 7 | DT99: 12 | DU99: 7 | DV99: 8 | DW99: 5 | DX99: 5 | DY99: 4 | DZ99: 5 | EA99: 3 | EB99: 5
A100: 040608 | B100: AREQUIPA | C100: AREQUIPA | D100: CONDESUYOS | E100: YANAQUIHUA | F100: 3730 | G100: 1971 | H100: 27 | I100: 25 | J100: 20 | K100: 19 | L100: 27 | M100: 25 | N100: 9 | O100: 15 | P100: 16 | Q100: 25 | R100: 23 | S100: 27 | T100: 25 | U100: 23 | V100: 21 | W100: 25 | X100: 33 | Y100: 30 | Z100: 27 | AA100: 17 | AB100: 110 | AC100: 174 | AD100: 156 | AE100: 173 | AF100: 159 | AG100: 166 | AH100: 154 | AI100: 122 | AJ100: 89 | AK100: 74 | AL100: 52 | AM100: 24 | AN100: 29 | AO100: 30 | AP100: 4 | AQ100: 16 | AR100: 11 | AS100: 35 | AT100: 1,759 | AU100: 21 | AV100: 23 | AW100: 14 | AX100: 14 | AY100: 15 | AZ100: 16 | BA100: 23 | BB100: 13 | BC100: 13 | BD100: 13 | BE100: 14 | BF100: 22 | BG100: 14 | BH100: 20 | BI100: 23 | BJ100: 24 | BK100: 26 | BL100: 18 | BM100: 13 | BN100: 27 | BO100: 174 | BP100: 152 | BQ100: 229 | BR100: 179 | BS100: 111 | BT100: 109 | BU100: 105 | BV100: 64 | BW100: 72 | BX100: 70 | BY100: 43 | BZ100: 29 | CA100: 27 | CB100: 29 | CC100: 1 | CD100: 7 | CE100: 14 | CF100: 28 | CI100: 258 | CJ100: 157 | CK100: 328 | CL100: 930 | CM100: 268 | CN100: 201 | CO100: 125 | CP100: 366 | CQ100: 797 | CR100: 241 | CS100: 118 | CT100: 90 | CU100: 119 | CV100: 132 | CW100: 110 | CX100: 174 | CY100: 156 | CZ100: 173 | DA100: 159 | DB100: 166 | DC100: 154 | DD100: 122 | DE100: 89 | DF100: 74 | DG100: 52 | DH100: 24 | DI100: 29 | DJ100: 30 | DK100: 87 | DL100: 78 | DM100: 93 | DN100: 108 | DO100: 174 | DP100: 152 | DQ100: 229 | DR100: 179 | DS100: 111 | DT100: 109 | DU100: 105 | DV100: 64 | DW100: 72 | DX100: 70 | DY100: 43 | DZ100: 29 | EA100: 27 | EB100: 29
A101: 040701 | B101: AREQUIPA | C101: AREQUIPA | D101: ISLAY | E101: MOLLENDO | F101: 26553 | G101: 13553 | H101: 162 | I101: 171 | J101: 192 | K101: 199 | L101: 178 | M101: 222 | N101: 180 | O101: 182 | P101: 165 | Q101: 186 | R101: 180 | S101: 175 | T101: 170 | U101: 179 | V101: 179 | W101: 186 | X101: 178 | Y101: 172 | Z101: 192 | AA101: 181 | AB101: 878 | AC101: 975 | AD101: 918 | AE101: 924 | AF101: 967 | AG101: 953 | AH101: 904 | AI101: 850 | AJ101: 690 | AK101: 580 | AL101: 490 | AM101: 340 | AN101: 264 | AO101: 191 | AP101: 14 | AQ101: 73 | AR101: 89 | AS101: 196 | AT101: 13,000 | AU101: 145 | AV101: 139 | AW101: 186 | AX101: 150 | AY101: 185 | AZ101: 189 | BA101: 149 | BB101: 184 | BC101: 143 | BD101: 170 | BE101: 169 | BF101: 159 | BG101: 191 | BH101: 180 | BI101: 179 | BJ101: 167 | BK101: 172 | BL101: 187 | BM101: 185 | BN101: 224 | BO101: 1,031 | BP101: 1,278 | BQ101: 1,044 | BR101: 957 | BS101: 945 | BT101: 887 | BU101: 716 | BV101: 580 | BW101: 512 | BX101: 487 | BY101: 397 | BZ101: 284 | CA101: 196 | CB101: 233 | CC101: 7 | CD101: 84 | CE101: 61 | CF101: 176 | CI101: 2,192 | CJ101: 1,064 | CK101: 2,226 | CL101: 5,516 | CM101: 2,364 | CN101: 1,968 | CO101: 1,076 | CP101: 2,718 | CQ101: 5,129 | CR101: 1,876 | CS101: 902 | CT101: 935 | CU101: 883 | CV101: 909 | CW101: 878 | CX101: 975 | CY101: 918 | CZ101: 924 | DA101: 967 | DB101: 953 | DC101: 904 | DD101: 850 | DE101: 690 | DF101: 580 | DG101: 490 | DH101: 340 | DI101: 264 | DJ101: 191 | DK101: 805 | DL101: 835 | DM101: 878 | DN101: 935 | DO101: 1,031 | DP101: 1,278 | DQ101: 1,044 | DR101: 957 | DS101: 945 | DT101: 887 | DU101: 716 | DV101: 580 | DW101: 512 | DX101: 487 | DY101: 397 | DZ101: 284 | EA101: 196 | EB101: 233
A102: 040702 | B102: AREQUIPA | C102: AREQUIPA | D102: ISLAY | E102: COCACHACRA | F102: 8357 | G102: 4470 | H102: 50 | I102: 53 | J102: 58 | K102: 59 | L102: 66 | M102: 68 | N102: 41 | O102: 43 | P102: 59 | Q102: 45 | R102: 35 | S102: 48 | T102: 50 | U102: 52 | V102: 59 | W102: 64 | X102: 42 | Y102: 53 | Z102: 56 | AA102: 63 | AB102: 277 | AC102: 334 | AD102: 355 | AE102: 367 | AF102: 324 | AG102: 294 | AH102: 294 | AI102: 326 | AJ102: 226 | AK102: 229 | AL102: 148 | AM102: 100 | AN102: 77 | AO102: 55 | AP102: 2 | AQ102: 20 | AR102: 30 | AS102: 65 | AT102: 3,887 | AU102: 47 | AV102: 46 | AW102: 58 | AX102: 48 | AY102: 79 | AZ102: 75 | BA102: 42 | BB102: 50 | BC102: 40 | BD102: 64 | BE102: 59 | BF102: 43 | BG102: 52 | BH102: 56 | BI102: 42 | BJ102: 50 | BK102: 42 | BL102: 36 | BM102: 59 | BN102: 54 | BO102: 307 | BP102: 331 | BQ102: 306 | BR102: 265 | BS102: 281 | BT102: 246 | BU102: 231 | BV102: 189 | BW102: 183 | BX102: 152 | BY102: 118 | BZ102: 97 | CA102: 69 | CB102: 70 | CC102: 6 | CD102: 26 | CE102: 21 | CF102: 61 | CI102: 625 | CJ102: 320 | CK102: 730 | CL102: 1,960 | CM102: 780 | CN102: 651 | CO102: 278 | CP102: 751 | CQ102: 1,518 | CR102: 619 | CS102: 286 | CT102: 256 | CU102: 244 | CV102: 278 | CW102: 277 | CX102: 334 | CY102: 355 | CZ102: 367 | DA102: 324 | DB102: 294 | DC102: 294 | DD102: 326 | DE102: 226 | DF102: 229 | DG102: 148 | DH102: 100 | DI102: 77 | DJ102: 55 | DK102: 278 | DL102: 271 | DM102: 252 | DN102: 241 | DO102: 307 | DP102: 331 | DQ102: 306 | DR102: 265 | DS102: 281 | DT102: 246 | DU102: 231 | DV102: 189 | DW102: 183 | DX102: 152 | DY102: 118 | DZ102: 97 | EA102: 69 | EB102: 70
A103: 040703 | B103: AREQUIPA | C103: AREQUIPA | D103: ISLAY | E103: DEAN VALDIVIA | F103: 7166 | G103: 3578 | H103: 51 | I103: 44 | J103: 44 | K103: 59 | L103: 57 | M103: 51 | N103: 48 | O103: 40 | P103: 42 | Q103: 45 | R103: 51 | S103: 44 | T103: 50 | U103: 44 | V103: 42 | W103: 51 | X103: 60 | Y103: 50 | Z103: 44 | AA103: 47 | AB103: 257 | AC103: 282 | AD103: 291 | AE103: 292 | AF103: 247 | AG103: 246 | AH103: 203 | AI103: 209 | AJ103: 163 | AK103: 151 | AL103: 102 | AM103: 71 | AN103: 47 | AO103: 53 | AP103: 3 | AQ103: 24 | AR103: 27 | AS103: 62 | AT103: 3,588 | AU103: 50 | AV103: 55 | AW103: 43 | AX103: 46 | AY103: 46 | AZ103: 45 | BA103: 58 | BB103: 43 | BC103: 44 | BD103: 43 | BE103: 41 | BF103: 50 | BG103: 50 | BH103: 38 | BI103: 47 | BJ103: 38 | BK103: 40 | BL103: 56 | BM103: 41 | BN103: 53 | BO103: 323 | BP103: 339 | BQ103: 226 | BR103: 285 | BS103: 263 | BT103: 248 | BU103: 233 | BV103: 206 | BW103: 134 | BX103: 143 | BY103: 87 | BZ103: 71 | CA103: 49 | CB103: 54 | CC103: 6 | CD103: 26 | CE103: 24 | CF103: 60 | CI103: 576 | CJ103: 297 | CK103: 630 | CL103: 1,488 | CM103: 534 | CN103: 564 | CO103: 269 | CP103: 756 | CQ103: 1,461 | CR103: 484 | CS103: 255 | CT103: 226 | CU103: 231 | CV103: 252 | CW103: 257 | CX103: 282 | CY103: 291 | CZ103: 292 | DA103: 247 | DB103: 246 | DC103: 203 | DD103: 209 | DE103: 163 | DF103: 151 | DG103: 102 | DH103: 71 | DI103: 47 | DJ103: 53 | DK103: 240 | DL103: 233 | DM103: 226 | DN103: 228 | DO103: 323 | DP103: 339 | DQ103: 226 | DR103: 285 | DS103: 263 | DT103: 248 | DU103: 233 | DV103: 206 | DW103: 134 | DX103: 143 | DY103: 87 | DZ103: 71 | EA103: 49 | EB103: 54
A104: 040704 | B104: AREQUIPA | C104: AREQUIPA | D104: ISLAY | E104: ISLAY | F104: 5279 | G104: 2541 | H104: 45 | I104: 55 | J104: 36 | K104: 54 | L104: 46 | M104: 59 | N104: 40 | O104: 33 | P104: 31 | Q104: 36 | R104: 42 | S104: 35 | T104: 43 | U104: 36 | V104: 29 | W104: 36 | X104: 45 | Y104: 42 | Z104: 38 | AA104: 34 | AB104: 161 | AC104: 188 | AD104: 185 | AE104: 208 | AF104: 196 | AG104: 186 | AH104: 169 | AI104: 132 | AJ104: 99 | AK104: 85 | AL104: 64 | AM104: 29 | AN104: 10 | AO104: 14 | AP104: 1 | AQ104: 15 | AR104: 30 | AS104: 53 | AT104: 2,738 | AU104: 38 | AV104: 37 | AW104: 44 | AX104: 43 | AY104: 42 | AZ104: 58 | BA104: 37 | BB104: 41 | BC104: 38 | BD104: 36 | BE104: 49 | BF104: 40 | BG104: 37 | BH104: 38 | BI104: 43 | BJ104: 32 | BK104: 41 | BL104: 31 | BM104: 35 | BN104: 32 | BO104: 208 | BP104: 278 | BQ104: 244 | BR104: 233 | BS104: 191 | BT104: 162 | BU104: 151 | BV104: 122 | BW104: 102 | BX104: 84 | BY104: 70 | BZ104: 45 | CA104: 30 | CB104: 26 | CC104: 2 | CD104: 13 | CE104: 25 | CF104: 45 | CI104: 512 | CJ104: 231 | CK104: 421 | CL104: 1,076 | CM104: 287 | CN104: 503 | CO104: 222 | CP104: 553 | CQ104: 1,103 | CR104: 331 | CS104: 236 | CT104: 199 | CU104: 185 | CV104: 195 | CW104: 161 | CX104: 188 | CY104: 185 | CZ104: 208 | DA104: 196 | DB104: 186 | DC104: 169 | DD104: 132 | DE104: 99 | DF104: 85 | DG104: 64 | DH104: 29 | DI104: 10 | DJ104: 14 | DK104: 204 | DL104: 210 | DM104: 207 | DN104: 171 | DO104: 208 | DP104: 278 | DQ104: 244 | DR104: 233 | DS104: 191 | DT104: 162 | DU104: 151 | DV104: 122 | DW104: 102 | DX104: 84 | DY104: 70 | DZ104: 45 | EA104: 30 | EB104: 26
A105: 040705 | B105: AREQUIPA | C105: AREQUIPA | D105: ISLAY | E105: MEJIA | F105: 1219 | G105: 757 | H105: 10 | I105: 7 | J105: 5 | K105: 10 | L105: 6 | M105: 12 | N105: 8 | O105: 6 | P105: 5 | Q105: 10 | R105: 7 | S105: 9 | T105: 7 | U105: 8 | V105: 8 | W105: 6 | X105: 10 | Y105: 5 | Z105: 7 | AA105: 10 | AB105: 40 | AC105: 47 | AD105: 50 | AE105: 51 | AF105: 60 | AG105: 49 | AH105: 60 | AI105: 58 | AJ105: 59 | AK105: 36 | AL105: 42 | AM105: 26 | AN105: 9 | AO105: 14 | AP105: 2 | AQ105: 6 | AR105: 4 | AS105: 10 | AT105: 462 | AU105: 7 | AV105: 9 | AW105: 5 | AX105: 7 | AY105: 7 | AZ105: 4 | BA105: 9 | BB105: 5 | BC105: 6 | BD105: 6 | BE105: 4 | BF105: 5 | BG105: 5 | BH105: 5 | BI105: 5 | BJ105: 9 | BK105: 5 | BL105: 4 | BM105: 7 | BN105: 7 | BO105: 5 | BP105: 11 | BQ105: 29 | BR105: 37 | BS105: 36 | BT105: 43 | BU105: 34 | BV105: 28 | BW105: 32 | BX105: 27 | BY105: 16 | BZ105: 14 | CA105: 13 | CB105: 16 | CC105: 0 | CD105: 6 | CE105: 1 | CF105: 7 | CI105: 95 | CJ105: 44 | CK105: 104 | CL105: 328 | CM105: 172 | CN105: 74 | CO105: 33 | CP105: 30 | CQ105: 207 | CR105: 102 | CS105: 38 | CT105: 41 | CU105: 39 | CV105: 38 | CW105: 40 | CX105: 47 | CY105: 50 | CZ105: 51 | DA105: 60 | DB105: 49 | DC105: 60 | DD105: 58 | DE105: 59 | DF105: 36 | DG105: 42 | DH105: 26 | DI105: 9 | DJ105: 14 | DK105: 35 | DL105: 30 | DM105: 24 | DN105: 32 | DO105: 5 | DP105: 11 | DQ105: 29 | DR105: 37 | DS105: 36 | DT105: 43 | DU105: 34 | DV105: 28 | DW105: 32 | DX105: 27 | DY105: 16 | DZ105: 14 | EA105: 13 | EB105: 16
A106: 040706 | B106: AREQUIPA | C106: AREQUIPA | D106: ISLAY | E106: PUNTA DE BOMBON | F106: 6503 | G106: 3406 | H106: 38 | I106: 43 | J106: 33 | K106: 54 | L106: 51 | M106: 52 | N106: 36 | O106: 37 | P106: 33 | Q106: 38 | R106: 38 | S106: 50 | T106: 44 | U106: 36 | V106: 38 | W106: 45 | X106: 46 | Y106: 55 | Z106: 44 | AA106: 44 | AB106: 228 | AC106: 261 | AD106: 233 | AE106: 262 | AF106: 243 | AG106: 225 | AH106: 212 | AI106: 212 | AJ106: 191 | AK106: 176 | AL106: 126 | AM106: 85 | AN106: 40 | AO106: 57 | AP106: 2 | AQ106: 23 | AR106: 15 | AS106: 42 | AT106: 3,097 | AU106: 36 | AV106: 58 | AW106: 48 | AX106: 37 | AY106: 46 | AZ106: 55 | BA106: 56 | BB106: 43 | BC106: 31 | BD106: 38 | BE106: 44 | BF106: 37 | BG106: 32 | BH106: 41 | BI106: 29 | BJ106: 37 | BK106: 55 | BL106: 38 | BM106: 42 | BN106: 38 | BO106: 320 | BP106: 252 | BQ106: 231 | BR106: 233 | BS106: 206 | BT106: 193 | BU106: 176 | BV106: 148 | BW106: 140 | BX106: 106 | BY106: 80 | BZ106: 68 | CA106: 46 | CB106: 57 | CC106: 4 | CD106: 13 | CE106: 23 | CF106: 40 | CI106: 503 | CJ106: 264 | CK106: 577 | CL106: 1,387 | CM106: 618 | CN106: 529 | CO106: 232 | CP106: 652 | CQ106: 1,187 | CR106: 440 | CS106: 219 | CT106: 196 | CU106: 206 | CV106: 234 | CW106: 228 | CX106: 261 | CY106: 233 | CZ106: 262 | DA106: 243 | DB106: 225 | DC106: 212 | DD106: 212 | DE106: 191 | DF106: 176 | DG106: 126 | DH106: 85 | DI106: 40 | DJ106: 57 | DK106: 225 | DL106: 223 | DM106: 183 | DN106: 210 | DO106: 320 | DP106: 252 | DQ106: 231 | DR106: 233 | DS106: 206 | DT106: 193 | DU106: 176 | DV106: 148 | DW106: 140 | DX106: 106 | DY106: 80 | DZ106: 68 | EA106: 46 | EB106: 57
A107: 040801 | B107: AREQUIPA | C107: AREQUIPA | D107: LA UNION | E107: COTAHUASI | F107: 2935 | G107: 1337 | H107: 30 | I107: 22 | J107: 29 | K107: 30 | L107: 24 | M107: 23 | N107: 14 | O107: 14 | P107: 17 | Q107: 19 | R107: 21 | S107: 27 | T107: 24 | U107: 21 | V107: 26 | W107: 22 | X107: 22 | Y107: 25 | Z107: 28 | AA107: 25 | AB107: 100 | AC107: 83 | AD107: 72 | AE107: 81 | AF107: 67 | AG107: 72 | AH107: 72 | AI107: 77 | AJ107: 61 | AK107: 52 | AL107: 42 | AM107: 36 | AN107: 26 | AO107: 33 | AP107: 1 | AQ107: 9 | AR107: 21 | AS107: 40 | AT107: 1,598 | AU107: 24 | AV107: 27 | AW107: 24 | AX107: 20 | AY107: 25 | AZ107: 18 | BA107: 28 | BB107: 22 | BC107: 19 | BD107: 22 | BE107: 16 | BF107: 22 | BG107: 21 | BH107: 21 | BI107: 17 | BJ107: 28 | BK107: 20 | BL107: 25 | BM107: 25 | BN107: 21 | BO107: 135 | BP107: 227 | BQ107: 129 | BR107: 169 | BS107: 127 | BT107: 93 | BU107: 61 | BV107: 37 | BW107: 41 | BX107: 45 | BY107: 31 | BZ107: 22 | CA107: 16 | CB107: 20 | CC107: 1 | CD107: 8 | CE107: 16 | CF107: 32 | CI107: 270 | CJ107: 140 | CK107: 236 | CL107: 441 | CM107: 217 | CN107: 267 | CO107: 132 | CP107: 408 | CQ107: 616 | CR107: 155 | CS107: 135 | CT107: 87 | CU107: 119 | CV107: 122 | CW107: 100 | CX107: 83 | CY107: 72 | CZ107: 81 | DA107: 67 | DB107: 72 | DC107: 72 | DD107: 77 | DE107: 61 | DF107: 52 | DG107: 42 | DH107: 36 | DI107: 26 | DJ107: 33 | DK107: 120 | DL107: 109 | DM107: 97 | DN107: 119 | DO107: 135 | DP107: 227 | DQ107: 129 | DR107: 169 | DS107: 127 | DT107: 93 | DU107: 61 | DV107: 37 | DW107: 41 | DX107: 45 | DY107: 31 | DZ107: 22 | EA107: 16 | EB107: 20
A108: 040802 | B108: AREQUIPA | C108: AREQUIPA | D108: LA UNION | E108: ALCA | F108: 1846 | G108: 826 | H108: 10 | I108: 18 | J108: 12 | K108: 11 | L108: 10 | M108: 14 | N108: 15 | O108: 12 | P108: 17 | Q108: 12 | R108: 9 | S108: 9 | T108: 13 | U108: 9 | V108: 15 | W108: 15 | X108: 12 | Y108: 17 | Z108: 16 | AA108: 16 | AB108: 69 | AC108: 52 | AD108: 52 | AE108: 45 | AF108: 47 | AG108: 44 | AH108: 45 | AI108: 52 | AJ108: 50 | AK108: 27 | AL108: 29 | AM108: 22 | AN108: 12 | AO108: 18 | AP108: 0 | AQ108: 3 | AR108: 7 | AS108: 13 | AT108: 1,020 | AU108: 22 | AV108: 10 | AW108: 15 | AX108: 7 | AY108: 13 | AZ108: 18 | BA108: 8 | BB108: 12 | BC108: 5 | BD108: 9 | BE108: 13 | BF108: 9 | BG108: 16 | BH108: 15 | BI108: 17 | BJ108: 16 | BK108: 16 | BL108: 10 | BM108: 12 | BN108: 18 | BO108: 102 | BP108: 119 | BQ108: 114 | BR108: 115 | BS108: 73 | BT108: 66 | BU108: 42 | BV108: 28 | BW108: 23 | BX108: 17 | BY108: 20 | BZ108: 17 | CA108: 12 | CB108: 11 | CC108: 1 | CD108: 10 | CE108: 12 | CF108: 29 | CI108: 149 | CJ108: 81 | CK108: 153 | CL108: 285 | CM108: 140 | CN108: 141 | CO108: 90 | CP108: 251 | CQ108: 438 | CR108: 89 | CS108: 61 | CT108: 70 | CU108: 55 | CV108: 76 | CW108: 69 | CX108: 52 | CY108: 52 | CZ108: 45 | DA108: 47 | DB108: 44 | DC108: 45 | DD108: 52 | DE108: 50 | DF108: 27 | DG108: 29 | DH108: 22 | DI108: 12 | DJ108: 18 | DK108: 67 | DL108: 52 | DM108: 70 | DN108: 72 | DO108: 102 | DP108: 119 | DQ108: 114 | DR108: 115 | DS108: 73 | DT108: 66 | DU108: 42 | DV108: 28 | DW108: 23 | DX108: 17 | DY108: 20 | DZ108: 17 | EA108: 12 | EB108: 11
A109: 040803 | B109: AREQUIPA | C109: AREQUIPA | D109: LA UNION | E109: CHARCANA | F109: 562 | G109: 275 | H109: 6 | I109: 7 | J109: 5 | K109: 3 | L109: 7 | M109: 1 | N109: 3 | O109: 8 | P109: 4 | Q109: 7 | R109: 3 | S109: 3 | T109: 4 | U109: 3 | V109: 2 | W109: 5 | X109: 6 | Y109: 6 | Z109: 2 | AA109: 2 | AB109: 20 | AC109: 24 | AD109: 17 | AE109: 16 | AF109: 16 | AG109: 18 | AH109: 13 | AI109: 15 | AJ109: 4 | AK109: 14 | AL109: 8 | AM109: 12 | AN109: 6 | AO109: 5 | AP109: 1 | AQ109: 5 | AR109: 1 | AS109: 8 | AT109: 287 | AU109: 3 | AV109: 3 | AW109: 0 | AX109: 2 | AY109: 3 | AZ109: 6 | BA109: 2 | BB109: 0 | BC109: 2 | BD109: 2 | BE109: 5 | BF109: 7 | BG109: 2 | BH109: 2 | BI109: 4 | BJ109: 5 | BK109: 8 | BL109: 8 | BM109: 6 | BN109: 8 | BO109: 27 | BP109: 24 | BQ109: 38 | BR109: 40 | BS109: 8 | BT109: 15 | BU109: 11 | BV109: 9 | BW109: 9 | BX109: 7 | BY109: 7 | BZ109: 5 | CA109: 4 | CB109: 5 | CC109: 0 | CD109: 2 | CE109: 1 | CF109: 4 | CI109: 57 | CJ109: 26 | CK109: 48 | CL109: 95 | CM109: 44 | CN109: 35 | CO109: 29 | CP109: 65 | CQ109: 121 | CR109: 32 | CS109: 28 | CT109: 23 | CU109: 15 | CV109: 21 | CW109: 20 | CX109: 24 | CY109: 17 | CZ109: 16 | DA109: 16 | DB109: 18 | DC109: 13 | DD109: 15 | DE109: 4 | DF109: 14 | DG109: 8 | DH109: 12 | DI109: 6 | DJ109: 5 | DK109: 11 | DL109: 12 | DM109: 20 | DN109: 35 | DO109: 27 | DP109: 24 | DQ109: 38 | DR109: 40 | DS109: 8 | DT109: 15 | DU109: 11 | DV109: 9 | DW109: 9 | DX109: 7 | DY109: 7 | DZ109: 5 | EA109: 4 | EB109: 5
A110: 040804 | B110: AREQUIPA | C110: AREQUIPA | D110: LA UNION | E110: HUAYNACOTAS | F110: 1793 | G110: 853 | H110: 26 | I110: 18 | J110: 9 | K110: 6 | L110: 7 | M110: 14 | N110: 17 | O110: 10 | P110: 13 | Q110: 16 | R110: 16 | S110: 14 | T110: 14 | U110: 17 | V110: 16 | W110: 19 | X110: 15 | Y110: 21 | Z110: 13 | AA110: 14 | AB110: 72 | AC110: 68 | AD110: 44 | AE110: 46 | AF110: 59 | AG110: 39 | AH110: 52 | AI110: 46 | AJ110: 34 | AK110: 32 | AL110: 25 | AM110: 17 | AN110: 11 | AO110: 13 | AP110: 1 | AQ110: 12 | AR110: 14 | AS110: 38 | AT110: 940 | AU110: 18 | AV110: 18 | AW110: 12 | AX110: 18 | AY110: 14 | AZ110: 14 | BA110: 13 | BB110: 8 | BC110: 12 | BD110: 9 | BE110: 9 | BF110: 15 | BG110: 15 | BH110: 15 | BI110: 11 | BJ110: 11 | BK110: 17 | BL110: 13 | BM110: 13 | BN110: 15 | BO110: 85 | BP110: 111 | BQ110: 85 | BR110: 90 | BS110: 67 | BT110: 71 | BU110: 38 | BV110: 25 | BW110: 20 | BX110: 19 | BY110: 24 | BZ110: 14 | CA110: 12 | CB110: 9 | CC110: 2 | CD110: 7 | CE110: 11 | CF110: 26 | CI110: 166 | CJ110: 102 | CK110: 167 | CL110: 286 | CM110: 119 | CN110: 160 | CO110: 82 | CP110: 224 | CQ110: 376 | CR110: 89 | CS110: 66 | CT110: 70 | CU110: 77 | CV110: 82 | CW110: 72 | CX110: 68 | CY110: 44 | CZ110: 46 | DA110: 59 | DB110: 39 | DC110: 52 | DD110: 46 | DE110: 34 | DF110: 32 | DG110: 25 | DH110: 17 | DI110: 11 | DJ110: 13 | DK110: 80 | DL110: 56 | DM110: 65 | DN110: 69 | DO110: 85 | DP110: 111 | DQ110: 85 | DR110: 90 | DS110: 67 | DT110: 71 | DU110: 38 | DV110: 25 | DW110: 20 | DX110: 19 | DY110: 24 | DZ110: 14 | EA110: 12 | EB110: 9
A111: 040805 | B111: AREQUIPA | C111: AREQUIPA | D111: LA UNION | E111: PAMPAMARCA | F111: 1093 | G111: 528 | H111: 11 | I111: 11 | J111: 5 | K111: 11 | L111: 10 | M111: 8 | N111: 4 | O111: 4 | P111: 5 | Q111: 7 | R111: 7 | S111: 6 | T111: 10 | U111: 5 | V111: 6 | W111: 11 | X111: 9 | Y111: 15 | Z111: 15 | AA111: 7 | AB111: 48 | AC111: 30 | AD111: 39 | AE111: 31 | AF111: 39 | AG111: 30 | AH111: 27 | AI111: 25 | AJ111: 22 | AK111: 22 | AL111: 18 | AM111: 16 | AN111: 7 | AO111: 7 | AP111: 1 | AQ111: 4 | AR111: 7 | AS111: 14 | AT111: 565 | AU111: 6 | AV111: 12 | AW111: 11 | AX111: 10 | AY111: 10 | AZ111: 7 | BA111: 7 | BB111: 6 | BC111: 6 | BD111: 5 | BE111: 3 | BF111: 5 | BG111: 8 | BH111: 6 | BI111: 13 | BJ111: 7 | BK111: 10 | BL111: 13 | BM111: 9 | BN111: 15 | BO111: 62 | BP111: 51 | BQ111: 58 | BR111: 62 | BS111: 37 | BT111: 35 | BU111: 15 | BV111: 17 | BW111: 15 | BX111: 14 | BY111: 11 | BZ111: 7 | CA111: 6 | CB111: 6 | CC111: 0 | CD111: 3 | CE111: 3 | CF111: 8 | CI111: 89 | CJ111: 56 | CK111: 100 | CL111: 191 | CM111: 85 | CN111: 88 | CO111: 57 | CP111: 137 | CQ111: 224 | CR111: 53 | CS111: 48 | CT111: 28 | CU111: 34 | CV111: 57 | CW111: 48 | CX111: 30 | CY111: 39 | CZ111: 31 | DA111: 39 | DB111: 30 | DC111: 27 | DD111: 25 | DE111: 22 | DF111: 22 | DG111: 18 | DH111: 16 | DI111: 7 | DJ111: 7 | DK111: 49 | DL111: 31 | DM111: 35 | DN111: 54 | DO111: 62 | DP111: 51 | DQ111: 58 | DR111: 62 | DS111: 37 | DT111: 35 | DU111: 15 | DV111: 17 | DW111: 15 | DX111: 14 | DY111: 11 | DZ111: 7 | EA111: 6 | EB111: 6
A112: 040806 | B112: AREQUIPA | C112: AREQUIPA | D112: LA UNION | E112: PUYCA | F112: 2327 | G112: 1051 | H112: 22 | I112: 14 | J112: 19 | K112: 21 | L112: 14 | M112: 23 | N112: 14 | O112: 25 | P112: 21 | Q112: 19 | R112: 27 | S112: 22 | T112: 18 | U112: 28 | V112: 26 | W112: 29 | X112: 25 | Y112: 24 | Z112: 19 | AA112: 19 | AB112: 88 | AC112: 65 | AD112: 61 | AE112: 50 | AF112: 60 | AG112: 56 | AH112: 59 | AI112: 50 | AJ112: 36 | AK112: 34 | AL112: 30 | AM112: 18 | AN112: 11 | AO112: 4 | AP112: 3 | AQ112: 9 | AR112: 13 | AS112: 32 | AT112: 1,276 | AU112: 30 | AV112: 20 | AW112: 27 | AX112: 18 | AY112: 18 | AZ112: 22 | BA112: 14 | BB112: 17 | BC112: 11 | BD112: 11 | BE112: 12 | BF112: 18 | BG112: 16 | BH112: 18 | BI112: 25 | BJ112: 19 | BK112: 24 | BL112: 24 | BM112: 24 | BN112: 21 | BO112: 164 | BP112: 143 | BQ112: 135 | BR112: 115 | BS112: 75 | BT112: 72 | BU112: 37 | BV112: 37 | BW112: 26 | BX112: 24 | BY112: 16 | BZ112: 16 | CA112: 12 | CB112: 15 | CC112: 1 | CD112: 12 | CE112: 18 | CF112: 43 | CI112: 241 | CJ112: 150 | CK112: 191 | CL112: 336 | CM112: 129 | CN112: 218 | CO112: 126 | CP112: 352 | CQ112: 471 | CR112: 94 | CS112: 90 | CT112: 102 | CU112: 121 | CV112: 116 | CW112: 88 | CX112: 65 | CY112: 61 | CZ112: 50 | DA112: 60 | DB112: 56 | DC112: 59 | DD112: 50 | DE112: 36 | DF112: 34 | DG112: 30 | DH112: 18 | DI112: 11 | DJ112: 4 | DK112: 113 | DL112: 75 | DM112: 89 | DN112: 112 | DO112: 164 | DP112: 143 | DQ112: 135 | DR112: 115 | DS112: 75 | DT112: 72 | DU112: 37 | DV112: 37 | DW112: 26 | DX112: 24 | DY112: 16 | DZ112: 16 | EA112: 12 | EB112: 15
A113: 040807 | B113: AREQUIPA | C113: AREQUIPA | D113: LA UNION | E113: QUECHUALLA | F113: 295 | G113: 182 | H113: 0 | I113: 1 | J113: 1 | K113: 3 | L113: 3 | M113: 3 | N113: 1 | O113: 1 | P113: 2 | Q113: 1 | R113: 0 | S113: 0 | T113: 0 | U113: 1 | V113: 0 | W113: 1 | X113: 1 | Y113: 2 | Z113: 1 | AA113: 2 | AB113: 5 | AC113: 7 | AD113: 17 | AE113: 15 | AF113: 13 | AG113: 14 | AH113: 11 | AI113: 14 | AJ113: 21 | AK113: 14 | AL113: 11 | AM113: 8 | AN113: 4 | AO113: 4 | AP113: 0 | AQ113: 0 | AR113: 0 | AS113: 0 | AT113: 113 | AU113: 2 | AV113: 0 | AW113: 3 | AX113: 3 | AY113: 2 | AZ113: 2 | BA113: 0 | BB113: 2 | BC113: 2 | BD113: 2 | BE113: 2 | BF113: 1 | BG113: 1 | BH113: 0 | BI113: 0 | BJ113: 1 | BK113: 0 | BL113: 2 | BM113: 2 | BN113: 0 | BO113: 5 | BP113: 9 | BQ113: 4 | BR113: 11 | BS113: 8 | BT113: 2 | BU113: 11 | BV113: 11 | BW113: 7 | BX113: 4 | BY113: 4 | BZ113: 3 | CA113: 4 | CB113: 3 | CC113: 0 | CD113: 2 | CE113: 0 | CF113: 4 | CI113: 16 | CJ113: 5 | CK113: 15 | CL113: 84 | CM113: 58 | CN113: 21 | CO113: 4 | CP113: 16 | CQ113: 47 | CR113: 22 | CS113: 8 | CT113: 8 | CU113: 1 | CV113: 7 | CW113: 5 | CX113: 7 | CY113: 17 | CZ113: 15 | DA113: 13 | DB113: 14 | DC113: 11 | DD113: 14 | DE113: 21 | DF113: 14 | DG113: 11 | DH113: 8 | DI113: 4 | DJ113: 4 | DK113: 10 | DL113: 8 | DM113: 4 | DN113: 5 | DO113: 5 | DP113: 9 | DQ113: 4 | DR113: 11 | DS113: 8 | DT113: 2 | DU113: 11 | DV113: 11 | DW113: 7 | DX113: 4 | DY113: 4 | DZ113: 3 | EA113: 4 | EB113: 3
A114: 040808 | B114: AREQUIPA | C114: AREQUIPA | D114: LA UNION | E114: SAYLA | F114: 286 | G114: 165 | H114: 4 | I114: 1 | J114: 0 | K114: 1 | L114: 2 | M114: 3 | N114: 1 | O114: 1 | P114: 2 | Q114: 2 | R114: 2 | S114: 2 | T114: 2 | U114: 1 | V114: 0 | W114: 1 | X114: 1 | Y114: 5 | Z114: 3 | AA114: 4 | AB114: 16 | AC114: 12 | AD114: 10 | AE114: 10 | AF114: 12 | AG114: 10 | AH114: 9 | AI114: 9 | AJ114: 7 | AK114: 9 | AL114: 5 | AM114: 5 | AN114: 6 | AO114: 7 | AP114: 0 | AQ114: 3 | AR114: 1 | AS114: 5 | AT114: 121 | AU114: 0 | AV114: 1 | AW114: 0 | AX114: 3 | AY114: 2 | AZ114: 3 | BA114: 1 | BB114: 0 | BC114: 2 | BD114: 1 | BE114: 2 | BF114: 1 | BG114: 2 | BH114: 1 | BI114: 1 | BJ114: 1 | BK114: 1 | BL114: 3 | BM114: 2 | BN114: 2 | BO114: 10 | BP114: 27 | BQ114: 16 | BR114: 9 | BS114: 9 | BT114: 3 | BU114: 4 | BV114: 3 | BW114: 3 | BX114: 2 | BY114: 2 | BZ114: 1 | CA114: 2 | CB114: 1 | CC114: 0 | CD114: 0 | CE114: 0 | CF114: 0 | CI114: 21 | CJ114: 10 | CK114: 35 | CL114: 60 | CM114: 32 | CN114: 16 | CO114: 9 | CP114: 41 | CQ114: 44 | CR114: 10 | CS114: 8 | CT114: 9 | CU114: 7 | CV114: 14 | CW114: 16 | CX114: 12 | CY114: 10 | CZ114: 10 | DA114: 12 | DB114: 10 | DC114: 9 | DD114: 9 | DE114: 7 | DF114: 9 | DG114: 5 | DH114: 5 | DI114: 6 | DJ114: 7 | DK114: 6 | DL114: 7 | DM114: 7 | DN114: 9 | DO114: 10 | DP114: 27 | DQ114: 16 | DR114: 9 | DS114: 9 | DT114: 3 | DU114: 4 | DV114: 3 | DW114: 3 | DX114: 2 | DY114: 2 | DZ114: 1 | EA114: 2 | EB114: 1
A115: 040809 | B115: AREQUIPA | C115: AREQUIPA | D115: LA UNION | E115: TAURIA | F115: 334 | G115: 167 | H115: 1 | I115: 5 | J115: 5 | K115: 2 | L115: 5 | M115: 3 | N115: 3 | O115: 0 | P115: 4 | Q115: 0 | R115: 2 | S115: 1 | T115: 0 | U115: 2 | V115: 0 | W115: 3 | X115: 5 | Y115: 2 | Z115: 2 | AA115: 3 | AB115: 13 | AC115: 13 | AD115: 12 | AE115: 15 | AF115: 12 | AG115: 6 | AH115: 5 | AI115: 10 | AJ115: 8 | AK115: 6 | AL115: 8 | AM115: 3 | AN115: 5 | AO115: 3 | AP115: 0 | AQ115: 1 | AR115: 0 | AS115: 1 | AT115: 167 | AU115: 1 | AV115: 4 | AW115: 5 | AX115: 3 | AY115: 9 | AZ115: 1 | BA115: 3 | BB115: 4 | BC115: 3 | BD115: 8 | BE115: 1 | BF115: 0 | BG115: 3 | BH115: 3 | BI115: 3 | BJ115: 3 | BK115: 3 | BL115: 5 | BM115: 1 | BN115: 3 | BO115: 14 | BP115: 0 | BQ115: 31 | BR115: 4 | BS115: 21 | BT115: 4 | BU115: 3 | BV115: 7 | BW115: 5 | BX115: 4 | BY115: 2 | BZ115: 1 | CA115: 2 | CB115: 3 | CC115: 0 | CD115: 1 | CE115: 0 | CF115: 1 | CI115: 31 | CJ115: 12 | CK115: 31 | CL115: 60 | CM115: 30 | CN115: 42 | CO115: 20 | CP115: 18 | CQ115: 70 | CR115: 14 | CS115: 18 | CT115: 10 | CU115: 5 | CV115: 15 | CW115: 13 | CX115: 13 | CY115: 12 | CZ115: 15 | DA115: 12 | DB115: 6 | DC115: 5 | DD115: 10 | DE115: 8 | DF115: 6 | DG115: 8 | DH115: 3 | DI115: 5 | DJ115: 3 | DK115: 22 | DL115: 19 | DM115: 10 | DN115: 15 | DO115: 14 | DP115: 0 | DQ115: 31 | DR115: 4 | DS115: 21 | DT115: 4 | DU115: 3 | DV115: 7 | DW115: 5 | DX115: 4 | DY115: 2 | DZ115: 1 | EA115: 2 | EB115: 3
A116: 040810 | B116: AREQUIPA | C116: AREQUIPA | D116: LA UNION | E116: TOMEPAMPA | F116: 637 | G116: 324 | H116: 1 | I116: 3 | J116: 4 | K116: 2 | L116: 2 | M116: 1 | N116: 4 | O116: 2 | P116: 7 | Q116: 3 | R116: 4 | S116: 4 | T116: 3 | U116: 5 | V116: 7 | W116: 6 | X116: 9 | Y116: 5 | Z116: 4 | AA116: 3 | AB116: 25 | AC116: 15 | AD116: 22 | AE116: 16 | AF116: 20 | AG116: 23 | AH116: 27 | AI116: 22 | AJ116: 24 | AK116: 15 | AL116: 13 | AM116: 11 | AN116: 3 | AO116: 9 | AP116: 0 | AQ116: 0 | AR116: 1 | AS116: 1 | AT116: 313 | AU116: 5 | AV116: 4 | AW116: 3 | AX116: 2 | AY116: 3 | AZ116: 3 | BA116: 3 | BB116: 3 | BC116: 2 | BD116: 3 | BE116: 3 | BF116: 5 | BG116: 3 | BH116: 3 | BI116: 4 | BJ116: 4 | BK116: 5 | BL116: 5 | BM116: 7 | BN116: 5 | BO116: 9 | BP116: 35 | BQ116: 46 | BR116: 27 | BS116: 26 | BT116: 20 | BU116: 18 | BV116: 14 | BW116: 9 | BX116: 10 | BY116: 8 | BZ116: 9 | CA116: 3 | CB116: 4 | CC116: 0 | CD116: 3 | CE116: 2 | CF116: 6 | CI116: 37 | CJ116: 35 | CK116: 47 | CL116: 130 | CM116: 66 | CN116: 39 | CO116: 24 | CP116: 56 | CQ116: 151 | CR116: 39 | CS116: 12 | CT116: 17 | CU116: 23 | CV116: 27 | CW116: 25 | CX116: 15 | CY116: 22 | CZ116: 16 | DA116: 20 | DB116: 23 | DC116: 27 | DD116: 22 | DE116: 24 | DF116: 15 | DG116: 13 | DH116: 11 | DI116: 3 | DJ116: 9 | DK116: 17 | DL116: 14 | DM116: 18 | DN116: 26 | DO116: 9 | DP116: 35 | DQ116: 46 | DR116: 27 | DS116: 26 | DT116: 20 | DU116: 18 | DV116: 14 | DW116: 9 | DX116: 10 | DY116: 8 | DZ116: 9 | EA116: 3 | EB116: 4
A117: 040811 | B117: AREQUIPA | C117: AREQUIPA | D117: LA UNION | E117: TORO | F117: 477 | G117: 278 | H117: 2 | I117: 3 | J117: 1 | K117: 2 | L117: 1 | M117: 2 | N117: 3 | O117: 2 | P117: 3 | Q117: 3 | R117: 1 | S117: 3 | T117: 4 | U117: 2 | V117: 3 | W117: 3 | X117: 2 | Y117: 5 | Z117: 3 | AA117: 4 | AB117: 12 | AC117: 25 | AD117: 15 | AE117: 13 | AF117: 14 | AG117: 19 | AH117: 24 | AI117: 32 | AJ117: 17 | AK117: 12 | AL117: 9 | AM117: 8 | AN117: 12 | AO117: 14 | AP117: 0 | AQ117: 1 | AR117: 1 | AS117: 4 | AT117: 199 | AU117: 2 | AV117: 3 | AW117: 0 | AX117: 1 | AY117: 4 | AZ117: 1 | BA117: 3 | BB117: 0 | BC117: 1 | BD117: 3 | BE117: 1 | BF117: 2 | BG117: 1 | BH117: 2 | BI117: 3 | BJ117: 5 | BK117: 3 | BL117: 1 | BM117: 3 | BN117: 3 | BO117: 9 | BP117: 29 | BQ117: 23 | BR117: 13 | BS117: 17 | BT117: 15 | BU117: 8 | BV117: 5 | BW117: 8 | BX117: 6 | BY117: 9 | BZ117: 7 | CA117: 3 | CB117: 5 | CC117: 0 | CD117: 1 | CE117: 1 | CF117: 4 | CI117: 26 | CJ117: 19 | CK117: 44 | CL117: 117 | CM117: 58 | CN117: 21 | CO117: 15 | CP117: 44 | CQ117: 81 | CR117: 33 | CS117: 9 | CT117: 13 | CU117: 13 | CV117: 17 | CW117: 12 | CX117: 25 | CY117: 15 | CZ117: 13 | DA117: 14 | DB117: 19 | DC117: 24 | DD117: 32 | DE117: 17 | DF117: 12 | DG117: 9 | DH117: 8 | DI117: 12 | DJ117: 14 | DK117: 10 | DL117: 8 | DM117: 9 | DN117: 15 | DO117: 9 | DP117: 29 | DQ117: 23 | DR117: 13 | DS117: 17 | DT117: 15 | DU117: 8 | DV117: 5 | DW117: 8 | DX117: 6 | DY117: 9 | DZ117: 7 | EA117: 3 | EB117: 5
A119: NOTA: LA POBLACION ESTIMADA DE EDADES SIMPLES Y GRUPOS DE EDAD DE DISTRITOS, CORRESPONDEN A CIFRAS REFERENCIALES HASTA OBTENER LAS CIFRAS DE LAS PROYECCIONES DEL INEI
A120: FUENTE: CENSO NACIONAL XI DE POBLACION Y VI DE VIVIENDA 2017/- BOLETIN DEMOGRAFICO Nº 26,37, 39 / Padrón Nominal/ CNV
A121: La población de 0-5 años corresponden a la poblacion del Padrón Nominal /corte al mes de diciembre 2021
A122: OFICINA DE GESTION DE LA INFORMACION - MINISTERIO DE SALUD

Sheet RED AREQUIPA CAYLLOMA
A5: * Actualizado con datos INEI
A6: POBLACION 2022 | J6: POBLACION TOTAL, POR EDADS SIMPLES | AD6: POBLACIÓN TOTAL, POR GRUPOS QUINQUEN ALES DE EDAD | AR6: EDADES ESPECIALES | AU6: NACIMIENTOS VIVOS | AV6: POBLACION FEMENINA TOTAL | AW6: POBLACION FEMENINA | AZ6: GESTANTES ESPERADAS
A7: UBIGEO | B7: DIRESA | C7: DEPARTAMENTO | D7: PROVINCIA | E7: DISTRITO | I7: Total | J7: 0 | K7: 1 | L7: 2 | M7: 3 | N7: 4 | O7: 5 | P7: 6 | Q7: 7 | R7: 8 | S7: 9 | T7: 10 | U7: 11 | V7: 12 | W7: 13 | X7: 14 | Y7: 15 | Z7: 16 | AA7: 17 | AB7: 18 | AC7: 19 | AD7: 20-24 | AE7: 25-29 | AF7: 30-34 | AG7: 35-39 | AH7: 40-44 | AI7: 45-49 | AJ7: 50-54 | AK7: 55-59 | AL7: 60-64 | AM7: 65-69 | AN7: 70-74 | AO7: 75-79 | AP7: 80-84 | AQ7: 85-+ | AR7: 28 DIAS | AS7: 0-5 MESES | AT7: 6-11 MESES | AW7: 10 - 14 | AX7: 15- 19 | AY7: 20- 49
A8: 000000 | B8: PERU | C8: PERU | D8: PERU | E8: PERU | F8: IPRESS | G8: NOMBRE ESTABLECIMIENTO | H8: FACTOR | I8: 1,539,996 | J8: 17,846 | K8: 20,821 | L8: 22,275 | M8: 23,017 | N8: 23,851 | O8: 24,530 | P8: 22,959 | Q8: 22,777 | R8: 22,680 | S8: 22,583 | T8: 22,506 | U8: 22,411 | V8: 22,389 | W8: 22,305 | X8: 22,196 | Y8: 22,141 | Z8: 22,076 | AA8: 22,159 | AB8: 22,565 | AC8: 22,970 | AD8: 121,549 | AE8: 129,092 | AF8: 120,709 | AG8: 115,493 | AH8: 110,822 | AI8: 99,738 | AJ8: 90,936 | AK8: 80,028 | AL8: 65,235 | AM8: 53,278 | AN8: 41,077 | AO8: 28,000 | AP8: 18,440 | AQ8: 18,542 | AR8: 1,344 | AS8: 9,422 | AT8: 8,424 | AU8: 20,954 | AV8: 786,580 | AW8: 56,300 | AX8: 57,506 | AY8: 355,237 | AZ8: 26,411
A9: 040101 | B9: AREQUIPA | C9: AREQUIPA | D9: AREQUIPA | E9: AREQUIPA | I9: 55,462 | J9: 519 | K9: 645 | L9: 745 | M9: 824 | N9: 866 | O9: 948 | P9: 568 | Q9: 596 | R9: 615 | S9: 594 | T9: 624 | U9: 627 | V9: 645 | W9: 654 | X9: 633 | Y9: 631 | Z9: 629 | AA9: 634 | AB9: 644 | AC9: 722 | AD9: 3,813 | AE9: 3,918 | AF9: 3,824 | AG9: 3,543 | AH9: 3,496 | AI9: 3,683 | AJ9: 3,641 | AK9: 3,538 | AL9: 3,172 | AM9: 2,754 | AN9: 2,323 | AO9: 1,730 | AP9: 1,271 | AQ9: 1,393 | AR9: 58 | AS9: 317 | AT9: 202 | AU9: 614 | AV9: 25,175 | AW9: 1,539 | AX9: 1,659 | AY9: 10,515 | AZ9: 751
F10: 7397 | G10: INSTITUTO REGIONAL DE ENFERMEDADES NEOPLASICAS | H10: 0 | J10: 0 | K10: 0 | L10: 0 | M10: 0 | N10: 0 | O10: 0 | P10: 0 | Q10: 0 | R10: 0 | S10: 0 | T10: 0 | U10: 0 | V10: 0 | W10: 0 | X10: 0 | Y10: 0 | Z10: 0 | AA10: 0 | AB10: 0 | AC10: 0 | AD10: 0 | AE10: 0 | AF10: 0 | AG10: 0 | AH10: 0 | AI10: 0 | AJ10: 0 | AK10: 0 | AL10: 0 | AM10: 0 | AN10: 0 | AO10: 0 | AP10: 0 | AQ10: 0 | AR10: 0 | AS10: 0 | AT10: 0 | AU10: 0 | AV10: 0 | AW10: 0 | AX10: 0 | AY10: 0 | AZ10: 0
F11: 1232 | G11: HOSPITAL GOYENECHE | H11: 0 | J11: 0 | K11: 0 | L11: 0 | M11: 0 | N11: 0 | O11: 0 | P11: 0 | Q11: 0 | R11: 0 | S11: 0 | T11: 0 | U11: 0 | V11: 0 | W11: 0 | X11: 0 | Y11: 0 | Z11: 0 | AA11: 0 | AB11: 0 | AC11: 0 | AD11: 0 | AE11: 0 | AF11: 0 | AG11: 0 | AH11: 0 | AI11: 0 | AJ11: 0 | AK11: 0 | AL11: 0 | AM11: 0 | AN11: 0 | AO11: 0 | AP11: 0 | AQ11: 0 | AR11: 0 | AS11: 0 | AT11: 0 | AU11: 0 | AV11: 0 | AW11: 0 | AX11: 0 | AY11: 0 | AZ11: 0
F12: 1231 | G12: HOSPITAL REGIONAL HONORIO DELGADO ESPINOZA | H12: 0 | J12: 0 | K12: 0 | L12: 0 | M12: 0 | N12: 0 | O12: 0 | P12: 0 | Q12: 0 | R12: 0 | S12: 0 | T12: 0 | U12: 0 | V12: 0 | W12: 0 | X12: 0 | Y12: 0 | Z12: 0 | AA12: 0 | AB12: 0 | AC12: 0 | AD12: 0 | AE12: 0 | AF12: 0 | AG12: 0 | AH12: 0 | AI12: 0 | AJ12: 0 | AK12: 0 | AL12: 0 | AM12: 0 | AN12: 0 | AO12: 0 | AP12: 0 | AQ12: 0 | AR12: 0 | AS12: 0 | AT12: 0 | AU12: 0 | AV12: 0 | AW12: 0 | AX12: 0 | AY12: 0 | AZ12: 0
G14: RED AREQUIP CAYLLOMA | I14: =+I16+I27+I36+I43+I50+I55+I60+I64+I70+I76+I82+I91+I102+I110+I114+I119+I126+I132+I138+I145+I151+I162+I171+I177+I183+I192+I199+I206 -> 1,436,483 | J14: =+J16+J27+J36+J43+J50+J55+J60+J64+J70+J76+J82+J91+J102+J110+J114+J119+J126+J132+J138+J145+J151+J162+J171+J177+J183+J192+J199+J206 -> 16,499 | K14: 19,224 | L14: 20,883 | M14: 21,262 | N14: 22,053 | O14: 22,726 | P14: 22,298 | Q14: 22,183 | R14: 21,907 | S14: 21,739 | T14: 21,654 | U14: 21,683 | V14: 21,661 | W14: 21,529 | X14: 21,291 | Y14: 21,075 | Z14: 20,821 | AA14: 20,978 | AB14: 21,426 | AC14: 21,772 | AD14: 115,647 | AE14: 121,230 | AF14: 113,911 | AG14: 109,242 | AH14: 105,196 | AI14: 93,128 | AJ14: 84,098 | AK14: 72,760 | AL14: 58,347 | AM14: 47,329 | AN14: 36,165 | AO14: 24,024 | AP14: 15,518 | AQ14: 15,224 | AR14: 1,219 | AS14: 8,785 | AT14: 7,711 | AU14: 19,211 | AV14: 742,939 | AW14: 54,954 | AX14: 54,799 | AY14: 334,894 | AZ14: 24,180
A16: 040501 | B16: AREQUIPA | C16: AREQUIPA | D16: CAYLLOMA | E16: CHIVAY | G16: MR CHIVAY | I16: =SUM(J16:AQ16) -> 11,847 | J16: =SUM(J17:J25) -> 115 | K16: =SUM(K17:K25) -> 157 | L16: 133 | M16: 157 | N16: 193 | O16: 201 | P16: 141 | Q16: 133 | R16: 119 | S16: 146 | T16: 143 | U16: 168 | V16: 165 | W16: 148 | X16: 160 | Y16: 176 | Z16: 173 | AA16: 176 | AB16: 172 | AC16: 180 | AD16: 972 | AE16: 1,013 | AF16: 1,000 | AG16: 910 | AH16: 831 | AI16: 790 | AJ16: 677 | AK16: 597 | AL16: 526 | AM16: 434 | AN16: 332 | AO16: 250 | AP16: 177 | AQ16: 182 | AR16: 8 | AS16: 61 | AT16: 54 | AU16: 139 | AV16: 5,975 | AW16: 384 | AX16: 409 | AY16: 2,934 | AZ16: 182
F17: 1419 | G17: CENTRO DE SALUD CHIVAY | H17: 90 | J17: 43 | K17: 67 | L17: 64 | M17: 94 | N17: 116 | O17: 125 | P17: 63 | Q17: 70 | R17: 70 | S17: 90 | T17: 85 | U17: 99 | V17: 85 | W17: 84 | X17: 94 | Y17: 102 | Z17: 90 | AA17: 97 | AB17: 94 | AC17: 81 | AD17: 488 | AE17: 512 | AF17: 459 | AG17: 447 | AH17: 353 | AI17: 347 | AJ17: 269 | AK17: 247 | AL17: 189 | AM17: 140 | AN17: 102 | AO17: 77 | AP17: 57 | AQ17: 50 | AR17: 2 | AS17: 27 | AT17: 16 | AU17: 51 | AV17: 2,987 | AW17: 221 | AX17: 222 | AY17: 1,527 | AZ17: 65
F18: 1423 | G18: PUESTO DE SALUD CANOCOTA | H18: 10 | J18: 5 | K18: 8 | L18: 7 | M18: 10 | N18: 13 | O18: 14 | P18: 7 | Q18: 8 | R18: 8 | S18: 10 | T18: 10 | U18: 11 | V18: 9 | W18: 9 | X18: 10 | Y18: 11 | Z18: 10 | AA18: 11 | AB18: 11 | AC18: 9 | AD18: 54 | AE18: 57 | AF18: 51 | AG18: 50 | AH18: 39 | AI18: 39 | AJ18: 30 | AK18: 28 | AL18: 21 | AM18: 16 | AN18: 11 | AO18: 9 | AP18: 6 | AQ18: 6 | AR18: 0 | AS18: 3 | AT18: 2 | AU18: 6 | AV18: 332 | AW18: 25 | AX18: 25 | AY18: 170 | AZ18: 7
A19: 040502 | B19: AREQUIPA | C19: AREQUIPA | D19: CAYLLOMA | E19: ACHOMA | F19: 1429 | G19: PUESTO DE SALUD ACHOMA | H19: 100 | J19: 10 | K19: 9 | L19: 6 | M19: 10 | N19: 11 | O19: 7 | P19: 8 | Q19: 8 | R19: 4 | S19: 5 | T19: 6 | U19: 9 | V19: 12 | W19: 5 | X19: 7 | Y19: 6 | Z19: 7 | AA19: 11 | AB19: 7 | AC19: 13 | AD19: 76 | AE19: 73 | AF19: 55 | AG19: 40 | AH19: 70 | AI19: 61 | AJ19: 58 | AK19: 55 | AL19: 42 | AM19: 37 | AN19: 32 | AO19: 24 | AP19: 19 | AQ19: 21 | AR19: 0 | AS19: 4 | AT19: 6 | AU19: 13 | AV19: 360 | AW19: 18 | AX19: 19 | AY19: 170 | AZ19: 18
A20: 040506 | B20: AREQUIPA | C20: AREQUIPA | D20: CAYLLOMA | E20: COPORAQUE | F20: 1424 | G20: PUESTO DE SALUD COPORAQUE | H20: 100 | J20: 11 | K20: 16 | L20: 17 | M20: 9 | N20: 13 | O20: 8 | P20: 20 | Q20: 17 | R20: 9 | S20: 8 | T20: 4 | U20: 12 | V20: 15 | W20: 12 | X20: 12 | Y20: 14 | Z20: 14 | AA20: 6 | AB20: 9 | AC20: 14 | AD20: 75 | AE20: 66 | AF20: 93 | AG20: 97 | AH20: 84 | AI20: 64 | AJ20: 70 | AK20: 61 | AL20: 67 | AM20: 60 | AN20: 38 | AO20: 31 | AP20: 20 | AQ20: 25 | AR20: 1 | AS20: 5 | AT20: 6 | AU20: 15 | AV20: 533 | AW20: 33 | AX20: 24 | AY20: 230 | AZ20: 20
A21: 040509 | B21: AREQUIPA | C21: AREQUIPA | D21: CAYLLOMA | E21: ICHUPAMPA | F21: 1425 | G21: PUESTO DE SALUD ICHUPAMPA | H21: 100 | J21: 8 | K21: 14 | L21: 3 | M21: 8 | N21: 4 | O21: 9 | P21: 7 | Q21: 1 | R21: 4 | S21: 5 | T21: 7 | U21: 8 | V21: 9 | W21: 7 | X21: 4 | Y21: 5 | Z21: 11 | AA21: 9 | AB21: 5 | AC21: 10 | AD21: 28 | AE21: 37 | AF21: 57 | AG21: 25 | AH21: 43 | AI21: 40 | AJ21: 40 | AK21: 40 | AL21: 34 | AM21: 29 | AN21: 28 | AO21: 14 | AP21: 13 | AQ21: 11 | AR21: 1 | AS21: 5 | AT21: 3 | AU21: 8 | AV21: 243 | AW21: 15 | AX21: 21 | AY21: 95 | AZ21: 12
A22: 040510 | B22: AREQUIPA | C22: AREQUIPA | D22: CAYLLOMA | E22: LARI | F22: 1426 | G22: PUESTO DE SALUD LARI | H22: 100 | J22: 13 | K22: 15 | L22: 11 | M22: 8 | N22: 8 | O22: 15 | P22: 8 | Q22: 7 | R22: 5 | S22: 9 | T22: 9 | U22: 7 | V22: 9 | W22: 9 | X22: 8 | Y22: 12 | Z22: 13 | AA22: 9 | AB22: 15 | AC22: 16 | AD22: 69 | AE22: 79 | AF22: 68 | AG22: 63 | AH22: 60 | AI22: 57 | AJ22: 46 | AK22: 37 | AL22: 35 | AM22: 33 | AN22: 20 | AO22: 17 | AP22: 16 | AQ22: 12 | AR22: 1 | AS22: 5 | AT22: 8 | AU22: 13 | AV22: 399 | AW22: 16 | AX22: 33 | AY22: 208 | AZ22: 17
A23: 040512 | B23: AREQUIPA | C23: AREQUIPA | D23: CAYLLOMA | E23: MACA | F23: 1430 | G23: PUESTO DE SALUD MACA | H23: 100 | J23: 8 | K23: 4 | L23: 6 | M23: 3 | N23: 6 | O23: 2 | P23: 5 | Q23: 5 | R23: 5 | S23: 6 | T23: 2 | U23: 7 | V23: 6 | W23: 6 | X23: 7 | Y23: 8 | Z23: 6 | AA23: 8 | AB23: 3 | AC23: 11 | AD23: 53 | AE23: 51 | AF23: 52 | AG23: 54 | AH23: 49 | AI23: 50 | AJ23: 49 | AK23: 35 | AL23: 37 | AM23: 33 | AN23: 27 | AO23: 26 | AP23: 12 | AQ23: 20 | AR23: 2 | AS23: 4 | AT23: 4 | AU23: 10 | AV23: 289 | AW23: 12 | AX23: 11 | AY23: 141 | AZ23: 13
A24: 040513 | B24: AREQUIPA | C24: AREQUIPA | D24: CAYLLOMA | E24: MADRIGAL | F24: 1427 | G24: PUESTO DE SALUD MADRIGAL | H24: 100 | J24: 4 | K24: 2 | L24: 6 | M24: 3 | N24: 6 | O24: 6 | P24: 4 | Q24: 5 | R24: 4 | S24: 2 | T24: 7 | U24: 3 | V24: 4 | W24: 6 | X24: 7 | Y24: 3 | Z24: 8 | AA24: 7 | AB24: 9 | AC24: 7 | AD24: 53 | AE24: 42 | AF24: 63 | AG24: 49 | AH24: 50 | AI24: 51 | AJ24: 42 | AK24: 32 | AL24: 39 | AM24: 34 | AN24: 31 | AO24: 25 | AP24: 19 | AQ24: 22 | AR24: 0 | AS24: 2 | AT24: 2 | AU24: 5 | AV24: 290 | AW24: 13 | AX24: 17 | AY24: 156 | AZ24: 7
A25: 040519 | B25: AREQUIPA | C25: AREQUIPA | D25: CAYLLOMA | E25: YANQUE | F25: 1428 | G25: PUESTO DE SALUD YANQUE | H25: 54 | J25: 13 | K25: 22 | L25: 13 | M25: 12 | N25: 16 | O25: 15 | P25: 19 | Q25: 12 | R25: 10 | S25: 11 | T25: 13 | U25: 12 | V25: 16 | W25: 10 | X25: 11 | Y25: 15 | Z25: 14 | AA25: 18 | AB25: 19 | AC25: 19 | AD25: 76 | AE25: 96 | AF25: 102 | AG25: 85 | AH25: 83 | AI25: 81 | AJ25: 73 | AK25: 62 | AL25: 62 | AM25: 52 | AN25: 43 | AO25: 27 | AP25: 15 | AQ25: 15 | AR25: 1 | AS25: 6 | AT25: 7 | AU25: 18 | AV25: 542 | AW25: 31 | AX25: 37 | AY25: 237 | AZ25: 23
G27: MR CALLALLI | I27: =SUM(J27:AQ27) -> 5,080 | J27: =SUM(J28:J34) -> 56 | K27: =SUM(K28:K34) -> 83 | L27: 54 | M27: 58 | N27: 68 | O27: 60 | P27: 61 | Q27: 52 | R27: 40 | S27: 50 | T27: 45 | U27: 63 | V27: 63 | W27: 54 | X27: 65 | Y27: 59 | Z27: 72 | AA27: 72 | AB27: 78 | AC27: 62 | AD27: 429 | AE27: 424 | AF27: 381 | AG27: 383 | AH27: 348 | AI27: 387 | AJ27: 330 | AK27: 286 | AL27: 243 | AM27: 199 | AN27: 169 | AO27: 130 | AP27: 79 | AQ27: 77 | AR27: 6 | AS27: 32 | AT27: 24 | AU27: 64 | AV27: 2,368 | AW27: 125 | AX27: 145 | AY27: 1,163 | AZ27: 85
A28: 040504 | B28: AREQUIPA | C28: AREQUIPA | D28: CAYLLOMA | E28: CALLALLI | F28: 1421 | G28: CENTRO DE SALUD CALLALLI | H28: 100 | J28: 18 | K28: 30 | L28: 10 | M28: 17 | N28: 18 | O28: 13 | P28: 19 | Q28: 8 | R28: 11 | S28: 15 | T28: 10 | U28: 16 | V28: 11 | W28: 16 | X28: 14 | Y28: 12 | Z28: 17 | AA28: 10 | AB28: 18 | AC28: 9 | AD28: 95 | AE28: 132 | AF28: 91 | AG28: 91 | AH28: 84 | AI28: 99 | AJ28: 91 | AK28: 82 | AL28: 72 | AM28: 53 | AN28: 48 | AO28: 39 | AP28: 23 | AQ28: 23 | AR28: 2 | AS28: 10 | AT28: 8 | AU28: 21 | AV28: 607 | AW28: 30 | AX28: 38 | AY28: 286 | AZ28: 28
A29: 040515 | B29: AREQUIPA | C29: AREQUIPA | D29: CAYLLOMA | E29: SIBAYO | F29: 1435 | G29: PUESTO DE SALUD SANTA ROSA DE SIBAYO | H29: 100 | J29: 5 | K29: 11 | L29: 8 | M29: 6 | N29: 7 | O29: 8 | P29: 5 | Q29: 8 | R29: 4 | S29: 8 | T29: 5 | U29: 8 | V29: 8 | W29: 9 | X29: 10 | Y29: 11 | Z29: 8 | AA29: 11 | AB29: 10 | AC29: 6 | AD29: 63 | AE29: 65 | AF29: 48 | AG29: 45 | AH29: 48 | AI29: 59 | AJ29: 45 | AK29: 34 | AL29: 34 | AM29: 27 | AN29: 25 | AO29: 10 | AP29: 14 | AQ29: 11 | AR29: 2 | AS29: 5 | AT29: 0 | AU29: 5 | AV29: 335 | AW29: 19 | AX29: 17 | AY29: 165 | AZ29: 7
A30: 040517 | B30: AREQUIPA | C30: AREQUIPA | D30: CAYLLOMA | E30: TISCO | F30: 1438 | G30: PUESTO DE SALUD TISCO | H30: 39 | J30: 5 | K30: 6 | L30: 7 | M30: 7 | N30: 8 | O30: 7 | P30: 4 | Q30: 7 | R30: 4 | S30: 6 | T30: 4 | U30: 8 | V30: 9 | W30: 6 | X30: 9 | Y30: 7 | Z30: 8 | AA30: 10 | AB30: 10 | AC30: 8 | AD30: 58 | AE30: 37 | AF30: 50 | AG30: 47 | AH30: 41 | AI30: 45 | AJ30: 37 | AK30: 31 | AL30: 24 | AM30: 20 | AN30: 15 | AO30: 18 | AP30: 8 | AQ30: 9 | AR30: 0 | AS30: 3 | AT30: 2 | AU30: 7 | AV30: 269 | AW30: 14 | AX30: 18 | AY30: 145 | AZ30: 8
F31: 1431 | G31: PUESTO DE SALUD COTACOTA | H31: 37 | J31: 6 | K31: 5 | L31: 7 | M31: 6 | N31: 8 | O31: 7 | P31: 4 | Q31: 7 | R31: 4 | S31: 5 | T31: 4 | U31: 8 | V31: 9 | W31: 5 | X31: 9 | Y31: 6 | Z31: 9 | AA31: 10 | AB31: 10 | AC31: 8 | AD31: 56 | AE31: 36 | AF31: 47 | AG31: 46 | AH31: 38 | AI31: 42 | AJ31: 36 | AK31: 30 | AL31: 22 | AM31: 20 | AN31: 14 | AO31: 17 | AP31: 7 | AQ31: 8 | AR31: 0 | AS31: 3 | AT31: 3 | AU31: 6 | AV31: 255 | AW31: 13 | AX31: 17 | AY31: 137 | AZ31: 9
F32: 6891 | G32: PUESTO DE SALUD TARUCAMARCA | H32: 24 | J32: 4 | K32: 3 | L32: 5 | M32: 4 | N32: 5 | O32: 5 | P32: 3 | Q32: 4 | R32: 3 | S32: 3 | T32: 3 | U32: 5 | V32: 6 | W32: 3 | X32: 6 | Y32: 4 | Z32: 6 | AA32: 6 | AB32: 6 | AC32: 5 | AD32: 36 | AE32: 23 | AF32: 30 | AG32: 30 | AH32: 25 | AI32: 27 | AJ32: 23 | AK32: 19 | AL32: 14 | AM32: 13 | AN32: 9 | AO32: 11 | AP32: 5 | AQ32: 5 | AR32: 0 | AS32: 2 | AT32: 2 | AU32: 4 | AV32: 165 | AW32: 9 | AX32: 11 | AY32: 89 | AZ32: 6
A33: 040518 | B33: AREQUIPA | C33: AREQUIPA | D33: CAYLLOMA | E33: TUTI | F33: 1436 | G33: PUESTO DE SALUD TUTI | H33: 100 | J33: 6 | K33: 10 | L33: 5 | M33: 8 | N33: 8 | O33: 7 | P33: 10 | Q33: 7 | R33: 5 | S33: 3 | T33: 7 | U33: 7 | V33: 7 | W33: 6 | X33: 7 | Y33: 7 | Z33: 12 | AA33: 10 | AB33: 7 | AC33: 9 | AD33: 57 | AE33: 50 | AF33: 29 | AG33: 52 | AH33: 42 | AI33: 46 | AJ33: 36 | AK33: 37 | AL33: 24 | AM33: 21 | AN33: 21 | AO33: 12 | AP33: 9 | AQ33: 9 | AR33: 1 | AS33: 3 | AT33: 3 | AU33: 6 | AV33: 276 | AW33: 14 | AX33: 12 | AY33: 140 | AZ33: 8
A34: 040519 | B34: AREQUIPA | C34: AREQUIPA | D34: CAYLLOMA | E34: YANQUE | F34: 1437 | G34: PUESTO DE SALUD CHALHUANCA | H34: 46 | J34: 12 | K34: 18 | L34: 12 | M34: 10 | N34: 14 | O34: 13 | P34: 16 | Q34: 11 | R34: 9 | S34: 10 | T34: 12 | U34: 11 | V34: 13 | W34: 9 | X34: 10 | Y34: 12 | Z34: 12 | AA34: 15 | AB34: 17 | AC34: 17 | AD34: 64 | AE34: 81 | AF34: 86 | AG34: 72 | AH34: 70 | AI34: 69 | AJ34: 62 | AK34: 53 | AL34: 53 | AM34: 45 | AN34: 37 | AO34: 23 | AP34: 13 | AQ34: 12 | AR34: 1 | AS34: 6 | AT34: 6 | AU34: 15 | AV34: 461 | AW34: 26 | AX34: 32 | AY34: 201 | AZ34: 19
G36: MR CABANACONDE | I36: =SUM(J36:AQ36) -> 4,182 | J36: =SUM(J37:J41) -> 42 | K36: =SUM(K37:K41) -> 49 | L36: 38 | M36: 34 | N36: 30 | O36: 48 | P36: 45 | Q36: 38 | R36: 29 | S36: 32 | T36: 38 | U36: 51 | V36: 42 | W36: 44 | X36: 40 | Y36: 40 | Z36: 55 | AA36: 53 | AB36: 56 | AC36: 58 | AD36: 301 | AE36: 430 | AF36: 306 | AG36: 292 | AH36: 306 | AI36: 276 | AJ36: 272 | AK36: 253 | AL36: 220 | AM36: 205 | AN36: 143 | AO36: 118 | AP36: 100 | AQ36: 98 | AR36: 2 | AS36: 17 | AT36: 25 | AU36: 55 | AV36: 1,836 | AW36: 98 | AX36: 125 | AY36: 936 | AZ36: 73
A37: 040503 | B37: AREQUIPA | C37: AREQUIPA | D37: CAYLLOMA | E37: CABANACONDE | F37: 1420 | G37: CABANACONDE | H37: 90 | J37: 19 | K37: 25 | L37: 13 | M37: 18 | N37: 12 | O37: 22 | P37: 20 | Q37: 14 | R37: 15 | S37: 15 | T37: 20 | U37: 28 | V37: 22 | W37: 24 | X37: 19 | Y37: 19 | Z37: 23 | AA37: 25 | AB37: 28 | AC37: 22 | AD37: 130 | AE37: 208 | AF37: 125 | AG37: 110 | AH37: 139 | AI37: 118 | AJ37: 126 | AK37: 123 | AL37: 92 | AM37: 88 | AN37: 64 | AO37: 48 | AP37: 43 | AQ37: 41 | AR37: 0 | AS37: 7 | AT37: 12 | AU37: 25 | AV37: 886 | AW37: 54 | AX37: 55 | AY37: 442 | AZ37: 32
F38: 1432 | G38: PUESTO DE SALUD PINCHOLLO | H38: 10 | J38: 2 | K38: 3 | L38: 2 | M38: 2 | N38: 1 | O38: 2 | P38: 2 | Q38: 2 | R38: 2 | S38: 2 | T38: 2 | U38: 3 | V38: 2 | W38: 3 | X38: 2 | Y38: 2 | Z38: 3 | AA38: 3 | AB38: 3 | AC38: 2 | AD38: 15 | AE38: 23 | AF38: 14 | AG38: 12 | AH38: 15 | AI38: 13 | AJ38: 14 | AK38: 14 | AL38: 10 | AM38: 10 | AN38: 7 | AO38: 5 | AP38: 5 | AQ38: 5 | AR38: 0 | AS38: 1 | AT38: 1 | AU38: 3 | AV38: 99 | AW38: 6 | AX38: 6 | AY38: 49 | AZ38: 4
A39: 040507 | B39: AREQUIPA | C39: AREQUIPA | D39: CAYLLOMA | E39: HUAMBO | F39: 1433 | G39: PUESTO DE SALUD HUAMBO | H39: 100 | J39: 7 | K39: 6 | L39: 8 | M39: 7 | N39: 11 | O39: 5 | P39: 7 | Q39: 6 | R39: 3 | S39: 7 | T39: 6 | U39: 7 | V39: 6 | W39: 3 | X39: 5 | Y39: 7 | Z39: 11 | AA39: 10 | AB39: 8 | AC39: 8 | AD39: 53 | AE39: 65 | AF39: 64 | AG39: 41 | AH39: 32 | AI39: 41 | AJ39: 38 | AK39: 32 | AL39: 30 | AM39: 29 | AN39: 16 | AO39: 27 | AP39: 18 | AQ39: 19 | AR39: 1 | AS39: 4 | AT39: 3 | AU39: 8 | AV39: 285 | AW39: 8 | AX39: 21 | AY39: 164 | AZ39: 11
A40: 040406 | B40: AREQUIPA | C40: AREQUIPA | D40: CASTILLA | E40: CHOCO | F40: 1441 | G40: PUESTO DE SALUD CHOCO | H40: 100 | J40: 3 | K40: 7 | L40: 6 | M40: 4 | N40: 3 | O40: 5 | P40: 5 | Q40: 6 | R40: 3 | S40: 3 | T40: 3 | U40: 6 | V40: 7 | W40: 5 | X40: 3 | Y40: 5 | Z40: 9 | AA40: 6 | AB40: 10 | AC40: 13 | AD40: 45 | AE40: 52 | AF40: 42 | AG40: 57 | AH40: 47 | AI40: 53 | AJ40: 40 | AK40: 33 | AL40: 36 | AM40: 32 | AN40: 24 | AO40: 19 | AP40: 19 | AQ40: 20 | AR40: 0 | AS40: 0 | AT40: 3 | AU40: 4 | AV40: 229 | AW40: 11 | AX40: 21 | AY40: 113 | AZ40: 6
A41: 040516 | B41: AREQUIPA | C41: AREQUIPA | D41: CAYLLOMA | E41: TAPAY | F41: 1434 | G41: PUESTO DE SALUD TAPAY | H41: 100 | J41: 11 | K41: 8 | L41: 9 | M41: 3 | N41: 3 | O41: 14 | P41: 11 | Q41: 10 | R41: 6 | S41: 5 | T41: 7 | U41: 7 | V41: 5 | W41: 9 | X41: 11 | Y41: 7 | Z41: 9 | AA41: 9 | AB41: 7 | AC41: 13 | AD41: 58 | AE41: 82 | AF41: 61 | AG41: 72 | AH41: 73 | AI41: 51 | AJ41: 54 | AK41: 51 | AL41: 52 | AM41: 46 | AN41: 32 | AO41: 19 | AP41: 15 | AQ41: 13 | AR41: 1 | AS41: 5 | AT41: 6 | AU41: 15 | AV41: 337 | AW41: 19 | AX41: 22 | AY41: 168 | AZ41: 20
G43: MR CAYLLOMA | I43: =SUM(J43:AQ43) -> 7,893 | J43: =SUM(J44:J48) -> 133 | K43: =SUM(K44:K48) -> 113 | L43: 114 | M43: 99 | N43: 110 | O43: 130 | P43: 79 | Q43: 98 | R43: 105 | S43: 97 | T43: 112 | U43: 103 | V43: 114 | W43: 117 | X43: 127 | Y43: 145 | Z43: 149 | AA43: 137 | AB43: 134 | AC43: 127 | AD43: 814 | AE43: 675 | AF43: 677 | AG43: 650 | AH43: 568 | AI43: 505 | AJ43: 399 | AK43: 367 | AL43: 275 | AM43: 213 | AN43: 161 | AO43: 95 | AP43: 70 | AQ43: 81 | AR43: 13 | AS43: 64 | AT43: 69 | AU43: 166 | AV43: 4,142 | AW43: 259 | AX43: 337 | AY43: 2,227 | AZ43: 209
A44: 040505 | B44: AREQUIPA | C44: AREQUIPA | D44: CAYLLOMA | E44: CAYLLOMA | F44: 1422 | G44: CENTRO DE SALUD CAYLLOMA | H44: 77 | J44: 50 | K44: 43 | L44: 42 | M44: 28 | N44: 44 | O44: 48 | P44: 23 | Q44: 35 | R44: 30 | S44: 38 | T44: 38 | U44: 40 | V44: 39 | W44: 40 | X44: 48 | Y44: 51 | Z44: 52 | AA44: 59 | AB44: 46 | AC44: 44 | AD44: 273 | AE44: 236 | AF44: 213 | AG44: 255 | AH44: 197 | AI44: 176 | AJ44: 156 | AK44: 129 | AL44: 102 | AM44: 83 | AN44: 59 | AO44: 37 | AP44: 25 | AQ44: 28 | AR44: 6 | AS44: 25 | AT44: 25 | AU44: 65 | AV44: 1,458 | AW44: 91 | AX44: 131 | AY44: 756 | AZ44: 82
F45: 1418 | G45: PUESTO DE SALUD JACHAÑA | H45: 23 | J45: 15 | K45: 13 | L45: 12 | M45: 9 | N45: 13 | O45: 14 | P45: 7 | Q45: 10 | R45: 9 | S45: 11 | T45: 11 | U45: 12 | V45: 12 | W45: 12 | X45: 14 | Y45: 15 | Z45: 16 | AA45: 18 | AB45: 14 | AC45: 13 | AD45: 82 | AE45: 71 | AF45: 63 | AG45: 76 | AH45: 59 | AI45: 53 | AJ45: 46 | AK45: 39 | AL45: 31 | AM45: 25 | AN45: 18 | AO45: 11 | AP45: 8 | AQ45: 8 | AR45: 2 | AS45: 7 | AT45: 8 | AU45: 20 | AV45: 435 | AW45: 27 | AX45: 39 | AY45: 226 | AZ45: 25
A46: 040404 | B46: AREQUIPA | C46: AREQUIPA | D46: CASTILLA | E46: CHACHAS | F46: 1442 | G46: PUESTO DE SALUD TOLCONI | H46: 63 | J46: 18 | K46: 21 | L46: 18 | M46: 14 | N46: 17 | O46: 23 | P46: 15 | Q46: 8 | R46: 13 | S46: 11 | T46: 16 | U46: 12 | V46: 17 | W46: 16 | X46: 14 | Y46: 22 | Z46: 15 | AA46: 16 | AB46: 13 | AC46: 16 | AD46: 108 | AE46: 71 | AF46: 94 | AG46: 71 | AH46: 64 | AI46: 58 | AJ46: 52 | AK46: 49 | AL46: 35 | AM46: 23 | AN46: 23 | AO46: 17 | AP46: 11 | AQ46: 14 | AR46: 3 | AS46: 9 | AT46: 9 | AU46: 18 | AV46: 479 | AW46: 32 | AX46: 40 | AY46: 234 | AZ46: 23
A47: 040603 | B47: AREQUIPA | C47: AREQUIPA | D47: CONDESUYOS | E47: CAYARANI | F47: 1440 | G47: CENTRO DE SALUD CAYARANI | H47: 80 | J47: 40 | K47: 29 | L47: 34 | M47: 38 | N47: 29 | O47: 36 | P47: 27 | Q47: 36 | R47: 42 | S47: 30 | T47: 38 | U47: 31 | V47: 37 | W47: 39 | X47: 41 | Y47: 46 | Z47: 53 | AA47: 35 | AB47: 49 | AC47: 43 | AD47: 281 | AE47: 238 | AF47: 246 | AG47: 198 | AH47: 198 | AI47: 174 | AJ47: 116 | AK47: 120 | AL47: 86 | AM47: 66 | AN47: 49 | AO47: 24 | AP47: 21 | AQ47: 25 | AR47: 2 | AS47: 18 | AT47: 22 | AU47: 50 | AV47: 1,416 | AW47: 87 | AX47: 102 | AY47: 809 | AZ47: 63
F48: 7407 | G48: PUESTO DE SALUD ARCATA | H48: 20 | J48: 10 | K48: 7 | L48: 8 | M48: 10 | N48: 7 | O48: 9 | P48: 7 | Q48: 9 | R48: 11 | S48: 7 | T48: 9 | U48: 8 | V48: 9 | W48: 10 | X48: 10 | Y48: 11 | Z48: 13 | AA48: 9 | AB48: 12 | AC48: 11 | AD48: 70 | AE48: 59 | AF48: 61 | AG48: 50 | AH48: 50 | AI48: 44 | AJ48: 29 | AK48: 30 | AL48: 21 | AM48: 16 | AN48: 12 | AO48: 6 | AP48: 5 | AQ48: 6 | AR48: 0 | AS48: 5 | AT48: 5 | AU48: 13 | AV48: 354 | AW48: 22 | AX48: 25 | AY48: 202 | AZ48: 16
A50: 040103 | B50: AREQUIPA | C50: AREQUIPA | D50: AREQUIPA | E50: CAYMA | G50: MR FRANCISCO BOLOGNESI | I50: =SUM(J50:AQ50) -> 54,976 | J50: =SUM(J51:J53) -> 615 | K50: =SUM(K51:K53) -> 711 | L50: 815 | M50: 825 | N50: 903 | O50: 960 | P50: 825 | Q50: 803 | R50: 830 | S50: 849 | T50: 862 | U50: 849 | V50: 875 | W50: 827 | X50: 810 | Y50: 829 | Z50: 754 | AA50: 817 | AB50: 837 | AC50: 813 | AD50: 4,472 | AE50: 4,669 | AF50: 4,431 | AG50: 4,116 | AH50: 3,776 | AI50: 3,481 | AJ50: 3,169 | AK50: 2,868 | AL50: 2,348 | AM50: 1,808 | AN50: 1,345 | AO50: 915 | AP50: 568 | AQ50: 601 | AR50: 41 | AS50: 315 | AT50: 300 | AU50: 677 | AV50: 28,216 | AW50: 2,162 | AX50: 2,099 | AY50: 12,344 | AZ50: 851
F51: 1234 | G51: CENTRO DE SALUD FRANCISCO BOLOGNESI | H51: 33 | J51: 397 | K51: 459 | L51: 527 | M51: 534 | N51: 584 | O51: 621 | P51: 534 | Q51: 520 | R51: 537 | S51: 550 | T51: 558 | U51: 549 | V51: 566 | W51: 535 | X51: 524 | Y51: 536 | Z51: 488 | AA51: 529 | AB51: 542 | AC51: 527 | AD51: 2,893 | AE51: 3,021 | AF51: 2,867 | AG51: 2,663 | AH51: 2,444 | AI51: 2,253 | AJ51: 2,051 | AK51: 1,855 | AL51: 1,519 | AM51: 1,169 | AN51: 870 | AO51: 591 | AP51: 367 | AQ51: 389 | AR51: 27 | AS51: 204 | AT51: 194 | AU51: 438 | AV51: 18,257 | AW51: 1,399 | AX51: 1,358 | AY51: 7,988 | AZ51: 550
F52: 1244 | G52: PUESTO DE SALUD LA TOMILLA | H52: 10 | J52: 121 | K52: 140 | L52: 160 | M52: 162 | N52: 177 | O52: 188 | P52: 162 | Q52: 157 | R52: 163 | S52: 166 | T52: 169 | U52: 167 | V52: 172 | W52: 162 | X52: 159 | Y52: 163 | Z52: 148 | AA52: 160 | AB52: 164 | AC52: 159 | AD52: 877 | AE52: 916 | AF52: 869 | AG52: 807 | AH52: 740 | AI52: 682 | AJ52: 621 | AK52: 563 | AL52: 461 | AM52: 355 | AN52: 264 | AO52: 180 | AP52: 112 | AQ52: 118 | AR52: 8 | AS52: 62 | AT52: 59 | AU52: 133 | AV52: 5,533 | AW52: 424 | AX52: 412 | AY52: 2,420 | AZ52: 167
F53: 6890 | G53: PUESTO DE SALUD RAFAEL BELAUNDE | H53: 8 | J53: 97 | K53: 112 | L53: 128 | M53: 129 | N53: 142 | O53: 151 | P53: 129 | Q53: 126 | R53: 130 | S53: 133 | T53: 135 | U53: 133 | V53: 137 | W53: 130 | X53: 127 | Y53: 130 | Z53: 118 | AA53: 128 | AB53: 131 | AC53: 127 | AD53: 702 | AE53: 732 | AF53: 695 | AG53: 646 | AH53: 592 | AI53: 546 | AJ53: 497 | AK53: 450 | AL53: 368 | AM53: 284 | AN53: 211 | AO53: 144 | AP53: 89 | AQ53: 94 | AR53: 6 | AS53: 49 | AT53: 47 | AU53: 106 | AV53: 4,426 | AW53: 339 | AX53: 329 | AY53: 1,936 | AZ53: 134
A55: 040103 | B55: AREQUIPA | C55: AREQUIPA | D55: AREQUIPA | E55: CAYMA | G55: MR BUENOS AIRES DE CAYMA | I55: =SUM(J55:AQ55) -> 52,830 | J55: =SUM(J56:J58) -> 592 | K55: =SUM(K56:K58) -> 685 | L55: 784 | M55: 793 | N55: 867 | O55: 922 | P55: 793 | Q55: 771 | R55: 798 | S55: 815 | T55: 829 | U55: 817 | V55: 842 | W55: 795 | X55: 779 | Y55: 797 | Z55: 724 | AA55: 785 | AB55: 804 | AC55: 780 | AD55: 4,297 | AE55: 4,487 | AF55: 4,256 | AG55: 3,955 | AH55: 3,627 | AI55: 3,343 | AJ55: 3,045 | AK55: 2,757 | AL55: 2,257 | AM55: 1,737 | AN55: 1,292 | AO55: 881 | AP55: 547 | AQ55: 577 | AR55: 40 | AS55: 303 | AT55: 289 | AU55: 651 | AV55: 27,110 | AW55: 2,078 | AX55: 2,018 | AY55: 11,859 | AZ55: 818
F56: 1235 | G56: BUENOS AIRES DE CAYMA | H56: 27 | J56: 326 | K56: 377 | L56: 432 | M56: 437 | N56: 478 | O56: 508 | P56: 437 | Q56: 425 | R56: 440 | S56: 449 | T56: 457 | U56: 450 | V56: 464 | W56: 438 | X56: 429 | Y56: 439 | Z56: 399 | AA56: 433 | AB56: 443 | AC56: 430 | AD56: 2,368 | AE56: 2,472 | AF56: 2,345 | AG56: 2,179 | AH56: 1,999 | AI56: 1,842 | AJ56: 1,678 | AK56: 1,519 | AL56: 1,243 | AM56: 957 | AN56: 712 | AO56: 485 | AP56: 301 | AQ56: 318 | AR56: 22 | AS56: 167 | AT56: 159 | AU56: 359 | AV56: 14,938 | AW56: 1,145 | AX56: 1,112 | AY56: 6,535 | AZ56: 451
F57: 1245 | G57: SAN JOSE | H57: 10 | J57: 121 | K57: 140 | L57: 160 | M57: 162 | N57: 177 | O57: 188 | P57: 162 | Q57: 157 | R57: 163 | S57: 166 | T57: 169 | U57: 167 | V57: 172 | W57: 162 | X57: 159 | Y57: 163 | Z57: 148 | AA57: 160 | AB57: 164 | AC57: 159 | AD57: 877 | AE57: 916 | AF57: 869 | AG57: 807 | AH57: 740 | AI57: 682 | AJ57: 621 | AK57: 563 | AL57: 461 | AM57: 355 | AN57: 264 | AO57: 180 | AP57: 112 | AQ57: 118 | AR57: 8 | AS57: 62 | AT57: 59 | AU57: 133 | AV57: 5,533 | AW57: 424 | AX57: 412 | AY57: 2,420 | AZ57: 167
F58: 1246 | G58: DEAN VALDIVIA | H58: 12 | J58: 145 | K58: 168 | L58: 192 | M58: 194 | N58: 212 | O58: 226 | P58: 194 | Q58: 189 | R58: 195 | S58: 200 | T58: 203 | U58: 200 | V58: 206 | W58: 195 | X58: 191 | Y58: 195 | Z58: 177 | AA58: 192 | AB58: 197 | AC58: 191 | AD58: 1,052 | AE58: 1,099 | AF58: 1,042 | AG58: 969 | AH58: 888 | AI58: 819 | AJ58: 746 | AK58: 675 | AL58: 553 | AM58: 425 | AN58: 316 | AO58: 216 | AP58: 134 | AQ58: 141 | AR58: 10 | AS58: 74 | AT58: 71 | AU58: 159 | AV58: 6,639 | AW58: 509 | AX58: 494 | AY58: 2,904 | AZ58: 200
A60: 040104 | B60: AREQUIPA | C60: AREQUIPA | D60: AREQUIPA | E60: CERRO COLORADO | G60: MR CERRO COLORADO | I60: =SUM(J60:AQ60) -> 236,098 | J60: 2,660 | K60: 3,109 | L60: 3,405 | M60: 3,318 | N60: 3,445 | O60: 3,514 | P60: 4,056 | Q60: 4,029 | R60: 3,921 | S60: 3,902 | T60: 3,811 | U60: 3,974 | V60: 3,907 | W60: 3,897 | X60: 3,734 | Y60: 3,744 | Z60: 3,593 | AA60: 3,631 | AB60: 3,609 | AC60: 3,709 | AD60: 19,810 | AE60: 19,784 | AF60: 19,031 | AG60: 18,273 | AH60: 17,575 | AI60: 15,086 | AJ60: 13,565 | AK60: 11,426 | AL60: 8,823 | AM60: 7,128 | AN60: 5,375 | AO60: 3,243 | AP60: 2,082 | AQ60: 1,929 | AR60: 199 | AS60: 1,417 | AT60: 1,243 | AU60: 3,163 | AV60: 125,453 | AW60: 10,105 | AX60: 9,523 | AY60: 56,941 | AZ60: 3,972
F61: 1236 | G61: CERRO COLORADO | H61: 9 | J61: 239 | K61: 280 | L61: 306 | M61: 299 | N61: 310 | O61: 316 | P61: 365 | Q61: 363 | R61: 353 | S61: 351 | T61: 343 | U61: 358 | V61: 352 | W61: 351 | X61: 336 | Y61: 337 | Z61: 323 | AA61: 327 | AB61: 325 | AC61: 334 | AD61: 1,783 | AE61: 1,781 | AF61: 1,713 | AG61: 1,645 | AH61: 1,582 | AI61: 1,358 | AJ61: 1,221 | AK61: 1,028 | AL61: 794 | AM61: 642 | AN61: 484 | AO61: 292 | AP61: 187 | AQ61: 174 | AR61: 18 | AS61: 128 | AT61: 112 | AU61: 285 | AV61: 11,291 | AW61: 909 | AX61: 857 | AY61: 5,125 | AZ61: 357
F62: 1248 | G62: ALTO LIBERTAD | H62: 9 | J62: 239 | K62: 280 | L62: 306 | M62: 299 | N62: 310 | O62: 316 | P62: 365 | Q62: 363 | R62: 353 | S62: 351 | T62: 343 | U62: 358 | V62: 352 | W62: 351 | X62: 336 | Y62: 337 | Z62: 323 | AA62: 327 | AB62: 325 | AC62: 334 | AD62: 1,783 | AE62: 1,781 | AF62: 1,713 | AG62: 1,645 | AH62: 1,582 | AI62: 1,358 | AJ62: 1,221 | AK62: 1,028 | AL62: 794 | AM62: 642 | AN62: 484 | AO62: 292 | AP62: 187 | AQ62: 174 | AR62: 18 | AS62: 128 | AT62: 112 | AU62: 285 | AV62: 11,291 | AW62: 909 | AX62: 857 | AY62: 5,125 | AZ62: 357
A64: 040104 | B64: AREQUIPA | C64: AREQUIPA | D64: AREQUIPA | E64: CERRO COLORADO | G64: MR MARISCAL CASTILLA | I64: =SUM(J64:AQ64) -> 54,304 | J64: =SUM(J65:J68) -> 612 | K64: =SUM(K65:K68) -> 715 | L64: 783 | M64: 764 | N64: 792 | O64: 807 | P64: 934 | Q64: 927 | R64: 902 | S64: 897 | T64: 876 | U64: 914 | V64: 899 | W64: 897 | X64: 858 | Y64: 860 | Z64: 826 | AA64: 835 | AB64: 830 | AC64: 853 | AD64: 4,556 | AE64: 4,551 | AF64: 4,377 | AG64: 4,203 | AH64: 4,043 | AI64: 3,471 | AJ64: 3,121 | AK64: 2,628 | AL64: 2,029 | AM64: 1,640 | AN64: 1,237 | AO64: 745 | AP64: 478 | AQ64: 444 | AR64: 46 | AS64: 327 | AT64: 285 | AU64: 728 | AV64: 28,855 | AW64: 2,324 | AX64: 2,190 | AY64: 13,096 | AZ64: 913
F65: 1238 | G65: CENTRO DE SALUD MARISCAL CASTILLA | H65: 10 | J65: 266 | K65: 311 | L65: 341 | M65: 332 | N65: 345 | O65: 351 | P65: 406 | Q65: 403 | R65: 392 | S65: 390 | T65: 381 | U65: 397 | V65: 391 | W65: 390 | X65: 373 | Y65: 374 | Z65: 359 | AA65: 363 | AB65: 361 | AC65: 371 | AD65: 1,981 | AE65: 1,978 | AF65: 1,903 | AG65: 1,827 | AH65: 1,758 | AI65: 1,509 | AJ65: 1,357 | AK65: 1,143 | AL65: 882 | AM65: 713 | AN65: 538 | AO65: 324 | AP65: 208 | AQ65: 193 | AR65: 20 | AS65: 142 | AT65: 124 | AU65: 316 | AV65: 12,545 | AW65: 1,011 | AX65: 952 | AY65: 5,694 | AZ65: 397
F66: 1249 | G66: CENTRO DE SALUD SEMI RURAL PACHACUTEC | H66: 9 | J66: 239 | K66: 280 | L66: 306 | M66: 299 | N66: 310 | O66: 316 | P66: 365 | Q66: 363 | R66: 353 | S66: 351 | T66: 343 | U66: 358 | V66: 352 | W66: 351 | X66: 336 | Y66: 337 | Z66: 323 | AA66: 327 | AB66: 325 | AC66: 334 | AD66: 1,783 | AE66: 1,781 | AF66: 1,713 | AG66: 1,645 | AH66: 1,582 | AI66: 1,358 | AJ66: 1,221 | AK66: 1,028 | AL66: 794 | AM66: 642 | AN66: 484 | AO66: 292 | AP66: 187 | AQ66: 174 | AR66: 18 | AS66: 128 | AT66: 112 | AU66: 285 | AV66: 11,291 | AW66: 909 | AX66: 857 | AY66: 5,125 | AZ66: 357
F67: 1250 | G67: PUESTO DE SALUD JOSE SANTOS ATAHUALPA | H67: 3 | J67: 80 | K67: 93 | L67: 102 | M67: 100 | N67: 103 | O67: 105 | P67: 122 | Q67: 121 | R67: 118 | S67: 117 | T67: 114 | U67: 119 | V67: 117 | W67: 117 | X67: 112 | Y67: 112 | Z67: 108 | AA67: 109 | AB67: 108 | AC67: 111 | AD67: 594 | AE67: 594 | AF67: 571 | AG67: 548 | AH67: 527 | AI67: 453 | AJ67: 407 | AK67: 343 | AL67: 265 | AM67: 214 | AN67: 161 | AO67: 97 | AP67: 62 | AQ67: 58 | AR67: 6 | AS67: 43 | AT67: 37 | AU67: 95 | AV67: 3,764 | AW67: 303 | AX67: 286 | AY67: 1,708 | AZ67: 119
F68: 1252 | G68: PUESTO DE SALUD EL CURAL | H68: 1 | J68: 27 | K68: 31 | L68: 34 | M68: 33 | N68: 34 | O68: 35 | P68: 41 | Q68: 40 | R68: 39 | S68: 39 | T68: 38 | U68: 40 | V68: 39 | W68: 39 | X68: 37 | Y68: 37 | Z68: 36 | AA68: 36 | AB68: 36 | AC68: 37 | AD68: 198 | AE68: 198 | AF68: 190 | AG68: 183 | AH68: 176 | AI68: 151 | AJ68: 136 | AK68: 114 | AL68: 88 | AM68: 71 | AN68: 54 | AO68: 32 | AP68: 21 | AQ68: 19 | AR68: 2 | AS68: 14 | AT68: 12 | AU68: 32 | AV68: 1,255 | AW68: 101 | AX68: 95 | AY68: 569 | AZ68: 40
A70: 040104 | B70: AREQUIPA | C70: AREQUIPA | D70: AREQUIPA | E70: CERRO COLORADO | G70: MR MARITZA CAMPOS DIAS_ZAMACOLA | I70: =SUM(J70:AQ70) -> 139,290 | J70: =SUM(J71:J74) -> 1,570 | K70: =SUM(K71:K74) -> 1,834 | L70: 2,010 | M70: 1,956 | N70: 2,033 | O70: 2,075 | P70: 2,392 | Q70: 2,376 | R70: 2,313 | S70: 2,303 | T70: 2,249 | U70: 2,344 | V70: 2,304 | W70: 2,298 | X70: 2,204 | Y70: 2,210 | Z70: 2,121 | AA70: 2,142 | AB70: 2,129 | AC70: 2,188 | AD70: 11,688 | AE70: 11,671 | AF70: 11,228 | AG70: 10,780 | AH70: 10,368 | AI70: 8,899 | AJ70: 8,002 | AK70: 6,742 | AL70: 5,206 | AM70: 4,204 | AN70: 3,170 | AO70: 1,914 | AP70: 1,230 | AQ70: 1,137 | AR70: 117 | AS70: 834 | AT70: 734 | AU70: 1,865 | AV70: 74,016 | AW70: 5,963 | AX70: 5,619 | AY70: 33,595 | AZ70: 2,345
F71: 1237 | G71: MARITZA CAMPOS DIAZ - ZAMACOLA | H71: 17 | J71: 452 | K71: 529 | L71: 579 | M71: 564 | N71: 586 | O71: 597 | P71: 690 | Q71: 685 | R71: 667 | S71: 663 | T71: 648 | U71: 676 | V71: 664 | W71: 662 | X71: 635 | Y71: 636 | Z71: 611 | AA71: 617 | AB71: 614 | AC71: 631 | AD71: 3,368 | AE71: 3,363 | AF71: 3,235 | AG71: 3,106 | AH71: 2,988 | AI71: 2,565 | AJ71: 2,306 | AK71: 1,942 | AL71: 1,500 | AM71: 1,212 | AN71: 914 | AO71: 551 | AP71: 354 | AQ71: 328 | AR71: 34 | AS71: 241 | AT71: 211 | AU71: 538 | AV71: 21,327 | AW71: 1,718 | AX71: 1,619 | AY71: 9,680 | AZ71: 675
F72: 1251 | G72: PUESTO DE SALUD NAZARENO | H72: 18 | J72: 479 | K72: 559 | L72: 614 | M72: 596 | N72: 620 | O72: 635 | P72: 729 | Q72: 724 | R72: 705 | S72: 704 | T72: 686 | U72: 714 | V72: 702 | W72: 700 | X72: 673 | Y72: 675 | Z72: 648 | AA72: 654 | AB72: 649 | AC72: 667 | AD72: 3,565 | AE72: 3,560 | AF72: 3,426 | AG72: 3,288 | AH72: 3,162 | AI72: 2,713 | AJ72: 2,441 | AK72: 2,058 | AL72: 1,588 | AM72: 1,282 | AN72: 966 | AO72: 585 | AP72: 376 | AQ72: 346 | AR72: 35 | AS72: 253 | AT72: 225 | AU72: 568 | AV72: 22,581 | AW72: 1,820 | AX72: 1,714 | AY72: 10,249 | AZ72: 716
F73: 1247 | G73: PUESTO DE SALUD CIUDAD MUNICIPAL | H73: 16 | J73: 426 | K73: 497 | L73: 545 | M73: 531 | N73: 551 | O73: 562 | P73: 649 | Q73: 645 | R73: 627 | S73: 624 | T73: 610 | U73: 636 | V73: 625 | W73: 624 | X73: 597 | Y73: 599 | Z73: 575 | AA73: 581 | AB73: 577 | AC73: 593 | AD73: 3,170 | AE73: 3,165 | AF73: 3,045 | AG73: 2,924 | AH73: 2,812 | AI73: 2,414 | AJ73: 2,170 | AK73: 1,828 | AL73: 1,412 | AM73: 1,140 | AN73: 860 | AO73: 519 | AP73: 333 | AQ73: 309 | AR73: 32 | AS73: 227 | AT73: 199 | AU73: 506 | AV73: 20,072 | AW73: 1,617 | AX73: 1,524 | AY73: 9,111 | AZ73: 636
F74: 11023 | G74: PUESTO DE SALUD PERUARBO | H74: 8 | J74: 213 | K74: 249 | L74: 272 | M74: 265 | N74: 276 | O74: 281 | P74: 324 | Q74: 322 | R74: 314 | S74: 312 | T74: 305 | U74: 318 | V74: 313 | W74: 312 | X74: 299 | Y74: 300 | Z74: 287 | AA74: 290 | AB74: 289 | AC74: 297 | AD74: 1,585 | AE74: 1,583 | AF74: 1,522 | AG74: 1,462 | AH74: 1,406 | AI74: 1,207 | AJ74: 1,085 | AK74: 914 | AL74: 706 | AM74: 570 | AN74: 430 | AO74: 259 | AP74: 167 | AQ74: 154 | AR74: 16 | AS74: 113 | AT74: 99 | AU74: 253 | AV74: 10,036 | AW74: 808 | AX74: 762 | AY74: 4,555 | AZ74: 318
A76: 040126 | B76: AREQUIPA | C76: AREQUIPA | D76: AREQUIPA | E76: YANAHUARA | G76: MR YANAHUARA | I76: =SUM(J76:AQ76) -> 32,558 | J76: =SUM(J77:J80) -> 417 | K76: =SUM(K77:K80) -> 498 | L76: 506 | M76: 560 | N76: 534 | O76: 587 | P76: 471 | Q76: 442 | R76: 450 | S76: 420 | T76: 466 | U76: 456 | V76: 470 | W76: 448 | X76: 487 | Y76: 420 | Z76: 445 | AA76: 474 | AB76: 480 | AC76: 469 | AD76: 2,645 | AE76: 2,604 | AF76: 2,373 | AG76: 2,372 | AH76: 2,363 | AI76: 2,109 | AJ76: 1,821 | AK76: 1,683 | AL76: 1,363 | AM76: 1,223 | AN76: 952 | AO76: 657 | AP76: 431 | AQ76: 462 | AR76: 29 | AS76: 222 | AT76: 195 | AU76: 460 | AV76: 16,673 | AW76: 1,177 | AX76: 1,198 | AY76: 7,594 | AZ76: 580
F77: 1233 | G77: CENTRO DE SALUD YANAHUARA | H77: 7.79 | J77: 23 | K77: 31 | L77: 33 | M77: 28 | N77: 24 | O77: 28 | P77: 29 | Q77: 25 | R77: 27 | S77: 24 | T77: 24 | U77: 29 | V77: 26 | W77: 28 | X77: 28 | Y77: 27 | Z77: 27 | AA77: 25 | AB77: 28 | AC77: 30 | AD77: 133 | AE77: 151 | AF77: 142 | AG77: 150 | AH77: 140 | AI77: 139 | AJ77: 136 | AK77: 127 | AL77: 109 | AM77: 100 | AN77: 85 | AO77: 62 | AP77: 42 | AQ77: 50 | AR77: 1 | AS77: 11 | AT77: 13 | AU77: 23 | AV77: 1,027 | AW77: 67 | AX77: 71 | AY77: 427 | AZ77: 29
F78: 1241 | G78: PUESTO DE SALUD SUMBAY - CHASQUIPAMPA | H78: 4 | J78: 12 | K78: 16 | L78: 17 | M78: 15 | N78: 12 | O78: 14 | P78: 15 | Q78: 13 | R78: 14 | S78: 12 | T78: 13 | U78: 15 | V78: 14 | W78: 14 | X78: 15 | Y78: 14 | Z78: 14 | AA78: 13 | AB78: 14 | AC78: 15 | AD78: 68 | AE78: 77 | AF78: 73 | AG78: 77 | AH78: 72 | AI78: 71 | AJ78: 70 | AK78: 65 | AL78: 56 | AM78: 51 | AN78: 44 | AO78: 32 | AP78: 22 | AQ78: 26 | AR78: 1 | AS78: 5 | AT78: 6 | AU78: 12 | AV78: 527 | AW78: 34 | AX78: 36 | AY78: 219 | AZ78: 15
A79: 040117 | B79: AREQUIPA | C79: AREQUIPA | D79: AREQUIPA | E79: SACHACA | F79: 1282 | G79: PUESTO DE SALUD SACHACA | H79: 65 | J79: 248 | K79: 293 | L79: 296 | M79: 336 | N79: 324 | O79: 354 | P79: 278 | Q79: 263 | R79: 266 | S79: 250 | T79: 279 | U79: 268 | V79: 279 | W79: 264 | X79: 289 | Y79: 246 | Z79: 263 | AA79: 283 | AB79: 285 | AC79: 276 | AD79: 1,589 | AE79: 1,544 | AF79: 1,403 | AG79: 1,394 | AH79: 1,398 | AI79: 1,234 | AJ79: 1,050 | AK79: 969 | AL79: 779 | AM79: 697 | AN79: 535 | AO79: 366 | AP79: 239 | AQ79: 251 | AR79: 18 | AS79: 134 | AT79: 114 | AU79: 276 | AV79: 9,827 | AW79: 699 | AX79: 709 | AY79: 4,516 | AZ79: 348
F80: 1283 | G80: PUESTO DE SALUD PAMPA DE CAMARONES | H80: 35 | J80: 134 | K80: 158 | L80: 160 | M80: 181 | N80: 174 | O80: 191 | P80: 149 | Q80: 141 | R80: 143 | S80: 134 | T80: 150 | U80: 144 | V80: 151 | W80: 142 | X80: 155 | Y80: 133 | Z80: 141 | AA80: 153 | AB80: 153 | AC80: 148 | AD80: 855 | AE80: 832 | AF80: 755 | AG80: 751 | AH80: 753 | AI80: 665 | AJ80: 565 | AK80: 522 | AL80: 419 | AM80: 375 | AN80: 288 | AO80: 197 | AP80: 128 | AQ80: 135 | AR80: 9 | AS80: 72 | AT80: 62 | AU80: 149 | AV80: 5,292 | AW80: 377 | AX80: 382 | AY80: 2,432 | AZ80: 188
G82: MR CIUDAD DE DIOS | I82: =SUM(J82:AQ82) -> 46,701 | J82: =SUM(J83:J89) -> 617 | K82: =SUM(K83:K89) -> 781 | L82: 878 | M82: 940 | N82: 994 | O82: 955 | P82: 981 | Q82: 954 | R82: 967 | S82: 900 | T82: 917 | U82: 685 | V82: 724 | W82: 692 | X82: 651 | Y82: 684 | Z82: 631 | AA82: 658 | AB82: 705 | AC82: 673 | AD82: 3,543 | AE82: 3,720 | AF82: 3,685 | AG82: 3,738 | AH82: 3,158 | AI82: 2,747 | AJ82: 2,544 | AK82: 2,259 | AL82: 1,748 | AM82: 1,327 | AN82: 945 | AO82: 576 | AP82: 377 | AQ82: 347 | AR82: 37 | AS82: 312 | AT82: 304 | AU82: 700 | AV82: 25,160 | AW82: 1,966 | AX82: 1,738 | AY82: 10,614 | AZ82: 881
A83: 040128 | B83: AREQUIPA | C83: AREQUIPA | D83: AREQUIPA | E83: YURA | F83: 1253 | G83: CENTRO DE SALUD CIUDAD DE DIOS | H83: 85 | J83: 500 | K83: 644 | L83: 728 | M83: 781 | N83: 813 | O83: 776 | P83: 822 | Q83: 796 | R83: 807 | S83: 748 | T83: 758 | U83: 564 | V83: 596 | W83: 563 | X83: 530 | Y83: 558 | Z83: 509 | AA83: 530 | AB83: 575 | AC83: 549 | AD83: 2,868 | AE83: 3,012 | AF83: 2,978 | AG83: 3,018 | AH83: 2,531 | AI83: 2,189 | AJ83: 2,026 | AK83: 1,796 | AL83: 1,367 | AM83: 1,037 | AN83: 716 | AO83: 433 | AP83: 274 | AQ83: 252 | AR83: 29 | AS83: 247 | AT83: 252 | AU83: 564 | AV83: 20,501 | AW83: 1,625 | AX83: 1,419 | AY83: 8,574 | AZ83: 706
F84: 1254 | G84: PUESTO DE SALUD YURA | H84: 15 | J84: 88 | K84: 114 | L84: 129 | M84: 138 | N84: 143 | O84: 137 | P84: 145 | Q84: 141 | R84: 143 | S84: 132 | T84: 134 | U84: 100 | V84: 105 | W84: 99 | X84: 93 | Y84: 98 | Z84: 90 | AA84: 93 | AB84: 102 | AC84: 97 | AD84: 506 | AE84: 531 | AF84: 525 | AG84: 533 | AH84: 447 | AI84: 386 | AJ84: 358 | AK84: 317 | AL84: 241 | AM84: 183 | AN84: 126 | AO84: 77 | AP84: 48 | AQ84: 45 | AR84: 5 | AS84: 44 | AT84: 45 | AU84: 99 | AV84: 3,618 | AW84: 287 | AX84: 251 | AY84: 1,513 | AZ84: 125
A85: 040508 | B85: AREQUIPA | C85: AREQUIPA | D85: CAYLLOMA | E85: HUANCA | F85: 1239 | G85: PUESTO DE SALUD HUANCA | H85: 100 | J85: 13 | K85: 8 | L85: 3 | M85: 12 | N85: 19 | O85: 12 | P85: 2 | Q85: 3 | R85: 6 | S85: 8 | T85: 8 | U85: 7 | V85: 8 | W85: 8 | X85: 10 | Y85: 8 | Z85: 9 | AA85: 11 | AB85: 10 | AC85: 10 | AD85: 49 | AE85: 71 | AF85: 65 | AG85: 66 | AH85: 90 | AI85: 76 | AJ85: 73 | AK85: 59 | AL85: 64 | AM85: 49 | AN85: 46 | AO85: 30 | AP85: 27 | AQ85: 26 | AR85: 0 | AS85: 10 | AT85: 3 | AU85: 17 | AV85: 386 | AW85: 18 | AX85: 22 | AY85: 180 | AZ85: 23
A86: 040511 | B86: AREQUIPA | C86: AREQUIPA | D86: CAYLLOMA | E86: LLUTA | F86: 1255 | G86: PUESTO DE SALUD LLUTA | H86: 60 | J86: 5 | K86: 4 | L86: 4 | M86: 3 | N86: 5 | O86: 9 | P86: 2 | Q86: 2 | R86: 3 | S86: 1 | T86: 3 | U86: 4 | V86: 4 | W86: 6 | X86: 4 | Y86: 4 | Z86: 5 | AA86: 7 | AB86: 5 | AC86: 4 | AD86: 38 | AE86: 21 | AF86: 35 | AG86: 42 | AH86: 24 | AI86: 32 | AJ86: 27 | AK86: 27 | AL86: 21 | AM86: 20 | AN86: 19 | AO86: 13 | AP86: 12 | AQ86: 9 | AR86: 2 | AS86: 3 | AT86: 1 | AU86: 6 | AV86: 167 | AW86: 7 | AX86: 12 | AY86: 92 | AZ86: 9
F87: 1256 | G87: PUESTO DE SALUD TAYA | H87: 23 | J87: 2 | K87: 2 | L87: 2 | M87: 1 | N87: 2 | O87: 4 | P87: 0 | Q87: 0 | R87: 1 | S87: 1 | T87: 1 | U87: 1 | V87: 1 | W87: 3 | X87: 1 | Y87: 1 | Z87: 2 | AA87: 3 | AB87: 2 | AC87: 1 | AD87: 15 | AE87: 8 | AF87: 13 | AG87: 16 | AH87: 9 | AI87: 12 | AJ87: 10 | AK87: 11 | AL87: 8 | AM87: 8 | AN87: 7 | AO87: 5 | AP87: 5 | AQ87: 4 | AR87: 0 | AS87: 1 | AT87: 1 | AU87: 3 | AV87: 64 | AW87: 3 | AX87: 4 | AY87: 35 | AZ87: 3
A88: 040514 | B88: AREQUIPA | C88: AREQUIPA | D88: CAYLLOMA | E88: SAN ANTONIO DE CHUCA | F88: 1242 | G88: PUESTO DE SALUD IMATA | H88: 60 | J88: 5 | K88: 5 | L88: 7 | M88: 3 | N88: 7 | O88: 10 | P88: 6 | Q88: 7 | R88: 4 | S88: 6 | T88: 8 | U88: 5 | V88: 6 | W88: 8 | X88: 8 | Y88: 9 | Z88: 10 | AA88: 8 | AB88: 7 | AC88: 7 | AD88: 40 | AE88: 46 | AF88: 41 | AG88: 38 | AH88: 34 | AI88: 31 | AJ88: 30 | AK88: 29 | AL88: 28 | AM88: 18 | AN88: 19 | AO88: 11 | AP88: 7 | AQ88: 7 | AR88: 1 | AS88: 4 | AT88: 1 | AU88: 7 | AV88: 254 | AW88: 16 | AX88: 18 | AY88: 132 | AZ88: 9
F89: 1243 | G89: PUESTO DE SALUD PILLONES | H89: 40 | J89: 4 | K89: 4 | L89: 5 | M89: 2 | N89: 5 | O89: 7 | P89: 4 | Q89: 5 | R89: 3 | S89: 4 | T89: 5 | U89: 4 | V89: 4 | W89: 5 | X89: 5 | Y89: 6 | Z89: 6 | AA89: 6 | AB89: 4 | AC89: 5 | AD89: 27 | AE89: 31 | AF89: 28 | AG89: 25 | AH89: 23 | AI89: 21 | AJ89: 20 | AK89: 20 | AL89: 19 | AM89: 12 | AN89: 12 | AO89: 7 | AP89: 4 | AQ89: 4 | AR89: 0 | AS89: 3 | AT89: 1 | AU89: 4 | AV89: 170 | AW89: 10 | AX89: 12 | AY89: 88 | AZ89: 6
G91: MR SANDRITA PEREZ-PEDREGAL | I91: =SUM(J91:AQ91) -> 75,143 | J91: =SUM(J92:J100) -> 1,233 | K91: =SUM(K92:K100) -> 1,346 | L91: 1,351 | M91: 1,328 | N91: 1,296 | O91: 1,238 | P91: 1,311 | Q91: 1,278 | R91: 1,148 | S91: 1,139 | T91: 1,081 | U91: 1,084 | V91: 1,115 | W91: 1,063 | X91: 1,092 | Y91: 1,045 | Z91: 1,121 | AA91: 1,100 | AB91: 1,123 | AC91: 1,159 | AD91: 5,375 | AE91: 6,339 | AF91: 5,817 | AG91: 5,845 | AH91: 5,309 | AI91: 4,759 | AJ91: 4,369 | AK91: 3,815 | AL91: 3,128 | AM91: 2,448 | AN91: 1,818 | AO91: 1,180 | AP91: 693 | AQ91: 597 | AR91: 82 | AS91: 604 | AT91: 630 | AU91: 1,504 | AV91: 39,394 | AW91: 2,754 | AX91: 2,827 | AY91: 16,980 | AZ91: 1,892
A92: 040520 | B92: AREQUIPA | C92: AREQUIPA | D92: CAYLLOMA | E92: MAJES | F92: 1325 | G92: CENTRO DE SALUD SANDRITA PEREZ EL PEDREGAL | H92: 46 | J92: 559 | K92: 609 | L92: 616 | M92: 600 | N92: 584 | O92: 560 | P92: 596 | Q92: 584 | R92: 523 | S92: 517 | T92: 491 | U92: 493 | V92: 504 | W92: 484 | X92: 496 | Y92: 471 | Z92: 506 | AA92: 496 | AB92: 506 | AC92: 528 | AD92: 2,431 | AE92: 2,863 | AF92: 2,628 | AG92: 2,654 | AH92: 2,406 | AI92: 2,151 | AJ92: 1,967 | AK92: 1,715 | AL92: 1,410 | AM92: 1,100 | AN92: 818 | AO92: 528 | AP92: 306 | AQ92: 262 | AR92: 36 | AS92: 273 | AT92: 286 | AU92: 680 | AV92: 17,862 | AW92: 1,253 | AX92: 1,278 | AY92: 7,696 | AZ92: 855
F93: 1326 | G93: CENTRO DE SALUD LA COLINA | H93: 41 | J93: 498 | K93: 543 | L93: 549 | M93: 535 | N93: 520 | O93: 499 | P93: 532 | Q93: 521 | R93: 465 | S93: 461 | T93: 437 | U93: 440 | V93: 450 | W93: 432 | X93: 442 | Y93: 421 | Z93: 451 | AA93: 442 | AB93: 451 | AC93: 470 | AD93: 2,166 | AE93: 2,551 | AF93: 2,343 | AG93: 2,366 | AH93: 2,145 | AI93: 1,916 | AJ93: 1,753 | AK93: 1,529 | AL93: 1,256 | AM93: 980 | AN93: 729 | AO93: 472 | AP93: 273 | AQ93: 233 | AR93: 33 | AS93: 244 | AT93: 254 | AU93: 607 | AV93: 15,921 | AW93: 1,116 | AX93: 1,140 | AY93: 6,860 | AZ93: 762
F94: 1341 | G94: ASENTAMIENTO B-1 | H94: 7 | J94: 85 | K94: 93 | L94: 94 | M94: 91 | N94: 89 | O94: 85 | P94: 91 | Q94: 89 | R94: 79 | S94: 79 | T94: 75 | U94: 75 | V94: 77 | W94: 74 | X94: 76 | Y94: 72 | Z94: 77 | AA94: 75 | AB94: 77 | AC94: 80 | AD94: 370 | AE94: 436 | AF94: 400 | AG94: 404 | AH94: 366 | AI94: 327 | AJ94: 299 | AK94: 261 | AL94: 214 | AM94: 167 | AN94: 124 | AO94: 81 | AP94: 47 | AQ94: 40 | AR94: 6 | AS94: 42 | AT94: 43 | AU94: 104 | AV94: 2,718 | AW94: 191 | AX94: 195 | AY94: 1,171 | AZ94: 130
F95: 1342 | G95: PUESTO DE SALUD B-2 | H95: 6 | J95: 73 | K95: 79 | L95: 80 | M95: 78 | N95: 76 | O95: 73 | P95: 78 | Q95: 76 | R95: 68 | S95: 67 | T95: 64 | U95: 64 | V95: 66 | W95: 63 | X95: 65 | Y95: 62 | Z95: 66 | AA95: 65 | AB95: 66 | AC95: 69 | AD95: 317 | AE95: 373 | AF95: 343 | AG95: 346 | AH95: 314 | AI95: 280 | AJ95: 257 | AK95: 224 | AL95: 184 | AM95: 143 | AN95: 107 | AO95: 69 | AP95: 40 | AQ95: 34 | AR95: 5 | AS95: 36 | AT95: 37 | AU95: 89 | AV95: 2,330 | AW95: 163 | AX95: 167 | AY95: 1,004 | AZ95: 112
A96: 040118 | B96: AREQUIPA | C96: AREQUIPA | D96: AREQUIPA | E96: SAN JUAN DE SIGUAS | F96: 1339 | G96: PUESTO DE SALUD SAN JUAN DE SIGUAS - TAMBILLO | H96: 100 | J96: 12 | K96: 9 | L96: 6 | M96: 16 | N96: 17 | O96: 10 | P96: 5 | Q96: 4 | R96: 6 | S96: 7 | T96: 7 | U96: 4 | V96: 7 | W96: 3 | X96: 5 | Y96: 9 | Z96: 10 | AA96: 8 | AB96: 7 | AC96: 4 | AD96: 28 | AE96: 59 | AF96: 33 | AG96: 39 | AH96: 36 | AI96: 33 | AJ96: 38 | AK96: 39 | AL96: 27 | AM96: 24 | AN96: 13 | AO96: 15 | AP96: 8 | AQ96: 10 | AR96: 2 | AS96: 6 | AT96: 6 | AU96: 15 | AV96: 238 | AW96: 10 | AX96: 20 | AY96: 99 | AZ96: 20
A97: 040120 | B97: AREQUIPA | C97: AREQUIPA | D97: AREQUIPA | E97: SANTA ISABEL DE SIGUAS | F97: 1336 | G97: SANTA ISABEL DE SIGUAS | H97: 74 | J97: 3 | K97: 8 | L97: 3 | M97: 5 | N97: 6 | O97: 6 | P97: 7 | Q97: 2 | R97: 4 | S97: 5 | T97: 4 | U97: 5 | V97: 8 | W97: 3 | X97: 5 | Y97: 7 | Z97: 8 | AA97: 8 | AB97: 11 | AC97: 5 | AD97: 38 | AE97: 37 | AF97: 44 | AG97: 18 | AH97: 25 | AI97: 31 | AJ97: 36 | AK97: 29 | AL97: 23 | AM97: 20 | AN97: 16 | AO97: 9 | AP97: 12 | AQ97: 11 | AR97: 0 | AS97: 2 | AT97: 3 | AU97: 5 | AV97: 206 | AW97: 15 | AX97: 18 | AY97: 92 | AZ97: 8
F98: 1378 | G98: PUESTO DE SALUD SONDOR | H98: 13 | J98: 1 | K98: 2 | L98: 1 | M98: 1 | N98: 1 | O98: 1 | P98: 1 | Q98: 1 | R98: 1 | S98: 1 | T98: 1 | U98: 1 | V98: 1 | W98: 1 | X98: 1 | Y98: 1 | Z98: 1 | AA98: 2 | AB98: 2 | AC98: 1 | AD98: 7 | AE98: 7 | AF98: 8 | AG98: 3 | AH98: 5 | AI98: 6 | AJ98: 6 | AK98: 5 | AL98: 4 | AM98: 4 | AN98: 3 | AO98: 1 | AP98: 2 | AQ98: 2 | AR98: 0 | AS98: 0 | AT98: 0 | AU98: 1 | AV98: 36 | AW98: 2 | AX98: 3 | AY98: 16 | AZ98: 1
F99: 1337 | G99: PUESTO DE SALUD PITAY | H99: 13 | J99: 1 | K99: 2 | L99: 1 | M99: 1 | N99: 1 | O99: 1 | P99: 1 | Q99: 1 | R99: 1 | S99: 1 | T99: 1 | U99: 1 | V99: 1 | W99: 1 | X99: 1 | Y99: 1 | Z99: 1 | AA99: 2 | AB99: 2 | AC99: 1 | AD99: 7 | AE99: 7 | AF99: 8 | AG99: 3 | AH99: 5 | AI99: 6 | AJ99: 6 | AK99: 5 | AL99: 4 | AM99: 4 | AN99: 3 | AO99: 1 | AP99: 2 | AQ99: 2 | AR99: 0 | AS99: 0 | AT99: 0 | AU99: 1 | AV99: 36 | AW99: 2 | AX99: 3 | AY99: 16 | AZ99: 1
A100: 040511 | B100: AREQUIPA | C100: AREQUIPA | D100: CAYLLOMA | E100: LLUTA | F100: 1340 | G100: PUESTO DE SALUD QUERQUE | H100: 17 | J100: 1 | K100: 1 | L100: 1 | M100: 1 | N100: 2 | O100: 3 | P100: 0 | Q100: 0 | R100: 1 | S100: 1 | T100: 1 | U100: 1 | V100: 1 | W100: 2 | X100: 1 | Y100: 1 | Z100: 1 | AA100: 2 | AB100: 1 | AC100: 1 | AD100: 11 | AE100: 6 | AF100: 10 | AG100: 12 | AH100: 7 | AI100: 9 | AJ100: 7 | AK100: 8 | AL100: 6 | AM100: 6 | AN100: 5 | AO100: 4 | AP100: 3 | AQ100: 3 | AR100: 0 | AS100: 1 | AT100: 1 | AU100: 2 | AV100: 47 | AW100: 2 | AX100: 3 | AY100: 26 | AZ100: 3
A102: 040102 | B102: AREQUIPA | C102: AREQUIPA | D102: AREQUIPA | E102: ALTO SELVA ALEGRE | G102: MR ALTO SELVA ALEGRE | I102: =SUM(J102:AQ102) -> 91,507 | J102: =SUM(J103:J108) -> 1,083 | K102: =SUM(K103:K108) -> 1,304 | L102: 1,350 | M102: 1,429 | N102: 1,454 | O102: 1,558 | P102: 1,311 | Q102: 1,415 | R102: 1,356 | S102: 1,361 | T102: 1,378 | U102: 1,364 | V102: 1,278 | W102: 1,328 | X102: 1,327 | Y102: 1,255 | Z102: 1,318 | AA102: 1,271 | AB102: 1,323 | AC102: 1,374 | AD102: 7,078 | AE102: 7,710 | AF102: 7,389 | AG102: 6,537 | AH102: 6,602 | AI102: 5,886 | AJ102: 5,566 | AK102: 4,945 | AL102: 3,958 | AM102: 3,027 | AN102: 2,233 | AO102: 1,549 | AP102: 1,043 | AQ102: 1,147 | AR102: 75 | AS102: 603 | AT102: 480 | AU102: 1,110 | AV102: 46,858 | AW102: 3,313 | AX102: 3,398 | AY102: 20,399 | AZ102: 1,395 | BA102: 0
F103: 1291 | G103: CENTRO DE SALUD ALTO SELVA ALEGRE | H103: 32 | J103: 347 | K103: 419 | L103: 430 | M103: 458 | N103: 465 | O103: 499 | P103: 420 | Q103: 453 | R103: 434 | S103: 436 | T103: 441 | U103: 436 | V103: 409 | W103: 425 | X103: 425 | Y103: 401 | Z103: 422 | AA103: 406 | AB103: 422 | AC103: 440 | AD103: 2,265 | AE103: 2,467 | AF103: 2,364 | AG103: 2,092 | AH103: 2,113 | AI103: 1,884 | AJ103: 1,781 | AK103: 1,583 | AL103: 1,267 | AM103: 969 | AN103: 714 | AO103: 497 | AP103: 334 | AQ103: 367 | AR103: 24 | AS103: 194 | AT103: 153 | AU103: 355 | AV103: 14,995 | AW103: 1,060 | AX103: 1,087 | AY103: 6,527 | AZ103: 446
F104: 1300 | G104: APURIMAC | H104: 11 | J104: 119 | K104: 143 | L104: 149 | M104: 157 | N104: 160 | O104: 171 | P104: 144 | Q104: 156 | R104: 149 | S104: 150 | T104: 152 | U104: 150 | V104: 141 | W104: 146 | X104: 146 | Y104: 138 | Z104: 145 | AA104: 140 | AB104: 146 | AC104: 151 | AD104: 779 | AE104: 848 | AF104: 813 | AG104: 719 | AH104: 726 | AI104: 647 | AJ104: 612 | AK104: 544 | AL104: 435 | AM104: 333 | AN104: 246 | AO104: 170 | AP104: 115 | AQ104: 126 | AR104: 8 | AS104: 66 | AT104: 53 | AU104: 122 | AV104: 5,154 | AW104: 364 | AX104: 374 | AY104: 2,244 | AZ104: 153
F105: 1302 | G105: INDEPENDENCIA | H105: 29 | J105: 314 | K105: 378 | L105: 392 | M105: 414 | N105: 422 | O105: 452 | P105: 380 | Q105: 410 | R105: 393 | S105: 395 | T105: 400 | U105: 396 | V105: 371 | W105: 385 | X105: 385 | Y105: 364 | Z105: 382 | AA105: 369 | AB105: 384 | AC105: 398 | AD105: 2,053 | AE105: 2,236 | AF105: 2,143 | AG105: 1,896 | AH105: 1,915 | AI105: 1,707 | AJ105: 1,614 | AK105: 1,434 | AL105: 1,148 | AM105: 878 | AN105: 648 | AO105: 449 | AP105: 302 | AQ105: 333 | AR105: 22 | AS105: 175 | AT105: 139 | AU105: 322 | AV105: 13,589 | AW105: 961 | AX105: 985 | AY105: 5,916 | AZ105: 405
